Workbook

Sheet Notes
A1: GoldenCrossBreakout.xlsm; Traders Tip spreadsheet created for the February 2017 Issue
A2: Coded beginning 2017-January-08 by Ronald McAllister (rpmac_xltt@sprynet.com)
A4: This Workbook demonstrates an EXCEL version of the ideas presented
A5: by Ken Calhoun in an article titled "Golden Cross Breakouts"
A6: which originally appeared in the March 2017 issue of
A7: "Technical Analysis of Stocks and Commodities" magazine.
A9: CalculationsAndCharts construction Notes:
B10: A note about trailing stops and bar chart simulations:
B11: For this spreadsheet and chart, the calculation of the stop we use for the current bar uses the close of the preceding bars.
B12: But nothing from the current bar. Thus the term "Trailing".
B14: The Buy simulation used here executes using the Open of the bar immediately following the Buy crossover.
B15: Similarly the Stop sell executes using the Open of the bar immediately following the bar which intercepts the stop;
B16: This intecept bar is any bar where we have a Long position in flight and the Low of the bar is less than the current stop level.
B18: Since the moving averages and the Stop computations all use the Close to generate the signals,
B19: we cannot logically act any earlier than the open of the bar following the signal.
A20: 2017Jan14 rpmac - V2 of this spreadsheet
B21: I like to play "what if" so I tried 100 instead of 200 for the "Slow" SMA. I got some strange results on the transaction summary.
B22: Found errors in the transaction logic on the CalculationsAndCharts tab and more importantly in the formulas used to summarize things on the Transaction Summary tab.
A24: Development Notes:
C25: This workbook contains and uses VBA macros and may use VBA Class structures.
C26: Input Data
C27: The data in this workbook is sorted date descending (most recent date at the top). All formulas and
C28: VBA routines are built accordingly.
A30: Calculation and Chart Worksheet Usage Comments:
C31: In General, Items in Bolded BLUE are items you may freely change to play what-if games.
C32: Be sure to have a backup copy of the spreadsheet before you alter anything else.
A34: Features carried forward from the June 2016 version of my T-Tips Template
A35: Added a pair of buttons near cell F12 that will allow the user to step the charting window forward or backward one bar for each click.
A36: I find this to be a good way to test my understanding of the author's ideas as I step through the evolution of the price behavior and the indicators.
B38: First: In the "Help! I would like to plot data" area.
B39: Added button to resolve #NA problems by locating the bar in the input data with a slightly more recent date than what the user actually requested.
B40: I find this particularly useful when I have a general idea of where I want to be date wise. Now I can pick a set of dates "out of the air".
B41: If either (or both) of my date specifications fall between dates that are available in the price history,
B42: this button will resolve them to the dates of the nearest, slightly more recent input bars.
B43: I can then refine my data interval search as necessary from there.
B44: Really great when working with Weekly or Monthly studies!
C45: 2016Jun11 - added logic to the "I would like to chart.." button to detect #N/A values and terminate
C46: gracefully with a message instead of blowing up in the charting logic.
B48: Second: In the "Price Chart Windowing Controls" area. (A11 and A12)
B49: When retrieving data for a new symbol or when changing from daily to weekly or monthly data, there was the possibility that the
B50: residual settings in A11 and A12 would fall outside of the number bars available on the input data tab after the new data retrieval.
B51: In certain combinations, this could create a serious error in the chart sizing logic and crash the spreadsheet.
B52: I have taken this opportunity to update the validity checking logic used in the chart sizing macros
B53: to adjust these values as necessary so that they fall within the boundaries of the newly retrieved input data.
A54: Features carried forward from the October 2015 Traders Tips Template
B55: Improved automation: changes to any of the following will automatically initiate calculations appropriate to reflect a change.
C56: Changing either of cells A11 (pan) or A12 (zoom) will automatically initiate the same chart sizing macros that the manual
C57: "Set Chart" button uses.
B59: Added fail-over capability to attempt to retrieve company name and basic last trade info via screen scraper logic
C60: using the Yahoo stock Summary page. Until now, the way I have been doing this reports that ^DJI is Not Found!
C61: when there is history available. Will still report correctly for a truly Not Found Symbol
C62: Minor drawbacks to the screen scrape of the stock summary page include:
C63: Only date on the page is the date we request the page. I will use this date for now as the last trade date…
C64: But the user should be aware that this is not necessarily the correct date if you are making the inquiry on
C65: a weekend or market holiday.
C66: This is not a big issue as the last real trade will already be accounted for in the history download by about 6 pm on the real date of the trade.
C67: Note: This failover mechanism is only used if what I have been doing all along reports a "not found" for the requested symbol.

Sheet InputPriceData
A1: Spirit Aerosystems Holdings, In (SPR) -NYQ (Daily)
A2: Last Trade: | B2: 2017-01-12 | C2: 58.97 | D2: 58.97 | E2: 57.48 | F2: 57.91 | G2: 786765 | H2: 4:02pm | I2: -0.98 | J2: =IFERROR(OFFSET(J2,0,-1,1,1)/(OFFSET(J2,0,-4,1,1)-OFFSET(J2,0,-1,1,1)),"") -> -0.01664119545 | L2: Notes: | M2: Online Yahoo Finance Query Interfaces used in the VBA code to obtain this data: | IJ2: 241.79
A3: Request Online Yahoo History for: | M3: A.) Price History Only: "http://ichart.finance.yahoo.com/table.csv"
A4: Symbol | B4: SPR | D4: Valid | I4: =OFFSET(I4,-2,0,1,1) -> -0.98 | M4: B.) Price History w/ imbedded divs n splits: "http://ichart.finance.yahoo.com/x"
A5: From | B5: 1950-01-01 | D5: Data | AF5: Trailing 12 Div return (Cur Close)
A6: To | B6: =NOW() -> 2017-01-14T11:29:20.060 | D6: Types | E6: =VLOOKUP(B7,D7:E10,2,FALSE) -> d | M6: C.) Fundamentals (in this case name and exchange):
A7: Data Type | B7: Daily | D7: Daily | E7: d | M7: "http://download.finance.yahoo.com/d/quotes.csv?"
D8: Weekly | E8: w | M8: For some how-to doc regarding this particular interface, including a list of the
A9: Available Data | D9: Monthly | E9: m | M9: specific fields you can include in a request to this interface see:
A10: Bar Count: | B10: =COUNTA(B15:B70000)-1 -> 2549 | M10: http://www.gummy-stuff.org/Yahoo-data.htm | AF10: =OFFSET(AC15,1,0,1,1)/OFFSET(N15,1,0,1,1) -> 0.001726817475
A11: From: | B11: =IF(B10<=0,"",OFFSET(B15,B10,IF(HistReqDataType="v",1,0),1,1)) -> 2006-11-28 | M11: This web site includes a downloadable working EXCEL/VBA example | W11: Trailing 12 Month Dividend Returns
A12: To: | B12: =IF(B10<=0,"",IF(HistReqDataType="v",OFFSET(B15,2,1,1,1),OFFSET(B15,1,0,1,1))) -> 2017-01-12 | M12: of the capabilities of this interface. | W12: Raw Close price on Dividend date | X12: Div Year and Month | Y12: Looking for year ago Div Year and Month | Z12: Year ago Div Date we found | AA12: row offset to year ago div Date | AB12: Same month flag | AC12: Trailing 12 Div Total | AD12: Trailing 12 Div return
Q13: Split History | S13: =COUNT(Q16:Q3919) -> 0 | T13: Running | U13: Dividend History
B14: Raw Data Values | H14: Adjusted | I14: Price Adjust | J14: Vol Adjust | K14: Adjusted Values | P14: Last | Q14: Effective | R14: Shares | T14: Vol Adjust | V14: =COUNT(U16:U3919) -> 1
A15: RelRow | B15: Date | C15: Open | D15: High | E15: Low | F15: Close | G15: Volume | H15: Close | I15: Factor | J15: Factor | K15: Open | L15: High | M15: Low | N15: Close | O15: Volume | P15: Trade | Q15: 42748 | R15: New | S15: Old | T15: 1 | U15: Date | V15: $ / Share
A16: 1 | B16: 2017-01-12 | C16: 58.970001 | D16: 58.970001 | E16: 57.48 | F16: 57.91 | G16: 785900 | H16: 57.91 | I16: =H16/F16 -> 1 | J16: =INDEX(OFFSET($T$15,0,0,$S$13+1,1),MATCH(B16,OFFSET($Q$15,0,0,$S$13+1,1),-1)) -> 1 | K16: =ROUND($I16*C16,2) -> 58.97 | L16: =ROUND($I16*D16,2) -> 58.97 | M16: 57.48 | N16: 57.91 | O16: =G16*J16 -> 785900 | U16: 2016-12-15 | V16: 0.1 | W16: =(INDEX(OFFSET($F$15,1,0,$B$10,1),MATCH(U16,OFFSET($B$15,1,0,$B$10,1),-1))) -> 59.080002 | X16: =YEAR(U16)&RIGHT("0"&MONTH(U16),2) -> 201612 | Y16: =YEAR(U16)-1&RIGHT("0"&MONTH(U16),2) -> 201512 | Z16: =OFFSET(U15,AA16,0,1,1) -> 2016-12-15 | AA16: =MATCH(Y16,OFFSET($X$15,A16,0,$V$14+1-A16,1),-1) -> 1 | AB16: =IF(OR(AND(YEAR(U16)=YEAR(Z16),MONTH(U16)=MONTH(Z16)),MONTH(U16)=MONTH(Z16)),1,0) -> 1 | AC16: =(V16+IF(AA16-AB16=0,0,IFERROR(SUM(OFFSET(V16,1,0,AA16-AB16-1,1)),0))) -> 0.1 | AD16: =AC16/(INDEX(OFFSET($F$15,1,0,$B$10,1),MATCH(U16,OFFSET($B$15,1,0,$B$10,1),-1))) -> 0.001692620119
A17: 2 | B17: 2017-01-11 | C17: 58.889999 | D17: 59.029999 | E17: 58.369999 | F17: 58.889999 | G17: 675300 | H17: 58.889999 | I17: =H17/F17 -> 1 | J17: =INDEX(OFFSET($T$15,0,0,$S$13+1,1),MATCH(B17,OFFSET($Q$15,0,0,$S$13+1,1),-1)) -> 1 | K17: =ROUND($I17*C17,2) -> 58.89 | L17: =ROUND($I17*D17,2) -> 59.03 | M17: =ROUND($I17*E17,2) -> 58.37 | N17: =ROUND($I17*F17,2) -> 58.89 | O17: =G17*J17 -> 675300
A18: 3 | B18: 2017-01-10 | C18: 58.91 | D18: 59.02 | E18: 58.580002 | F18: 58.709999 | G18: 560000 | H18: 58.709999 | I18: 1 | J18: 1 | K18: 58.91 | L18: 59.02 | M18: 58.58 | N18: 58.71 | O18: 560000
A19: 4 | B19: 2017-01-09 | C19: 59.639999 | D19: 59.68 | E19: 58.639999 | F19: 58.66 | G19: 1229000 | H19: 58.66 | I19: 1 | J19: 1 | K19: 59.64 | L19: 59.68 | M19: 58.64 | N19: 58.66 | O19: 1229000
A20: 5 | B20: 2017-01-06 | C20: 59.779999 | D20: 60.119999 | E20: 59.470001 | F20: 59.779999 | G20: 850900 | H20: 59.779999 | I20: 1 | J20: 1 | K20: 59.78 | L20: 60.12 | M20: 59.47 | N20: 59.78 | O20: 850900
A21: 6 | B21: 2017-01-05 | C21: 59.849998 | D21: 60.919998 | E21: 59.639999 | F21: 60.040001 | G21: 1133900 | H21: 60.040001 | I21: 1 | J21: 1 | K21: 59.85 | L21: 60.92 | M21: 59.64 | N21: 60.04 | O21: 1133900
A22: 7 | B22: 2017-01-04 | C22: 58.959999 | D22: 60.110001 | E22: 58.799999 | F22: 59.66 | G22: 1326600 | H22: 59.66 | I22: 1 | J22: 1 | K22: 58.96 | L22: 60.11 | M22: 58.8 | N22: 59.66 | O22: 1326600
A23: 8 | B23: 2017-01-03 | C23: 58.919998 | D23: 58.919998 | E23: 58.130001 | F23: 58.779999 | G23: 847800 | H23: 58.779999 | I23: 1 | J23: 1 | K23: 58.92 | L23: 58.92 | M23: 58.13 | N23: 58.78 | O23: 847800
A24: 9 | B24: 2016-12-30 | C24: 58.82 | D24: 58.91 | E24: 58.240002 | F24: 58.349998 | G24: 474200 | H24: 58.349998 | I24: 1 | J24: 1 | K24: 58.82 | L24: 58.91 | M24: 58.24 | N24: 58.35 | O24: 474200
A25: 10 | B25: 2016-12-29 | C25: 58.68 | D25: 59.150002 | E25: 58.459999 | F25: 58.610001 | G25: 306700 | H25: 58.610001 | I25: 1 | J25: 1 | K25: 58.68 | L25: 59.15 | M25: 58.46 | N25: 58.61 | O25: 306700
A26: 11 | B26: 2016-12-28 | C26: 59.470001 | D26: 59.52 | E26: 58.57 | F26: 58.639999 | G26: 328900 | H26: 58.639999 | I26: 1 | J26: 1 | K26: 59.47 | L26: 59.52 | M26: 58.57 | N26: 58.64 | O26: 328900
A27: 12 | B27: 2016-12-27 | C27: 59.27 | D27: 59.599998 | E27: 58.939999 | F27: 59.509998 | G27: 375200 | H27: 59.509998 | I27: 1 | J27: 1 | K27: 59.27 | L27: 59.6 | M27: 58.94 | N27: 59.51 | O27: 375200
A28: 13 | B28: 2016-12-23 | C28: 58.869999 | D28: 59.189999 | E28: 58.639999 | F28: 59.150002 | G28: 611100 | H28: 59.150002 | I28: 1 | J28: 1 | K28: 58.87 | L28: 59.19 | M28: 58.64 | N28: 59.15 | O28: 611100
A29: 14 | B29: 2016-12-22 | C29: 58.939999 | D29: 58.959999 | E29: 58.310001 | F29: 58.709999 | G29: 744000 | H29: 58.709999 | I29: 1 | J29: 1 | K29: 58.94 | L29: 58.96 | M29: 58.31 | N29: 58.71 | O29: 744000
A30: 15 | B30: 2016-12-21 | C30: 58.759998 | D30: 59.060001 | E30: 57.169998 | F30: 58.779999 | G30: 986200 | H30: 58.779999 | I30: 1 | J30: 1 | K30: 58.76 | L30: 59.06 | M30: 57.17 | N30: 58.78 | O30: 986200
A31: 16 | B31: 2016-12-20 | C31: 59.450001 | D31: 59.59 | E31: 58.959999 | F31: 59.209999 | G31: 578700 | H31: 59.209999 | I31: 1 | J31: 1 | K31: 59.45 | L31: 59.59 | M31: 58.96 | N31: 59.21 | O31: 578700
A32: 17 | B32: 2016-12-19 | C32: 58.830002 | D32: 59.799999 | E32: 58.830002 | F32: 59.369999 | G32: 745900 | H32: 59.369999 | I32: 1 | J32: 1 | K32: 58.83 | L32: 59.8 | M32: 58.83 | N32: 59.37 | O32: 745900
A33: 18 | B33: 2016-12-16 | C33: 58.990002 | D33: 59.389999 | E33: 58.439999 | F33: 58.66 | G33: 2368800 | H33: 58.66 | I33: 1 | J33: 1 | K33: 58.99 | L33: 59.39 | M33: 58.44 | N33: 58.66 | O33: 2368800
A34: 19 | B34: 2016-12-15 | C34: 58.549999 | D34: 59.48 | E34: 58.209999 | F34: 59.080002 | G34: 1069700 | H34: 59.080002 | I34: 1 | J34: 1 | K34: 58.55 | L34: 59.48 | M34: 58.21 | N34: 59.08 | O34: 1069700
A35: 20 | B35: 2016-12-14 | C35: 58.880001 | D35: 59.779999 | E35: 58.48 | F35: 58.630001 | G35: 2350200 | H35: 58.530003 | I35: 0.9982944227 | J35: 1 | K35: 58.78 | L35: 59.68 | M35: 58.38 | N35: 58.53 | O35: 2350200
A36: 21 | B36: 2016-12-13 | C36: 60 | D36: 60.59 | E36: 59.009998 | F36: 59.09 | G36: 1423500 | H36: 58.989217 | I36: 0.9982944153 | J36: 1 | K36: 59.9 | L36: 60.49 | M36: 58.91 | N36: 58.99 | O36: 1423500
A37: 22 | B37: 2016-12-12 | C37: 60.18 | D37: 60.650002 | E37: 59.509998 | F37: 60.310001 | G37: 2171300 | H37: 60.207137 | I37: 0.9982944122 | J37: 1 | K37: 60.08 | L37: 60.55 | M37: 59.41 | N37: 60.21 | O37: 2171300
A38: 23 | B38: 2016-12-09 | C38: 60.060001 | D38: 61.029999 | E38: 60.060001 | F38: 61.02 | G38: 1511900 | H38: 60.915926 | I38: 0.9982944281 | J38: 1 | K38: 59.96 | L38: 60.93 | M38: 59.96 | N38: 60.92 | O38: 1511900
A39: 24 | B39: 2016-12-08 | C39: 60.630001 | D39: 61.549999 | E39: 60.610001 | F39: 61.259998 | G39: 1606400 | H39: 61.155514 | I39: 0.9982944172 | J39: 1 | K39: 60.53 | L39: 61.45 | M39: 60.51 | N39: 61.16 | O39: 1606400
A40: 25 | B40: 2016-12-07 | C40: 59.950001 | D40: 60.630001 | E40: 59.82 | F40: 60.610001 | G40: 987800 | H40: 60.506625 | I40: 0.9982944069 | J40: 1 | K40: 59.85 | L40: 60.53 | M40: 59.72 | N40: 60.51 | O40: 987800
A41: 26 | B41: 2016-12-06 | C41: 59.029999 | D41: 60.049999 | E41: 58.950001 | F41: 59.950001 | G41: 1193900 | H41: 59.847751 | I41: 0.998294412 | J41: 1 | K41: 58.93 | L41: 59.95 | M41: 58.85 | N41: 59.85 | O41: 1193900
A42: 27 | B42: 2016-12-05 | C42: 59.139999 | D42: 59.380001 | E42: 58.880001 | F42: 59.369999 | G42: 1151200 | H42: 59.268738 | I42: 0.9982944079 | J42: 1 | K42: 59.04 | L42: 59.28 | M42: 58.78 | N42: 59.27 | O42: 1151200
A43: 28 | B43: 2016-12-02 | C43: 58.490002 | D43: 58.860001 | E43: 58.150002 | F43: 58.73 | G43: 1139900 | H43: 58.62983 | I43: 0.9982943981 | J43: 1 | K43: 58.39 | L43: 58.76 | M43: 58.05 | N43: 58.63 | O43: 1139900
A44: 29 | B44: 2016-12-01 | C44: 58.16 | D44: 58.860001 | E44: 57.990002 | F44: 58.470001 | G44: 1106200 | H44: 58.370276 | I44: 0.9982944245 | J44: 1 | K44: 58.06 | L44: 58.76 | M44: 57.89 | N44: 58.37 | O44: 1106200
A45: 30 | B45: 2016-11-30 | C45: 58.82 | D45: 58.889999 | E45: 58.049999 | F45: 58.25 | G45: 1026300 | H45: 58.15065 | I45: 0.9982944206 | J45: 1 | K45: 58.72 | L45: 58.79 | M45: 57.95 | N45: 58.15 | O45: 1026300
A46: 31 | B46: 2016-11-29 | C46: 58.889999 | D46: 59.32 | E46: 58.59 | F46: 58.630001 | G46: 1001000 | H46: 58.530003 | I46: 0.9982944227 | J46: 1 | K46: 58.79 | L46: 59.22 | M46: 58.49 | N46: 58.53 | O46: 1001000
A47: 32 | B47: 2016-11-28 | C47: 58.5 | D47: 59.200001 | E47: 58.349998 | F47: 59.02 | G47: 1465300 | H47: 58.919337 | I47: 0.9982944256 | J47: 1 | K47: 58.4 | L47: 59.1 | M47: 58.25 | N47: 58.92 | O47: 1465300
A48: 33 | B48: 2016-11-25 | C48: 58.360001 | D48: 58.799999 | E48: 58.009998 | F48: 58.700001 | G48: 458200 | H48: 58.599883 | I48: 0.9982944123 | J48: 1 | K48: 58.26 | L48: 58.7 | M48: 57.91 | N48: 58.6 | O48: 458200
A49: 34 | B49: 2016-11-23 | C49: 57.580002 | D49: 58.18 | E49: 57.310001 | F49: 58.119999 | G49: 987500 | H49: 58.02087 | I49: 0.9982944081 | J49: 1 | K49: 57.48 | L49: 58.08 | M49: 57.21 | N49: 58.02 | O49: 987500
A50: 35 | B50: 2016-11-22 | C50: 56.080002 | D50: 57.57 | E50: 55.880001 | F50: 57.509998 | G50: 1535300 | H50: 57.41191 | I50: 0.9982944183 | J50: 1 | K50: 55.98 | L50: 57.47 | M50: 55.78 | N50: 57.41 | O50: 1535300
A51: 36 | B51: 2016-11-21 | C51: 55.59 | D51: 56.119999 | E51: 55.330002 | F51: 55.91 | G51: 922400 | H51: 55.81464 | I51: 0.9982944017 | J51: 1 | K51: 55.5 | L51: 56.02 | M51: 55.24 | N51: 55.81 | O51: 922400
A52: 37 | B52: 2016-11-18 | C52: 55.919998 | D52: 55.990002 | E52: 55.349998 | F52: 55.509998 | G52: 732300 | H52: 55.415321 | I52: 0.9982944154 | J52: 1 | K52: 55.82 | L52: 55.89 | M52: 55.26 | N52: 55.42 | O52: 732300
A53: 38 | B53: 2016-11-17 | C53: 55.610001 | D53: 56.57 | E53: 55.490002 | F53: 55.98 | G53: 1167500 | H53: 55.884521 | I53: 0.9982944087 | J53: 1 | K53: 55.52 | L53: 56.47 | M53: 55.4 | N53: 55.88 | O53: 1167500
A54: 39 | B54: 2016-11-16 | C54: 55.900002 | D54: 56.02 | E54: 55.599998 | F54: 55.630001 | G54: 1006100 | H54: 55.535119 | I54: 0.9982944095 | J54: 1 | K54: 55.8 | L54: 55.92 | M54: 55.51 | N54: 55.54 | O54: 1006100
A55: 40 | B55: 2016-11-15 | C55: 55.900002 | D55: 56.040001 | E55: 54.790001 | F55: 55.889999 | G55: 1644400 | H55: 55.794674 | I55: 0.9982944176 | J55: 1 | K55: 55.8 | L55: 55.94 | M55: 54.7 | N55: 55.79 | O55: 1644400
A56: 41 | B56: 2016-11-14 | C56: 55.049999 | D56: 55.889999 | E56: 55.049999 | F56: 55.73 | G56: 1456200 | H56: 55.634947 | I56: 0.9982944016 | J56: 1 | K56: 54.96 | L56: 55.79 | M56: 54.96 | N56: 55.63 | O56: 1456200
A57: 42 | B57: 2016-11-11 | C57: 54.52 | D57: 55.139999 | E57: 54.5 | F57: 55.02 | G57: 1466600 | H57: 54.926159 | I57: 0.9982944202 | J57: 1 | K57: 54.43 | L57: 55.05 | M57: 54.41 | N57: 54.93 | O57: 1466600
A58: 43 | B58: 2016-11-10 | C58: 54.889999 | D58: 55.32 | E58: 54.040001 | F58: 54.5 | G58: 2260300 | H58: 54.407046 | I58: 0.998294422 | J58: 1 | K58: 54.8 | L58: 55.23 | M58: 53.95 | N58: 54.41 | O58: 2260300
A59: 44 | B59: 2016-11-09 | C59: 53.52 | D59: 55.16 | E59: 53.400002 | F59: 54.580002 | G59: 2670400 | H59: 54.486911 | I59: 0.9982944119 | J59: 1 | K59: 53.43 | L59: 55.07 | M59: 53.31 | N59: 54.49 | O59: 2670400
A60: 45 | B60: 2016-11-08 | C60: 53.48 | D60: 53.98 | E60: 52.959999 | F60: 53.610001 | G60: 1615700 | H60: 53.518564 | I60: 0.9982944041 | J60: 1 | K60: 53.39 | L60: 53.89 | M60: 52.87 | N60: 53.52 | O60: 1615700
A61: 46 | B61: 2016-11-07 | C61: 54 | D61: 54.450001 | E61: 53.610001 | F61: 53.75 | G61: 1580000 | H61: 53.658325 | I61: 0.9982944186 | J61: 1 | K61: 53.91 | L61: 54.36 | M61: 53.52 | N61: 53.66 | O61: 1580000
A62: 47 | B62: 2016-11-04 | C62: 53.57 | D62: 53.919998 | E62: 53.290001 | F62: 53.400002 | G62: 1628900 | H62: 53.308923 | I62: 0.9982944008 | J62: 1 | K62: 53.48 | L62: 53.83 | M62: 53.2 | N62: 53.31 | O62: 1628900
A63: 48 | B63: 2016-11-03 | C63: 53.650002 | D63: 54.18 | E63: 53.5 | F63: 53.740002 | G63: 1757000 | H63: 53.648343 | I63: 0.998294399 | J63: 1 | K63: 53.56 | L63: 54.09 | M63: 53.41 | N63: 53.65 | O63: 1757000
A64: 49 | B64: 2016-11-02 | C64: 54.360001 | D64: 54.869999 | E64: 53.43 | F64: 53.5 | G64: 2449200 | H64: 53.408751 | I64: 0.9982944112 | J64: 1 | K64: 54.27 | L64: 54.78 | M64: 53.34 | N64: 53.41 | O64: 2449200
A65: 50 | B65: 2016-11-01 | C65: 53.25 | D65: 54.84 | E65: 53.25 | F65: 53.990002 | G65: 5662600 | H65: 53.897917 | I65: 0.9982944064 | J65: 1 | K65: 53.16 | L65: 54.75 | M65: 53.16 | N65: 53.9 | O65: 5662600
A66: 51 | B66: 2016-10-31 | C66: 50.459999 | D66: 50.939999 | E66: 50.099998 | F66: 50.360001 | G66: 1606200 | H66: 50.274107 | I66: 0.9982944004 | J66: 1 | K66: 50.37 | L66: 50.85 | M66: 50.01 | N66: 50.27 | O66: 1606200
A67: 52 | B67: 2016-10-28 | C67: 50.470001 | D67: 50.720001 | E67: 49.98 | F67: 50.189999 | G67: 1301700 | H67: 50.104395 | I67: 0.9982944012 | J67: 1 | K67: 50.38 | L67: 50.63 | M67: 49.89 | N67: 50.1 | O67: 1301700
A68: 53 | B68: 2016-10-27 | C68: 50.470001 | D68: 50.779999 | E68: 49.950001 | F68: 50.470001 | G68: 2279000 | H68: 50.38392 | I68: 0.9982944126 | J68: 1 | K68: 50.38 | L68: 50.69 | M68: 49.86 | N68: 50.38 | O68: 2279000
A69: 54 | B69: 2016-10-26 | C69: 48.48 | D69: 50.459999 | E69: 48.369999 | F69: 50.419998 | G69: 2223100 | H69: 50.334002 | I69: 0.9982944069 | J69: 1 | K69: 48.4 | L69: 50.37 | M69: 48.29 | N69: 50.33 | O69: 2223100
A70: 55 | B70: 2016-10-25 | C70: 48.52 | D70: 48.950001 | E70: 48.450001 | F70: 48.459999 | G70: 987800 | H70: 48.377346 | I70: 0.9982944077 | J70: 1 | K70: 48.44 | L70: 48.87 | M70: 48.37 | N70: 48.38 | O70: 987800
A71: 56 | B71: 2016-10-24 | C71: 48.720001 | D71: 48.900002 | E71: 48.360001 | F71: 48.5 | G71: 467000 | H71: 48.417279 | I71: 0.9982944124 | J71: 1 | K71: 48.64 | L71: 48.82 | M71: 48.28 | N71: 48.42 | O71: 467000
A72: 57 | B72: 2016-10-21 | C72: 47.939999 | D72: 48.310001 | E72: 47.73 | F72: 48.169998 | G72: 750600 | H72: 48.08784 | I72: 0.9982944155 | J72: 1 | K72: 47.86 | L72: 48.23 | M72: 47.65 | N72: 48.09 | O72: 750600
A73: 58 | B73: 2016-10-20 | C73: 48.57 | D73: 49.099998 | E73: 47.91 | F73: 48.240002 | G73: 1020600 | H73: 48.157724 | I73: 0.9982944031 | J73: 1 | K73: 48.49 | L73: 49.02 | M73: 47.83 | N73: 48.16 | O73: 1020600
A74: 59 | B74: 2016-10-19 | C74: 48.130001 | D74: 48.709999 | E74: 47.720001 | F74: 48.57 | G74: 1396900 | H74: 48.487159 | I74: 0.9982943998 | J74: 1 | K74: 48.05 | L74: 48.63 | M74: 47.64 | N74: 48.49 | O74: 1396900
A75: 60 | B75: 2016-10-18 | C75: 46.509998 | D75: 47.970001 | E75: 46.509998 | F75: 47.919998 | G75: 1560600 | H75: 47.838266 | I75: 0.9982944073 | J75: 1 | K75: 46.43 | L75: 47.89 | M75: 46.43 | N75: 47.84 | O75: 1560600
A76: 61 | B76: 2016-10-17 | C76: 45.650002 | D76: 46.25 | E76: 45.650002 | F76: 46.139999 | G76: 826700 | H76: 46.061304 | I76: 0.99829443 | J76: 1 | K76: 45.57 | L76: 46.17 | M76: 45.57 | N76: 46.06 | O76: 826700
A77: 62 | B77: 2016-10-14 | C77: 46.16 | D77: 46.32 | E77: 45.75 | F77: 45.75 | G77: 1088700 | H77: 45.671969 | I77: 0.9982944044 | J77: 1 | K77: 46.08 | L77: 46.24 | M77: 45.67 | N77: 45.67 | O77: 1088700
A78: 63 | B78: 2016-10-13 | C78: 45.490002 | D78: 46.02 | E78: 45.040001 | F78: 45.869999 | G78: 732000 | H78: 45.791764 | I78: 0.998294419 | J78: 1 | K78: 45.41 | L78: 45.94 | M78: 44.96 | N78: 45.79 | O78: 732000
A79: 64 | B79: 2016-10-12 | C79: 46.16 | D79: 46.349998 | E79: 45.82 | F79: 45.849998 | G79: 777100 | H79: 45.771797 | I79: 0.9982944165 | J79: 1 | K79: 46.08 | L79: 46.27 | M79: 45.74 | N79: 45.77 | O79: 777100
A80: 65 | B80: 2016-10-11 | C80: 46.509998 | D80: 46.73 | E80: 45.700001 | F80: 46.209999 | G80: 1122400 | H80: 46.131184 | I80: 0.9982944168 | J80: 1 | K80: 46.43 | L80: 46.65 | M80: 45.62 | N80: 46.13 | O80: 1122400
A81: 66 | B81: 2016-10-10 | C81: 46.450001 | D81: 46.889999 | E81: 46.369999 | F81: 46.540001 | G81: 534600 | H81: 46.460623 | I81: =H81/F81 -> 0.9982944134 | J81: =INDEX(OFFSET($T$15,0,0,$S$13+1,1),MATCH(B81,OFFSET($Q$15,0,0,$S$13+1,1),-1)) -> 1 | K81: =ROUND($I81*C81,2) -> 46.37 | L81: =ROUND($I81*D81,2) -> 46.81 | M81: =ROUND($I81*E81,2) -> 46.29 | N81: =ROUND($I81*F81,2) -> 46.46 | O81: =G81*J81 -> 534600
A82: 67 | B82: 2016-10-07 | C82: 46.57 | D82: 46.759998 | E82: 45.77 | F82: 46.369999 | G82: 1063000 | H82: 46.290911 | I82: 0.9982944145 | J82: 1 | K82: 46.49 | L82: 46.68 | M82: 45.69 | N82: 46.29 | O82: 1063000
A83: 68 | B83: 2016-10-06 | C83: 47.189999 | D83: 47.5 | E83: 46.709999 | F83: 47.110001 | G83: 1136800 | H83: 47.02965 | I83: 0.9982943961 | J83: 1 | K83: 47.11 | L83: 47.42 | M83: 46.63 | N83: 47.03 | O83: 1136800
A84: 69 | B84: 2016-10-05 | C84: 45.610001 | D84: 47.25 | E84: 45.610001 | F84: 47.209999 | G84: 1552900 | H84: 47.129478 | I84: 0.9982944079 | J84: 1 | K84: 45.53 | L84: 47.17 | M84: 45.53 | N84: 47.13 | O84: 1552900
A85: 70 | B85: 2016-10-04 | C85: 45.740002 | D85: 46.060001 | E85: 45.380001 | F85: 45.790001 | G85: 856400 | H85: 45.711902 | I85: 0.9982944093 | J85: 1 | K85: 45.66 | L85: 45.98 | M85: 45.3 | N85: 45.71 | O85: 856400
A86: 71 | B86: 2016-10-03 | C86: 44.540001 | D86: 45.900002 | E86: 44.349998 | F86: 45.720001 | G86: 1780900 | H86: 45.642022 | I86: 0.9982944226 | J86: 1 | K86: 44.46 | L86: 45.82 | M86: 44.27 | N86: 45.64 | O86: 1780900
A87: 72 | B87: 2016-09-30 | C87: 44.209999 | D87: 44.75 | E87: 43.939999 | F87: 44.540001 | G87: 1447300 | H87: 44.464034 | I87: 0.9982944096 | J87: 1 | K87: 44.13 | L87: 44.67 | M87: 43.87 | N87: 44.46 | O87: 1447300
A88: 73 | B88: 2016-09-29 | C88: 44.290001 | D88: 44.580002 | E88: 43.560001 | F88: 44.080002 | G88: 1215200 | H88: 44.00482 | I88: 0.9982944193 | J88: 1 | K88: 44.21 | L88: 44.5 | M88: 43.49 | N88: 44 | O88: 1215200
A89: 74 | B89: 2016-09-28 | C89: 44.169998 | D89: 44.639999 | E89: 43.959999 | F89: 44.5 | G89: 622900 | H89: 44.424101 | I89: 0.9982944045 | J89: 1 | K89: 44.09 | L89: 44.56 | M89: 43.89 | N89: 44.42 | O89: 622900
A90: 75 | B90: 2016-09-27 | C90: 43.950001 | D90: 44.41 | E90: 43.810001 | F90: 44.139999 | G90: 592500 | H90: 44.064715 | I90: 0.9982944268 | J90: 1 | K90: 43.88 | L90: 44.33 | M90: 43.74 | N90: 44.06 | O90: 592500
A91: 76 | B91: 2016-09-26 | C91: 43.91 | D91: 44.119999 | E91: 43.619999 | F91: 43.880001 | G91: 581600 | H91: 43.80516 | I91: 0.9982944166 | J91: 1 | K91: 43.84 | L91: 44.04 | M91: 43.55 | N91: 43.81 | O91: 581600
A92: 77 | B92: 2016-09-23 | C92: 43.400002 | D92: 44.25 | E92: 43.299999 | F92: 44 | G92: 1060300 | H92: 43.924954 | I92: 0.9982944091 | J92: 1 | K92: 43.33 | L92: 44.17 | M92: 43.23 | N92: 43.92 | O92: 1060300
A93: 78 | B93: 2016-09-22 | C93: 43.290001 | D93: 43.779999 | E93: 43.16 | F93: 43.619999 | G93: 635900 | H93: 43.545601 | I93: 0.9982944062 | J93: 1 | K93: 43.22 | L93: 43.71 | M93: 43.09 | N93: 43.55 | O93: 635900
A94: 79 | B94: 2016-09-21 | C94: 42.48 | D94: 43.099998 | E94: 42.369999 | F94: 43.040001 | G94: 794800 | H94: 42.966592 | I94: 0.9982944006 | J94: 1 | K94: 42.41 | L94: 43.03 | M94: 42.3 | N94: 42.97 | O94: 794800
A95: 80 | B95: 2016-09-20 | C95: 42.77 | D95: 43 | E95: 42.259998 | F95: 42.380001 | G95: 811400 | H95: 42.307718 | I95: 0.9982944078 | J95: 1 | K95: 42.7 | L95: 42.93 | M95: 42.19 | N95: 42.31 | O95: 811400
A96: 81 | B96: 2016-09-19 | C96: 43.459999 | D96: 43.5 | E96: 42.759998 | F96: 42.869999 | G96: 822600 | H96: 42.79688 | I96: 0.9982944016 | J96: 1 | K96: 43.39 | L96: 43.43 | M96: 42.69 | N96: 42.8 | O96: 822600
A97: 82 | B97: 2016-09-16 | C97: 44.5 | D97: 44.619999 | E97: 43.150002 | F97: 43.220001 | G97: 1526700 | H97: 43.146286 | I97: 0.9982944239 | J97: 1 | K97: 44.42 | L97: 44.54 | M97: 43.08 | N97: 43.15 | O97: 1526700
A98: 83 | B98: 2016-09-15 | C98: 44.27 | D98: 44.939999 | E98: 44.029999 | F98: 44.68 | G98: 1004500 | H98: 44.603795 | I98: 0.998294427 | J98: 1 | K98: 44.19 | L98: 44.86 | M98: 43.95 | N98: 44.6 | O98: 1004500
A99: 84 | B99: 2016-09-14 | C99: 45.509998 | D99: 45.610001 | E99: 44.459999 | F99: 44.57 | G99: 683600 | H99: 44.493982 | I99: 0.9982944133 | J99: 1 | K99: 45.43 | L99: 45.53 | M99: 44.38 | N99: 44.49 | O99: 683600
A100: 85 | B100: 2016-09-13 | C100: 45.400002 | D100: 45.689999 | E100: 45.099998 | F100: 45.290001 | G100: 875500 | H100: 45.212755 | I100: 0.9982944138 | J100: 1 | K100: 45.32 | L100: 45.61 | M100: 45.02 | N100: 45.21 | O100: 875500
A101: 86 | B101: 2016-09-12 | C101: 45.189999 | D101: 45.970001 | E101: 44.799999 | F101: 45.73 | G101: 1048200 | H101: 45.652003 | I101: 0.9982944019 | J101: 1 | K101: 45.11 | L101: 45.89 | M101: 44.72 | N101: 45.65 | O101: 1048200
A102: 87 | B102: 2016-09-09 | C102: 45.73 | D102: 46.07 | E102: 45.439999 | F102: 45.439999 | G102: 1346400 | H102: 45.362497 | I102: 0.9982944102 | J102: 1 | K102: 45.65 | L102: 45.99 | M102: 45.36 | N102: 45.36 | O102: 1346400
A103: 88 | B103: 2016-09-08 | C103: 45.759998 | D103: 46.119999 | E103: 45.400002 | F103: 46.07 | G103: 726500 | H103: 45.991423 | I103: 0.9982943998 | J103: 1 | K103: 45.68 | L103: 46.04 | M103: 45.32 | N103: 45.99 | O103: 726500
A104: 89 | B104: 2016-09-07 | C104: 45.830002 | D104: 46.130001 | E104: 45.389999 | F104: 45.799999 | G104: 872100 | H104: 45.721883 | I104: 0.9982944104 | J104: 1 | K104: 45.75 | L104: 46.05 | M104: 45.31 | N104: 45.72 | O104: 872100
A105: 90 | B105: 2016-09-06 | C105: 46.130001 | D105: 46.25 | E105: 45.849998 | F105: 46.049999 | G105: 763300 | H105: 45.971457 | I105: 0.9982944191 | J105: 1 | K105: 46.05 | L105: 46.17 | M105: 45.77 | N105: 45.97 | O105: 763300
A106: 91 | B106: 2016-09-02 | C106: 45.889999 | D106: 46.200001 | E106: 45.630001 | F106: 46.130001 | G106: 571900 | H106: 46.051322 | I106: 0.9982944071 | J106: 1 | K106: 45.81 | L106: 46.12 | M106: 45.55 | N106: 46.05 | O106: 571900
A107: 92 | B107: 2016-09-01 | C107: 45.759998 | D107: 45.779999 | E107: 45.009998 | F107: 45.700001 | G107: 928900 | H107: 45.622055 | I107: 0.9982943983 | J107: 1 | K107: 45.68 | L107: 45.7 | M107: 44.93 | N107: 45.62 | O107: 928900
A108: 93 | B108: 2016-08-31 | C108: 45.549999 | D108: 45.919998 | E108: 45.419998 | F108: 45.82 | G108: 1305300 | H108: 45.74185 | I108: 0.9982944129 | J108: 1 | K108: 45.47 | L108: 45.84 | M108: 45.34 | N108: 45.74 | O108: 1305300
A109: 94 | B109: 2016-08-30 | C109: 45.41 | D109: 45.779999 | E109: 45.279999 | F109: 45.669998 | G109: 751700 | H109: 45.592104 | I109: 0.9982944164 | J109: 1 | K109: 45.33 | L109: 45.7 | M109: 45.2 | N109: 45.59 | O109: 751700
A110: 95 | B110: 2016-08-29 | C110: 45.240002 | D110: 45.720001 | E110: 45.240002 | F110: 45.52 | G110: 713800 | H110: 45.442362 | I110: 0.99829442 | J110: 1 | K110: 45.16 | L110: 45.64 | M110: 45.16 | N110: 45.44 | O110: 713800
A111: 96 | B111: 2016-08-26 | C111: 45.380001 | D111: 45.59 | E111: 44.860001 | F111: 45.220001 | G111: 982100 | H111: 45.142875 | I111: 0.9982944273 | J111: 1 | K111: 45.3 | L111: 45.51 | M111: 44.78 | N111: 45.14 | O111: 982100
A112: 97 | B112: 2016-08-25 | C112: 45.450001 | D112: 45.540001 | E112: 45.23 | F112: 45.32 | G112: 595800 | H112: 45.242702 | I112: 0.9982943954 | J112: 1 | K112: 45.37 | L112: 45.46 | M112: 45.15 | N112: 45.24 | O112: 595800
A113: 98 | B113: 2016-08-24 | C113: 45.549999 | D113: 45.759998 | E113: 45.360001 | F113: 45.450001 | G113: 928000 | H113: 45.372482 | I113: 0.9982944115 | J113: 1 | K113: 45.47 | L113: 45.68 | M113: 45.28 | N113: 45.37 | O113: 928000
A114: 99 | B114: 2016-08-23 | C114: 45.900002 | D114: 45.990002 | E114: 45.389999 | F114: 45.650002 | G114: 971200 | H114: 45.572141 | I114: 0.9982943922 | J114: 1 | K114: 45.82 | L114: 45.91 | M114: 45.31 | N114: 45.57 | O114: 971200
A115: 100 | B115: 2016-08-22 | C115: 45.360001 | D115: 45.98 | E115: 45.279999 | F115: 45.779999 | G115: 1213400 | H115: 45.701917 | I115: 0.998294408 | J115: 1 | K115: 45.28 | L115: 45.9 | M115: 45.2 | N115: 45.7 | O115: 1213400
A116: 101 | B116: 2016-08-19 | C116: 45.049999 | D116: 45.66 | E116: 44.849998 | F116: 45.52 | G116: 930500 | H116: 45.442362 | I116: 0.99829442 | J116: 1 | K116: 44.97 | L116: 45.58 | M116: 44.77 | N116: 45.44 | O116: 930500
A117: 102 | B117: 2016-08-18 | C117: 44.849998 | D117: 45.400002 | E117: 44.709999 | F117: 45.27 | G117: 1182900 | H117: 45.192789 | I117: 0.9982944334 | J117: 1 | K117: 44.77 | L117: 45.32 | M117: 44.63 | N117: 45.19 | O117: 1182900
A118: 103 | B118: 2016-08-17 | C118: 44.66 | D118: 44.919998 | E118: 44.360001 | F118: 44.869999 | G118: 978500 | H118: 44.793469 | I118: 0.998294406 | J118: 1 | K118: 44.58 | L118: 44.84 | M118: 44.28 | N118: 44.79 | O118: 978500
A119: 104 | B119: 2016-08-16 | C119: 44.93 | D119: 45.25 | E119: 44.77 | F119: 44.779999 | G119: 1155100 | H119: 44.703623 | I119: 0.9982944171 | J119: 1 | K119: 44.85 | L119: 45.17 | M119: 44.69 | N119: 44.7 | O119: 1155100
A120: 105 | B120: 2016-08-15 | C120: 44.299999 | D120: 45.240002 | E120: 44.299999 | F120: 45.16 | G120: 1108300 | H120: 45.082976 | I120: 0.9982944198 | J120: 1 | K120: 44.22 | L120: 45.16 | M120: 44.22 | N120: 45.08 | O120: 1108300
A121: 106 | B121: 2016-08-12 | C121: 44.25 | D121: 44.419998 | E121: 43.77 | F121: 44.330002 | G121: 1224100 | H121: 44.254393 | I121: 0.9982944057 | J121: 1 | K121: 44.17 | L121: 44.34 | M121: 43.7 | N121: 44.25 | O121: 1224100
A122: 107 | B122: 2016-08-11 | C122: 43.790001 | D122: 44.43 | E122: 43.790001 | F122: 44.279999 | G122: 1317500 | H122: 44.204475 | I122: 0.9982943992 | J122: 1 | K122: 43.72 | L122: 44.35 | M122: 43.72 | N122: 44.2 | O122: 1317500
A123: 108 | B123: 2016-08-10 | C123: 44 | D123: 44.110001 | E123: 43.560001 | F123: 43.84 | G123: 1308900 | H123: 43.765227 | I123: 0.9982944115 | J123: 1 | K123: 43.92 | L123: 44.03 | M123: 43.49 | N123: 43.77 | O123: 1308900
A124: 109 | B124: 2016-08-09 | C124: 43.84 | D124: 44.27 | E124: 43.650002 | F124: 43.880001 | G124: 1196100 | H124: 43.80516 | I124: 0.9982944166 | J124: 1 | K124: 43.77 | L124: 44.19 | M124: 43.58 | N124: 43.81 | O124: 1196100
A125: 110 | B125: 2016-08-08 | C125: 43.599998 | D125: 43.990002 | E125: 43.549999 | F125: 43.849998 | G125: 1347600 | H125: 43.775208 | I125: 0.9982944127 | J125: 1 | K125: 43.53 | L125: 43.91 | M125: 43.48 | N125: 43.78 | O125: 1347600
A126: 111 | B126: 2016-08-05 | C126: 44.25 | D126: 44.389999 | E126: 43.049999 | F126: 43.529999 | G126: 1808100 | H126: 43.455755 | I126: 0.9982944176 | J126: 1 | K126: 44.17 | L126: 44.31 | M126: 42.98 | N126: 43.46 | O126: 1808100
A127: 112 | B127: 2016-08-04 | C127: 46.029999 | D127: 46.119999 | E127: 44.200001 | F127: 44.200001 | G127: 1521500 | H127: 44.124614 | I127: 0.9982944118 | J127: 1 | K127: 45.95 | L127: 46.04 | M127: 44.12 | N127: 44.12 | O127: 1521500
A128: 113 | B128: 2016-08-03 | C128: 44.75 | D128: 46.439999 | E128: 44.720001 | F128: 46.009998 | G128: 2591000 | H128: 45.931524 | I128: 0.9982944142 | J128: 1 | K128: 44.67 | L128: 46.36 | M128: 44.64 | N128: 45.93 | O128: 2591000
A129: 114 | B129: 2016-08-02 | C129: 43.360001 | D129: 43.369999 | E129: 42.700001 | F129: 42.959999 | G129: 1728100 | H129: 42.886727 | I129: 0.9982944134 | J129: 1 | K129: 43.29 | L129: 43.3 | M129: 42.63 | N129: 42.89 | O129: 1728100
A130: 115 | B130: 2016-08-01 | C130: 43.290001 | D130: 43.66 | E130: 43.139999 | F130: 43.450001 | G130: 1158700 | H130: 43.375893 | I130: 0.9982944074 | J130: 1 | K130: 43.22 | L130: 43.59 | M130: 43.07 | N130: 43.38 | O130: 1158700
A131: 116 | B131: 2016-07-29 | C131: 43.099998 | D131: 43.41 | E131: 42.650002 | F131: 43.380001 | G131: 966500 | H131: 43.306013 | I131: 0.9982944214 | J131: 1 | K131: 43.03 | L131: 43.34 | M131: 42.58 | N131: 43.31 | O131: 966500
A132: 117 | B132: 2016-07-28 | C132: 43.509998 | D132: 43.509998 | E132: 42.619999 | F132: 43.169998 | G132: 858000 | H132: 43.096368 | I132: 0.9982944173 | J132: 1 | K132: 43.44 | L132: 43.44 | M132: 42.55 | N132: 43.1 | O132: 858000
A133: 118 | B133: 2016-07-27 | C133: 43.259998 | D133: 43.880001 | E133: 43.259998 | F133: 43.57 | G133: 884300 | H133: 43.495687 | I133: 0.9982943998 | J133: 1 | K133: 43.19 | L133: 43.81 | M133: 43.19 | N133: 43.5 | O133: 884300
A134: 119 | B134: 2016-07-26 | C134: 42.82 | D134: 43.330002 | E134: 42.639999 | F134: 43.25 | G134: 1349300 | H134: 43.176233 | I134: 0.9982944046 | J134: 1 | K134: 42.75 | L134: 43.26 | M134: 42.57 | N134: 43.18 | O134: 1349300
A135: 120 | B135: 2016-07-25 | C135: 43.419998 | D135: 43.450001 | E135: 42.709999 | F135: 42.75 | G135: 985200 | H135: 42.677086 | I135: 0.9982944094 | J135: 1 | K135: 43.35 | L135: 43.38 | M135: 42.64 | N135: 42.68 | O135: 985200
A136: 121 | B136: 2016-07-22 | C136: 43.860001 | D136: 43.98 | E136: 43.189999 | F136: 43.610001 | G136: 1520000 | H136: 43.53562 | I136: 0.998294405 | J136: 1 | K136: 43.79 | L136: 43.9 | M136: 43.12 | N136: 43.54 | O136: 1520000
A137: 122 | B137: 2016-07-21 | C137: 44.41 | D137: 44.48 | E137: 43.610001 | F137: 43.970001 | G137: 690700 | H137: 43.895007 | I137: 0.9982944281 | J137: 1 | K137: 44.33 | L137: 44.4 | M137: 43.54 | N137: 43.9 | O137: 690700
A138: 123 | B138: 2016-07-20 | C138: 43.810001 | D138: 44.32 | E138: 43.75 | F138: 44.16 | G138: 898300 | H138: 44.084681 | I138: 0.9982944067 | J138: 1 | K138: 43.74 | L138: 44.24 | M138: 43.68 | N138: 44.08 | O138: 898300
A139: 124 | B139: 2016-07-19 | C139: 43.32 | D139: 44.209999 | E139: 43.259998 | F139: 43.720001 | G139: 786800 | H139: 43.645433 | I139: 0.9982944191 | J139: 1 | K139: 43.25 | L139: 44.13 | M139: 43.19 | N139: 43.65 | O139: 786800
A140: 125 | B140: 2016-07-18 | C140: 43.41 | D140: 43.849998 | E140: 43.279999 | F140: 43.32 | G140: 854900 | H140: 43.246114 | I140: 0.9982944137 | J140: 1 | K140: 43.34 | L140: 43.78 | M140: 43.21 | N140: 43.25 | O140: 854900
A141: 126 | B141: 2016-07-15 | C141: 43.919998 | D141: 43.990002 | E141: 43.380001 | F141: 43.41 | G141: 931500 | H141: 43.33596 | I141: 0.9982944022 | J141: 1 | K141: 43.85 | L141: 43.91 | M141: 43.31 | N141: 43.34 | O141: 931500
A142: 127 | B142: 2016-07-14 | C142: 44.049999 | D142: 44.189999 | E142: 43.57 | F142: 43.59 | G142: 1158400 | H142: 43.515654 | I142: 0.9982944253 | J142: 1 | K142: 43.97 | L142: 44.11 | M142: 43.5 | N142: 43.52 | O142: 1158400
A143: 128 | B143: 2016-07-13 | C143: 43.369999 | D143: 44.040001 | E143: 43.32 | F143: 43.759998 | G143: 1443800 | H143: 43.685362 | I143: 0.9982944241 | J143: 1 | K143: 43.3 | L143: 43.96 | M143: 43.25 | N143: 43.69 | O143: 1443800
A144: 129 | B144: 2016-07-12 | C144: 43.099998 | D144: 43.34 | E144: 42.580002 | F144: 43.240002 | G144: 1171800 | H144: 43.166252 | I144: 0.9982944034 | J144: 1 | K144: 43.03 | L144: 43.27 | M144: 42.51 | N144: 43.17 | O144: 1171800
A145: 130 | B145: 2016-07-11 | C145: 42.560001 | D145: 42.98 | E145: 42.25 | F145: 42.669998 | G145: 951000 | H145: 42.597221 | I145: =H145/F145 -> 0.9982944222 | J145: =INDEX(OFFSET($T$15,0,0,$S$13+1,1),MATCH(B145,OFFSET($Q$15,0,0,$S$13+1,1),-1)) -> 1 | K145: =ROUND($I145*C145,2) -> 42.49 | L145: =ROUND($I145*D145,2) -> 42.91 | M145: =ROUND($I145*E145,2) -> 42.18 | N145: =ROUND($I145*F145,2) -> 42.6 | O145: =G145*J145 -> 951000
A146: 131 | B146: 2016-07-08 | C146: 41.869999 | D146: 42.470001 | E146: 41.669998 | F146: 42.18 | G146: 1551000 | H146: 42.108059 | I146: 0.9982944286 | J146: 1 | K146: 41.8 | L146: 42.4 | M146: 41.6 | N146: 42.11 | O146: 1551000
A147: 132 | B147: 2016-07-07 | C147: 41.860001 | D147: 42.349998 | E147: 41.389999 | F147: 41.610001 | G147: 1645400 | H147: 41.539031 | I147: 0.9982944004 | J147: 1 | K147: 41.79 | L147: 42.28 | M147: 41.32 | N147: 41.54 | O147: 1645400
A148: 133 | B148: 2016-07-06 | C148: 42.09 | D148: 42.130001 | E148: 41.27 | F148: 42.119999 | G148: 1396900 | H148: 42.04816 | I148: 0.9982944207 | J148: 1 | K148: 42.02 | L148: 42.06 | M148: 41.2 | N148: 42.05 | O148: 1396900
A149: 134 | B149: 2016-07-05 | C149: 42.720001 | D149: 42.84 | E149: 42.009998 | F149: 42.150002 | G149: 820300 | H149: 42.078111 | I149: 0.998294401 | J149: 1 | K149: 42.65 | L149: 42.77 | M149: 41.94 | N149: 42.08 | O149: 820300
A150: 135 | B150: 2016-07-01 | C150: 43.099998 | D150: 43.369999 | E150: 42.259998 | F150: 42.880001 | G150: 1606800 | H150: 42.806865 | I150: 0.998294403 | J150: 1 | K150: 43.03 | L150: 43.3 | M150: 42.19 | N150: 42.81 | O150: 1606800
A151: 136 | B151: 2016-06-30 | C151: 42.27 | D151: 43.09 | E151: 42.119999 | F151: 43 | G151: 1385900 | H151: 42.92666 | I151: 0.9982944186 | J151: 1 | K151: 42.2 | L151: 43.02 | M151: 42.05 | N151: 42.93 | O151: 1385900
A152: 137 | B152: 2016-06-29 | C152: 43.119999 | D152: 43.189999 | E152: 42.470001 | F152: 42.529999 | G152: 1356500 | H152: 42.45746 | I152: 0.9982944039 | J152: 1 | K152: 43.05 | L152: 43.12 | M152: 42.4 | N152: 42.46 | O152: 1356500
A153: 138 | B153: 2016-06-28 | C153: 42.5 | D153: 42.700001 | E153: 41.91 | F153: 42.619999 | G153: 1269700 | H153: 42.547307 | I153: 0.9982944157 | J153: 1 | K153: 42.43 | L153: 42.63 | M153: 41.84 | N153: 42.55 | O153: 1269700
A154: 139 | B154: 2016-06-27 | C154: 42.759998 | D154: 42.950001 | E154: 41.57 | F154: 41.740002 | G154: 1299100 | H154: 41.66881 | I154: 0.9982943939 | J154: 1 | K154: 42.69 | L154: 42.88 | M154: 41.5 | N154: 41.67 | O154: 1299100
A155: 140 | B155: 2016-06-24 | C155: 43.610001 | D155: 44.380001 | E155: 43.16 | F155: 43.200001 | G155: 2119900 | H155: 43.126319 | I155: 0.9982943982 | J155: 1 | K155: 43.54 | L155: 44.3 | M155: 43.09 | N155: 43.13 | O155: 2119900
A156: 141 | B156: 2016-06-23 | C156: 45.48 | D156: 45.77 | E156: 45.23 | F156: 45.400002 | G156: 899200 | H156: 45.322568 | I156: 0.9982944054 | J156: 1 | K156: 45.4 | L156: 45.69 | M156: 45.15 | N156: 45.32 | O156: 899200
A157: 142 | B157: 2016-06-22 | C157: 44.450001 | D157: 45.400002 | E157: 44.349998 | F157: 44.98 | G157: 1346100 | H157: 44.903282 | I157: 0.9982943975 | J157: 1 | K157: 44.37 | L157: 45.32 | M157: 44.27 | N157: 44.9 | O157: 1346100
A158: 143 | B158: 2016-06-21 | C158: 45.369999 | D158: 45.540001 | E158: 44.380001 | F158: 44.400002 | G158: 1277300 | H158: 44.324273 | I158: 0.998294392 | J158: 1 | K158: 45.29 | L158: 45.46 | M158: 44.3 | N158: 44.32 | O158: 1277300
A159: 144 | B159: 2016-06-20 | C159: 45.009998 | D159: 45.610001 | E159: 44.970001 | F159: 45.080002 | G159: 888700 | H159: 45.003114 | I159: 0.99829441 | J159: 1 | K159: 44.93 | L159: 45.53 | M159: 44.89 | N159: 45 | O159: 888700
A160: 145 | B160: 2016-06-17 | C160: 44.209999 | D160: 44.830002 | E160: 43.98 | F160: 44.43 | G160: 1593500 | H160: 44.354221 | I160: 0.9982944182 | J160: 1 | K160: 44.13 | L160: 44.75 | M160: 43.9 | N160: 44.35 | O160: 1593500
A161: 146 | B161: 2016-06-16 | C161: 44.119999 | D161: 44.380001 | E161: 43.779999 | F161: 44.220001 | G161: 1022200 | H161: 44.14458 | I161: 0.9982944143 | J161: 1 | K161: 44.04 | L161: 44.3 | M161: 43.71 | N161: 44.14 | O161: 1022200
A162: 147 | B162: 2016-06-15 | C162: 44.740002 | D162: 44.970001 | E162: 44.169998 | F162: 44.220001 | G162: 858000 | H162: 44.14458 | I162: 0.9982944143 | J162: 1 | K162: 44.66 | L162: 44.89 | M162: 44.09 | N162: 44.14 | O162: 858000
A163: 148 | B163: 2016-06-14 | C163: 44.25 | D163: 44.630001 | E163: 43.799999 | F163: 44.560001 | G163: 1563300 | H163: 44.484 | I163: 0.9982944121 | J163: 1 | K163: 44.17 | L163: 44.55 | M163: 43.73 | N163: 44.48 | O163: 1563300
A164: 149 | B164: 2016-06-13 | C164: 45.310001 | D164: 45.849998 | E164: 44.419998 | F164: 44.43 | G164: 1369300 | H164: 44.354221 | I164: 0.9982944182 | J164: 1 | K164: 45.23 | L164: 45.77 | M164: 44.34 | N164: 44.35 | O164: 1369300
A165: 150 | B165: 2016-06-10 | C165: 45.919998 | D165: 46.029999 | E165: 45.349998 | F165: 45.560001 | G165: 1529200 | H165: 45.482295 | I165: 0.998294425 | J165: 1 | K165: 45.84 | L165: 45.95 | M165: 45.27 | N165: 45.48 | O165: 1529200
A166: 151 | B166: 2016-06-09 | C166: 46.240002 | D166: 46.610001 | E166: 45.77 | F166: 46.23 | G166: 1642000 | H166: 46.15115 | I166: 0.9982943976 | J166: 1 | K166: 46.16 | L166: 46.53 | M166: 45.69 | N166: 46.15 | O166: 1642000
A167: 152 | B167: 2016-06-08 | C167: 46.540001 | D167: 46.669998 | E167: 45.240002 | F167: 45.66 | G167: 3680100 | H167: 45.582123 | I167: 0.9982944152 | J167: 1 | K167: 46.46 | L167: 46.59 | M167: 45.16 | N167: 45.58 | O167: 3680100
A168: 153 | B168: 2016-06-07 | C168: 47.349998 | D168: 47.700001 | E168: 47.310001 | F168: 47.450001 | G168: 617800 | H168: 47.369071 | I168: 0.9982944152 | J168: 1 | K168: 47.27 | L168: 47.62 | M168: 47.23 | N168: 47.37 | O168: 617800
A169: 154 | B169: 2016-06-06 | C169: 46.77 | D169: 47.330002 | E169: 46.470001 | F169: 47.310001 | G169: 864000 | H169: 47.22931 | I169: 0.9982944198 | J169: 1 | K169: 46.69 | L169: 47.25 | M169: 46.39 | N169: 47.23 | O169: 864000
A170: 155 | B170: 2016-06-03 | C170: 46.869999 | D170: 46.869999 | E170: 46.130001 | F170: 46.5 | G170: 809400 | H170: 46.42069 | I170: 0.9982944086 | J170: 1 | K170: 46.79 | L170: 46.79 | M170: 46.05 | N170: 46.42 | O170: 809400
A171: 156 | B171: 2016-06-02 | C171: 46.689999 | D171: 46.950001 | E171: 46.310001 | F171: 46.849998 | G171: 723800 | H171: 46.770092 | I171: 0.998294429 | J171: 1 | K171: 46.61 | L171: 46.87 | M171: 46.23 | N171: 46.77 | O171: 723800
A172: 157 | B172: 2016-06-01 | C172: 46.779999 | D172: 46.98 | E172: 46.18 | F172: 46.790001 | G172: 1008400 | H172: 46.710197 | I172: 0.9982944219 | J172: 1 | K172: 46.7 | L172: 46.9 | M172: 46.1 | N172: 46.71 | O172: 1008400
A173: 158 | B173: 2016-05-31 | C173: 47.130001 | D173: 47.200001 | E173: 46.310001 | F173: 46.779999 | G173: 1397800 | H173: 46.700211 | I173: 0.9982943993 | J173: 1 | K173: 47.05 | L173: 47.12 | M173: 46.23 | N173: 46.7 | O173: 1397800
A174: 159 | B174: 2016-05-27 | C174: 46.900002 | D174: 47.139999 | E174: 46.610001 | F174: 47.080002 | G174: 904300 | H174: 46.999703 | I174: 0.9982944138 | J174: 1 | K174: 46.82 | L174: 47.06 | M174: 46.53 | N174: 47 | O174: 904300
A175: 160 | B175: 2016-05-26 | C175: 46.380001 | D175: 47.080002 | E175: 46.23 | F175: 46.98 | G175: 1611300 | H175: 46.899871 | I175: 0.9982944019 | J175: 1 | K175: 46.3 | L175: 47 | M175: 46.15 | N175: 46.9 | O175: 1611300
A176: 161 | B176: 2016-05-25 | C176: 45.970001 | D176: 46.18 | E176: 45.48 | F176: 46.099998 | G176: 1187300 | H176: 46.021371 | I176: 0.9982944251 | J176: 1 | K176: 45.89 | L176: 46.1 | M176: 45.4 | N176: 46.02 | O176: 1187300
A177: 162 | B177: 2016-05-24 | C177: 46.52 | D177: 47.07 | E177: 45.860001 | F177: 45.900002 | G177: 1508100 | H177: 45.821715 | I177: 0.9982944009 | J177: 1 | K177: 46.44 | L177: 46.99 | M177: 45.78 | N177: 45.82 | O177: 1508100
A178: 163 | B178: 2016-05-23 | C178: 46.549999 | D178: 46.639999 | E178: 45.880001 | F178: 46.32 | G178: 816100 | H178: 46.240997 | I178: 0.9982944085 | J178: 1 | K178: 46.47 | L178: 46.56 | M178: 45.8 | N178: 46.24 | O178: 816100
A179: 164 | B179: 2016-05-20 | C179: 46.529999 | D179: 46.91 | E179: 46.349998 | F179: 46.57 | G179: 707900 | H179: 46.490571 | I179: 0.998294417 | J179: 1 | K179: 46.45 | L179: 46.83 | M179: 46.27 | N179: 46.49 | O179: 707900
A180: 165 | B180: 2016-05-19 | C180: 46.650002 | D180: 46.990002 | E180: 45.470001 | F180: 46.32 | G180: 1447200 | H180: 46.240997 | I180: 0.9982944085 | J180: 1 | K180: 46.57 | L180: 46.91 | M180: 45.39 | N180: 46.24 | O180: 1447200
A181: 166 | B181: 2016-05-18 | C181: 46.369999 | D181: 47.419998 | E181: 46.259998 | F181: 46.720001 | G181: 919600 | H181: 46.640316 | I181: 0.9982944136 | J181: 1 | K181: 46.29 | L181: 47.34 | M181: 46.18 | N181: 46.64 | O181: 919600
A182: 167 | B182: 2016-05-17 | C182: 46.380001 | D182: 47.130001 | E182: 46.240002 | F182: 46.610001 | G182: 1527800 | H182: 46.530503 | I182: 0.9982944004 | J182: 1 | K182: 46.3 | L182: 47.05 | M182: 46.16 | N182: 46.53 | O182: 1527800
A183: 168 | B183: 2016-05-16 | C183: 47.02 | D183: 47.200001 | E183: 46.290001 | F183: 46.759998 | G183: 1470000 | H183: 46.680245 | I183: 0.9982944182 | J183: 1 | K183: 46.94 | L183: 47.12 | M183: 46.21 | N183: 46.68 | O183: 1470000
A184: 169 | B184: 2016-05-13 | C184: 47.049999 | D184: 47.860001 | E184: 46.380001 | F184: 46.66 | G184: 1731000 | H184: 46.580417 | I184: 0.9982944063 | J184: 1 | K184: 46.97 | L184: 47.78 | M184: 46.3 | N184: 46.58 | O184: 1731000
A185: 170 | B185: 2016-05-12 | C185: 46.950001 | D185: 47.580002 | E185: 46.919998 | F185: 47.259998 | G185: 1532300 | H185: 47.179392 | I185: 0.9982944138 | J185: 1 | K185: 46.87 | L185: 47.5 | M185: 46.84 | N185: 47.18 | O185: 1532300
A186: 171 | B186: 2016-05-11 | C186: 47.299999 | D186: 47.669998 | E186: 46.779999 | F186: 46.880001 | G186: 1479500 | H186: 46.800043 | I186: 0.9982944113 | J186: 1 | K186: 47.22 | L186: 47.59 | M186: 46.7 | N186: 46.8 | O186: 1479500
A187: 172 | B187: 2016-05-10 | C187: 46.459999 | D187: 47.369999 | E187: 46.259998 | F187: 47.32 | G187: 2348400 | H187: 47.239291 | I187: 0.9982943998 | J187: 1 | K187: 46.38 | L187: 47.29 | M187: 46.18 | N187: 47.24 | O187: 2348400
A188: 173 | B188: 2016-05-09 | C188: 46.040001 | D188: 46.619999 | E188: 46.040001 | F188: 46.189999 | G188: 1456500 | H188: 46.111218 | I188: 0.9982944143 | J188: 1 | K188: 45.96 | L188: 46.54 | M188: 45.96 | N188: 46.11 | O188: 1456500
A189: 174 | B189: 2016-05-06 | C189: 45.400002 | D189: 46.34 | E189: 45.32 | F189: 46.220001 | G189: 1219300 | H189: 46.141169 | I189: 0.998294418 | J189: 1 | K189: 45.32 | L189: 46.26 | M189: 45.24 | N189: 46.14 | O189: 1219300
A190: 175 | B190: 2016-05-05 | C190: 45.75 | D190: 46.130001 | E190: 45.299999 | F190: 45.41 | G190: 1315600 | H190: 45.332549 | I190: 0.9982944065 | J190: 1 | K190: 45.67 | L190: 46.05 | M190: 45.22 | N190: 45.33 | O190: 1315600
A191: 176 | B191: 2016-05-04 | C191: 46.299999 | D191: 46.57 | E191: 45.34 | F191: 45.540001 | G191: 1418200 | H191: 45.462328 | I191: 0.9982944006 | J191: 1 | K191: 46.22 | L191: 46.49 | M191: 45.26 | N191: 45.46 | O191: 1418200
A192: 177 | B192: 2016-05-03 | C192: 46.919998 | D192: 47.029999 | E192: 45.619999 | F192: 46.619999 | G192: 2111900 | H192: 46.540484 | I192: 0.9982944015 | J192: 1 | K192: 46.84 | L192: 46.95 | M192: 45.54 | N192: 46.54 | O192: 2111900
A193: 178 | B193: 2016-05-02 | C193: 47.490002 | D193: 48.060001 | E193: 46.98 | F193: 47.23 | G193: 2733200 | H193: 47.149445 | I193: 0.9982944103 | J193: 1 | K193: 47.41 | L193: 47.98 | M193: 46.9 | N193: 47.15 | O193: 2733200
A194: 179 | B194: 2016-04-29 | C194: 47.040001 | D194: 48.5 | E194: 46 | F194: 47.150002 | G194: 3572400 | H194: 47.069583 | I194: 0.9982944009 | J194: 1 | K194: 46.96 | L194: 48.42 | M194: 45.92 | N194: 47.07 | O194: 3572400
A195: 180 | B195: 2016-04-28 | C195: 48.630001 | D195: 49.310001 | E195: 48.18 | F195: 48.98 | G195: 2390700 | H195: 48.89646 | I195: 0.9982944059 | J195: 1 | K195: 48.55 | L195: 49.23 | M195: 48.1 | N195: 48.9 | O195: 2390700
A196: 181 | B196: 2016-04-27 | C196: 47.43 | D196: 48.889999 | E196: 47.369999 | F196: 48.880001 | G196: 1861500 | H196: 48.796632 | I196: 0.9982944149 | J196: 1 | K196: 47.35 | L196: 48.81 | M196: 47.29 | N196: 48.8 | O196: 1861500
A197: 182 | B197: 2016-04-26 | C197: 46.900002 | D197: 47.740002 | E197: 46.860001 | F197: 47.610001 | G197: 1026000 | H197: 47.528798 | I197: 0.998294413 | J197: 1 | K197: 46.82 | L197: 47.66 | M197: 46.78 | N197: 47.53 | O197: 1026000
A198: 183 | B198: 2016-04-25 | C198: 46.790001 | D198: 46.93 | E198: 46.439999 | F198: 46.73 | G198: 619300 | H198: 46.650297 | I198: 0.9982943933 | J198: 1 | K198: 46.71 | L198: 46.85 | M198: 46.36 | N198: 46.65 | O198: 619300
A199: 184 | B199: 2016-04-22 | C199: 46.75 | D199: 47.25 | E199: 46.549999 | F199: 46.959999 | G199: 593900 | H199: 46.879905 | I199: 0.9982944207 | J199: 1 | K199: 46.67 | L199: 47.17 | M199: 46.47 | N199: 46.88 | O199: 593900
A200: 185 | B200: 2016-04-21 | C200: 46.720001 | D200: 47.18 | E200: 46.68 | F200: 46.73 | G200: 751900 | H200: 46.650297 | I200: 0.9982943933 | J200: 1 | K200: 46.64 | L200: 47.1 | M200: 46.6 | N200: 46.65 | O200: 751900
... 2364 more rows

Sheet CalculationsAndCharts
A1: Golden Cross Breakouts
A2: =InputPriceData!A1 -> Spirit Aerosystems Holdings, In (SPR) -NYQ (Daily) | R2: Chart Clutter Controls
A4: User Charting Controls | E4: Click to Shift Chart One Bar: | R4: TRUE
A5: Data Control | R5: TRUE
A6: =InputPriceData!$B$10 -> 2549 | B6: Available Input Data Rows | E6: Earliest: | F6: =OFFSET(InputPriceData!B15,CalculationsAndCharts!A6,0,1,1) -> 2006-11-28 | R6: TRUE
B7: Use Close Adjusted: | C7: TRUE | E7: Latest: | F7: =OFFSET(InputPriceData!B15,1,0,1,1) -> 2017-01-12 | R7: TRUE
A8: =MIN(A6-A11,LastUsedRowInColumn(A:A)-32) -> 2500 | B8: Logically Available for Calc / Plot | E8: $ Change: | F8: =InputPriceData!I4 -> -0.98
A10: Price Chart Windowing Controls | F10: Y-axis Range
A11: 0 | B11: Input Data Offset (Pan) | E11: Max High+ | F11: =CEILING(MAX(MAX(OFFSET($E$33,0,0,$A$12,1)))+2*F14,0.1) -> 63.5
A12: 100 | B12: Data Points to Plot (Zoom) | E12: Min Low- | F12: =FLOOR(MIN(MIN(OFFSET($F$33,0,0,$A$12,1)))-2*F14,0.1) -> 40.1
B13: First: | C13: =OFFSET(B32,A12,0,1,1) -> 2016-08-22 | E13: White space %: | F13: 0.05
B14: ="Last: " & OFFSET(InputPriceData!P15,1+A11,0,1,1) -> Last: | C14: =B33 -> 2017-01-12 | E14: Allowance: | F14: =FLOOR((CEILING(MAX(MAX(OFFSET($E$33,0,0,$A$12,1))),1)-FLOOR(MIN(MIN(OFFSET($F$33,0,0,$A$12,1))),1))*F13,0.01) -> 1
A15: User Controls
A16: SMA Periods
A17: 50 | B17: Fast
A18: 200 | B18: Slow
A19: 2 | B19: Point Trailing Stop
A23: Help! I would like to plot data
A24: From | B24: 2016-08-22 | C24: =OFFSET(InputPriceData!$A$15,MATCH(B24,OFFSET(InputPriceData!B15,1,0,InputPriceData!$B$10,1),0),0,1,1)-C25 -> 100 | E24: 68
A25: To | B25: 2017-01-12 | C25: =OFFSET(InputPriceData!$A$15,MATCH(B25,OFFSET(InputPriceData!$B$15,1,0,InputPriceData!$B$10,1),0),0,1,1)-1 -> 0 | E25: =$A$12-$E$24+1 -> 33
H28: @ Cursor => | I28: =OFFSET(A32,$E$25,0,1,1)&"(RR)" -> 33(RR) | J28: =OFFSET($B$32,E25,0,1,1) -> 2016-11-25 | K28: =TEXT(OFFSET(D32,$E$25,0,1,1),"#,##0.00")&"(o)" -> 58.26(o) | L28: =TEXT(OFFSET(E32,$E$25,0,1,1),"#,##0.00")&"(h)" -> 58.70(h) | M28: =TEXT(OFFSET(F32,$E$25,0,1,1),"#,##0.00")&"(l)" -> 57.91(l) | N28: =TEXT(OFFSET(G32,$E$25,0,1,1),"#,##0.00")&"(c)" -> 58.60(c)
E29: Cursor ==> | T29: Work Area used to allow Chart Clutter Control boxes to influence what shows on the charts | AT29: Chart cursors
AT30: Work area
A31: Rel Row | H31: ="SMA("&A17&")" -> SMA(50) | I31: ="SMA("&A18&")" -> SMA(200) | J31: SMA Crossover | L31: Long Active | M31: =A19&" Pt Trail Stop" -> 2 Pt Trail Stop | N31: Trailing Stop Hit | O31: Buy the Open | P31: Sell the Open | Q31: Buy Price | R31: Sell Price | T31: =H31 -> SMA(50) | U31: =I31 -> SMA(200) | V31: =M31 -> 2 Pt Trail Stop | W31: Buy | X31: Sell | AC31: Used To Color Vol Bars
B32: Date | C32: Volume | D32: Open | E32: High | F32: Low | G32: Close | J32: Buy Flag | K32: Sell Flag | AC32: Up Vol | AD32: Dn Vol | AT32: Volume Cursor | AV32: =MAX(OFFSET(C33,0,0,A12,1)) -> 5662600 | AY32: Price Chart Cursor
A33: 1 | B33: =OFFSET(InputPriceData!B$15,CalculationsAndCharts!$A33+$A$11,0,1,1) -> 2017-01-12 | C33: =OFFSET(InputPriceData!G$15,CalculationsAndCharts!$A33+$A$11,IF($C$7,8,0),1,1) -> 785900 | D33: =OFFSET(InputPriceData!C$15,CalculationsAndCharts!$A33+$A$11,IF($C$7,8,0),1,1) -> 58.97 | E33: =OFFSET(InputPriceData!D$15,CalculationsAndCharts!$A33+$A$11,IF($C$7,8,0),1,1) -> 58.97 | F33: =OFFSET(InputPriceData!E$15,CalculationsAndCharts!$A33+$A$11,IF($C$7,8,0),1,1) -> 57.48 | G33: =OFFSET(InputPriceData!F$15,CalculationsAndCharts!$A33+$A$11,IF($C$7,8,0),1,1) -> 57.91 | H33: =IF($A33>($A$8-$A$17+1),0,AVERAGE(OFFSET($G33,0,0,$A$17,1))) -> 57.7184 | I33: =IF($A33>$A$8,0,IF($A33=$A$8,$G33,AVERAGE(OFFSET($G33,0,0,$A$18,1)))) -> 48.4731 | J33: =AND(A33<$A$8-1,H33>I33,H34<I34) -> FALSE | K33: =AND(A33<$A$8-1,H33<I33,H34>I34) -> FALSE | L33: =IF($A33>$A$8-1,FALSE,IF(J34,TRUE,IF(AND(L34,P33),FALSE,L34))) -> FALSE | M33: =IF($A33>$A$8-2,NA(),IF(AND(L34,NOT(L35)),(G34-$A$19),IF(AND(L34,NOT(N34)),IF((G34-$A$19)>M34,(G34-$A$19),M34),NA()))) ->  | N33: =IFERROR(AND(L33,OR(K33,F33<M33)),FALSE) -> FALSE | O33: =AND(A33<$A$8-1,J34,NOT(L34)) -> FALSE | P33: =IFERROR(AND(A33<$A$8-1,L34,OR(K34,N34)),FALSE) -> FALSE | Q33: =IF(O33,D33,0) -> 0 | R33: =IF(P33,D33,0) -> 0 | T33: =IF($R$4,H33,NA()) -> 57.7184 | U33: =IF($R$5,I33,NA()) -> 48.4731 | V33: =IF($R$6,M33,NA()) ->  | W33: =IF(AND($R$7,O33),$E33+1,NA()) ->  | X33: =IF(AND($R$7,P33),$E33+1,NA()) ->  | AC33: =IF(G33>=D33,C33,NA()) ->  | AD33: =IF(G33<D33,C33,NA()) -> 785900 | AT33: =$E$25 -> 33 | AV33: 0 | AY33: =$E$25 -> 33 | AZ33: 41.13525
A34: 2 | B34: =OFFSET(InputPriceData!B$15,CalculationsAndCharts!$A34+$A$11,0,1,1) -> 2017-01-11 | C34: =OFFSET(InputPriceData!G$15,CalculationsAndCharts!$A34+$A$11,IF($C$7,8,0),1,1) -> 675300 | D34: =OFFSET(InputPriceData!C$15,CalculationsAndCharts!$A34+$A$11,IF($C$7,8,0),1,1) -> 58.89 | E34: =OFFSET(InputPriceData!D$15,CalculationsAndCharts!$A34+$A$11,IF($C$7,8,0),1,1) -> 59.03 | F34: =OFFSET(InputPriceData!E$15,CalculationsAndCharts!$A34+$A$11,IF($C$7,8,0),1,1) -> 58.37 | G34: =OFFSET(InputPriceData!F$15,CalculationsAndCharts!$A34+$A$11,IF($C$7,8,0),1,1) -> 58.89 | H34: 57.5656 | I34: 48.4149 | J34: FALSE | K34: FALSE | L34: FALSE | N34: FALSE | O34: FALSE | P34: FALSE | Q34: 0 | R34: 0 | T34: 57.5656 | U34: 48.4149 | V34: =IF($R$6,M34,NA()) ->  | W34: =IF(AND($R$7,O34),$E34+1,NA()) ->  | X34: =IF(AND($R$7,P34),$E34+1,NA()) ->  | AC34: 675300 | AT34: =$E$25 -> 33 | AV34: =1.2*AV32 -> 6795120 | AY34: =$E$25 -> 33 | AZ34: 62.98625
A35: 3 | B35: =OFFSET(InputPriceData!B$15,CalculationsAndCharts!$A35+$A$11,0,1,1) -> 2017-01-10 | C35: =OFFSET(InputPriceData!G$15,CalculationsAndCharts!$A35+$A$11,IF($C$7,8,0),1,1) -> 560000 | D35: =OFFSET(InputPriceData!C$15,CalculationsAndCharts!$A35+$A$11,IF($C$7,8,0),1,1) -> 58.91 | E35: =OFFSET(InputPriceData!D$15,CalculationsAndCharts!$A35+$A$11,IF($C$7,8,0),1,1) -> 59.02 | F35: =OFFSET(InputPriceData!E$15,CalculationsAndCharts!$A35+$A$11,IF($C$7,8,0),1,1) -> 58.58 | G35: =OFFSET(InputPriceData!F$15,CalculationsAndCharts!$A35+$A$11,IF($C$7,8,0),1,1) -> 58.71 | H35: 57.3898 | I35: 48.3538 | J35: FALSE | K35: FALSE | L35: FALSE | N35: FALSE | O35: FALSE | P35: FALSE | Q35: 0 | R35: 0 | T35: 57.3898 | U35: 48.3538 | AD35: 560000
A36: 4 | B36: =OFFSET(InputPriceData!B$15,CalculationsAndCharts!$A36+$A$11,0,1,1) -> 2017-01-09 | C36: =OFFSET(InputPriceData!G$15,CalculationsAndCharts!$A36+$A$11,IF($C$7,8,0),1,1) -> 1229000 | D36: =OFFSET(InputPriceData!C$15,CalculationsAndCharts!$A36+$A$11,IF($C$7,8,0),1,1) -> 59.64 | E36: =OFFSET(InputPriceData!D$15,CalculationsAndCharts!$A36+$A$11,IF($C$7,8,0),1,1) -> 59.68 | F36: =OFFSET(InputPriceData!E$15,CalculationsAndCharts!$A36+$A$11,IF($C$7,8,0),1,1) -> 58.64 | G36: =OFFSET(InputPriceData!F$15,CalculationsAndCharts!$A36+$A$11,IF($C$7,8,0),1,1) -> 58.66 | H36: 57.2232 | I36: 48.29335 | J36: FALSE | K36: FALSE | L36: FALSE | N36: FALSE | O36: FALSE | P36: FALSE | Q36: 0 | R36: 0 | T36: 57.2232 | U36: 48.29335 | AD36: 1229000
A37: 5 | B37: =OFFSET(InputPriceData!B$15,CalculationsAndCharts!$A37+$A$11,0,1,1) -> 2017-01-06 | C37: =OFFSET(InputPriceData!G$15,CalculationsAndCharts!$A37+$A$11,IF($C$7,8,0),1,1) -> 850900 | D37: =OFFSET(InputPriceData!C$15,CalculationsAndCharts!$A37+$A$11,IF($C$7,8,0),1,1) -> 59.78 | E37: =OFFSET(InputPriceData!D$15,CalculationsAndCharts!$A37+$A$11,IF($C$7,8,0),1,1) -> 60.12 | F37: =OFFSET(InputPriceData!E$15,CalculationsAndCharts!$A37+$A$11,IF($C$7,8,0),1,1) -> 59.47 | G37: =OFFSET(InputPriceData!F$15,CalculationsAndCharts!$A37+$A$11,IF($C$7,8,0),1,1) -> 59.78 | H37: 57.0566 | I37: 48.2363 | J37: FALSE | K37: FALSE | L37: FALSE | N37: FALSE | O37: FALSE | P37: FALSE | Q37: 0 | R37: 0 | T37: 57.0566 | U37: 48.2363 | AC37: 850900
A38: 6 | B38: =OFFSET(InputPriceData!B$15,CalculationsAndCharts!$A38+$A$11,0,1,1) -> 2017-01-05 | C38: =OFFSET(InputPriceData!G$15,CalculationsAndCharts!$A38+$A$11,IF($C$7,8,0),1,1) -> 1133900 | D38: =OFFSET(InputPriceData!C$15,CalculationsAndCharts!$A38+$A$11,IF($C$7,8,0),1,1) -> 59.85 | E38: =OFFSET(InputPriceData!D$15,CalculationsAndCharts!$A38+$A$11,IF($C$7,8,0),1,1) -> 60.92 | F38: =OFFSET(InputPriceData!E$15,CalculationsAndCharts!$A38+$A$11,IF($C$7,8,0),1,1) -> 59.64 | G38: =OFFSET(InputPriceData!F$15,CalculationsAndCharts!$A38+$A$11,IF($C$7,8,0),1,1) -> 60.04 | H38: 56.8286 | I38: 48.174 | J38: FALSE | K38: FALSE | L38: FALSE | N38: FALSE | O38: FALSE | P38: FALSE | Q38: 0 | R38: 0 | T38: 56.8286 | U38: 48.174 | AC38: 1133900
A39: 7 | B39: =OFFSET(InputPriceData!B$15,CalculationsAndCharts!$A39+$A$11,0,1,1) -> 2017-01-04 | C39: =OFFSET(InputPriceData!G$15,CalculationsAndCharts!$A39+$A$11,IF($C$7,8,0),1,1) -> 1326600 | D39: =OFFSET(InputPriceData!C$15,CalculationsAndCharts!$A39+$A$11,IF($C$7,8,0),1,1) -> 58.96 | E39: =OFFSET(InputPriceData!D$15,CalculationsAndCharts!$A39+$A$11,IF($C$7,8,0),1,1) -> 60.11 | F39: =OFFSET(InputPriceData!E$15,CalculationsAndCharts!$A39+$A$11,IF($C$7,8,0),1,1) -> 58.8 | G39: =OFFSET(InputPriceData!F$15,CalculationsAndCharts!$A39+$A$11,IF($C$7,8,0),1,1) -> 59.66 | H39: 56.5962 | I39: 48.11055 | J39: FALSE | K39: FALSE | L39: FALSE | N39: FALSE | O39: FALSE | P39: FALSE | Q39: 0 | R39: 0 | T39: 56.5962 | U39: 48.11055 | AC39: 1326600
A40: 8 | B40: =OFFSET(InputPriceData!B$15,CalculationsAndCharts!$A40+$A$11,0,1,1) -> 2017-01-03 | C40: =OFFSET(InputPriceData!G$15,CalculationsAndCharts!$A40+$A$11,IF($C$7,8,0),1,1) -> 847800 | D40: =OFFSET(InputPriceData!C$15,CalculationsAndCharts!$A40+$A$11,IF($C$7,8,0),1,1) -> 58.92 | E40: =OFFSET(InputPriceData!D$15,CalculationsAndCharts!$A40+$A$11,IF($C$7,8,0),1,1) -> 58.92 | F40: =OFFSET(InputPriceData!E$15,CalculationsAndCharts!$A40+$A$11,IF($C$7,8,0),1,1) -> 58.13 | G40: =OFFSET(InputPriceData!F$15,CalculationsAndCharts!$A40+$A$11,IF($C$7,8,0),1,1) -> 58.78 | H40: 56.3648 | I40: 48.0481 | J40: FALSE | K40: FALSE | L40: FALSE | N40: FALSE | O40: FALSE | P40: FALSE | Q40: 0 | R40: 0 | T40: 56.3648 | U40: 48.0481 | AD40: 847800
A41: 9 | B41: =OFFSET(InputPriceData!B$15,CalculationsAndCharts!$A41+$A$11,0,1,1) -> 2016-12-30 | C41: =OFFSET(InputPriceData!G$15,CalculationsAndCharts!$A41+$A$11,IF($C$7,8,0),1,1) -> 474200 | D41: =OFFSET(InputPriceData!C$15,CalculationsAndCharts!$A41+$A$11,IF($C$7,8,0),1,1) -> 58.82 | E41: =OFFSET(InputPriceData!D$15,CalculationsAndCharts!$A41+$A$11,IF($C$7,8,0),1,1) -> 58.91 | F41: =OFFSET(InputPriceData!E$15,CalculationsAndCharts!$A41+$A$11,IF($C$7,8,0),1,1) -> 58.24 | G41: =OFFSET(InputPriceData!F$15,CalculationsAndCharts!$A41+$A$11,IF($C$7,8,0),1,1) -> 58.35 | H41: 56.1524 | I41: 47.9892 | J41: FALSE | K41: FALSE | L41: FALSE | N41: FALSE | O41: FALSE | P41: FALSE | Q41: 0 | R41: 0 | T41: 56.1524 | U41: 47.9892 | AD41: 474200
A42: 10 | B42: =OFFSET(InputPriceData!B$15,CalculationsAndCharts!$A42+$A$11,0,1,1) -> 2016-12-29 | C42: =OFFSET(InputPriceData!G$15,CalculationsAndCharts!$A42+$A$11,IF($C$7,8,0),1,1) -> 306700 | D42: =OFFSET(InputPriceData!C$15,CalculationsAndCharts!$A42+$A$11,IF($C$7,8,0),1,1) -> 58.68 | E42: =OFFSET(InputPriceData!D$15,CalculationsAndCharts!$A42+$A$11,IF($C$7,8,0),1,1) -> 59.15 | F42: =OFFSET(InputPriceData!E$15,CalculationsAndCharts!$A42+$A$11,IF($C$7,8,0),1,1) -> 58.46 | G42: =OFFSET(InputPriceData!F$15,CalculationsAndCharts!$A42+$A$11,IF($C$7,8,0),1,1) -> 58.61 | H42: 55.9552 | I42: 47.9319 | J42: FALSE | K42: FALSE | L42: FALSE | N42: FALSE | O42: FALSE | P42: FALSE | Q42: 0 | R42: 0 | T42: 55.9552 | U42: 47.9319 | AD42: 306700
A43: 11 | B43: =OFFSET(InputPriceData!B$15,CalculationsAndCharts!$A43+$A$11,0,1,1) -> 2016-12-28 | C43: =OFFSET(InputPriceData!G$15,CalculationsAndCharts!$A43+$A$11,IF($C$7,8,0),1,1) -> 328900 | D43: =OFFSET(InputPriceData!C$15,CalculationsAndCharts!$A43+$A$11,IF($C$7,8,0),1,1) -> 59.47 | E43: =OFFSET(InputPriceData!D$15,CalculationsAndCharts!$A43+$A$11,IF($C$7,8,0),1,1) -> 59.52 | F43: =OFFSET(InputPriceData!E$15,CalculationsAndCharts!$A43+$A$11,IF($C$7,8,0),1,1) -> 58.57 | G43: =OFFSET(InputPriceData!F$15,CalculationsAndCharts!$A43+$A$11,IF($C$7,8,0),1,1) -> 58.64 | H43: 55.7398 | I43: 47.8687 | J43: FALSE | K43: FALSE | L43: FALSE | N43: FALSE | O43: FALSE | P43: FALSE | Q43: 0 | R43: 0 | T43: 55.7398 | U43: 47.8687 | AD43: 328900
A44: 12 | B44: =OFFSET(InputPriceData!B$15,CalculationsAndCharts!$A44+$A$11,0,1,1) -> 2016-12-27 | C44: =OFFSET(InputPriceData!G$15,CalculationsAndCharts!$A44+$A$11,IF($C$7,8,0),1,1) -> 375200 | D44: =OFFSET(InputPriceData!C$15,CalculationsAndCharts!$A44+$A$11,IF($C$7,8,0),1,1) -> 59.27 | E44: =OFFSET(InputPriceData!D$15,CalculationsAndCharts!$A44+$A$11,IF($C$7,8,0),1,1) -> 59.6 | F44: =OFFSET(InputPriceData!E$15,CalculationsAndCharts!$A44+$A$11,IF($C$7,8,0),1,1) -> 58.94 | G44: =OFFSET(InputPriceData!F$15,CalculationsAndCharts!$A44+$A$11,IF($C$7,8,0),1,1) -> 59.51 | H44: 55.4882 | I44: 47.80505 | J44: FALSE | K44: FALSE | L44: FALSE | N44: FALSE | O44: FALSE | P44: FALSE | Q44: 0 | R44: 0 | T44: 55.4882 | U44: 47.80505 | AC44: 375200
A45: 13 | B45: =OFFSET(InputPriceData!B$15,CalculationsAndCharts!$A45+$A$11,0,1,1) -> 2016-12-23 | C45: =OFFSET(InputPriceData!G$15,CalculationsAndCharts!$A45+$A$11,IF($C$7,8,0),1,1) -> 611100 | D45: =OFFSET(InputPriceData!C$15,CalculationsAndCharts!$A45+$A$11,IF($C$7,8,0),1,1) -> 58.87 | E45: =OFFSET(InputPriceData!D$15,CalculationsAndCharts!$A45+$A$11,IF($C$7,8,0),1,1) -> 59.19 | F45: =OFFSET(InputPriceData!E$15,CalculationsAndCharts!$A45+$A$11,IF($C$7,8,0),1,1) -> 58.64 | G45: =OFFSET(InputPriceData!F$15,CalculationsAndCharts!$A45+$A$11,IF($C$7,8,0),1,1) -> 59.15 | H45: 55.2114 | I45: 47.7408 | J45: FALSE | K45: FALSE | L45: FALSE | N45: FALSE | O45: FALSE | P45: FALSE | Q45: 0 | R45: 0 | T45: 55.2114 | U45: 47.7408 | AC45: 611100
A46: 14 | B46: =OFFSET(InputPriceData!B$15,CalculationsAndCharts!$A46+$A$11,0,1,1) -> 2016-12-22 | C46: =OFFSET(InputPriceData!G$15,CalculationsAndCharts!$A46+$A$11,IF($C$7,8,0),1,1) -> 744000 | D46: =OFFSET(InputPriceData!C$15,CalculationsAndCharts!$A46+$A$11,IF($C$7,8,0),1,1) -> 58.94 | E46: =OFFSET(InputPriceData!D$15,CalculationsAndCharts!$A46+$A$11,IF($C$7,8,0),1,1) -> 58.96 | F46: =OFFSET(InputPriceData!E$15,CalculationsAndCharts!$A46+$A$11,IF($C$7,8,0),1,1) -> 58.31 | G46: =OFFSET(InputPriceData!F$15,CalculationsAndCharts!$A46+$A$11,IF($C$7,8,0),1,1) -> 58.71 | H46: 54.9442 | I46: 47.67905 | J46: FALSE | K46: FALSE | L46: FALSE | N46: FALSE | O46: FALSE | P46: FALSE | Q46: 0 | R46: 0 | T46: 54.9442 | U46: 47.67905 | AD46: 744000
A47: 15 | B47: =OFFSET(InputPriceData!B$15,CalculationsAndCharts!$A47+$A$11,0,1,1) -> 2016-12-21 | C47: =OFFSET(InputPriceData!G$15,CalculationsAndCharts!$A47+$A$11,IF($C$7,8,0),1,1) -> 986200 | D47: =OFFSET(InputPriceData!C$15,CalculationsAndCharts!$A47+$A$11,IF($C$7,8,0),1,1) -> 58.76 | E47: =OFFSET(InputPriceData!D$15,CalculationsAndCharts!$A47+$A$11,IF($C$7,8,0),1,1) -> 59.06 | F47: =OFFSET(InputPriceData!E$15,CalculationsAndCharts!$A47+$A$11,IF($C$7,8,0),1,1) -> 57.17 | G47: =OFFSET(InputPriceData!F$15,CalculationsAndCharts!$A47+$A$11,IF($C$7,8,0),1,1) -> 58.78 | H47: 54.6854 | I47: 47.61515 | J47: FALSE | K47: FALSE | L47: FALSE | N47: FALSE | O47: FALSE | P47: FALSE | Q47: 0 | R47: 0 | T47: 54.6854 | U47: 47.61515 | AC47: 986200
A48: 16 | B48: =OFFSET(InputPriceData!B$15,CalculationsAndCharts!$A48+$A$11,0,1,1) -> 2016-12-20 | C48: =OFFSET(InputPriceData!G$15,CalculationsAndCharts!$A48+$A$11,IF($C$7,8,0),1,1) -> 578700 | D48: =OFFSET(InputPriceData!C$15,CalculationsAndCharts!$A48+$A$11,IF($C$7,8,0),1,1) -> 59.45 | E48: =OFFSET(InputPriceData!D$15,CalculationsAndCharts!$A48+$A$11,IF($C$7,8,0),1,1) -> 59.59 | F48: =OFFSET(InputPriceData!E$15,CalculationsAndCharts!$A48+$A$11,IF($C$7,8,0),1,1) -> 58.96 | G48: =OFFSET(InputPriceData!F$15,CalculationsAndCharts!$A48+$A$11,IF($C$7,8,0),1,1) -> 59.21 | H48: 54.4324 | I48: 47.551 | J48: FALSE | K48: FALSE | L48: FALSE | N48: FALSE | O48: FALSE | P48: FALSE | Q48: 0 | R48: 0 | T48: 54.4324 | U48: 47.551 | AD48: 578700
A49: 17 | B49: =OFFSET(InputPriceData!B$15,CalculationsAndCharts!$A49+$A$11,0,1,1) -> 2016-12-19 | C49: =OFFSET(InputPriceData!G$15,CalculationsAndCharts!$A49+$A$11,IF($C$7,8,0),1,1) -> 745900 | D49: =OFFSET(InputPriceData!C$15,CalculationsAndCharts!$A49+$A$11,IF($C$7,8,0),1,1) -> 58.83 | E49: =OFFSET(InputPriceData!D$15,CalculationsAndCharts!$A49+$A$11,IF($C$7,8,0),1,1) -> 59.8 | F49: =OFFSET(InputPriceData!E$15,CalculationsAndCharts!$A49+$A$11,IF($C$7,8,0),1,1) -> 58.83 | G49: =OFFSET(InputPriceData!F$15,CalculationsAndCharts!$A49+$A$11,IF($C$7,8,0),1,1) -> 59.37 | H49: 54.1774 | I49: 47.48165 | J49: FALSE | K49: FALSE | L49: FALSE | N49: FALSE | O49: FALSE | P49: FALSE | Q49: 0 | R49: 0 | T49: 54.1774 | U49: 47.48165 | AC49: 745900
A50: 18 | B50: =OFFSET(InputPriceData!B$15,CalculationsAndCharts!$A50+$A$11,0,1,1) -> 2016-12-16 | C50: =OFFSET(InputPriceData!G$15,CalculationsAndCharts!$A50+$A$11,IF($C$7,8,0),1,1) -> 2368800 | D50: =OFFSET(InputPriceData!C$15,CalculationsAndCharts!$A50+$A$11,IF($C$7,8,0),1,1) -> 58.99 | E50: =OFFSET(InputPriceData!D$15,CalculationsAndCharts!$A50+$A$11,IF($C$7,8,0),1,1) -> 59.39 | F50: =OFFSET(InputPriceData!E$15,CalculationsAndCharts!$A50+$A$11,IF($C$7,8,0),1,1) -> 58.44 | G50: =OFFSET(InputPriceData!F$15,CalculationsAndCharts!$A50+$A$11,IF($C$7,8,0),1,1) -> 58.66 | H50: 53.9158 | I50: 47.41255 | J50: FALSE | K50: FALSE | L50: FALSE | N50: FALSE | O50: FALSE | P50: FALSE | Q50: 0 | R50: 0 | T50: 53.9158 | U50: 47.41255 | AD50: 2368800
A51: 19 | B51: =OFFSET(InputPriceData!B$15,CalculationsAndCharts!$A51+$A$11,0,1,1) -> 2016-12-15 | C51: =OFFSET(InputPriceData!G$15,CalculationsAndCharts!$A51+$A$11,IF($C$7,8,0),1,1) -> 1069700 | D51: =OFFSET(InputPriceData!C$15,CalculationsAndCharts!$A51+$A$11,IF($C$7,8,0),1,1) -> 58.55 | E51: =OFFSET(InputPriceData!D$15,CalculationsAndCharts!$A51+$A$11,IF($C$7,8,0),1,1) -> 59.48 | F51: =OFFSET(InputPriceData!E$15,CalculationsAndCharts!$A51+$A$11,IF($C$7,8,0),1,1) -> 58.21 | G51: =OFFSET(InputPriceData!F$15,CalculationsAndCharts!$A51+$A$11,IF($C$7,8,0),1,1) -> 59.08 | H51: 53.6832 | I51: 47.35335 | J51: FALSE | K51: FALSE | L51: FALSE | N51: FALSE | O51: FALSE | P51: FALSE | Q51: 0 | R51: 0 | T51: 53.6832 | U51: 47.35335 | AC51: 1069700
A52: 20 | B52: =OFFSET(InputPriceData!B$15,CalculationsAndCharts!$A52+$A$11,0,1,1) -> 2016-12-14 | C52: =OFFSET(InputPriceData!G$15,CalculationsAndCharts!$A52+$A$11,IF($C$7,8,0),1,1) -> 2350200 | D52: =OFFSET(InputPriceData!C$15,CalculationsAndCharts!$A52+$A$11,IF($C$7,8,0),1,1) -> 58.78 | E52: =OFFSET(InputPriceData!D$15,CalculationsAndCharts!$A52+$A$11,IF($C$7,8,0),1,1) -> 59.68 | F52: =OFFSET(InputPriceData!E$15,CalculationsAndCharts!$A52+$A$11,IF($C$7,8,0),1,1) -> 58.38 | G52: =OFFSET(InputPriceData!F$15,CalculationsAndCharts!$A52+$A$11,IF($C$7,8,0),1,1) -> 58.53 | H52: 53.4442 | I52: 47.28845 | J52: FALSE | K52: FALSE | L52: FALSE | N52: FALSE | O52: FALSE | P52: TRUE | Q52: 0 | R52: =IF(P52,D52,0) -> 58.78 | T52: 53.4442 | U52: 47.28845 | X52: 60.68 | AD52: 2350200
A53: 21 | B53: =OFFSET(InputPriceData!B$15,CalculationsAndCharts!$A53+$A$11,0,1,1) -> 2016-12-13 | C53: =OFFSET(InputPriceData!G$15,CalculationsAndCharts!$A53+$A$11,IF($C$7,8,0),1,1) -> 1423500 | D53: =OFFSET(InputPriceData!C$15,CalculationsAndCharts!$A53+$A$11,IF($C$7,8,0),1,1) -> 59.9 | E53: =OFFSET(InputPriceData!D$15,CalculationsAndCharts!$A53+$A$11,IF($C$7,8,0),1,1) -> 60.49 | F53: =OFFSET(InputPriceData!E$15,CalculationsAndCharts!$A53+$A$11,IF($C$7,8,0),1,1) -> 58.91 | G53: =OFFSET(InputPriceData!F$15,CalculationsAndCharts!$A53+$A$11,IF($C$7,8,0),1,1) -> 58.99 | H53: 53.1878 | I53: 47.2258 | J53: FALSE | K53: FALSE | L53: TRUE | M53: 59.16 | N53: TRUE | O53: FALSE | P53: FALSE | Q53: 0 | R53: =IF(P53,D53,0) -> 0 | T53: 53.1878 | U53: 47.2258 | V53: 59.16 | AD53: 1423500
A54: 22 | B54: =OFFSET(InputPriceData!B$15,CalculationsAndCharts!$A54+$A$11,0,1,1) -> 2016-12-12 | C54: =OFFSET(InputPriceData!G$15,CalculationsAndCharts!$A54+$A$11,IF($C$7,8,0),1,1) -> 2171300 | D54: =OFFSET(InputPriceData!C$15,CalculationsAndCharts!$A54+$A$11,IF($C$7,8,0),1,1) -> 60.08 | E54: =OFFSET(InputPriceData!D$15,CalculationsAndCharts!$A54+$A$11,IF($C$7,8,0),1,1) -> 60.55 | F54: =OFFSET(InputPriceData!E$15,CalculationsAndCharts!$A54+$A$11,IF($C$7,8,0),1,1) -> 59.41 | G54: =OFFSET(InputPriceData!F$15,CalculationsAndCharts!$A54+$A$11,IF($C$7,8,0),1,1) -> 60.21 | H54: 52.9208 | I54: 47.1607 | J54: FALSE | K54: FALSE | L54: TRUE | M54: 59.16 | N54: FALSE | O54: FALSE | P54: FALSE | Q54: 0 | R54: 0 | T54: 52.9208 | U54: 47.1607 | V54: 59.16 | AC54: 2171300
A55: 23 | B55: =OFFSET(InputPriceData!B$15,CalculationsAndCharts!$A55+$A$11,0,1,1) -> 2016-12-09 | C55: =OFFSET(InputPriceData!G$15,CalculationsAndCharts!$A55+$A$11,IF($C$7,8,0),1,1) -> 1511900 | D55: =OFFSET(InputPriceData!C$15,CalculationsAndCharts!$A55+$A$11,IF($C$7,8,0),1,1) -> 59.96 | E55: =OFFSET(InputPriceData!D$15,CalculationsAndCharts!$A55+$A$11,IF($C$7,8,0),1,1) -> 60.93 | F55: =OFFSET(InputPriceData!E$15,CalculationsAndCharts!$A55+$A$11,IF($C$7,8,0),1,1) -> 59.96 | G55: =OFFSET(InputPriceData!F$15,CalculationsAndCharts!$A55+$A$11,IF($C$7,8,0),1,1) -> 60.92 | H55: 52.6058 | I55: 47.08925 | J55: FALSE | K55: FALSE | L55: TRUE | M55: 59.16 | N55: FALSE | O55: FALSE | P55: FALSE | Q55: 0 | R55: 0 | T55: 52.6058 | U55: 47.08925 | V55: 59.16 | AC55: 1511900
A56: 24 | B56: =OFFSET(InputPriceData!B$15,CalculationsAndCharts!$A56+$A$11,0,1,1) -> 2016-12-08 | C56: =OFFSET(InputPriceData!G$15,CalculationsAndCharts!$A56+$A$11,IF($C$7,8,0),1,1) -> 1606400 | D56: =OFFSET(InputPriceData!C$15,CalculationsAndCharts!$A56+$A$11,IF($C$7,8,0),1,1) -> 60.53 | E56: =OFFSET(InputPriceData!D$15,CalculationsAndCharts!$A56+$A$11,IF($C$7,8,0),1,1) -> 61.45 | F56: =OFFSET(InputPriceData!E$15,CalculationsAndCharts!$A56+$A$11,IF($C$7,8,0),1,1) -> 60.51 | G56: =OFFSET(InputPriceData!F$15,CalculationsAndCharts!$A56+$A$11,IF($C$7,8,0),1,1) -> 61.16 | H56: 52.2674 | I56: 47.01465 | J56: FALSE | K56: FALSE | L56: TRUE | M56: 58.51 | N56: FALSE | O56: FALSE | P56: FALSE | Q56: 0 | R56: 0 | T56: 52.2674 | U56: 47.01465 | V56: 58.51 | AC56: 1606400
A57: 25 | B57: =OFFSET(InputPriceData!B$15,CalculationsAndCharts!$A57+$A$11,0,1,1) -> 2016-12-07 | C57: =OFFSET(InputPriceData!G$15,CalculationsAndCharts!$A57+$A$11,IF($C$7,8,0),1,1) -> 987800 | D57: =OFFSET(InputPriceData!C$15,CalculationsAndCharts!$A57+$A$11,IF($C$7,8,0),1,1) -> 59.85 | E57: =OFFSET(InputPriceData!D$15,CalculationsAndCharts!$A57+$A$11,IF($C$7,8,0),1,1) -> 60.53 | F57: =OFFSET(InputPriceData!E$15,CalculationsAndCharts!$A57+$A$11,IF($C$7,8,0),1,1) -> 59.72 | G57: =OFFSET(InputPriceData!F$15,CalculationsAndCharts!$A57+$A$11,IF($C$7,8,0),1,1) -> 60.51 | H57: 51.9326 | I57: 46.93495 | J57: FALSE | K57: FALSE | L57: =IF($A57>$A$8-1,FALSE,IF(J58,TRUE,IF(AND(L58,P57),FALSE,L58))) -> TRUE | M57: 57.85 | N57: FALSE | O57: FALSE | P57: FALSE | Q57: 0 | R57: 0 | T57: 51.9326 | U57: 46.93495 | V57: 57.85 | AC57: 987800
A58: 26 | B58: =OFFSET(InputPriceData!B$15,CalculationsAndCharts!$A58+$A$11,0,1,1) -> 2016-12-06 | C58: =OFFSET(InputPriceData!G$15,CalculationsAndCharts!$A58+$A$11,IF($C$7,8,0),1,1) -> 1193900 | D58: =OFFSET(InputPriceData!C$15,CalculationsAndCharts!$A58+$A$11,IF($C$7,8,0),1,1) -> 58.93 | E58: =OFFSET(InputPriceData!D$15,CalculationsAndCharts!$A58+$A$11,IF($C$7,8,0),1,1) -> 59.95 | F58: =OFFSET(InputPriceData!E$15,CalculationsAndCharts!$A58+$A$11,IF($C$7,8,0),1,1) -> 58.85 | G58: =OFFSET(InputPriceData!F$15,CalculationsAndCharts!$A58+$A$11,IF($C$7,8,0),1,1) -> 59.85 | H58: 51.6036 | I58: 46.8572 | J58: FALSE | K58: FALSE | L58: =IF($A58>$A$8-1,FALSE,IF(J59,TRUE,IF(AND(L59,P58),FALSE,L59))) -> TRUE | M58: 57.27 | N58: FALSE | O58: FALSE | P58: FALSE | Q58: 0 | R58: 0 | T58: 51.6036 | U58: 46.8572 | V58: 57.27 | AC58: 1193900
A59: 27 | B59: =OFFSET(InputPriceData!B$15,CalculationsAndCharts!$A59+$A$11,0,1,1) -> 2016-12-05 | C59: =OFFSET(InputPriceData!G$15,CalculationsAndCharts!$A59+$A$11,IF($C$7,8,0),1,1) -> 1151200 | D59: =OFFSET(InputPriceData!C$15,CalculationsAndCharts!$A59+$A$11,IF($C$7,8,0),1,1) -> 59.04 | E59: =OFFSET(InputPriceData!D$15,CalculationsAndCharts!$A59+$A$11,IF($C$7,8,0),1,1) -> 59.28 | F59: =OFFSET(InputPriceData!E$15,CalculationsAndCharts!$A59+$A$11,IF($C$7,8,0),1,1) -> 58.78 | G59: =OFFSET(InputPriceData!F$15,CalculationsAndCharts!$A59+$A$11,IF($C$7,8,0),1,1) -> 59.27 | H59: 51.2828 | I59: 46.78475 | J59: FALSE | K59: FALSE | L59: TRUE | M59: 56.92 | N59: FALSE | O59: FALSE | P59: FALSE | Q59: 0 | R59: 0 | T59: 51.2828 | U59: 46.78475 | V59: 56.92 | AC59: 1151200
A60: 28 | B60: =OFFSET(InputPriceData!B$15,CalculationsAndCharts!$A60+$A$11,0,1,1) -> 2016-12-02 | C60: =OFFSET(InputPriceData!G$15,CalculationsAndCharts!$A60+$A$11,IF($C$7,8,0),1,1) -> 1139900 | D60: =OFFSET(InputPriceData!C$15,CalculationsAndCharts!$A60+$A$11,IF($C$7,8,0),1,1) -> 58.39 | E60: =OFFSET(InputPriceData!D$15,CalculationsAndCharts!$A60+$A$11,IF($C$7,8,0),1,1) -> 58.76 | F60: =OFFSET(InputPriceData!E$15,CalculationsAndCharts!$A60+$A$11,IF($C$7,8,0),1,1) -> 58.05 | G60: =OFFSET(InputPriceData!F$15,CalculationsAndCharts!$A60+$A$11,IF($C$7,8,0),1,1) -> 58.63 | H60: 50.9758 | I60: 46.71865 | J60: FALSE | K60: FALSE | L60: TRUE | M60: 56.92 | N60: FALSE | O60: FALSE | P60: FALSE | Q60: 0 | R60: 0 | T60: 50.9758 | U60: 46.71865 | V60: 56.92 | AC60: 1139900
A61: 29 | B61: =OFFSET(InputPriceData!B$15,CalculationsAndCharts!$A61+$A$11,0,1,1) -> 2016-12-01 | C61: =OFFSET(InputPriceData!G$15,CalculationsAndCharts!$A61+$A$11,IF($C$7,8,0),1,1) -> 1106200 | D61: =OFFSET(InputPriceData!C$15,CalculationsAndCharts!$A61+$A$11,IF($C$7,8,0),1,1) -> 58.06 | E61: =OFFSET(InputPriceData!D$15,CalculationsAndCharts!$A61+$A$11,IF($C$7,8,0),1,1) -> 58.76 | F61: =OFFSET(InputPriceData!E$15,CalculationsAndCharts!$A61+$A$11,IF($C$7,8,0),1,1) -> 57.89 | G61: =OFFSET(InputPriceData!F$15,CalculationsAndCharts!$A61+$A$11,IF($C$7,8,0),1,1) -> 58.37 | H61: 50.6742 | I61: 46.64885 | J61: FALSE | K61: FALSE | L61: TRUE | M61: 56.92 | N61: FALSE | O61: FALSE | P61: FALSE | Q61: 0 | R61: 0 | T61: 50.6742 | U61: 46.64885 | V61: 56.92 | AC61: 1106200
A62: 30 | B62: =OFFSET(InputPriceData!B$15,CalculationsAndCharts!$A62+$A$11,0,1,1) -> 2016-11-30 | C62: =OFFSET(InputPriceData!G$15,CalculationsAndCharts!$A62+$A$11,IF($C$7,8,0),1,1) -> 1026300 | D62: =OFFSET(InputPriceData!C$15,CalculationsAndCharts!$A62+$A$11,IF($C$7,8,0),1,1) -> 58.72 | E62: =OFFSET(InputPriceData!D$15,CalculationsAndCharts!$A62+$A$11,IF($C$7,8,0),1,1) -> 58.79 | F62: =OFFSET(InputPriceData!E$15,CalculationsAndCharts!$A62+$A$11,IF($C$7,8,0),1,1) -> 57.95 | G62: =OFFSET(InputPriceData!F$15,CalculationsAndCharts!$A62+$A$11,IF($C$7,8,0),1,1) -> 58.15 | H62: 50.3662 | I62: 46.58685 | J62: FALSE | K62: FALSE | L62: TRUE | M62: 56.92 | N62: FALSE | O62: FALSE | P62: FALSE | Q62: 0 | R62: 0 | T62: 50.3662 | U62: 46.58685 | V62: 56.92 | AD62: 1026300
A63: 31 | B63: =OFFSET(InputPriceData!B$15,CalculationsAndCharts!$A63+$A$11,0,1,1) -> 2016-11-29 | C63: =OFFSET(InputPriceData!G$15,CalculationsAndCharts!$A63+$A$11,IF($C$7,8,0),1,1) -> 1001000 | D63: =OFFSET(InputPriceData!C$15,CalculationsAndCharts!$A63+$A$11,IF($C$7,8,0),1,1) -> 58.79 | E63: =OFFSET(InputPriceData!D$15,CalculationsAndCharts!$A63+$A$11,IF($C$7,8,0),1,1) -> 59.22 | F63: =OFFSET(InputPriceData!E$15,CalculationsAndCharts!$A63+$A$11,IF($C$7,8,0),1,1) -> 58.49 | G63: =OFFSET(InputPriceData!F$15,CalculationsAndCharts!$A63+$A$11,IF($C$7,8,0),1,1) -> 58.53 | H63: 50.0494 | I63: 46.5228 | J63: FALSE | K63: FALSE | L63: TRUE | M63: 56.92 | N63: FALSE | O63: FALSE | P63: FALSE | Q63: 0 | R63: 0 | T63: 50.0494 | U63: 46.5228 | V63: 56.92 | AD63: 1001000
A64: 32 | B64: =OFFSET(InputPriceData!B$15,CalculationsAndCharts!$A64+$A$11,0,1,1) -> 2016-11-28 | C64: =OFFSET(InputPriceData!G$15,CalculationsAndCharts!$A64+$A$11,IF($C$7,8,0),1,1) -> 1465300 | D64: =OFFSET(InputPriceData!C$15,CalculationsAndCharts!$A64+$A$11,IF($C$7,8,0),1,1) -> 58.4 | E64: =OFFSET(InputPriceData!D$15,CalculationsAndCharts!$A64+$A$11,IF($C$7,8,0),1,1) -> 59.1 | F64: =OFFSET(InputPriceData!E$15,CalculationsAndCharts!$A64+$A$11,IF($C$7,8,0),1,1) -> 58.25 | G64: =OFFSET(InputPriceData!F$15,CalculationsAndCharts!$A64+$A$11,IF($C$7,8,0),1,1) -> 58.92 | H64: 49.7348 | I64: 46.4562 | J64: FALSE | K64: FALSE | L64: TRUE | M64: 56.6 | N64: FALSE | O64: FALSE | P64: FALSE | Q64: 0 | R64: 0 | T64: 49.7348 | U64: 46.4562 | V64: 56.6 | AC64: 1465300
A65: 33 | B65: =OFFSET(InputPriceData!B$15,CalculationsAndCharts!$A65+$A$11,0,1,1) -> 2016-11-25 | C65: =OFFSET(InputPriceData!G$15,CalculationsAndCharts!$A65+$A$11,IF($C$7,8,0),1,1) -> 458200 | D65: =OFFSET(InputPriceData!C$15,CalculationsAndCharts!$A65+$A$11,IF($C$7,8,0),1,1) -> 58.26 | E65: =OFFSET(InputPriceData!D$15,CalculationsAndCharts!$A65+$A$11,IF($C$7,8,0),1,1) -> 58.7 | F65: =OFFSET(InputPriceData!E$15,CalculationsAndCharts!$A65+$A$11,IF($C$7,8,0),1,1) -> 57.91 | G65: =OFFSET(InputPriceData!F$15,CalculationsAndCharts!$A65+$A$11,IF($C$7,8,0),1,1) -> 58.6 | H65: 49.4194 | I65: 46.3803 | J65: FALSE | K65: FALSE | L65: TRUE | M65: 56.02 | N65: FALSE | O65: FALSE | P65: FALSE | Q65: 0 | R65: 0 | T65: 49.4194 | U65: 46.3803 | V65: 56.02 | AC65: 458200
A66: 34 | B66: =OFFSET(InputPriceData!B$15,CalculationsAndCharts!$A66+$A$11,0,1,1) -> 2016-11-23 | C66: =OFFSET(InputPriceData!G$15,CalculationsAndCharts!$A66+$A$11,IF($C$7,8,0),1,1) -> 987500 | D66: =OFFSET(InputPriceData!C$15,CalculationsAndCharts!$A66+$A$11,IF($C$7,8,0),1,1) -> 57.48 | E66: =OFFSET(InputPriceData!D$15,CalculationsAndCharts!$A66+$A$11,IF($C$7,8,0),1,1) -> 58.08 | F66: =OFFSET(InputPriceData!E$15,CalculationsAndCharts!$A66+$A$11,IF($C$7,8,0),1,1) -> 57.21 | G66: =OFFSET(InputPriceData!F$15,CalculationsAndCharts!$A66+$A$11,IF($C$7,8,0),1,1) -> 58.02 | H66: 49.1394 | I66: 46.3013 | J66: FALSE | K66: FALSE | L66: TRUE | M66: 55.41 | N66: FALSE | O66: FALSE | P66: FALSE | Q66: 0 | R66: 0 | T66: 49.1394 | U66: 46.3013 | V66: 55.41 | AC66: 987500
A67: 35 | B67: =OFFSET(InputPriceData!B$15,CalculationsAndCharts!$A67+$A$11,0,1,1) -> 2016-11-22 | C67: =OFFSET(InputPriceData!G$15,CalculationsAndCharts!$A67+$A$11,IF($C$7,8,0),1,1) -> 1535300 | D67: =OFFSET(InputPriceData!C$15,CalculationsAndCharts!$A67+$A$11,IF($C$7,8,0),1,1) -> 55.98 | E67: =OFFSET(InputPriceData!D$15,CalculationsAndCharts!$A67+$A$11,IF($C$7,8,0),1,1) -> 57.47 | F67: =OFFSET(InputPriceData!E$15,CalculationsAndCharts!$A67+$A$11,IF($C$7,8,0),1,1) -> 55.78 | G67: =OFFSET(InputPriceData!F$15,CalculationsAndCharts!$A67+$A$11,IF($C$7,8,0),1,1) -> 57.41 | H67: 48.8688 | I67: 46.23545 | J67: FALSE | K67: FALSE | L67: TRUE | M67: 53.88 | N67: FALSE | O67: FALSE | P67: FALSE | Q67: 0 | R67: 0 | T67: 48.8688 | U67: 46.23545 | V67: 53.88 | AC67: 1535300
A68: 36 | B68: =OFFSET(InputPriceData!B$15,CalculationsAndCharts!$A68+$A$11,0,1,1) -> 2016-11-21 | C68: =OFFSET(InputPriceData!G$15,CalculationsAndCharts!$A68+$A$11,IF($C$7,8,0),1,1) -> 922400 | D68: =OFFSET(InputPriceData!C$15,CalculationsAndCharts!$A68+$A$11,IF($C$7,8,0),1,1) -> 55.5 | E68: =OFFSET(InputPriceData!D$15,CalculationsAndCharts!$A68+$A$11,IF($C$7,8,0),1,1) -> 56.02 | F68: =OFFSET(InputPriceData!E$15,CalculationsAndCharts!$A68+$A$11,IF($C$7,8,0),1,1) -> 55.24 | G68: =OFFSET(InputPriceData!F$15,CalculationsAndCharts!$A68+$A$11,IF($C$7,8,0),1,1) -> 55.81 | H68: 48.6248 | I68: 46.17425 | J68: FALSE | K68: FALSE | L68: TRUE | M68: 53.88 | N68: FALSE | O68: FALSE | P68: FALSE | Q68: 0 | R68: 0 | T68: 48.6248 | U68: 46.17425 | V68: 53.88 | AC68: 922400
A69: 37 | B69: =OFFSET(InputPriceData!B$15,CalculationsAndCharts!$A69+$A$11,0,1,1) -> 2016-11-18 | C69: =OFFSET(InputPriceData!G$15,CalculationsAndCharts!$A69+$A$11,IF($C$7,8,0),1,1) -> 732300 | D69: =OFFSET(InputPriceData!C$15,CalculationsAndCharts!$A69+$A$11,IF($C$7,8,0),1,1) -> 55.82 | E69: =OFFSET(InputPriceData!D$15,CalculationsAndCharts!$A69+$A$11,IF($C$7,8,0),1,1) -> 55.89 | F69: =OFFSET(InputPriceData!E$15,CalculationsAndCharts!$A69+$A$11,IF($C$7,8,0),1,1) -> 55.26 | G69: =OFFSET(InputPriceData!F$15,CalculationsAndCharts!$A69+$A$11,IF($C$7,8,0),1,1) -> 55.42 | H69: 48.4216 | I69: 46.1141 | J69: FALSE | K69: FALSE | L69: TRUE | M69: 53.88 | N69: FALSE | O69: FALSE | P69: FALSE | Q69: 0 | R69: 0 | T69: 48.4216 | U69: 46.1141 | V69: 53.88 | AD69: 732300
A70: 38 | B70: =OFFSET(InputPriceData!B$15,CalculationsAndCharts!$A70+$A$11,0,1,1) -> 2016-11-17 | C70: =OFFSET(InputPriceData!G$15,CalculationsAndCharts!$A70+$A$11,IF($C$7,8,0),1,1) -> 1167500 | D70: =OFFSET(InputPriceData!C$15,CalculationsAndCharts!$A70+$A$11,IF($C$7,8,0),1,1) -> 55.52 | E70: =OFFSET(InputPriceData!D$15,CalculationsAndCharts!$A70+$A$11,IF($C$7,8,0),1,1) -> 56.47 | F70: =OFFSET(InputPriceData!E$15,CalculationsAndCharts!$A70+$A$11,IF($C$7,8,0),1,1) -> 55.4 | G70: =OFFSET(InputPriceData!F$15,CalculationsAndCharts!$A70+$A$11,IF($C$7,8,0),1,1) -> 55.88 | H70: 48.2204 | I70: 46.05165 | J70: FALSE | K70: FALSE | L70: TRUE | M70: 53.79 | N70: FALSE | O70: FALSE | P70: FALSE | Q70: 0 | R70: 0 | T70: 48.2204 | U70: 46.05165 | V70: 53.79 | AC70: 1167500
A71: 39 | B71: =OFFSET(InputPriceData!B$15,CalculationsAndCharts!$A71+$A$11,0,1,1) -> 2016-11-16 | C71: =OFFSET(InputPriceData!G$15,CalculationsAndCharts!$A71+$A$11,IF($C$7,8,0),1,1) -> 1006100 | D71: =OFFSET(InputPriceData!C$15,CalculationsAndCharts!$A71+$A$11,IF($C$7,8,0),1,1) -> 55.8 | E71: =OFFSET(InputPriceData!D$15,CalculationsAndCharts!$A71+$A$11,IF($C$7,8,0),1,1) -> 55.92 | F71: =OFFSET(InputPriceData!E$15,CalculationsAndCharts!$A71+$A$11,IF($C$7,8,0),1,1) -> 55.51 | G71: =OFFSET(InputPriceData!F$15,CalculationsAndCharts!$A71+$A$11,IF($C$7,8,0),1,1) -> 55.54 | H71: 48.0226 | I71: 45.9919 | J71: FALSE | K71: FALSE | L71: TRUE | M71: 53.79 | N71: FALSE | O71: FALSE | P71: FALSE | Q71: 0 | R71: 0 | T71: 48.0226 | U71: 45.9919 | V71: 53.79 | AD71: 1006100
A72: 40 | B72: =OFFSET(InputPriceData!B$15,CalculationsAndCharts!$A72+$A$11,0,1,1) -> 2016-11-15 | C72: =OFFSET(InputPriceData!G$15,CalculationsAndCharts!$A72+$A$11,IF($C$7,8,0),1,1) -> 1644400 | D72: =OFFSET(InputPriceData!C$15,CalculationsAndCharts!$A72+$A$11,IF($C$7,8,0),1,1) -> 55.8 | E72: =OFFSET(InputPriceData!D$15,CalculationsAndCharts!$A72+$A$11,IF($C$7,8,0),1,1) -> 55.94 | F72: =OFFSET(InputPriceData!E$15,CalculationsAndCharts!$A72+$A$11,IF($C$7,8,0),1,1) -> 54.7 | G72: =OFFSET(InputPriceData!F$15,CalculationsAndCharts!$A72+$A$11,IF($C$7,8,0),1,1) -> 55.79 | H72: 47.8262 | I72: 45.92425 | J72: FALSE | K72: FALSE | L72: TRUE | M72: 53.63 | N72: FALSE | O72: FALSE | P72: FALSE | Q72: 0 | R72: 0 | T72: 47.8262 | U72: 45.92425 | V72: 53.63 | AD72: 1644400
A73: 41 | B73: =OFFSET(InputPriceData!B$15,CalculationsAndCharts!$A73+$A$11,0,1,1) -> 2016-11-14 | C73: =OFFSET(InputPriceData!G$15,CalculationsAndCharts!$A73+$A$11,IF($C$7,8,0),1,1) -> 1456200 | D73: =OFFSET(InputPriceData!C$15,CalculationsAndCharts!$A73+$A$11,IF($C$7,8,0),1,1) -> 54.96 | E73: =OFFSET(InputPriceData!D$15,CalculationsAndCharts!$A73+$A$11,IF($C$7,8,0),1,1) -> 55.79 | F73: =OFFSET(InputPriceData!E$15,CalculationsAndCharts!$A73+$A$11,IF($C$7,8,0),1,1) -> 54.96 | G73: =OFFSET(InputPriceData!F$15,CalculationsAndCharts!$A73+$A$11,IF($C$7,8,0),1,1) -> 55.63 | H73: 47.6298 | I73: 45.84745 | J73: FALSE | K73: FALSE | L73: TRUE | M73: 52.93 | N73: FALSE | O73: FALSE | P73: FALSE | Q73: 0 | R73: 0 | T73: 47.6298 | U73: 45.84745 | V73: 52.93 | AC73: 1456200
A74: 42 | B74: =OFFSET(InputPriceData!B$15,CalculationsAndCharts!$A74+$A$11,0,1,1) -> 2016-11-11 | C74: =OFFSET(InputPriceData!G$15,CalculationsAndCharts!$A74+$A$11,IF($C$7,8,0),1,1) -> 1466600 | D74: =OFFSET(InputPriceData!C$15,CalculationsAndCharts!$A74+$A$11,IF($C$7,8,0),1,1) -> 54.43 | E74: =OFFSET(InputPriceData!D$15,CalculationsAndCharts!$A74+$A$11,IF($C$7,8,0),1,1) -> 55.05 | F74: =OFFSET(InputPriceData!E$15,CalculationsAndCharts!$A74+$A$11,IF($C$7,8,0),1,1) -> 54.41 | G74: =OFFSET(InputPriceData!F$15,CalculationsAndCharts!$A74+$A$11,IF($C$7,8,0),1,1) -> 54.93 | H74: 47.4382 | I74: 45.7851 | J74: FALSE | K74: FALSE | L74: TRUE | M74: 52.49 | N74: FALSE | O74: FALSE | P74: FALSE | Q74: 0 | R74: 0 | T74: 47.4382 | U74: 45.7851 | V74: 52.49 | AC74: 1466600
A75: 43 | B75: =OFFSET(InputPriceData!B$15,CalculationsAndCharts!$A75+$A$11,0,1,1) -> 2016-11-10 | C75: =OFFSET(InputPriceData!G$15,CalculationsAndCharts!$A75+$A$11,IF($C$7,8,0),1,1) -> 2260300 | D75: =OFFSET(InputPriceData!C$15,CalculationsAndCharts!$A75+$A$11,IF($C$7,8,0),1,1) -> 54.8 | E75: =OFFSET(InputPriceData!D$15,CalculationsAndCharts!$A75+$A$11,IF($C$7,8,0),1,1) -> 55.23 | F75: =OFFSET(InputPriceData!E$15,CalculationsAndCharts!$A75+$A$11,IF($C$7,8,0),1,1) -> 53.95 | G75: =OFFSET(InputPriceData!F$15,CalculationsAndCharts!$A75+$A$11,IF($C$7,8,0),1,1) -> 54.41 | H75: 47.252 | I75: 45.7221 | J75: FALSE | K75: FALSE | L75: TRUE | M75: 52.49 | N75: FALSE | O75: FALSE | P75: FALSE | Q75: 0 | R75: 0 | T75: 47.252 | U75: 45.7221 | V75: 52.49 | AD75: 2260300
A76: 44 | B76: =OFFSET(InputPriceData!B$15,CalculationsAndCharts!$A76+$A$11,0,1,1) -> 2016-11-09 | C76: =OFFSET(InputPriceData!G$15,CalculationsAndCharts!$A76+$A$11,IF($C$7,8,0),1,1) -> 2670400 | D76: =OFFSET(InputPriceData!C$15,CalculationsAndCharts!$A76+$A$11,IF($C$7,8,0),1,1) -> 53.43 | E76: =OFFSET(InputPriceData!D$15,CalculationsAndCharts!$A76+$A$11,IF($C$7,8,0),1,1) -> 55.07 | F76: =OFFSET(InputPriceData!E$15,CalculationsAndCharts!$A76+$A$11,IF($C$7,8,0),1,1) -> 53.31 | G76: =OFFSET(InputPriceData!F$15,CalculationsAndCharts!$A76+$A$11,IF($C$7,8,0),1,1) -> 54.49 | H76: 47.0786 | I76: 45.66095 | J76: FALSE | K76: FALSE | L76: TRUE | M76: 51.9 | N76: FALSE | O76: FALSE | P76: FALSE | Q76: 0 | R76: 0 | T76: 47.0786 | U76: 45.66095 | V76: 51.9 | AC76: 2670400
A77: 45 | B77: =OFFSET(InputPriceData!B$15,CalculationsAndCharts!$A77+$A$11,0,1,1) -> 2016-11-08 | C77: =OFFSET(InputPriceData!G$15,CalculationsAndCharts!$A77+$A$11,IF($C$7,8,0),1,1) -> 1615700 | D77: =OFFSET(InputPriceData!C$15,CalculationsAndCharts!$A77+$A$11,IF($C$7,8,0),1,1) -> 53.39 | E77: =OFFSET(InputPriceData!D$15,CalculationsAndCharts!$A77+$A$11,IF($C$7,8,0),1,1) -> 53.89 | F77: =OFFSET(InputPriceData!E$15,CalculationsAndCharts!$A77+$A$11,IF($C$7,8,0),1,1) -> 52.87 | G77: =OFFSET(InputPriceData!F$15,CalculationsAndCharts!$A77+$A$11,IF($C$7,8,0),1,1) -> 53.52 | H77: 46.9006 | I77: 45.60015 | J77: FALSE | K77: FALSE | L77: TRUE | M77: 51.9 | N77: FALSE | O77: FALSE | P77: FALSE | Q77: 0 | R77: 0 | T77: 46.9006 | U77: 45.60015 | V77: 51.9 | AC77: 1615700
A78: 46 | B78: =OFFSET(InputPriceData!B$15,CalculationsAndCharts!$A78+$A$11,0,1,1) -> 2016-11-07 | C78: =OFFSET(InputPriceData!G$15,CalculationsAndCharts!$A78+$A$11,IF($C$7,8,0),1,1) -> 1580000 | D78: =OFFSET(InputPriceData!C$15,CalculationsAndCharts!$A78+$A$11,IF($C$7,8,0),1,1) -> 53.91 | E78: =OFFSET(InputPriceData!D$15,CalculationsAndCharts!$A78+$A$11,IF($C$7,8,0),1,1) -> 54.36 | F78: =OFFSET(InputPriceData!E$15,CalculationsAndCharts!$A78+$A$11,IF($C$7,8,0),1,1) -> 53.52 | G78: =OFFSET(InputPriceData!F$15,CalculationsAndCharts!$A78+$A$11,IF($C$7,8,0),1,1) -> 53.66 | H78: 46.739 | I78: 45.5621 | J78: FALSE | K78: FALSE | L78: TRUE | M78: 51.9 | N78: FALSE | O78: FALSE | P78: FALSE | Q78: 0 | R78: 0 | T78: 46.739 | U78: 45.5621 | V78: 51.9 | AD78: 1580000
A79: 47 | B79: =OFFSET(InputPriceData!B$15,CalculationsAndCharts!$A79+$A$11,0,1,1) -> 2016-11-04 | C79: =OFFSET(InputPriceData!G$15,CalculationsAndCharts!$A79+$A$11,IF($C$7,8,0),1,1) -> 1628900 | D79: =OFFSET(InputPriceData!C$15,CalculationsAndCharts!$A79+$A$11,IF($C$7,8,0),1,1) -> 53.48 | E79: =OFFSET(InputPriceData!D$15,CalculationsAndCharts!$A79+$A$11,IF($C$7,8,0),1,1) -> 53.83 | F79: =OFFSET(InputPriceData!E$15,CalculationsAndCharts!$A79+$A$11,IF($C$7,8,0),1,1) -> 53.2 | G79: =OFFSET(InputPriceData!F$15,CalculationsAndCharts!$A79+$A$11,IF($C$7,8,0),1,1) -> 53.31 | H79: 46.5686 | I79: 45.51515 | J79: FALSE | K79: FALSE | L79: TRUE | M79: 51.9 | N79: FALSE | O79: FALSE | P79: FALSE | Q79: 0 | R79: 0 | T79: 46.5686 | U79: 45.51515 | V79: 51.9 | AD79: 1628900
A80: 48 | B80: =OFFSET(InputPriceData!B$15,CalculationsAndCharts!$A80+$A$11,0,1,1) -> 2016-11-03 | C80: =OFFSET(InputPriceData!G$15,CalculationsAndCharts!$A80+$A$11,IF($C$7,8,0),1,1) -> 1757000 | D80: =OFFSET(InputPriceData!C$15,CalculationsAndCharts!$A80+$A$11,IF($C$7,8,0),1,1) -> 53.56 | E80: =OFFSET(InputPriceData!D$15,CalculationsAndCharts!$A80+$A$11,IF($C$7,8,0),1,1) -> 54.09 | F80: =OFFSET(InputPriceData!E$15,CalculationsAndCharts!$A80+$A$11,IF($C$7,8,0),1,1) -> 53.41 | G80: =OFFSET(InputPriceData!F$15,CalculationsAndCharts!$A80+$A$11,IF($C$7,8,0),1,1) -> 53.65 | H80: 46.4072 | I80: 45.47195 | J80: FALSE | K80: FALSE | L80: TRUE | M80: 51.9 | N80: FALSE | O80: FALSE | P80: FALSE | Q80: 0 | R80: 0 | T80: 46.4072 | U80: 45.47195 | V80: 51.9 | AC80: 1757000
A81: 49 | B81: =OFFSET(InputPriceData!B$15,CalculationsAndCharts!$A81+$A$11,0,1,1) -> 2016-11-02 | C81: =OFFSET(InputPriceData!G$15,CalculationsAndCharts!$A81+$A$11,IF($C$7,8,0),1,1) -> 2449200 | D81: =OFFSET(InputPriceData!C$15,CalculationsAndCharts!$A81+$A$11,IF($C$7,8,0),1,1) -> 54.27 | E81: =OFFSET(InputPriceData!D$15,CalculationsAndCharts!$A81+$A$11,IF($C$7,8,0),1,1) -> 54.78 | F81: =OFFSET(InputPriceData!E$15,CalculationsAndCharts!$A81+$A$11,IF($C$7,8,0),1,1) -> 53.34 | G81: =OFFSET(InputPriceData!F$15,CalculationsAndCharts!$A81+$A$11,IF($C$7,8,0),1,1) -> 53.41 | H81: 46.2416 | I81: 45.4185 | J81: FALSE | K81: FALSE | L81: TRUE | M81: 51.9 | N81: FALSE | O81: FALSE | P81: FALSE | Q81: 0 | R81: 0 | T81: 46.2416 | U81: 45.4185 | V81: 51.9 | AD81: 2449200
A82: 50 | B82: =OFFSET(InputPriceData!B$15,CalculationsAndCharts!$A82+$A$11,0,1,1) -> 2016-11-01 | C82: =OFFSET(InputPriceData!G$15,CalculationsAndCharts!$A82+$A$11,IF($C$7,8,0),1,1) -> 5662600 | D82: =OFFSET(InputPriceData!C$15,CalculationsAndCharts!$A82+$A$11,IF($C$7,8,0),1,1) -> 53.16 | E82: =OFFSET(InputPriceData!D$15,CalculationsAndCharts!$A82+$A$11,IF($C$7,8,0),1,1) -> 54.75 | F82: =OFFSET(InputPriceData!E$15,CalculationsAndCharts!$A82+$A$11,IF($C$7,8,0),1,1) -> 53.16 | G82: =OFFSET(InputPriceData!F$15,CalculationsAndCharts!$A82+$A$11,IF($C$7,8,0),1,1) -> 53.9 | H82: 46.0848 | I82: 45.36685 | J82: FALSE | K82: FALSE | L82: TRUE | M82: 48.38 | N82: FALSE | O82: FALSE | P82: FALSE | Q82: 0 | R82: 0 | T82: 46.0848 | U82: 45.36685 | V82: 48.38 | AC82: 5662600
A83: 51 | B83: =OFFSET(InputPriceData!B$15,CalculationsAndCharts!$A83+$A$11,0,1,1) -> 2016-10-31 | C83: =OFFSET(InputPriceData!G$15,CalculationsAndCharts!$A83+$A$11,IF($C$7,8,0),1,1) -> 1606200 | D83: =OFFSET(InputPriceData!C$15,CalculationsAndCharts!$A83+$A$11,IF($C$7,8,0),1,1) -> 50.37 | E83: =OFFSET(InputPriceData!D$15,CalculationsAndCharts!$A83+$A$11,IF($C$7,8,0),1,1) -> 50.85 | F83: =OFFSET(InputPriceData!E$15,CalculationsAndCharts!$A83+$A$11,IF($C$7,8,0),1,1) -> 50.01 | G83: =OFFSET(InputPriceData!F$15,CalculationsAndCharts!$A83+$A$11,IF($C$7,8,0),1,1) -> 50.27 | H83: 45.9208 | I83: 45.31685 | J83: FALSE | K83: FALSE | L83: TRUE | M83: 48.38 | N83: FALSE | O83: FALSE | P83: FALSE | Q83: 0 | R83: 0 | T83: 45.9208 | U83: 45.31685 | V83: 48.38 | AD83: 1606200
A84: 52 | B84: =OFFSET(InputPriceData!B$15,CalculationsAndCharts!$A84+$A$11,0,1,1) -> 2016-10-28 | C84: =OFFSET(InputPriceData!G$15,CalculationsAndCharts!$A84+$A$11,IF($C$7,8,0),1,1) -> 1301700 | D84: =OFFSET(InputPriceData!C$15,CalculationsAndCharts!$A84+$A$11,IF($C$7,8,0),1,1) -> 50.38 | E84: =OFFSET(InputPriceData!D$15,CalculationsAndCharts!$A84+$A$11,IF($C$7,8,0),1,1) -> 50.63 | F84: =OFFSET(InputPriceData!E$15,CalculationsAndCharts!$A84+$A$11,IF($C$7,8,0),1,1) -> 49.89 | G84: =OFFSET(InputPriceData!F$15,CalculationsAndCharts!$A84+$A$11,IF($C$7,8,0),1,1) -> 50.1 | H84: 45.8242 | I84: 45.28855 | J84: FALSE | K84: FALSE | L84: TRUE | M84: 48.38 | N84: FALSE | O84: FALSE | P84: FALSE | Q84: 0 | R84: 0 | T84: 45.8242 | U84: 45.28855 | V84: 48.38 | AD84: 1301700
A85: 53 | B85: =OFFSET(InputPriceData!B$15,CalculationsAndCharts!$A85+$A$11,0,1,1) -> 2016-10-27 | C85: =OFFSET(InputPriceData!G$15,CalculationsAndCharts!$A85+$A$11,IF($C$7,8,0),1,1) -> 2279000 | D85: =OFFSET(InputPriceData!C$15,CalculationsAndCharts!$A85+$A$11,IF($C$7,8,0),1,1) -> 50.38 | E85: =OFFSET(InputPriceData!D$15,CalculationsAndCharts!$A85+$A$11,IF($C$7,8,0),1,1) -> 50.69 | F85: =OFFSET(InputPriceData!E$15,CalculationsAndCharts!$A85+$A$11,IF($C$7,8,0),1,1) -> 49.86 | G85: =OFFSET(InputPriceData!F$15,CalculationsAndCharts!$A85+$A$11,IF($C$7,8,0),1,1) -> 50.38 | H85: 45.726 | I85: 45.26485 | J85: FALSE | K85: FALSE | L85: TRUE | M85: 48.33 | N85: FALSE | O85: FALSE | P85: FALSE | Q85: 0 | R85: 0 | T85: 45.726 | U85: 45.26485 | V85: 48.33 | AC85: 2279000
A86: 54 | B86: =OFFSET(InputPriceData!B$15,CalculationsAndCharts!$A86+$A$11,0,1,1) -> 2016-10-26 | C86: =OFFSET(InputPriceData!G$15,CalculationsAndCharts!$A86+$A$11,IF($C$7,8,0),1,1) -> 2223100 | D86: =OFFSET(InputPriceData!C$15,CalculationsAndCharts!$A86+$A$11,IF($C$7,8,0),1,1) -> 48.4 | E86: =OFFSET(InputPriceData!D$15,CalculationsAndCharts!$A86+$A$11,IF($C$7,8,0),1,1) -> 50.37 | F86: =OFFSET(InputPriceData!E$15,CalculationsAndCharts!$A86+$A$11,IF($C$7,8,0),1,1) -> 48.29 | G86: =OFFSET(InputPriceData!F$15,CalculationsAndCharts!$A86+$A$11,IF($C$7,8,0),1,1) -> 50.33 | H86: 45.6142 | I86: 45.23905 | J86: FALSE | K86: FALSE | L86: TRUE | M86: 46.42 | N86: FALSE | O86: FALSE | P86: FALSE | Q86: 0 | R86: 0 | T86: 45.6142 | U86: 45.23905 | V86: 46.42 | AC86: 2223100
A87: 55 | B87: =OFFSET(InputPriceData!B$15,CalculationsAndCharts!$A87+$A$11,0,1,1) -> 2016-10-25 | C87: =OFFSET(InputPriceData!G$15,CalculationsAndCharts!$A87+$A$11,IF($C$7,8,0),1,1) -> 987800 | D87: =OFFSET(InputPriceData!C$15,CalculationsAndCharts!$A87+$A$11,IF($C$7,8,0),1,1) -> 48.44 | E87: =OFFSET(InputPriceData!D$15,CalculationsAndCharts!$A87+$A$11,IF($C$7,8,0),1,1) -> 48.87 | F87: =OFFSET(InputPriceData!E$15,CalculationsAndCharts!$A87+$A$11,IF($C$7,8,0),1,1) -> 48.37 | G87: =OFFSET(InputPriceData!F$15,CalculationsAndCharts!$A87+$A$11,IF($C$7,8,0),1,1) -> 48.38 | H87: 45.5016 | I87: 45.22275 | J87: FALSE | K87: FALSE | L87: TRUE | M87: 46.42 | N87: FALSE | O87: FALSE | P87: FALSE | Q87: 0 | R87: 0 | T87: 45.5016 | U87: 45.22275 | V87: 46.42 | AD87: 987800
A88: 56 | B88: =OFFSET(InputPriceData!B$15,CalculationsAndCharts!$A88+$A$11,0,1,1) -> 2016-10-24 | C88: =OFFSET(InputPriceData!G$15,CalculationsAndCharts!$A88+$A$11,IF($C$7,8,0),1,1) -> 467000 | D88: =OFFSET(InputPriceData!C$15,CalculationsAndCharts!$A88+$A$11,IF($C$7,8,0),1,1) -> 48.64 | E88: =OFFSET(InputPriceData!D$15,CalculationsAndCharts!$A88+$A$11,IF($C$7,8,0),1,1) -> 48.82 | F88: =OFFSET(InputPriceData!E$15,CalculationsAndCharts!$A88+$A$11,IF($C$7,8,0),1,1) -> 48.28 | G88: =OFFSET(InputPriceData!F$15,CalculationsAndCharts!$A88+$A$11,IF($C$7,8,0),1,1) -> 48.42 | H88: 45.4356 | I88: 45.2155 | J88: FALSE | K88: FALSE | L88: TRUE | M88: 46.09 | N88: FALSE | O88: FALSE | P88: FALSE | Q88: 0 | R88: 0 | T88: 45.4356 | U88: 45.2155 | V88: 46.09 | AD88: 467000
A89: 57 | B89: =OFFSET(InputPriceData!B$15,CalculationsAndCharts!$A89+$A$11,0,1,1) -> 2016-10-21 | C89: =OFFSET(InputPriceData!G$15,CalculationsAndCharts!$A89+$A$11,IF($C$7,8,0),1,1) -> 750600 | D89: =OFFSET(InputPriceData!C$15,CalculationsAndCharts!$A89+$A$11,IF($C$7,8,0),1,1) -> 47.86 | E89: =OFFSET(InputPriceData!D$15,CalculationsAndCharts!$A89+$A$11,IF($C$7,8,0),1,1) -> 48.23 | F89: =OFFSET(InputPriceData!E$15,CalculationsAndCharts!$A89+$A$11,IF($C$7,8,0),1,1) -> 47.65 | G89: =OFFSET(InputPriceData!F$15,CalculationsAndCharts!$A89+$A$11,IF($C$7,8,0),1,1) -> 48.09 | H89: 45.3522 | I89: 45.20815 | J89: FALSE | K89: FALSE | L89: TRUE | N89: FALSE | O89: TRUE | P89: FALSE | Q89: =IF(O89,D89,0) -> 47.86 | R89: 0 | T89: 45.3522 | U89: 45.20815 | W89: 49.23 | AC89: 750600
A90: 58 | B90: =OFFSET(InputPriceData!B$15,CalculationsAndCharts!$A90+$A$11,0,1,1) -> 2016-10-20 | C90: =OFFSET(InputPriceData!G$15,CalculationsAndCharts!$A90+$A$11,IF($C$7,8,0),1,1) -> 1020600 | D90: =OFFSET(InputPriceData!C$15,CalculationsAndCharts!$A90+$A$11,IF($C$7,8,0),1,1) -> 48.49 | E90: =OFFSET(InputPriceData!D$15,CalculationsAndCharts!$A90+$A$11,IF($C$7,8,0),1,1) -> 49.02 | F90: =OFFSET(InputPriceData!E$15,CalculationsAndCharts!$A90+$A$11,IF($C$7,8,0),1,1) -> 47.83 | G90: =OFFSET(InputPriceData!F$15,CalculationsAndCharts!$A90+$A$11,IF($C$7,8,0),1,1) -> 48.16 | H90: 45.2744 | I90: 45.21065 | J90: TRUE | K90: FALSE | L90: FALSE | N90: FALSE | O90: FALSE | P90: FALSE | Q90: =IF(O90,D90,0) -> 0 | R90: 0 | T90: 45.2744 | U90: 45.21065 | AD90: 1020600
A91: 59 | B91: =OFFSET(InputPriceData!B$15,CalculationsAndCharts!$A91+$A$11,0,1,1) -> 2016-10-19 | C91: =OFFSET(InputPriceData!G$15,CalculationsAndCharts!$A91+$A$11,IF($C$7,8,0),1,1) -> 1396900 | D91: =OFFSET(InputPriceData!C$15,CalculationsAndCharts!$A91+$A$11,IF($C$7,8,0),1,1) -> 48.05 | E91: =OFFSET(InputPriceData!D$15,CalculationsAndCharts!$A91+$A$11,IF($C$7,8,0),1,1) -> 48.63 | F91: =OFFSET(InputPriceData!E$15,CalculationsAndCharts!$A91+$A$11,IF($C$7,8,0),1,1) -> 47.64 | G91: =OFFSET(InputPriceData!F$15,CalculationsAndCharts!$A91+$A$11,IF($C$7,8,0),1,1) -> 48.49 | H91: 45.1866 | I91: 45.21885 | J91: FALSE | K91: FALSE | L91: FALSE | N91: FALSE | O91: FALSE | P91: FALSE | Q91: 0 | R91: 0 | T91: 45.1866 | U91: 45.21885 | AC91: 1396900
A92: 60 | B92: =OFFSET(InputPriceData!B$15,CalculationsAndCharts!$A92+$A$11,0,1,1) -> 2016-10-18 | C92: =OFFSET(InputPriceData!G$15,CalculationsAndCharts!$A92+$A$11,IF($C$7,8,0),1,1) -> 1560600 | D92: =OFFSET(InputPriceData!C$15,CalculationsAndCharts!$A92+$A$11,IF($C$7,8,0),1,1) -> 46.43 | E92: =OFFSET(InputPriceData!D$15,CalculationsAndCharts!$A92+$A$11,IF($C$7,8,0),1,1) -> 47.89 | F92: =OFFSET(InputPriceData!E$15,CalculationsAndCharts!$A92+$A$11,IF($C$7,8,0),1,1) -> 46.43 | G92: =OFFSET(InputPriceData!F$15,CalculationsAndCharts!$A92+$A$11,IF($C$7,8,0),1,1) -> 47.84 | H92: 45.093 | I92: 45.22945 | J92: FALSE | K92: FALSE | L92: FALSE | N92: FALSE | O92: FALSE | P92: FALSE | Q92: 0 | R92: 0 | T92: 45.093 | U92: 45.22945 | AC92: 1560600
A93: 61 | B93: =OFFSET(InputPriceData!B$15,CalculationsAndCharts!$A93+$A$11,0,1,1) -> 2016-10-17 | C93: =OFFSET(InputPriceData!G$15,CalculationsAndCharts!$A93+$A$11,IF($C$7,8,0),1,1) -> 826700 | D93: =OFFSET(InputPriceData!C$15,CalculationsAndCharts!$A93+$A$11,IF($C$7,8,0),1,1) -> 45.57 | E93: =OFFSET(InputPriceData!D$15,CalculationsAndCharts!$A93+$A$11,IF($C$7,8,0),1,1) -> 46.17 | F93: =OFFSET(InputPriceData!E$15,CalculationsAndCharts!$A93+$A$11,IF($C$7,8,0),1,1) -> 45.57 | G93: =OFFSET(InputPriceData!F$15,CalculationsAndCharts!$A93+$A$11,IF($C$7,8,0),1,1) -> 46.06 | H93: 45.0118 | I93: 45.23495 | J93: FALSE | K93: FALSE | L93: FALSE | N93: FALSE | O93: FALSE | P93: FALSE | Q93: 0 | R93: 0 | T93: 45.0118 | U93: 45.23495 | AC93: 826700
A94: 62 | B94: =OFFSET(InputPriceData!B$15,CalculationsAndCharts!$A94+$A$11,0,1,1) -> 2016-10-14 | C94: =OFFSET(InputPriceData!G$15,CalculationsAndCharts!$A94+$A$11,IF($C$7,8,0),1,1) -> 1088700 | D94: =OFFSET(InputPriceData!C$15,CalculationsAndCharts!$A94+$A$11,IF($C$7,8,0),1,1) -> 46.08 | E94: =OFFSET(InputPriceData!D$15,CalculationsAndCharts!$A94+$A$11,IF($C$7,8,0),1,1) -> 46.24 | F94: =OFFSET(InputPriceData!E$15,CalculationsAndCharts!$A94+$A$11,IF($C$7,8,0),1,1) -> 45.67 | G94: =OFFSET(InputPriceData!F$15,CalculationsAndCharts!$A94+$A$11,IF($C$7,8,0),1,1) -> 45.67 | H94: 44.9598 | I94: 45.25455 | J94: FALSE | K94: FALSE | L94: FALSE | N94: FALSE | O94: FALSE | P94: FALSE | Q94: 0 | R94: 0 | T94: 44.9598 | U94: 45.25455 | AD94: 1088700
A95: 63 | B95: =OFFSET(InputPriceData!B$15,CalculationsAndCharts!$A95+$A$11,0,1,1) -> 2016-10-13 | C95: =OFFSET(InputPriceData!G$15,CalculationsAndCharts!$A95+$A$11,IF($C$7,8,0),1,1) -> 732000 | D95: =OFFSET(InputPriceData!C$15,CalculationsAndCharts!$A95+$A$11,IF($C$7,8,0),1,1) -> 45.41 | E95: =OFFSET(InputPriceData!D$15,CalculationsAndCharts!$A95+$A$11,IF($C$7,8,0),1,1) -> 45.94 | F95: =OFFSET(InputPriceData!E$15,CalculationsAndCharts!$A95+$A$11,IF($C$7,8,0),1,1) -> 44.96 | G95: =OFFSET(InputPriceData!F$15,CalculationsAndCharts!$A95+$A$11,IF($C$7,8,0),1,1) -> 45.79 | H95: 44.9288 | I95: 45.27065 | J95: FALSE | K95: FALSE | L95: FALSE | N95: FALSE | O95: FALSE | P95: FALSE | Q95: 0 | R95: 0 | T95: 44.9288 | U95: 45.27065 | AC95: 732000
A96: 64 | B96: =OFFSET(InputPriceData!B$15,CalculationsAndCharts!$A96+$A$11,0,1,1) -> 2016-10-12 | C96: =OFFSET(InputPriceData!G$15,CalculationsAndCharts!$A96+$A$11,IF($C$7,8,0),1,1) -> 777100 | D96: =OFFSET(InputPriceData!C$15,CalculationsAndCharts!$A96+$A$11,IF($C$7,8,0),1,1) -> 46.08 | E96: =OFFSET(InputPriceData!D$15,CalculationsAndCharts!$A96+$A$11,IF($C$7,8,0),1,1) -> 46.27 | F96: =OFFSET(InputPriceData!E$15,CalculationsAndCharts!$A96+$A$11,IF($C$7,8,0),1,1) -> 45.74 | G96: =OFFSET(InputPriceData!F$15,CalculationsAndCharts!$A96+$A$11,IF($C$7,8,0),1,1) -> 45.77 | H96: 44.9316 | I96: 45.28575 | J96: FALSE | K96: FALSE | L96: FALSE | N96: FALSE | O96: FALSE | P96: FALSE | Q96: 0 | R96: 0 | T96: 44.9316 | U96: 45.28575 | AD96: 777100
A97: 65 | B97: =OFFSET(InputPriceData!B$15,CalculationsAndCharts!$A97+$A$11,0,1,1) -> 2016-10-11 | C97: =OFFSET(InputPriceData!G$15,CalculationsAndCharts!$A97+$A$11,IF($C$7,8,0),1,1) -> 1122400 | D97: =OFFSET(InputPriceData!C$15,CalculationsAndCharts!$A97+$A$11,IF($C$7,8,0),1,1) -> 46.43 | E97: =OFFSET(InputPriceData!D$15,CalculationsAndCharts!$A97+$A$11,IF($C$7,8,0),1,1) -> 46.65 | F97: =OFFSET(InputPriceData!E$15,CalculationsAndCharts!$A97+$A$11,IF($C$7,8,0),1,1) -> 45.62 | G97: =OFFSET(InputPriceData!F$15,CalculationsAndCharts!$A97+$A$11,IF($C$7,8,0),1,1) -> 46.13 | H97: =IF($A97>($A$8-$A$17+1),0,AVERAGE(OFFSET($G97,0,0,$A$17,1))) -> 44.874 | I97: =IF($A97>$A$8,0,IF($A97=$A$8,$G97,AVERAGE(OFFSET($G97,0,0,$A$18,1)))) -> 45.2978 | J97: =AND(A97<$A$8-1,H97>I97,H98<I98) -> FALSE | K97: =AND(A97<$A$8-1,H97<I97,H98>I98) -> FALSE | L97: FALSE | M97: =IF($A97>$A$8-2,NA(),IF(AND(L98,NOT(L99)),(G98-$A$19),IF(AND(L98,NOT(N98)),IF((G98-$A$19)>M98,(G98-$A$19),M98),NA()))) ->  | N97: =IFERROR(AND(L97,OR(K97,F97<M97)),FALSE) -> FALSE | O97: =AND(A97<$A$8-1,J98,NOT(L98)) -> FALSE | P97: =IFERROR(AND(A97<$A$8-1,L98,OR(K98,N98)),FALSE) -> FALSE | Q97: 0 | R97: 0 | T97: =IF($R$4,H97,NA()) -> 44.874 | U97: =IF($R$5,I97,NA()) -> 45.2978 | AC97: =IF(G97>=D97,C97,NA()) ->  | AD97: =IF(G97<D97,C97,NA()) -> 1122400
A98: 66 | B98: =OFFSET(InputPriceData!B$15,CalculationsAndCharts!$A98+$A$11,0,1,1) -> 2016-10-10 | C98: =OFFSET(InputPriceData!G$15,CalculationsAndCharts!$A98+$A$11,IF($C$7,8,0),1,1) -> 534600 | D98: =OFFSET(InputPriceData!C$15,CalculationsAndCharts!$A98+$A$11,IF($C$7,8,0),1,1) -> 46.37 | E98: =OFFSET(InputPriceData!D$15,CalculationsAndCharts!$A98+$A$11,IF($C$7,8,0),1,1) -> 46.81 | F98: =OFFSET(InputPriceData!E$15,CalculationsAndCharts!$A98+$A$11,IF($C$7,8,0),1,1) -> 46.29 | G98: =OFFSET(InputPriceData!F$15,CalculationsAndCharts!$A98+$A$11,IF($C$7,8,0),1,1) -> 46.46 | H98: 44.819 | I98: 45.30865 | J98: FALSE | K98: FALSE | L98: FALSE | N98: FALSE | O98: FALSE | P98: FALSE | Q98: 0 | R98: 0 | T98: 44.819 | U98: 45.30865 | V98: =IF($R$6,M98,NA()) ->  | W98: =IF(AND($R$7,O98),$E98+1,NA()) ->  | X98: =IF(AND($R$7,P98),$E98+1,NA()) ->  | AC98: 534600
A99: 67 | B99: =OFFSET(InputPriceData!B$15,CalculationsAndCharts!$A99+$A$11,0,1,1) -> 2016-10-07 | C99: =OFFSET(InputPriceData!G$15,CalculationsAndCharts!$A99+$A$11,IF($C$7,8,0),1,1) -> 1063000 | D99: =OFFSET(InputPriceData!C$15,CalculationsAndCharts!$A99+$A$11,IF($C$7,8,0),1,1) -> 46.49 | E99: =OFFSET(InputPriceData!D$15,CalculationsAndCharts!$A99+$A$11,IF($C$7,8,0),1,1) -> 46.68 | F99: =OFFSET(InputPriceData!E$15,CalculationsAndCharts!$A99+$A$11,IF($C$7,8,0),1,1) -> 45.69 | G99: =OFFSET(InputPriceData!F$15,CalculationsAndCharts!$A99+$A$11,IF($C$7,8,0),1,1) -> 46.29 | H99: 44.756 | I99: 45.3154 | J99: FALSE | K99: FALSE | L99: FALSE | N99: FALSE | O99: FALSE | P99: FALSE | Q99: 0 | R99: 0 | T99: 44.756 | U99: 45.3154 | AD99: 1063000
A100: 68 | B100: =OFFSET(InputPriceData!B$15,CalculationsAndCharts!$A100+$A$11,0,1,1) -> 2016-10-06 | C100: =OFFSET(InputPriceData!G$15,CalculationsAndCharts!$A100+$A$11,IF($C$7,8,0),1,1) -> 1136800 | D100: =OFFSET(InputPriceData!C$15,CalculationsAndCharts!$A100+$A$11,IF($C$7,8,0),1,1) -> 47.11 | E100: =OFFSET(InputPriceData!D$15,CalculationsAndCharts!$A100+$A$11,IF($C$7,8,0),1,1) -> 47.42 | F100: =OFFSET(InputPriceData!E$15,CalculationsAndCharts!$A100+$A$11,IF($C$7,8,0),1,1) -> 46.63 | G100: =OFFSET(InputPriceData!F$15,CalculationsAndCharts!$A100+$A$11,IF($C$7,8,0),1,1) -> 47.03 | H100: 44.6922 | I100: 45.32365 | J100: FALSE | K100: FALSE | L100: FALSE | N100: FALSE | O100: FALSE | P100: FALSE | Q100: 0 | R100: 0 | T100: 44.6922 | U100: 45.32365 | AD100: 1136800
A101: 69 | B101: =OFFSET(InputPriceData!B$15,CalculationsAndCharts!$A101+$A$11,0,1,1) -> 2016-10-05 | C101: =OFFSET(InputPriceData!G$15,CalculationsAndCharts!$A101+$A$11,IF($C$7,8,0),1,1) -> 1552900 | D101: =OFFSET(InputPriceData!C$15,CalculationsAndCharts!$A101+$A$11,IF($C$7,8,0),1,1) -> 45.53 | E101: =OFFSET(InputPriceData!D$15,CalculationsAndCharts!$A101+$A$11,IF($C$7,8,0),1,1) -> 47.17 | F101: =OFFSET(InputPriceData!E$15,CalculationsAndCharts!$A101+$A$11,IF($C$7,8,0),1,1) -> 45.53 | G101: =OFFSET(InputPriceData!F$15,CalculationsAndCharts!$A101+$A$11,IF($C$7,8,0),1,1) -> 47.13 | H101: 44.6216 | I101: 45.33 | J101: FALSE | K101: FALSE | L101: FALSE | N101: FALSE | O101: FALSE | P101: FALSE | Q101: 0 | R101: 0 | T101: 44.6216 | U101: 45.33 | AC101: 1552900
A102: 70 | B102: =OFFSET(InputPriceData!B$15,CalculationsAndCharts!$A102+$A$11,0,1,1) -> 2016-10-04 | C102: =OFFSET(InputPriceData!G$15,CalculationsAndCharts!$A102+$A$11,IF($C$7,8,0),1,1) -> 856400 | D102: =OFFSET(InputPriceData!C$15,CalculationsAndCharts!$A102+$A$11,IF($C$7,8,0),1,1) -> 45.66 | E102: =OFFSET(InputPriceData!D$15,CalculationsAndCharts!$A102+$A$11,IF($C$7,8,0),1,1) -> 45.98 | F102: =OFFSET(InputPriceData!E$15,CalculationsAndCharts!$A102+$A$11,IF($C$7,8,0),1,1) -> 45.3 | G102: =OFFSET(InputPriceData!F$15,CalculationsAndCharts!$A102+$A$11,IF($C$7,8,0),1,1) -> 45.71 | H102: 44.5426 | I102: 45.33235 | J102: FALSE | K102: FALSE | L102: FALSE | N102: FALSE | O102: FALSE | P102: FALSE | Q102: 0 | R102: 0 | T102: 44.5426 | U102: 45.33235 | AC102: 856400
A103: 71 | B103: =OFFSET(InputPriceData!B$15,CalculationsAndCharts!$A103+$A$11,0,1,1) -> 2016-10-03 | C103: =OFFSET(InputPriceData!G$15,CalculationsAndCharts!$A103+$A$11,IF($C$7,8,0),1,1) -> 1780900 | D103: =OFFSET(InputPriceData!C$15,CalculationsAndCharts!$A103+$A$11,IF($C$7,8,0),1,1) -> 44.46 | E103: =OFFSET(InputPriceData!D$15,CalculationsAndCharts!$A103+$A$11,IF($C$7,8,0),1,1) -> 45.82 | F103: =OFFSET(InputPriceData!E$15,CalculationsAndCharts!$A103+$A$11,IF($C$7,8,0),1,1) -> 44.27 | G103: =OFFSET(InputPriceData!F$15,CalculationsAndCharts!$A103+$A$11,IF($C$7,8,0),1,1) -> 45.64 | H103: 44.482 | I103: 45.3456 | J103: FALSE | K103: FALSE | L103: FALSE | N103: FALSE | O103: FALSE | P103: FALSE | Q103: 0 | R103: 0 | T103: 44.482 | U103: 45.3456 | AC103: 1780900
A104: 72 | B104: =OFFSET(InputPriceData!B$15,CalculationsAndCharts!$A104+$A$11,0,1,1) -> 2016-09-30 | C104: =OFFSET(InputPriceData!G$15,CalculationsAndCharts!$A104+$A$11,IF($C$7,8,0),1,1) -> 1447300 | D104: =OFFSET(InputPriceData!C$15,CalculationsAndCharts!$A104+$A$11,IF($C$7,8,0),1,1) -> 44.13 | E104: =OFFSET(InputPriceData!D$15,CalculationsAndCharts!$A104+$A$11,IF($C$7,8,0),1,1) -> 44.67 | F104: =OFFSET(InputPriceData!E$15,CalculationsAndCharts!$A104+$A$11,IF($C$7,8,0),1,1) -> 43.87 | G104: =OFFSET(InputPriceData!F$15,CalculationsAndCharts!$A104+$A$11,IF($C$7,8,0),1,1) -> 44.46 | H104: 44.44 | I104: 45.3654 | J104: FALSE | K104: FALSE | L104: FALSE | N104: FALSE | O104: FALSE | P104: FALSE | Q104: 0 | R104: 0 | T104: 44.44 | U104: 45.3654 | AC104: 1447300
A105: 73 | B105: =OFFSET(InputPriceData!B$15,CalculationsAndCharts!$A105+$A$11,0,1,1) -> 2016-09-29 | C105: =OFFSET(InputPriceData!G$15,CalculationsAndCharts!$A105+$A$11,IF($C$7,8,0),1,1) -> 1215200 | D105: =OFFSET(InputPriceData!C$15,CalculationsAndCharts!$A105+$A$11,IF($C$7,8,0),1,1) -> 44.21 | E105: =OFFSET(InputPriceData!D$15,CalculationsAndCharts!$A105+$A$11,IF($C$7,8,0),1,1) -> 44.5 | F105: =OFFSET(InputPriceData!E$15,CalculationsAndCharts!$A105+$A$11,IF($C$7,8,0),1,1) -> 43.49 | G105: =OFFSET(InputPriceData!F$15,CalculationsAndCharts!$A105+$A$11,IF($C$7,8,0),1,1) -> 44 | H105: 44.4288 | I105: 45.38435 | J105: FALSE | K105: FALSE | L105: FALSE | N105: FALSE | O105: FALSE | P105: FALSE | Q105: 0 | R105: 0 | T105: 44.4288 | U105: 45.38435 | AD105: 1215200
A106: 74 | B106: =OFFSET(InputPriceData!B$15,CalculationsAndCharts!$A106+$A$11,0,1,1) -> 2016-09-28 | C106: =OFFSET(InputPriceData!G$15,CalculationsAndCharts!$A106+$A$11,IF($C$7,8,0),1,1) -> 622900 | D106: =OFFSET(InputPriceData!C$15,CalculationsAndCharts!$A106+$A$11,IF($C$7,8,0),1,1) -> 44.09 | E106: =OFFSET(InputPriceData!D$15,CalculationsAndCharts!$A106+$A$11,IF($C$7,8,0),1,1) -> 44.56 | F106: =OFFSET(InputPriceData!E$15,CalculationsAndCharts!$A106+$A$11,IF($C$7,8,0),1,1) -> 43.89 | G106: =OFFSET(InputPriceData!F$15,CalculationsAndCharts!$A106+$A$11,IF($C$7,8,0),1,1) -> 44.42 | H106: 44.4304 | I106: 45.404 | J106: FALSE | K106: FALSE | L106: FALSE | N106: FALSE | O106: FALSE | P106: FALSE | Q106: 0 | R106: 0 | T106: 44.4304 | U106: 45.404 | AC106: 622900
A107: 75 | B107: =OFFSET(InputPriceData!B$15,CalculationsAndCharts!$A107+$A$11,0,1,1) -> 2016-09-27 | C107: =OFFSET(InputPriceData!G$15,CalculationsAndCharts!$A107+$A$11,IF($C$7,8,0),1,1) -> 592500 | D107: =OFFSET(InputPriceData!C$15,CalculationsAndCharts!$A107+$A$11,IF($C$7,8,0),1,1) -> 43.88 | E107: =OFFSET(InputPriceData!D$15,CalculationsAndCharts!$A107+$A$11,IF($C$7,8,0),1,1) -> 44.33 | F107: =OFFSET(InputPriceData!E$15,CalculationsAndCharts!$A107+$A$11,IF($C$7,8,0),1,1) -> 43.74 | G107: =OFFSET(InputPriceData!F$15,CalculationsAndCharts!$A107+$A$11,IF($C$7,8,0),1,1) -> 44.06 | H107: 44.415 | I107: 45.42365 | J107: FALSE | K107: FALSE | L107: FALSE | N107: FALSE | O107: FALSE | P107: FALSE | Q107: 0 | R107: 0 | T107: 44.415 | U107: 45.42365 | AC107: 592500
A108: 76 | B108: =OFFSET(InputPriceData!B$15,CalculationsAndCharts!$A108+$A$11,0,1,1) -> 2016-09-26 | C108: =OFFSET(InputPriceData!G$15,CalculationsAndCharts!$A108+$A$11,IF($C$7,8,0),1,1) -> 581600 | D108: =OFFSET(InputPriceData!C$15,CalculationsAndCharts!$A108+$A$11,IF($C$7,8,0),1,1) -> 43.84 | E108: =OFFSET(InputPriceData!D$15,CalculationsAndCharts!$A108+$A$11,IF($C$7,8,0),1,1) -> 44.04 | F108: =OFFSET(InputPriceData!E$15,CalculationsAndCharts!$A108+$A$11,IF($C$7,8,0),1,1) -> 43.55 | G108: =OFFSET(InputPriceData!F$15,CalculationsAndCharts!$A108+$A$11,IF($C$7,8,0),1,1) -> 43.81 | H108: 44.3988 | I108: 45.45145 | J108: FALSE | K108: FALSE | L108: FALSE | N108: FALSE | O108: FALSE | P108: FALSE | Q108: 0 | R108: 0 | T108: 44.3988 | U108: 45.45145 | AD108: 581600
A109: 77 | B109: =OFFSET(InputPriceData!B$15,CalculationsAndCharts!$A109+$A$11,0,1,1) -> 2016-09-23 | C109: =OFFSET(InputPriceData!G$15,CalculationsAndCharts!$A109+$A$11,IF($C$7,8,0),1,1) -> 1060300 | D109: =OFFSET(InputPriceData!C$15,CalculationsAndCharts!$A109+$A$11,IF($C$7,8,0),1,1) -> 43.33 | E109: =OFFSET(InputPriceData!D$15,CalculationsAndCharts!$A109+$A$11,IF($C$7,8,0),1,1) -> 44.17 | F109: =OFFSET(InputPriceData!E$15,CalculationsAndCharts!$A109+$A$11,IF($C$7,8,0),1,1) -> 43.23 | G109: =OFFSET(InputPriceData!F$15,CalculationsAndCharts!$A109+$A$11,IF($C$7,8,0),1,1) -> 43.92 | H109: 44.3894 | I109: 45.4808 | J109: FALSE | K109: FALSE | L109: FALSE | N109: FALSE | O109: FALSE | P109: FALSE | Q109: 0 | R109: 0 | T109: 44.3894 | U109: 45.4808 | AC109: 1060300
A110: 78 | B110: =OFFSET(InputPriceData!B$15,CalculationsAndCharts!$A110+$A$11,0,1,1) -> 2016-09-22 | C110: =OFFSET(InputPriceData!G$15,CalculationsAndCharts!$A110+$A$11,IF($C$7,8,0),1,1) -> 635900 | D110: =OFFSET(InputPriceData!C$15,CalculationsAndCharts!$A110+$A$11,IF($C$7,8,0),1,1) -> 43.22 | E110: =OFFSET(InputPriceData!D$15,CalculationsAndCharts!$A110+$A$11,IF($C$7,8,0),1,1) -> 43.71 | F110: =OFFSET(InputPriceData!E$15,CalculationsAndCharts!$A110+$A$11,IF($C$7,8,0),1,1) -> 43.09 | G110: =OFFSET(InputPriceData!F$15,CalculationsAndCharts!$A110+$A$11,IF($C$7,8,0),1,1) -> 43.55 | H110: 44.3814 | I110: 45.51395 | J110: FALSE | K110: FALSE | L110: FALSE | N110: FALSE | O110: FALSE | P110: FALSE | Q110: 0 | R110: 0 | T110: 44.3814 | U110: 45.51395 | AC110: 635900
A111: 79 | B111: =OFFSET(InputPriceData!B$15,CalculationsAndCharts!$A111+$A$11,0,1,1) -> 2016-09-21 | C111: =OFFSET(InputPriceData!G$15,CalculationsAndCharts!$A111+$A$11,IF($C$7,8,0),1,1) -> 794800 | D111: =OFFSET(InputPriceData!C$15,CalculationsAndCharts!$A111+$A$11,IF($C$7,8,0),1,1) -> 42.41 | E111: =OFFSET(InputPriceData!D$15,CalculationsAndCharts!$A111+$A$11,IF($C$7,8,0),1,1) -> 43.03 | F111: =OFFSET(InputPriceData!E$15,CalculationsAndCharts!$A111+$A$11,IF($C$7,8,0),1,1) -> 42.3 | G111: =OFFSET(InputPriceData!F$15,CalculationsAndCharts!$A111+$A$11,IF($C$7,8,0),1,1) -> 42.97 | H111: 44.3842 | I111: 45.55275 | J111: FALSE | K111: FALSE | L111: FALSE | N111: FALSE | O111: FALSE | P111: FALSE | Q111: 0 | R111: 0 | T111: 44.3842 | U111: 45.55275 | AC111: 794800
A112: 80 | B112: =OFFSET(InputPriceData!B$15,CalculationsAndCharts!$A112+$A$11,0,1,1) -> 2016-09-20 | C112: =OFFSET(InputPriceData!G$15,CalculationsAndCharts!$A112+$A$11,IF($C$7,8,0),1,1) -> 811400 | D112: =OFFSET(InputPriceData!C$15,CalculationsAndCharts!$A112+$A$11,IF($C$7,8,0),1,1) -> 42.7 | E112: =OFFSET(InputPriceData!D$15,CalculationsAndCharts!$A112+$A$11,IF($C$7,8,0),1,1) -> 42.93 | F112: =OFFSET(InputPriceData!E$15,CalculationsAndCharts!$A112+$A$11,IF($C$7,8,0),1,1) -> 42.19 | G112: =OFFSET(InputPriceData!F$15,CalculationsAndCharts!$A112+$A$11,IF($C$7,8,0),1,1) -> 42.31 | H112: 44.3882 | I112: 45.59905 | J112: FALSE | K112: FALSE | L112: FALSE | N112: FALSE | O112: FALSE | P112: FALSE | Q112: 0 | R112: 0 | T112: 44.3882 | U112: 45.59905 | AD112: 811400
A113: 81 | B113: =OFFSET(InputPriceData!B$15,CalculationsAndCharts!$A113+$A$11,0,1,1) -> 2016-09-19 | C113: =OFFSET(InputPriceData!G$15,CalculationsAndCharts!$A113+$A$11,IF($C$7,8,0),1,1) -> 822600 | D113: =OFFSET(InputPriceData!C$15,CalculationsAndCharts!$A113+$A$11,IF($C$7,8,0),1,1) -> 43.39 | E113: =OFFSET(InputPriceData!D$15,CalculationsAndCharts!$A113+$A$11,IF($C$7,8,0),1,1) -> 43.43 | F113: =OFFSET(InputPriceData!E$15,CalculationsAndCharts!$A113+$A$11,IF($C$7,8,0),1,1) -> 42.69 | G113: =OFFSET(InputPriceData!F$15,CalculationsAndCharts!$A113+$A$11,IF($C$7,8,0),1,1) -> 42.8 | H113: 44.394 | I113: 45.64455 | J113: FALSE | K113: FALSE | L113: FALSE | N113: FALSE | O113: FALSE | P113: FALSE | Q113: 0 | R113: 0 | T113: 44.394 | U113: 45.64455 | AD113: 822600
A114: 82 | B114: =OFFSET(InputPriceData!B$15,CalculationsAndCharts!$A114+$A$11,0,1,1) -> 2016-09-16 | C114: =OFFSET(InputPriceData!G$15,CalculationsAndCharts!$A114+$A$11,IF($C$7,8,0),1,1) -> 1526700 | D114: =OFFSET(InputPriceData!C$15,CalculationsAndCharts!$A114+$A$11,IF($C$7,8,0),1,1) -> 44.42 | E114: =OFFSET(InputPriceData!D$15,CalculationsAndCharts!$A114+$A$11,IF($C$7,8,0),1,1) -> 44.54 | F114: =OFFSET(InputPriceData!E$15,CalculationsAndCharts!$A114+$A$11,IF($C$7,8,0),1,1) -> 43.08 | G114: =OFFSET(InputPriceData!F$15,CalculationsAndCharts!$A114+$A$11,IF($C$7,8,0),1,1) -> 43.15 | H114: 44.3802 | I114: 45.6916 | J114: FALSE | K114: FALSE | L114: FALSE | N114: FALSE | O114: FALSE | P114: FALSE | Q114: 0 | R114: 0 | T114: 44.3802 | U114: 45.6916 | AD114: 1526700
A115: 83 | B115: =OFFSET(InputPriceData!B$15,CalculationsAndCharts!$A115+$A$11,0,1,1) -> 2016-09-15 | C115: =OFFSET(InputPriceData!G$15,CalculationsAndCharts!$A115+$A$11,IF($C$7,8,0),1,1) -> 1004500 | D115: =OFFSET(InputPriceData!C$15,CalculationsAndCharts!$A115+$A$11,IF($C$7,8,0),1,1) -> 44.19 | E115: =OFFSET(InputPriceData!D$15,CalculationsAndCharts!$A115+$A$11,IF($C$7,8,0),1,1) -> 44.86 | F115: =OFFSET(InputPriceData!E$15,CalculationsAndCharts!$A115+$A$11,IF($C$7,8,0),1,1) -> 43.95 | G115: =OFFSET(InputPriceData!F$15,CalculationsAndCharts!$A115+$A$11,IF($C$7,8,0),1,1) -> 44.6 | H115: 44.348 | I115: 45.74025 | J115: FALSE | K115: FALSE | L115: FALSE | N115: FALSE | O115: FALSE | P115: FALSE | Q115: 0 | R115: 0 | T115: 44.348 | U115: 45.74025 | AC115: 1004500
A116: 84 | B116: =OFFSET(InputPriceData!B$15,CalculationsAndCharts!$A116+$A$11,0,1,1) -> 2016-09-14 | C116: =OFFSET(InputPriceData!G$15,CalculationsAndCharts!$A116+$A$11,IF($C$7,8,0),1,1) -> 683600 | D116: =OFFSET(InputPriceData!C$15,CalculationsAndCharts!$A116+$A$11,IF($C$7,8,0),1,1) -> 45.43 | E116: =OFFSET(InputPriceData!D$15,CalculationsAndCharts!$A116+$A$11,IF($C$7,8,0),1,1) -> 45.53 | F116: =OFFSET(InputPriceData!E$15,CalculationsAndCharts!$A116+$A$11,IF($C$7,8,0),1,1) -> 44.38 | G116: =OFFSET(InputPriceData!F$15,CalculationsAndCharts!$A116+$A$11,IF($C$7,8,0),1,1) -> 44.49 | H116: 44.297 | I116: 45.77905 | J116: FALSE | K116: FALSE | L116: FALSE | N116: FALSE | O116: FALSE | P116: FALSE | Q116: 0 | R116: 0 | T116: 44.297 | U116: 45.77905 | AD116: 683600
A117: 85 | B117: =OFFSET(InputPriceData!B$15,CalculationsAndCharts!$A117+$A$11,0,1,1) -> 2016-09-13 | C117: =OFFSET(InputPriceData!G$15,CalculationsAndCharts!$A117+$A$11,IF($C$7,8,0),1,1) -> 875500 | D117: =OFFSET(InputPriceData!C$15,CalculationsAndCharts!$A117+$A$11,IF($C$7,8,0),1,1) -> 45.32 | E117: =OFFSET(InputPriceData!D$15,CalculationsAndCharts!$A117+$A$11,IF($C$7,8,0),1,1) -> 45.61 | F117: =OFFSET(InputPriceData!E$15,CalculationsAndCharts!$A117+$A$11,IF($C$7,8,0),1,1) -> 45.02 | G117: =OFFSET(InputPriceData!F$15,CalculationsAndCharts!$A117+$A$11,IF($C$7,8,0),1,1) -> 45.21 | H117: 44.2488 | I117: 45.82165 | J117: FALSE | K117: FALSE | L117: FALSE | N117: FALSE | O117: FALSE | P117: FALSE | Q117: 0 | R117: =IF(P117,D117,0) -> 0 | T117: 44.2488 | U117: 45.82165 | AD117: 875500
A118: 86 | B118: =OFFSET(InputPriceData!B$15,CalculationsAndCharts!$A118+$A$11,0,1,1) -> 2016-09-12 | C118: =OFFSET(InputPriceData!G$15,CalculationsAndCharts!$A118+$A$11,IF($C$7,8,0),1,1) -> 1048200 | D118: =OFFSET(InputPriceData!C$15,CalculationsAndCharts!$A118+$A$11,IF($C$7,8,0),1,1) -> 45.11 | E118: =OFFSET(InputPriceData!D$15,CalculationsAndCharts!$A118+$A$11,IF($C$7,8,0),1,1) -> 45.89 | F118: =OFFSET(InputPriceData!E$15,CalculationsAndCharts!$A118+$A$11,IF($C$7,8,0),1,1) -> 44.72 | G118: =OFFSET(InputPriceData!F$15,CalculationsAndCharts!$A118+$A$11,IF($C$7,8,0),1,1) -> 45.65 | H118: 44.2008 | I118: 45.86035 | J118: FALSE | K118: FALSE | L118: FALSE | N118: FALSE | O118: FALSE | P118: FALSE | Q118: 0 | R118: 0 | T118: 44.2008 | U118: 45.86035 | AC118: 1048200
A119: 87 | B119: =OFFSET(InputPriceData!B$15,CalculationsAndCharts!$A119+$A$11,0,1,1) -> 2016-09-09 | C119: =OFFSET(InputPriceData!G$15,CalculationsAndCharts!$A119+$A$11,IF($C$7,8,0),1,1) -> 1346400 | D119: =OFFSET(InputPriceData!C$15,CalculationsAndCharts!$A119+$A$11,IF($C$7,8,0),1,1) -> 45.65 | E119: =OFFSET(InputPriceData!D$15,CalculationsAndCharts!$A119+$A$11,IF($C$7,8,0),1,1) -> 45.99 | F119: =OFFSET(InputPriceData!E$15,CalculationsAndCharts!$A119+$A$11,IF($C$7,8,0),1,1) -> 45.36 | G119: =OFFSET(InputPriceData!F$15,CalculationsAndCharts!$A119+$A$11,IF($C$7,8,0),1,1) -> 45.36 | H119: 44.1464 | I119: 45.8966 | J119: FALSE | K119: FALSE | L119: FALSE | N119: FALSE | O119: FALSE | P119: FALSE | Q119: 0 | R119: 0 | T119: 44.1464 | U119: 45.8966 | AD119: 1346400
A120: 88 | B120: =OFFSET(InputPriceData!B$15,CalculationsAndCharts!$A120+$A$11,0,1,1) -> 2016-09-08 | C120: =OFFSET(InputPriceData!G$15,CalculationsAndCharts!$A120+$A$11,IF($C$7,8,0),1,1) -> 726500 | D120: =OFFSET(InputPriceData!C$15,CalculationsAndCharts!$A120+$A$11,IF($C$7,8,0),1,1) -> 45.68 | E120: =OFFSET(InputPriceData!D$15,CalculationsAndCharts!$A120+$A$11,IF($C$7,8,0),1,1) -> 46.04 | F120: =OFFSET(InputPriceData!E$15,CalculationsAndCharts!$A120+$A$11,IF($C$7,8,0),1,1) -> 45.32 | G120: =OFFSET(InputPriceData!F$15,CalculationsAndCharts!$A120+$A$11,IF($C$7,8,0),1,1) -> 45.99 | H120: 44.0884 | I120: 45.93535 | J120: FALSE | K120: FALSE | L120: FALSE | N120: FALSE | O120: FALSE | P120: FALSE | Q120: 0 | R120: 0 | T120: 44.0884 | U120: 45.93535 | AC120: 726500
A121: 89 | B121: =OFFSET(InputPriceData!B$15,CalculationsAndCharts!$A121+$A$11,0,1,1) -> 2016-09-07 | C121: =OFFSET(InputPriceData!G$15,CalculationsAndCharts!$A121+$A$11,IF($C$7,8,0),1,1) -> 872100 | D121: =OFFSET(InputPriceData!C$15,CalculationsAndCharts!$A121+$A$11,IF($C$7,8,0),1,1) -> 45.75 | E121: =OFFSET(InputPriceData!D$15,CalculationsAndCharts!$A121+$A$11,IF($C$7,8,0),1,1) -> 46.05 | F121: =OFFSET(InputPriceData!E$15,CalculationsAndCharts!$A121+$A$11,IF($C$7,8,0),1,1) -> 45.31 | G121: =OFFSET(InputPriceData!F$15,CalculationsAndCharts!$A121+$A$11,IF($C$7,8,0),1,1) -> 45.72 | H121: 44.0196 | I121: 45.9728 | J121: FALSE | K121: FALSE | L121: FALSE | N121: FALSE | O121: FALSE | P121: FALSE | Q121: 0 | R121: 0 | T121: 44.0196 | U121: 45.9728 | AD121: 872100
A122: 90 | B122: =OFFSET(InputPriceData!B$15,CalculationsAndCharts!$A122+$A$11,0,1,1) -> 2016-09-06 | C122: =OFFSET(InputPriceData!G$15,CalculationsAndCharts!$A122+$A$11,IF($C$7,8,0),1,1) -> 763300 | D122: =OFFSET(InputPriceData!C$15,CalculationsAndCharts!$A122+$A$11,IF($C$7,8,0),1,1) -> 46.05 | E122: =OFFSET(InputPriceData!D$15,CalculationsAndCharts!$A122+$A$11,IF($C$7,8,0),1,1) -> 46.17 | F122: =OFFSET(InputPriceData!E$15,CalculationsAndCharts!$A122+$A$11,IF($C$7,8,0),1,1) -> 45.77 | G122: =OFFSET(InputPriceData!F$15,CalculationsAndCharts!$A122+$A$11,IF($C$7,8,0),1,1) -> 45.97 | H122: 43.9386 | I122: 46.0106 | J122: FALSE | K122: FALSE | L122: =IF($A122>$A$8-1,FALSE,IF(J123,TRUE,IF(AND(L123,P122),FALSE,L123))) -> FALSE | N122: FALSE | O122: FALSE | P122: FALSE | Q122: 0 | R122: 0 | T122: 43.9386 | U122: 46.0106 | AD122: 763300
A123: 91 | B123: =OFFSET(InputPriceData!B$15,CalculationsAndCharts!$A123+$A$11,0,1,1) -> 2016-09-02 | C123: =OFFSET(InputPriceData!G$15,CalculationsAndCharts!$A123+$A$11,IF($C$7,8,0),1,1) -> 571900 | D123: =OFFSET(InputPriceData!C$15,CalculationsAndCharts!$A123+$A$11,IF($C$7,8,0),1,1) -> 45.81 | E123: =OFFSET(InputPriceData!D$15,CalculationsAndCharts!$A123+$A$11,IF($C$7,8,0),1,1) -> 46.12 | F123: =OFFSET(InputPriceData!E$15,CalculationsAndCharts!$A123+$A$11,IF($C$7,8,0),1,1) -> 45.55 | G123: =OFFSET(InputPriceData!F$15,CalculationsAndCharts!$A123+$A$11,IF($C$7,8,0),1,1) -> 46.05 | H123: 43.8818 | I123: 46.04635 | J123: FALSE | K123: FALSE | L123: FALSE | N123: FALSE | O123: FALSE | P123: FALSE | Q123: 0 | R123: 0 | T123: 43.8818 | U123: 46.04635 | AC123: 571900
A124: 92 | B124: =OFFSET(InputPriceData!B$15,CalculationsAndCharts!$A124+$A$11,0,1,1) -> 2016-09-01 | C124: =OFFSET(InputPriceData!G$15,CalculationsAndCharts!$A124+$A$11,IF($C$7,8,0),1,1) -> 928900 | D124: =OFFSET(InputPriceData!C$15,CalculationsAndCharts!$A124+$A$11,IF($C$7,8,0),1,1) -> 45.68 | E124: =OFFSET(InputPriceData!D$15,CalculationsAndCharts!$A124+$A$11,IF($C$7,8,0),1,1) -> 45.7 | F124: =OFFSET(InputPriceData!E$15,CalculationsAndCharts!$A124+$A$11,IF($C$7,8,0),1,1) -> 44.93 | G124: =OFFSET(InputPriceData!F$15,CalculationsAndCharts!$A124+$A$11,IF($C$7,8,0),1,1) -> 45.62 | H124: 43.8672 | I124: 46.07825 | J124: FALSE | K124: FALSE | L124: FALSE | N124: FALSE | O124: FALSE | P124: FALSE | Q124: 0 | R124: 0 | T124: 43.8672 | U124: 46.07825 | AD124: 928900
A125: 93 | B125: =OFFSET(InputPriceData!B$15,CalculationsAndCharts!$A125+$A$11,0,1,1) -> 2016-08-31 | C125: =OFFSET(InputPriceData!G$15,CalculationsAndCharts!$A125+$A$11,IF($C$7,8,0),1,1) -> 1305300 | D125: =OFFSET(InputPriceData!C$15,CalculationsAndCharts!$A125+$A$11,IF($C$7,8,0),1,1) -> 45.47 | E125: =OFFSET(InputPriceData!D$15,CalculationsAndCharts!$A125+$A$11,IF($C$7,8,0),1,1) -> 45.84 | F125: =OFFSET(InputPriceData!E$15,CalculationsAndCharts!$A125+$A$11,IF($C$7,8,0),1,1) -> 45.34 | G125: =OFFSET(InputPriceData!F$15,CalculationsAndCharts!$A125+$A$11,IF($C$7,8,0),1,1) -> 45.74 | H125: 43.8528 | I125: 46.11245 | J125: FALSE | K125: FALSE | L125: FALSE | N125: FALSE | O125: FALSE | P125: FALSE | Q125: 0 | R125: 0 | T125: 43.8528 | U125: 46.11245 | AC125: 1305300
A126: 94 | B126: =OFFSET(InputPriceData!B$15,CalculationsAndCharts!$A126+$A$11,0,1,1) -> 2016-08-30 | C126: =OFFSET(InputPriceData!G$15,CalculationsAndCharts!$A126+$A$11,IF($C$7,8,0),1,1) -> 751700 | D126: =OFFSET(InputPriceData!C$15,CalculationsAndCharts!$A126+$A$11,IF($C$7,8,0),1,1) -> 45.33 | E126: =OFFSET(InputPriceData!D$15,CalculationsAndCharts!$A126+$A$11,IF($C$7,8,0),1,1) -> 45.7 | F126: =OFFSET(InputPriceData!E$15,CalculationsAndCharts!$A126+$A$11,IF($C$7,8,0),1,1) -> 45.2 | G126: =OFFSET(InputPriceData!F$15,CalculationsAndCharts!$A126+$A$11,IF($C$7,8,0),1,1) -> 45.59 | H126: 43.8244 | I126: 46.14425 | J126: FALSE | K126: FALSE | L126: FALSE | N126: FALSE | O126: FALSE | P126: FALSE | Q126: 0 | R126: 0 | T126: 43.8244 | U126: 46.14425 | AC126: 751700
A127: 95 | B127: =OFFSET(InputPriceData!B$15,CalculationsAndCharts!$A127+$A$11,0,1,1) -> 2016-08-29 | C127: =OFFSET(InputPriceData!G$15,CalculationsAndCharts!$A127+$A$11,IF($C$7,8,0),1,1) -> 713800 | D127: =OFFSET(InputPriceData!C$15,CalculationsAndCharts!$A127+$A$11,IF($C$7,8,0),1,1) -> 45.16 | E127: =OFFSET(InputPriceData!D$15,CalculationsAndCharts!$A127+$A$11,IF($C$7,8,0),1,1) -> 45.64 | F127: =OFFSET(InputPriceData!E$15,CalculationsAndCharts!$A127+$A$11,IF($C$7,8,0),1,1) -> 45.16 | G127: =OFFSET(InputPriceData!F$15,CalculationsAndCharts!$A127+$A$11,IF($C$7,8,0),1,1) -> 45.44 | H127: 43.8126 | I127: 46.178 | J127: FALSE | K127: FALSE | L127: FALSE | N127: FALSE | O127: FALSE | P127: FALSE | Q127: 0 | R127: 0 | T127: 43.8126 | U127: 46.178 | AC127: 713800
A128: 96 | B128: =OFFSET(InputPriceData!B$15,CalculationsAndCharts!$A128+$A$11,0,1,1) -> 2016-08-26 | C128: =OFFSET(InputPriceData!G$15,CalculationsAndCharts!$A128+$A$11,IF($C$7,8,0),1,1) -> 982100 | D128: =OFFSET(InputPriceData!C$15,CalculationsAndCharts!$A128+$A$11,IF($C$7,8,0),1,1) -> 45.3 | E128: =OFFSET(InputPriceData!D$15,CalculationsAndCharts!$A128+$A$11,IF($C$7,8,0),1,1) -> 45.51 | F128: =OFFSET(InputPriceData!E$15,CalculationsAndCharts!$A128+$A$11,IF($C$7,8,0),1,1) -> 44.78 | G128: =OFFSET(InputPriceData!F$15,CalculationsAndCharts!$A128+$A$11,IF($C$7,8,0),1,1) -> 45.14 | H128: 43.7908 | I128: 46.21895 | J128: FALSE | K128: FALSE | L128: FALSE | N128: FALSE | O128: FALSE | P128: FALSE | Q128: 0 | R128: 0 | T128: 43.7908 | U128: 46.21895 | AD128: 982100
A129: 97 | B129: =OFFSET(InputPriceData!B$15,CalculationsAndCharts!$A129+$A$11,0,1,1) -> 2016-08-25 | C129: =OFFSET(InputPriceData!G$15,CalculationsAndCharts!$A129+$A$11,IF($C$7,8,0),1,1) -> 595800 | D129: =OFFSET(InputPriceData!C$15,CalculationsAndCharts!$A129+$A$11,IF($C$7,8,0),1,1) -> 45.37 | E129: =OFFSET(InputPriceData!D$15,CalculationsAndCharts!$A129+$A$11,IF($C$7,8,0),1,1) -> 45.46 | F129: =OFFSET(InputPriceData!E$15,CalculationsAndCharts!$A129+$A$11,IF($C$7,8,0),1,1) -> 45.15 | G129: =OFFSET(InputPriceData!F$15,CalculationsAndCharts!$A129+$A$11,IF($C$7,8,0),1,1) -> 45.24 | H129: 43.7708 | I129: 46.2649 | J129: FALSE | K129: FALSE | L129: FALSE | N129: FALSE | O129: FALSE | P129: FALSE | Q129: 0 | R129: 0 | T129: 43.7708 | U129: 46.2649 | AD129: 595800
A130: 98 | B130: =OFFSET(InputPriceData!B$15,CalculationsAndCharts!$A130+$A$11,0,1,1) -> 2016-08-24 | C130: =OFFSET(InputPriceData!G$15,CalculationsAndCharts!$A130+$A$11,IF($C$7,8,0),1,1) -> 928000 | D130: =OFFSET(InputPriceData!C$15,CalculationsAndCharts!$A130+$A$11,IF($C$7,8,0),1,1) -> 45.47 | E130: =OFFSET(InputPriceData!D$15,CalculationsAndCharts!$A130+$A$11,IF($C$7,8,0),1,1) -> 45.68 | F130: =OFFSET(InputPriceData!E$15,CalculationsAndCharts!$A130+$A$11,IF($C$7,8,0),1,1) -> 45.28 | G130: =OFFSET(InputPriceData!F$15,CalculationsAndCharts!$A130+$A$11,IF($C$7,8,0),1,1) -> 45.37 | H130: 43.7488 | I130: 46.30815 | J130: FALSE | K130: FALSE | L130: FALSE | N130: FALSE | O130: FALSE | P130: FALSE | Q130: 0 | R130: 0 | T130: 43.7488 | U130: 46.30815 | AD130: 928000
A131: 99 | B131: =OFFSET(InputPriceData!B$15,CalculationsAndCharts!$A131+$A$11,0,1,1) -> 2016-08-23 | C131: =OFFSET(InputPriceData!G$15,CalculationsAndCharts!$A131+$A$11,IF($C$7,8,0),1,1) -> 971200 | D131: =OFFSET(InputPriceData!C$15,CalculationsAndCharts!$A131+$A$11,IF($C$7,8,0),1,1) -> 45.82 | E131: =OFFSET(InputPriceData!D$15,CalculationsAndCharts!$A131+$A$11,IF($C$7,8,0),1,1) -> 45.91 | F131: =OFFSET(InputPriceData!E$15,CalculationsAndCharts!$A131+$A$11,IF($C$7,8,0),1,1) -> 45.31 | G131: =OFFSET(InputPriceData!F$15,CalculationsAndCharts!$A131+$A$11,IF($C$7,8,0),1,1) -> 45.57 | H131: 43.731 | I131: 46.3552 | J131: FALSE | K131: FALSE | L131: FALSE | N131: FALSE | O131: FALSE | P131: FALSE | Q131: 0 | R131: 0 | T131: 43.731 | U131: 46.3552 | AD131: 971200
A132: 100 | B132: =OFFSET(InputPriceData!B$15,CalculationsAndCharts!$A132+$A$11,0,1,1) -> 2016-08-22 | C132: =OFFSET(InputPriceData!G$15,CalculationsAndCharts!$A132+$A$11,IF($C$7,8,0),1,1) -> 1213400 | D132: =OFFSET(InputPriceData!C$15,CalculationsAndCharts!$A132+$A$11,IF($C$7,8,0),1,1) -> 45.28 | E132: =OFFSET(InputPriceData!D$15,CalculationsAndCharts!$A132+$A$11,IF($C$7,8,0),1,1) -> 45.9 | F132: =OFFSET(InputPriceData!E$15,CalculationsAndCharts!$A132+$A$11,IF($C$7,8,0),1,1) -> 45.2 | G132: =OFFSET(InputPriceData!F$15,CalculationsAndCharts!$A132+$A$11,IF($C$7,8,0),1,1) -> 45.7 | H132: 43.7066 | I132: 46.40525 | J132: FALSE | K132: FALSE | L132: FALSE | N132: FALSE | O132: FALSE | P132: FALSE | Q132: 0 | R132: 0 | T132: 43.7066 | U132: 46.40525 | AC132: 1213400
A133: 101 | B133: =OFFSET(InputPriceData!B$15,CalculationsAndCharts!$A133+$A$11,0,1,1) -> 2016-08-19 | C133: =OFFSET(InputPriceData!G$15,CalculationsAndCharts!$A133+$A$11,IF($C$7,8,0),1,1) -> 930500 | D133: =OFFSET(InputPriceData!C$15,CalculationsAndCharts!$A133+$A$11,IF($C$7,8,0),1,1) -> 44.97 | E133: =OFFSET(InputPriceData!D$15,CalculationsAndCharts!$A133+$A$11,IF($C$7,8,0),1,1) -> 45.58 | F133: =OFFSET(InputPriceData!E$15,CalculationsAndCharts!$A133+$A$11,IF($C$7,8,0),1,1) -> 44.77 | G133: =OFFSET(InputPriceData!F$15,CalculationsAndCharts!$A133+$A$11,IF($C$7,8,0),1,1) -> 45.44 | H133: 43.7022 | I133: 46.45295 | J133: FALSE | K133: FALSE | L133: FALSE | N133: FALSE | O133: FALSE | P133: FALSE | Q133: 0 | R133: 0 | T133: 43.7022 | U133: 46.45295 | AC133: 930500
A134: 102 | B134: =OFFSET(InputPriceData!B$15,CalculationsAndCharts!$A134+$A$11,0,1,1) -> 2016-08-18 | C134: =OFFSET(InputPriceData!G$15,CalculationsAndCharts!$A134+$A$11,IF($C$7,8,0),1,1) -> 1182900 | D134: =OFFSET(InputPriceData!C$15,CalculationsAndCharts!$A134+$A$11,IF($C$7,8,0),1,1) -> 44.77 | E134: =OFFSET(InputPriceData!D$15,CalculationsAndCharts!$A134+$A$11,IF($C$7,8,0),1,1) -> 45.32 | F134: =OFFSET(InputPriceData!E$15,CalculationsAndCharts!$A134+$A$11,IF($C$7,8,0),1,1) -> 44.63 | G134: =OFFSET(InputPriceData!F$15,CalculationsAndCharts!$A134+$A$11,IF($C$7,8,0),1,1) -> 45.19 | H134: 43.7164 | I134: 46.50275 | J134: FALSE | K134: FALSE | L134: FALSE | N134: FALSE | O134: FALSE | P134: FALSE | Q134: 0 | R134: 0 | T134: 43.7164 | U134: 46.50275 | AC134: 1182900
A135: 103 | B135: =OFFSET(InputPriceData!B$15,CalculationsAndCharts!$A135+$A$11,0,1,1) -> 2016-08-17 | C135: =OFFSET(InputPriceData!G$15,CalculationsAndCharts!$A135+$A$11,IF($C$7,8,0),1,1) -> 978500 | D135: =OFFSET(InputPriceData!C$15,CalculationsAndCharts!$A135+$A$11,IF($C$7,8,0),1,1) -> 44.58 | E135: =OFFSET(InputPriceData!D$15,CalculationsAndCharts!$A135+$A$11,IF($C$7,8,0),1,1) -> 44.84 | F135: =OFFSET(InputPriceData!E$15,CalculationsAndCharts!$A135+$A$11,IF($C$7,8,0),1,1) -> 44.28 | G135: =OFFSET(InputPriceData!F$15,CalculationsAndCharts!$A135+$A$11,IF($C$7,8,0),1,1) -> 44.79 | H135: 43.7242 | I135: 46.55245 | J135: FALSE | K135: FALSE | L135: FALSE | N135: FALSE | O135: FALSE | P135: FALSE | Q135: 0 | R135: 0 | T135: 43.7242 | U135: 46.55245 | AC135: 978500
A136: 104 | B136: =OFFSET(InputPriceData!B$15,CalculationsAndCharts!$A136+$A$11,0,1,1) -> 2016-08-16 | C136: =OFFSET(InputPriceData!G$15,CalculationsAndCharts!$A136+$A$11,IF($C$7,8,0),1,1) -> 1155100 | D136: =OFFSET(InputPriceData!C$15,CalculationsAndCharts!$A136+$A$11,IF($C$7,8,0),1,1) -> 44.85 | E136: =OFFSET(InputPriceData!D$15,CalculationsAndCharts!$A136+$A$11,IF($C$7,8,0),1,1) -> 45.17 | F136: =OFFSET(InputPriceData!E$15,CalculationsAndCharts!$A136+$A$11,IF($C$7,8,0),1,1) -> 44.69 | G136: =OFFSET(InputPriceData!F$15,CalculationsAndCharts!$A136+$A$11,IF($C$7,8,0),1,1) -> 44.7 | H136: 43.7758 | I136: 46.59175 | J136: FALSE | K136: FALSE | L136: FALSE | N136: FALSE | O136: FALSE | P136: FALSE | Q136: 0 | R136: 0 | T136: 43.7758 | U136: 46.59175 | AD136: 1155100
A137: 105 | B137: =OFFSET(InputPriceData!B$15,CalculationsAndCharts!$A137+$A$11,0,1,1) -> 2016-08-15 | C137: =OFFSET(InputPriceData!G$15,CalculationsAndCharts!$A137+$A$11,IF($C$7,8,0),1,1) -> 1108300 | D137: =OFFSET(InputPriceData!C$15,CalculationsAndCharts!$A137+$A$11,IF($C$7,8,0),1,1) -> 44.22 | E137: =OFFSET(InputPriceData!D$15,CalculationsAndCharts!$A137+$A$11,IF($C$7,8,0),1,1) -> 45.16 | F137: =OFFSET(InputPriceData!E$15,CalculationsAndCharts!$A137+$A$11,IF($C$7,8,0),1,1) -> 44.22 | G137: =OFFSET(InputPriceData!F$15,CalculationsAndCharts!$A137+$A$11,IF($C$7,8,0),1,1) -> 45.08 | H137: 43.8264 | I137: 46.6332 | J137: FALSE | K137: FALSE | L137: FALSE | N137: FALSE | O137: FALSE | P137: FALSE | Q137: 0 | R137: 0 | T137: 43.8264 | U137: 46.6332 | AC137: 1108300
A138: 106 | B138: =OFFSET(InputPriceData!B$15,CalculationsAndCharts!$A138+$A$11,0,1,1) -> 2016-08-12 | C138: =OFFSET(InputPriceData!G$15,CalculationsAndCharts!$A138+$A$11,IF($C$7,8,0),1,1) -> 1224100 | D138: =OFFSET(InputPriceData!C$15,CalculationsAndCharts!$A138+$A$11,IF($C$7,8,0),1,1) -> 44.17 | E138: =OFFSET(InputPriceData!D$15,CalculationsAndCharts!$A138+$A$11,IF($C$7,8,0),1,1) -> 44.34 | F138: =OFFSET(InputPriceData!E$15,CalculationsAndCharts!$A138+$A$11,IF($C$7,8,0),1,1) -> 43.7 | G138: =OFFSET(InputPriceData!F$15,CalculationsAndCharts!$A138+$A$11,IF($C$7,8,0),1,1) -> 44.25 | H138: 43.8532 | I138: 46.67515 | J138: FALSE | K138: FALSE | L138: FALSE | N138: FALSE | O138: FALSE | P138: FALSE | Q138: 0 | R138: 0 | T138: 43.8532 | U138: 46.67515 | AC138: 1224100
A139: 107 | B139: =OFFSET(InputPriceData!B$15,CalculationsAndCharts!$A139+$A$11,0,1,1) -> 2016-08-11 | C139: =OFFSET(InputPriceData!G$15,CalculationsAndCharts!$A139+$A$11,IF($C$7,8,0),1,1) -> 1317500 | D139: =OFFSET(InputPriceData!C$15,CalculationsAndCharts!$A139+$A$11,IF($C$7,8,0),1,1) -> 43.72 | E139: =OFFSET(InputPriceData!D$15,CalculationsAndCharts!$A139+$A$11,IF($C$7,8,0),1,1) -> 44.35 | F139: =OFFSET(InputPriceData!E$15,CalculationsAndCharts!$A139+$A$11,IF($C$7,8,0),1,1) -> 43.72 | G139: =OFFSET(InputPriceData!F$15,CalculationsAndCharts!$A139+$A$11,IF($C$7,8,0),1,1) -> 44.2 | H139: 43.9036 | I139: 46.7131 | J139: FALSE | K139: FALSE | L139: FALSE | N139: FALSE | O139: FALSE | P139: FALSE | Q139: 0 | R139: 0 | T139: 43.9036 | U139: 46.7131 | AC139: 1317500
A140: 108 | B140: =OFFSET(InputPriceData!B$15,CalculationsAndCharts!$A140+$A$11,0,1,1) -> 2016-08-10 | C140: =OFFSET(InputPriceData!G$15,CalculationsAndCharts!$A140+$A$11,IF($C$7,8,0),1,1) -> 1308900 | D140: =OFFSET(InputPriceData!C$15,CalculationsAndCharts!$A140+$A$11,IF($C$7,8,0),1,1) -> 43.92 | E140: =OFFSET(InputPriceData!D$15,CalculationsAndCharts!$A140+$A$11,IF($C$7,8,0),1,1) -> 44.03 | F140: =OFFSET(InputPriceData!E$15,CalculationsAndCharts!$A140+$A$11,IF($C$7,8,0),1,1) -> 43.49 | G140: =OFFSET(InputPriceData!F$15,CalculationsAndCharts!$A140+$A$11,IF($C$7,8,0),1,1) -> 43.77 | H140: 43.9538 | I140: 46.75005 | J140: FALSE | K140: FALSE | L140: FALSE | N140: FALSE | O140: FALSE | P140: FALSE | Q140: 0 | R140: 0 | T140: 43.9538 | U140: 46.75005 | AD140: 1308900
A141: 109 | B141: =OFFSET(InputPriceData!B$15,CalculationsAndCharts!$A141+$A$11,0,1,1) -> 2016-08-09 | C141: =OFFSET(InputPriceData!G$15,CalculationsAndCharts!$A141+$A$11,IF($C$7,8,0),1,1) -> 1196100 | D141: =OFFSET(InputPriceData!C$15,CalculationsAndCharts!$A141+$A$11,IF($C$7,8,0),1,1) -> 43.77 | E141: =OFFSET(InputPriceData!D$15,CalculationsAndCharts!$A141+$A$11,IF($C$7,8,0),1,1) -> 44.19 | F141: =OFFSET(InputPriceData!E$15,CalculationsAndCharts!$A141+$A$11,IF($C$7,8,0),1,1) -> 43.58 | G141: =OFFSET(InputPriceData!F$15,CalculationsAndCharts!$A141+$A$11,IF($C$7,8,0),1,1) -> 43.81 | H141: 44.0124 | I141: 46.7883 | J141: FALSE | K141: FALSE | L141: FALSE | N141: FALSE | O141: FALSE | P141: FALSE | Q141: 0 | R141: 0 | T141: 44.0124 | U141: 46.7883 | AC141: 1196100
A142: 110 | B142: =OFFSET(InputPriceData!B$15,CalculationsAndCharts!$A142+$A$11,0,1,1) -> 2016-08-08 | C142: =OFFSET(InputPriceData!G$15,CalculationsAndCharts!$A142+$A$11,IF($C$7,8,0),1,1) -> 1347600 | D142: =OFFSET(InputPriceData!C$15,CalculationsAndCharts!$A142+$A$11,IF($C$7,8,0),1,1) -> 43.53 | E142: =OFFSET(InputPriceData!D$15,CalculationsAndCharts!$A142+$A$11,IF($C$7,8,0),1,1) -> 43.91 | F142: =OFFSET(InputPriceData!E$15,CalculationsAndCharts!$A142+$A$11,IF($C$7,8,0),1,1) -> 43.48 | G142: =OFFSET(InputPriceData!F$15,CalculationsAndCharts!$A142+$A$11,IF($C$7,8,0),1,1) -> 43.78 | H142: 44.0762 | I142: 46.82375 | J142: FALSE | K142: FALSE | L142: FALSE | N142: FALSE | O142: FALSE | P142: FALSE | Q142: 0 | R142: 0 | T142: 44.0762 | U142: 46.82375 | AC142: 1347600
A143: 111 | B143: =OFFSET(InputPriceData!B$15,CalculationsAndCharts!$A143+$A$11,0,1,1) -> 2016-08-05 | C143: =OFFSET(InputPriceData!G$15,CalculationsAndCharts!$A143+$A$11,IF($C$7,8,0),1,1) -> 1808100 | D143: =OFFSET(InputPriceData!C$15,CalculationsAndCharts!$A143+$A$11,IF($C$7,8,0),1,1) -> 44.17 | E143: =OFFSET(InputPriceData!D$15,CalculationsAndCharts!$A143+$A$11,IF($C$7,8,0),1,1) -> 44.31 | F143: =OFFSET(InputPriceData!E$15,CalculationsAndCharts!$A143+$A$11,IF($C$7,8,0),1,1) -> 42.98 | G143: =OFFSET(InputPriceData!F$15,CalculationsAndCharts!$A143+$A$11,IF($C$7,8,0),1,1) -> 43.46 | H143: 44.1386 | I143: 46.8472 | J143: FALSE | K143: FALSE | L143: FALSE | N143: FALSE | O143: FALSE | P143: FALSE | Q143: 0 | R143: 0 | T143: 44.1386 | U143: 46.8472 | AD143: 1808100
A144: 112 | B144: =OFFSET(InputPriceData!B$15,CalculationsAndCharts!$A144+$A$11,0,1,1) -> 2016-08-04 | C144: =OFFSET(InputPriceData!G$15,CalculationsAndCharts!$A144+$A$11,IF($C$7,8,0),1,1) -> 1521500 | D144: =OFFSET(InputPriceData!C$15,CalculationsAndCharts!$A144+$A$11,IF($C$7,8,0),1,1) -> 45.95 | E144: =OFFSET(InputPriceData!D$15,CalculationsAndCharts!$A144+$A$11,IF($C$7,8,0),1,1) -> 46.04 | F144: =OFFSET(InputPriceData!E$15,CalculationsAndCharts!$A144+$A$11,IF($C$7,8,0),1,1) -> 44.12 | G144: =OFFSET(InputPriceData!F$15,CalculationsAndCharts!$A144+$A$11,IF($C$7,8,0),1,1) -> 44.12 | H144: 44.1898 | I144: 46.8704 | J144: FALSE | K144: FALSE | L144: FALSE | N144: FALSE | O144: FALSE | P144: FALSE | Q144: 0 | R144: 0 | T144: 44.1898 | U144: 46.8704 | AD144: 1521500
A145: 113 | B145: =OFFSET(InputPriceData!B$15,CalculationsAndCharts!$A145+$A$11,0,1,1) -> 2016-08-03 | C145: =OFFSET(InputPriceData!G$15,CalculationsAndCharts!$A145+$A$11,IF($C$7,8,0),1,1) -> 2591000 | D145: =OFFSET(InputPriceData!C$15,CalculationsAndCharts!$A145+$A$11,IF($C$7,8,0),1,1) -> 44.67 | E145: =OFFSET(InputPriceData!D$15,CalculationsAndCharts!$A145+$A$11,IF($C$7,8,0),1,1) -> 46.36 | F145: =OFFSET(InputPriceData!E$15,CalculationsAndCharts!$A145+$A$11,IF($C$7,8,0),1,1) -> 44.64 | G145: =OFFSET(InputPriceData!F$15,CalculationsAndCharts!$A145+$A$11,IF($C$7,8,0),1,1) -> 45.93 | H145: 44.2238 | I145: 46.8922 | J145: FALSE | K145: FALSE | L145: FALSE | N145: FALSE | O145: FALSE | P145: FALSE | Q145: 0 | R145: 0 | T145: 44.2238 | U145: 46.8922 | AC145: 2591000
A146: 114 | B146: =OFFSET(InputPriceData!B$15,CalculationsAndCharts!$A146+$A$11,0,1,1) -> 2016-08-02 | C146: =OFFSET(InputPriceData!G$15,CalculationsAndCharts!$A146+$A$11,IF($C$7,8,0),1,1) -> 1728100 | D146: =OFFSET(InputPriceData!C$15,CalculationsAndCharts!$A146+$A$11,IF($C$7,8,0),1,1) -> 43.29 | E146: =OFFSET(InputPriceData!D$15,CalculationsAndCharts!$A146+$A$11,IF($C$7,8,0),1,1) -> 43.3 | F146: =OFFSET(InputPriceData!E$15,CalculationsAndCharts!$A146+$A$11,IF($C$7,8,0),1,1) -> 42.63 | G146: =OFFSET(InputPriceData!F$15,CalculationsAndCharts!$A146+$A$11,IF($C$7,8,0),1,1) -> 42.89 | H146: 44.23 | I146: 46.9063 | J146: FALSE | K146: FALSE | L146: FALSE | N146: FALSE | O146: FALSE | P146: FALSE | Q146: 0 | R146: 0 | T146: 44.23 | U146: 46.9063 | AD146: 1728100
A147: 115 | B147: =OFFSET(InputPriceData!B$15,CalculationsAndCharts!$A147+$A$11,0,1,1) -> 2016-08-01 | C147: =OFFSET(InputPriceData!G$15,CalculationsAndCharts!$A147+$A$11,IF($C$7,8,0),1,1) -> 1158700 | D147: =OFFSET(InputPriceData!C$15,CalculationsAndCharts!$A147+$A$11,IF($C$7,8,0),1,1) -> 43.22 | E147: =OFFSET(InputPriceData!D$15,CalculationsAndCharts!$A147+$A$11,IF($C$7,8,0),1,1) -> 43.59 | F147: =OFFSET(InputPriceData!E$15,CalculationsAndCharts!$A147+$A$11,IF($C$7,8,0),1,1) -> 43.07 | G147: =OFFSET(InputPriceData!F$15,CalculationsAndCharts!$A147+$A$11,IF($C$7,8,0),1,1) -> 43.38 | H147: 44.302 | I147: 46.93335 | J147: FALSE | K147: FALSE | L147: FALSE | N147: FALSE | O147: FALSE | P147: FALSE | Q147: 0 | R147: 0 | T147: 44.302 | U147: 46.93335 | AC147: 1158700
A148: 116 | B148: =OFFSET(InputPriceData!B$15,CalculationsAndCharts!$A148+$A$11,0,1,1) -> 2016-07-29 | C148: =OFFSET(InputPriceData!G$15,CalculationsAndCharts!$A148+$A$11,IF($C$7,8,0),1,1) -> 966500 | D148: =OFFSET(InputPriceData!C$15,CalculationsAndCharts!$A148+$A$11,IF($C$7,8,0),1,1) -> 43.03 | E148: =OFFSET(InputPriceData!D$15,CalculationsAndCharts!$A148+$A$11,IF($C$7,8,0),1,1) -> 43.34 | F148: =OFFSET(InputPriceData!E$15,CalculationsAndCharts!$A148+$A$11,IF($C$7,8,0),1,1) -> 42.58 | G148: =OFFSET(InputPriceData!F$15,CalculationsAndCharts!$A148+$A$11,IF($C$7,8,0),1,1) -> 43.31 | H148: 44.3592 | I148: 46.95485 | J148: FALSE | K148: FALSE | L148: FALSE | N148: FALSE | O148: FALSE | P148: FALSE | Q148: 0 | R148: 0 | T148: 44.3592 | U148: 46.95485 | AC148: 966500
A149: 117 | B149: =OFFSET(InputPriceData!B$15,CalculationsAndCharts!$A149+$A$11,0,1,1) -> 2016-07-28 | C149: =OFFSET(InputPriceData!G$15,CalculationsAndCharts!$A149+$A$11,IF($C$7,8,0),1,1) -> 858000 | D149: =OFFSET(InputPriceData!C$15,CalculationsAndCharts!$A149+$A$11,IF($C$7,8,0),1,1) -> 43.44 | E149: =OFFSET(InputPriceData!D$15,CalculationsAndCharts!$A149+$A$11,IF($C$7,8,0),1,1) -> 43.44 | F149: =OFFSET(InputPriceData!E$15,CalculationsAndCharts!$A149+$A$11,IF($C$7,8,0),1,1) -> 42.55 | G149: =OFFSET(InputPriceData!F$15,CalculationsAndCharts!$A149+$A$11,IF($C$7,8,0),1,1) -> 43.1 | H149: 44.4258 | I149: 46.99045 | J149: FALSE | K149: FALSE | L149: FALSE | N149: FALSE | O149: FALSE | P149: FALSE | Q149: 0 | R149: 0 | T149: 44.4258 | U149: 46.99045 | AD149: 858000
A150: 118 | B150: =OFFSET(InputPriceData!B$15,CalculationsAndCharts!$A150+$A$11,0,1,1) -> 2016-07-27 | C150: =OFFSET(InputPriceData!G$15,CalculationsAndCharts!$A150+$A$11,IF($C$7,8,0),1,1) -> 884300 | D150: =OFFSET(InputPriceData!C$15,CalculationsAndCharts!$A150+$A$11,IF($C$7,8,0),1,1) -> 43.19 | E150: =OFFSET(InputPriceData!D$15,CalculationsAndCharts!$A150+$A$11,IF($C$7,8,0),1,1) -> 43.81 | F150: =OFFSET(InputPriceData!E$15,CalculationsAndCharts!$A150+$A$11,IF($C$7,8,0),1,1) -> 43.19 | G150: =OFFSET(InputPriceData!F$15,CalculationsAndCharts!$A150+$A$11,IF($C$7,8,0),1,1) -> 43.5 | H150: 44.4944 | I150: 47.02825 | J150: FALSE | K150: FALSE | L150: FALSE | N150: FALSE | O150: FALSE | P150: FALSE | Q150: 0 | R150: 0 | T150: 44.4944 | U150: 47.02825 | AC150: 884300
A151: 119 | B151: =OFFSET(InputPriceData!B$15,CalculationsAndCharts!$A151+$A$11,0,1,1) -> 2016-07-26 | C151: =OFFSET(InputPriceData!G$15,CalculationsAndCharts!$A151+$A$11,IF($C$7,8,0),1,1) -> 1349300 | D151: =OFFSET(InputPriceData!C$15,CalculationsAndCharts!$A151+$A$11,IF($C$7,8,0),1,1) -> 42.75 | E151: =OFFSET(InputPriceData!D$15,CalculationsAndCharts!$A151+$A$11,IF($C$7,8,0),1,1) -> 43.26 | F151: =OFFSET(InputPriceData!E$15,CalculationsAndCharts!$A151+$A$11,IF($C$7,8,0),1,1) -> 42.57 | G151: =OFFSET(InputPriceData!F$15,CalculationsAndCharts!$A151+$A$11,IF($C$7,8,0),1,1) -> 43.18 | H151: 44.558 | I151: 47.06405 | J151: FALSE | K151: FALSE | L151: FALSE | N151: FALSE | O151: FALSE | P151: FALSE | Q151: 0 | R151: 0 | T151: 44.558 | U151: 47.06405 | AC151: 1349300
A152: 120 | B152: =OFFSET(InputPriceData!B$15,CalculationsAndCharts!$A152+$A$11,0,1,1) -> 2016-07-25 | C152: =OFFSET(InputPriceData!G$15,CalculationsAndCharts!$A152+$A$11,IF($C$7,8,0),1,1) -> 985200 | D152: =OFFSET(InputPriceData!C$15,CalculationsAndCharts!$A152+$A$11,IF($C$7,8,0),1,1) -> 43.35 | E152: =OFFSET(InputPriceData!D$15,CalculationsAndCharts!$A152+$A$11,IF($C$7,8,0),1,1) -> 43.38 | F152: =OFFSET(InputPriceData!E$15,CalculationsAndCharts!$A152+$A$11,IF($C$7,8,0),1,1) -> 42.64 | G152: =OFFSET(InputPriceData!F$15,CalculationsAndCharts!$A152+$A$11,IF($C$7,8,0),1,1) -> 42.68 | H152: 44.626 | I152: 47.0984 | J152: FALSE | K152: FALSE | L152: FALSE | N152: FALSE | O152: FALSE | P152: FALSE | Q152: 0 | R152: 0 | T152: 44.626 | U152: 47.0984 | AD152: 985200
A153: 121 | B153: =OFFSET(InputPriceData!B$15,CalculationsAndCharts!$A153+$A$11,0,1,1) -> 2016-07-22 | C153: =OFFSET(InputPriceData!G$15,CalculationsAndCharts!$A153+$A$11,IF($C$7,8,0),1,1) -> 1520000 | D153: =OFFSET(InputPriceData!C$15,CalculationsAndCharts!$A153+$A$11,IF($C$7,8,0),1,1) -> 43.79 | E153: =OFFSET(InputPriceData!D$15,CalculationsAndCharts!$A153+$A$11,IF($C$7,8,0),1,1) -> 43.9 | F153: =OFFSET(InputPriceData!E$15,CalculationsAndCharts!$A153+$A$11,IF($C$7,8,0),1,1) -> 43.12 | G153: =OFFSET(InputPriceData!F$15,CalculationsAndCharts!$A153+$A$11,IF($C$7,8,0),1,1) -> 43.54 | H153: 44.716 | I153: 47.1353 | J153: FALSE | K153: FALSE | L153: FALSE | N153: FALSE | O153: FALSE | P153: FALSE | Q153: 0 | R153: 0 | T153: 44.716 | U153: 47.1353 | AD153: 1520000
A154: 122 | B154: =OFFSET(InputPriceData!B$15,CalculationsAndCharts!$A154+$A$11,0,1,1) -> 2016-07-21 | C154: =OFFSET(InputPriceData!G$15,CalculationsAndCharts!$A154+$A$11,IF($C$7,8,0),1,1) -> 690700 | D154: =OFFSET(InputPriceData!C$15,CalculationsAndCharts!$A154+$A$11,IF($C$7,8,0),1,1) -> 44.33 | E154: =OFFSET(InputPriceData!D$15,CalculationsAndCharts!$A154+$A$11,IF($C$7,8,0),1,1) -> 44.4 | F154: =OFFSET(InputPriceData!E$15,CalculationsAndCharts!$A154+$A$11,IF($C$7,8,0),1,1) -> 43.54 | G154: =OFFSET(InputPriceData!F$15,CalculationsAndCharts!$A154+$A$11,IF($C$7,8,0),1,1) -> 43.9 | H154: 44.7812 | I154: 47.16485 | J154: FALSE | K154: FALSE | L154: FALSE | N154: FALSE | O154: FALSE | P154: FALSE | Q154: =IF(O154,D154,0) -> 0 | R154: 0 | T154: 44.7812 | U154: 47.16485 | AD154: 690700
A155: 123 | B155: =OFFSET(InputPriceData!B$15,CalculationsAndCharts!$A155+$A$11,0,1,1) -> 2016-07-20 | C155: =OFFSET(InputPriceData!G$15,CalculationsAndCharts!$A155+$A$11,IF($C$7,8,0),1,1) -> 898300 | D155: =OFFSET(InputPriceData!C$15,CalculationsAndCharts!$A155+$A$11,IF($C$7,8,0),1,1) -> 43.74 | E155: =OFFSET(InputPriceData!D$15,CalculationsAndCharts!$A155+$A$11,IF($C$7,8,0),1,1) -> 44.24 | F155: =OFFSET(InputPriceData!E$15,CalculationsAndCharts!$A155+$A$11,IF($C$7,8,0),1,1) -> 43.68 | G155: =OFFSET(InputPriceData!F$15,CalculationsAndCharts!$A155+$A$11,IF($C$7,8,0),1,1) -> 44.08 | H155: 44.848 | I155: 47.1922 | J155: FALSE | K155: FALSE | L155: FALSE | N155: FALSE | O155: FALSE | P155: FALSE | Q155: 0 | R155: 0 | T155: 44.848 | U155: 47.1922 | AC155: 898300
A156: 124 | B156: =OFFSET(InputPriceData!B$15,CalculationsAndCharts!$A156+$A$11,0,1,1) -> 2016-07-19 | C156: =OFFSET(InputPriceData!G$15,CalculationsAndCharts!$A156+$A$11,IF($C$7,8,0),1,1) -> 786800 | D156: =OFFSET(InputPriceData!C$15,CalculationsAndCharts!$A156+$A$11,IF($C$7,8,0),1,1) -> 43.25 | E156: =OFFSET(InputPriceData!D$15,CalculationsAndCharts!$A156+$A$11,IF($C$7,8,0),1,1) -> 44.13 | F156: =OFFSET(InputPriceData!E$15,CalculationsAndCharts!$A156+$A$11,IF($C$7,8,0),1,1) -> 43.19 | G156: =OFFSET(InputPriceData!F$15,CalculationsAndCharts!$A156+$A$11,IF($C$7,8,0),1,1) -> 43.65 | H156: 44.8886 | I156: 47.2194 | J156: FALSE | K156: FALSE | L156: FALSE | N156: FALSE | O156: FALSE | P156: FALSE | Q156: 0 | R156: 0 | T156: 44.8886 | U156: 47.2194 | AC156: 786800
A157: 125 | B157: =OFFSET(InputPriceData!B$15,CalculationsAndCharts!$A157+$A$11,0,1,1) -> 2016-07-18 | C157: =OFFSET(InputPriceData!G$15,CalculationsAndCharts!$A157+$A$11,IF($C$7,8,0),1,1) -> 854900 | D157: =OFFSET(InputPriceData!C$15,CalculationsAndCharts!$A157+$A$11,IF($C$7,8,0),1,1) -> 43.34 | E157: =OFFSET(InputPriceData!D$15,CalculationsAndCharts!$A157+$A$11,IF($C$7,8,0),1,1) -> 43.78 | F157: =OFFSET(InputPriceData!E$15,CalculationsAndCharts!$A157+$A$11,IF($C$7,8,0),1,1) -> 43.21 | G157: =OFFSET(InputPriceData!F$15,CalculationsAndCharts!$A157+$A$11,IF($C$7,8,0),1,1) -> 43.25 | H157: 44.9384 | I157: 47.24455 | J157: FALSE | K157: FALSE | L157: FALSE | N157: FALSE | O157: FALSE | P157: FALSE | Q157: 0 | R157: 0 | T157: 44.9384 | U157: 47.24455 | AD157: 854900
A158: 126 | B158: =OFFSET(InputPriceData!B$15,CalculationsAndCharts!$A158+$A$11,0,1,1) -> 2016-07-15 | C158: =OFFSET(InputPriceData!G$15,CalculationsAndCharts!$A158+$A$11,IF($C$7,8,0),1,1) -> 931500 | D158: =OFFSET(InputPriceData!C$15,CalculationsAndCharts!$A158+$A$11,IF($C$7,8,0),1,1) -> 43.85 | E158: =OFFSET(InputPriceData!D$15,CalculationsAndCharts!$A158+$A$11,IF($C$7,8,0),1,1) -> 43.91 | F158: =OFFSET(InputPriceData!E$15,CalculationsAndCharts!$A158+$A$11,IF($C$7,8,0),1,1) -> 43.31 | G158: =OFFSET(InputPriceData!F$15,CalculationsAndCharts!$A158+$A$11,IF($C$7,8,0),1,1) -> 43.34 | H158: 44.98 | I158: 47.2696 | J158: FALSE | K158: FALSE | L158: FALSE | N158: FALSE | O158: FALSE | P158: FALSE | Q158: 0 | R158: 0 | T158: 44.98 | U158: 47.2696 | AD158: 931500
A159: 127 | B159: =OFFSET(InputPriceData!B$15,CalculationsAndCharts!$A159+$A$11,0,1,1) -> 2016-07-14 | C159: =OFFSET(InputPriceData!G$15,CalculationsAndCharts!$A159+$A$11,IF($C$7,8,0),1,1) -> 1158400 | D159: =OFFSET(InputPriceData!C$15,CalculationsAndCharts!$A159+$A$11,IF($C$7,8,0),1,1) -> 43.97 | E159: =OFFSET(InputPriceData!D$15,CalculationsAndCharts!$A159+$A$11,IF($C$7,8,0),1,1) -> 44.11 | F159: =OFFSET(InputPriceData!E$15,CalculationsAndCharts!$A159+$A$11,IF($C$7,8,0),1,1) -> 43.5 | G159: =OFFSET(InputPriceData!F$15,CalculationsAndCharts!$A159+$A$11,IF($C$7,8,0),1,1) -> 43.52 | H159: 45.0224 | I159: 47.2906 | J159: FALSE | K159: FALSE | L159: FALSE | N159: FALSE | O159: FALSE | P159: FALSE | Q159: 0 | R159: 0 | T159: 45.0224 | U159: 47.2906 | AD159: 1158400
A160: 128 | B160: =OFFSET(InputPriceData!B$15,CalculationsAndCharts!$A160+$A$11,0,1,1) -> 2016-07-13 | C160: =OFFSET(InputPriceData!G$15,CalculationsAndCharts!$A160+$A$11,IF($C$7,8,0),1,1) -> 1443800 | D160: =OFFSET(InputPriceData!C$15,CalculationsAndCharts!$A160+$A$11,IF($C$7,8,0),1,1) -> 43.3 | E160: =OFFSET(InputPriceData!D$15,CalculationsAndCharts!$A160+$A$11,IF($C$7,8,0),1,1) -> 43.96 | F160: =OFFSET(InputPriceData!E$15,CalculationsAndCharts!$A160+$A$11,IF($C$7,8,0),1,1) -> 43.25 | G160: =OFFSET(InputPriceData!F$15,CalculationsAndCharts!$A160+$A$11,IF($C$7,8,0),1,1) -> 43.69 | H160: 45.0828 | I160: 47.31315 | J160: FALSE | K160: FALSE | L160: FALSE | N160: FALSE | O160: FALSE | P160: FALSE | Q160: 0 | R160: 0 | T160: 45.0828 | U160: 47.31315 | AC160: 1443800
A161: 129 | B161: =OFFSET(InputPriceData!B$15,CalculationsAndCharts!$A161+$A$11,0,1,1) -> 2016-07-12 | C161: =OFFSET(InputPriceData!G$15,CalculationsAndCharts!$A161+$A$11,IF($C$7,8,0),1,1) -> 1171800 | D161: =OFFSET(InputPriceData!C$15,CalculationsAndCharts!$A161+$A$11,IF($C$7,8,0),1,1) -> 43.03 | E161: =OFFSET(InputPriceData!D$15,CalculationsAndCharts!$A161+$A$11,IF($C$7,8,0),1,1) -> 43.27 | F161: =OFFSET(InputPriceData!E$15,CalculationsAndCharts!$A161+$A$11,IF($C$7,8,0),1,1) -> 42.51 | G161: =OFFSET(InputPriceData!F$15,CalculationsAndCharts!$A161+$A$11,IF($C$7,8,0),1,1) -> 43.17 | H161: =IF($A161>($A$8-$A$17+1),0,AVERAGE(OFFSET($G161,0,0,$A$17,1))) -> 45.152 | I161: =IF($A161>$A$8,0,IF($A161=$A$8,$G161,AVERAGE(OFFSET($G161,0,0,$A$18,1)))) -> 47.34335 | J161: =AND(A161<$A$8-1,H161>I161,H162<I162) -> FALSE | K161: =AND(A161<$A$8-1,H161<I161,H162>I162) -> FALSE | L161: FALSE | M161: =IF($A161>$A$8-2,NA(),IF(AND(L162,NOT(L163)),(G162-$A$19),IF(AND(L162,NOT(N162)),IF((G162-$A$19)>M162,(G162-$A$19),M162),NA()))) ->  | N161: =IFERROR(AND(L161,OR(K161,F161<M161)),FALSE) -> FALSE | O161: =AND(A161<$A$8-1,J162,NOT(L162)) -> FALSE | P161: =IFERROR(AND(A161<$A$8-1,L162,OR(K162,N162)),FALSE) -> FALSE | Q161: 0 | R161: 0 | T161: =IF($R$4,H161,NA()) -> 45.152 | U161: =IF($R$5,I161,NA()) -> 47.34335 | AC161: =IF(G161>=D161,C161,NA()) -> 1171800 | AD161: =IF(G161<D161,C161,NA()) -> 
A162: 130 | B162: =OFFSET(InputPriceData!B$15,CalculationsAndCharts!$A162+$A$11,0,1,1) -> 2016-07-11 | C162: =OFFSET(InputPriceData!G$15,CalculationsAndCharts!$A162+$A$11,IF($C$7,8,0),1,1) -> 951000 | D162: =OFFSET(InputPriceData!C$15,CalculationsAndCharts!$A162+$A$11,IF($C$7,8,0),1,1) -> 42.49 | E162: =OFFSET(InputPriceData!D$15,CalculationsAndCharts!$A162+$A$11,IF($C$7,8,0),1,1) -> 42.91 | F162: =OFFSET(InputPriceData!E$15,CalculationsAndCharts!$A162+$A$11,IF($C$7,8,0),1,1) -> 42.18 | G162: =OFFSET(InputPriceData!F$15,CalculationsAndCharts!$A162+$A$11,IF($C$7,8,0),1,1) -> 42.6 | H162: 45.23 | I162: 47.37615 | J162: FALSE | K162: FALSE | L162: FALSE | N162: FALSE | O162: FALSE | P162: FALSE | Q162: 0 | R162: 0 | T162: 45.23 | U162: 47.37615 | V162: =IF($R$6,M162,NA()) ->  | W162: =IF(AND($R$7,O162),$E162+1,NA()) ->  | X162: =IF(AND($R$7,P162),$E162+1,NA()) ->  | AC162: 951000
A163: 131 | B163: =OFFSET(InputPriceData!B$15,CalculationsAndCharts!$A163+$A$11,0,1,1) -> 2016-07-08 | C163: =OFFSET(InputPriceData!G$15,CalculationsAndCharts!$A163+$A$11,IF($C$7,8,0),1,1) -> 1551000 | D163: =OFFSET(InputPriceData!C$15,CalculationsAndCharts!$A163+$A$11,IF($C$7,8,0),1,1) -> 41.8 | E163: =OFFSET(InputPriceData!D$15,CalculationsAndCharts!$A163+$A$11,IF($C$7,8,0),1,1) -> 42.4 | F163: =OFFSET(InputPriceData!E$15,CalculationsAndCharts!$A163+$A$11,IF($C$7,8,0),1,1) -> 41.6 | G163: =OFFSET(InputPriceData!F$15,CalculationsAndCharts!$A163+$A$11,IF($C$7,8,0),1,1) -> 42.11 | H163: 45.356 | I163: 47.41125 | J163: FALSE | K163: FALSE | L163: FALSE | N163: FALSE | O163: FALSE | P163: FALSE | Q163: 0 | R163: 0 | T163: 45.356 | U163: 47.41125 | AC163: 1551000
A164: 132 | B164: =OFFSET(InputPriceData!B$15,CalculationsAndCharts!$A164+$A$11,0,1,1) -> 2016-07-07 | C164: =OFFSET(InputPriceData!G$15,CalculationsAndCharts!$A164+$A$11,IF($C$7,8,0),1,1) -> 1645400 | D164: =OFFSET(InputPriceData!C$15,CalculationsAndCharts!$A164+$A$11,IF($C$7,8,0),1,1) -> 41.79 | E164: =OFFSET(InputPriceData!D$15,CalculationsAndCharts!$A164+$A$11,IF($C$7,8,0),1,1) -> 42.28 | F164: =OFFSET(InputPriceData!E$15,CalculationsAndCharts!$A164+$A$11,IF($C$7,8,0),1,1) -> 41.32 | G164: =OFFSET(InputPriceData!F$15,CalculationsAndCharts!$A164+$A$11,IF($C$7,8,0),1,1) -> 41.54 | H164: 45.4898 | I164: 47.44935 | J164: FALSE | K164: FALSE | L164: FALSE | N164: FALSE | O164: FALSE | P164: FALSE | Q164: 0 | R164: 0 | T164: 45.4898 | U164: 47.44935 | AD164: 1645400
A165: 133 | B165: =OFFSET(InputPriceData!B$15,CalculationsAndCharts!$A165+$A$11,0,1,1) -> 2016-07-06 | C165: =OFFSET(InputPriceData!G$15,CalculationsAndCharts!$A165+$A$11,IF($C$7,8,0),1,1) -> 1396900 | D165: =OFFSET(InputPriceData!C$15,CalculationsAndCharts!$A165+$A$11,IF($C$7,8,0),1,1) -> 42.02 | E165: =OFFSET(InputPriceData!D$15,CalculationsAndCharts!$A165+$A$11,IF($C$7,8,0),1,1) -> 42.06 | F165: =OFFSET(InputPriceData!E$15,CalculationsAndCharts!$A165+$A$11,IF($C$7,8,0),1,1) -> 41.2 | G165: =OFFSET(InputPriceData!F$15,CalculationsAndCharts!$A165+$A$11,IF($C$7,8,0),1,1) -> 42.05 | H165: 45.6096 | I165: 47.49675 | J165: FALSE | K165: FALSE | L165: FALSE | N165: FALSE | O165: FALSE | P165: FALSE | Q165: 0 | R165: 0 | T165: 45.6096 | U165: 47.49675 | AC165: 1396900
A166: 134 | B166: =OFFSET(InputPriceData!B$15,CalculationsAndCharts!$A166+$A$11,0,1,1) -> 2016-07-05 | C166: =OFFSET(InputPriceData!G$15,CalculationsAndCharts!$A166+$A$11,IF($C$7,8,0),1,1) -> 820300 | D166: =OFFSET(InputPriceData!C$15,CalculationsAndCharts!$A166+$A$11,IF($C$7,8,0),1,1) -> 42.65 | E166: =OFFSET(InputPriceData!D$15,CalculationsAndCharts!$A166+$A$11,IF($C$7,8,0),1,1) -> 42.77 | F166: =OFFSET(InputPriceData!E$15,CalculationsAndCharts!$A166+$A$11,IF($C$7,8,0),1,1) -> 41.94 | G166: =OFFSET(InputPriceData!F$15,CalculationsAndCharts!$A166+$A$11,IF($C$7,8,0),1,1) -> 42.08 | H166: 45.7016 | I166: 47.5375 | J166: FALSE | K166: FALSE | L166: FALSE | N166: FALSE | O166: FALSE | P166: FALSE | Q166: 0 | R166: 0 | T166: 45.7016 | U166: 47.5375 | AD166: 820300
A167: 135 | B167: =OFFSET(InputPriceData!B$15,CalculationsAndCharts!$A167+$A$11,0,1,1) -> 2016-07-01 | C167: =OFFSET(InputPriceData!G$15,CalculationsAndCharts!$A167+$A$11,IF($C$7,8,0),1,1) -> 1606800 | D167: =OFFSET(InputPriceData!C$15,CalculationsAndCharts!$A167+$A$11,IF($C$7,8,0),1,1) -> 43.03 | E167: =OFFSET(InputPriceData!D$15,CalculationsAndCharts!$A167+$A$11,IF($C$7,8,0),1,1) -> 43.3 | F167: =OFFSET(InputPriceData!E$15,CalculationsAndCharts!$A167+$A$11,IF($C$7,8,0),1,1) -> 42.19 | G167: =OFFSET(InputPriceData!F$15,CalculationsAndCharts!$A167+$A$11,IF($C$7,8,0),1,1) -> 42.81 | H167: 45.7976 | I167: 47.58405 | J167: FALSE | K167: FALSE | L167: FALSE | N167: FALSE | O167: FALSE | P167: FALSE | Q167: 0 | R167: 0 | T167: 45.7976 | U167: 47.58405 | AD167: 1606800
A168: 136 | B168: =OFFSET(InputPriceData!B$15,CalculationsAndCharts!$A168+$A$11,0,1,1) -> 2016-06-30 | C168: =OFFSET(InputPriceData!G$15,CalculationsAndCharts!$A168+$A$11,IF($C$7,8,0),1,1) -> 1385900 | D168: =OFFSET(InputPriceData!C$15,CalculationsAndCharts!$A168+$A$11,IF($C$7,8,0),1,1) -> 42.2 | E168: =OFFSET(InputPriceData!D$15,CalculationsAndCharts!$A168+$A$11,IF($C$7,8,0),1,1) -> 43.02 | F168: =OFFSET(InputPriceData!E$15,CalculationsAndCharts!$A168+$A$11,IF($C$7,8,0),1,1) -> 42.05 | G168: =OFFSET(InputPriceData!F$15,CalculationsAndCharts!$A168+$A$11,IF($C$7,8,0),1,1) -> 42.93 | H168: 45.8744 | I168: 47.6283 | J168: FALSE | K168: FALSE | L168: FALSE | N168: FALSE | O168: FALSE | P168: FALSE | Q168: 0 | R168: 0 | T168: 45.8744 | U168: 47.6283 | AC168: 1385900
A169: 137 | B169: =OFFSET(InputPriceData!B$15,CalculationsAndCharts!$A169+$A$11,0,1,1) -> 2016-06-29 | C169: =OFFSET(InputPriceData!G$15,CalculationsAndCharts!$A169+$A$11,IF($C$7,8,0),1,1) -> 1356500 | D169: =OFFSET(InputPriceData!C$15,CalculationsAndCharts!$A169+$A$11,IF($C$7,8,0),1,1) -> 43.05 | E169: =OFFSET(InputPriceData!D$15,CalculationsAndCharts!$A169+$A$11,IF($C$7,8,0),1,1) -> 43.12 | F169: =OFFSET(InputPriceData!E$15,CalculationsAndCharts!$A169+$A$11,IF($C$7,8,0),1,1) -> 42.4 | G169: =OFFSET(InputPriceData!F$15,CalculationsAndCharts!$A169+$A$11,IF($C$7,8,0),1,1) -> 42.46 | H169: 45.9476 | I169: 47.67 | J169: FALSE | K169: FALSE | L169: FALSE | N169: FALSE | O169: FALSE | P169: FALSE | Q169: 0 | R169: 0 | T169: 45.9476 | U169: 47.67 | AD169: 1356500
A170: 138 | B170: =OFFSET(InputPriceData!B$15,CalculationsAndCharts!$A170+$A$11,0,1,1) -> 2016-06-28 | C170: =OFFSET(InputPriceData!G$15,CalculationsAndCharts!$A170+$A$11,IF($C$7,8,0),1,1) -> 1269700 | D170: =OFFSET(InputPriceData!C$15,CalculationsAndCharts!$A170+$A$11,IF($C$7,8,0),1,1) -> 42.43 | E170: =OFFSET(InputPriceData!D$15,CalculationsAndCharts!$A170+$A$11,IF($C$7,8,0),1,1) -> 42.63 | F170: =OFFSET(InputPriceData!E$15,CalculationsAndCharts!$A170+$A$11,IF($C$7,8,0),1,1) -> 41.84 | G170: =OFFSET(InputPriceData!F$15,CalculationsAndCharts!$A170+$A$11,IF($C$7,8,0),1,1) -> 42.55 | H170: 46.0372 | I170: 47.71095 | J170: FALSE | K170: FALSE | L170: FALSE | N170: FALSE | O170: FALSE | P170: FALSE | Q170: 0 | R170: 0 | T170: 46.0372 | U170: 47.71095 | AC170: 1269700
A171: 139 | B171: =OFFSET(InputPriceData!B$15,CalculationsAndCharts!$A171+$A$11,0,1,1) -> 2016-06-27 | C171: =OFFSET(InputPriceData!G$15,CalculationsAndCharts!$A171+$A$11,IF($C$7,8,0),1,1) -> 1299100 | D171: =OFFSET(InputPriceData!C$15,CalculationsAndCharts!$A171+$A$11,IF($C$7,8,0),1,1) -> 42.69 | E171: =OFFSET(InputPriceData!D$15,CalculationsAndCharts!$A171+$A$11,IF($C$7,8,0),1,1) -> 42.88 | F171: =OFFSET(InputPriceData!E$15,CalculationsAndCharts!$A171+$A$11,IF($C$7,8,0),1,1) -> 41.5 | G171: =OFFSET(InputPriceData!F$15,CalculationsAndCharts!$A171+$A$11,IF($C$7,8,0),1,1) -> 41.67 | H171: 46.128 | I171: 47.7527 | J171: FALSE | K171: FALSE | L171: FALSE | N171: FALSE | O171: FALSE | P171: FALSE | Q171: 0 | R171: 0 | T171: 46.128 | U171: 47.7527 | AD171: 1299100
A172: 140 | B172: =OFFSET(InputPriceData!B$15,CalculationsAndCharts!$A172+$A$11,0,1,1) -> 2016-06-24 | C172: =OFFSET(InputPriceData!G$15,CalculationsAndCharts!$A172+$A$11,IF($C$7,8,0),1,1) -> 2119900 | D172: =OFFSET(InputPriceData!C$15,CalculationsAndCharts!$A172+$A$11,IF($C$7,8,0),1,1) -> 43.54 | E172: =OFFSET(InputPriceData!D$15,CalculationsAndCharts!$A172+$A$11,IF($C$7,8,0),1,1) -> 44.3 | F172: =OFFSET(InputPriceData!E$15,CalculationsAndCharts!$A172+$A$11,IF($C$7,8,0),1,1) -> 43.09 | G172: =OFFSET(InputPriceData!F$15,CalculationsAndCharts!$A172+$A$11,IF($C$7,8,0),1,1) -> 43.13 | H172: 46.2372 | I172: 47.80175 | J172: FALSE | K172: FALSE | L172: FALSE | N172: FALSE | O172: FALSE | P172: FALSE | Q172: 0 | R172: 0 | T172: 46.2372 | U172: 47.80175 | AD172: 2119900
A173: 141 | B173: =OFFSET(InputPriceData!B$15,CalculationsAndCharts!$A173+$A$11,0,1,1) -> 2016-06-23 | C173: =OFFSET(InputPriceData!G$15,CalculationsAndCharts!$A173+$A$11,IF($C$7,8,0),1,1) -> 899200 | D173: =OFFSET(InputPriceData!C$15,CalculationsAndCharts!$A173+$A$11,IF($C$7,8,0),1,1) -> 45.4 | E173: =OFFSET(InputPriceData!D$15,CalculationsAndCharts!$A173+$A$11,IF($C$7,8,0),1,1) -> 45.69 | F173: =OFFSET(InputPriceData!E$15,CalculationsAndCharts!$A173+$A$11,IF($C$7,8,0),1,1) -> 45.15 | G173: =OFFSET(InputPriceData!F$15,CalculationsAndCharts!$A173+$A$11,IF($C$7,8,0),1,1) -> 45.32 | H173: 46.3138 | I173: 47.84295 | J173: FALSE | K173: FALSE | L173: FALSE | N173: FALSE | O173: FALSE | P173: FALSE | Q173: 0 | R173: 0 | T173: 46.3138 | U173: 47.84295 | AD173: 899200
A174: 142 | B174: =OFFSET(InputPriceData!B$15,CalculationsAndCharts!$A174+$A$11,0,1,1) -> 2016-06-22 | C174: =OFFSET(InputPriceData!G$15,CalculationsAndCharts!$A174+$A$11,IF($C$7,8,0),1,1) -> 1346100 | D174: =OFFSET(InputPriceData!C$15,CalculationsAndCharts!$A174+$A$11,IF($C$7,8,0),1,1) -> 44.37 | E174: =OFFSET(InputPriceData!D$15,CalculationsAndCharts!$A174+$A$11,IF($C$7,8,0),1,1) -> 45.32 | F174: =OFFSET(InputPriceData!E$15,CalculationsAndCharts!$A174+$A$11,IF($C$7,8,0),1,1) -> 44.27 | G174: =OFFSET(InputPriceData!F$15,CalculationsAndCharts!$A174+$A$11,IF($C$7,8,0),1,1) -> 44.9 | H174: 46.3548 | I174: 47.8751 | J174: FALSE | K174: FALSE | L174: FALSE | N174: FALSE | O174: FALSE | P174: FALSE | Q174: 0 | R174: 0 | T174: 46.3548 | U174: 47.8751 | AC174: 1346100
A175: 143 | B175: =OFFSET(InputPriceData!B$15,CalculationsAndCharts!$A175+$A$11,0,1,1) -> 2016-06-21 | C175: =OFFSET(InputPriceData!G$15,CalculationsAndCharts!$A175+$A$11,IF($C$7,8,0),1,1) -> 1277300 | D175: =OFFSET(InputPriceData!C$15,CalculationsAndCharts!$A175+$A$11,IF($C$7,8,0),1,1) -> 45.29 | E175: =OFFSET(InputPriceData!D$15,CalculationsAndCharts!$A175+$A$11,IF($C$7,8,0),1,1) -> 45.46 | F175: =OFFSET(InputPriceData!E$15,CalculationsAndCharts!$A175+$A$11,IF($C$7,8,0),1,1) -> 44.3 | G175: =OFFSET(InputPriceData!F$15,CalculationsAndCharts!$A175+$A$11,IF($C$7,8,0),1,1) -> 44.32 | H175: 46.3858 | I175: 47.9031 | J175: FALSE | K175: FALSE | L175: FALSE | N175: FALSE | O175: FALSE | P175: FALSE | Q175: 0 | R175: 0 | T175: 46.3858 | U175: 47.9031 | AD175: 1277300
A176: 144 | B176: =OFFSET(InputPriceData!B$15,CalculationsAndCharts!$A176+$A$11,0,1,1) -> 2016-06-20 | C176: =OFFSET(InputPriceData!G$15,CalculationsAndCharts!$A176+$A$11,IF($C$7,8,0),1,1) -> 888700 | D176: =OFFSET(InputPriceData!C$15,CalculationsAndCharts!$A176+$A$11,IF($C$7,8,0),1,1) -> 44.93 | E176: =OFFSET(InputPriceData!D$15,CalculationsAndCharts!$A176+$A$11,IF($C$7,8,0),1,1) -> 45.53 | F176: =OFFSET(InputPriceData!E$15,CalculationsAndCharts!$A176+$A$11,IF($C$7,8,0),1,1) -> 44.89 | G176: =OFFSET(InputPriceData!F$15,CalculationsAndCharts!$A176+$A$11,IF($C$7,8,0),1,1) -> 45 | H176: 46.4202 | I176: 47.93635 | J176: FALSE | K176: FALSE | L176: FALSE | N176: FALSE | O176: FALSE | P176: FALSE | Q176: 0 | R176: 0 | T176: 46.4202 | U176: 47.93635 | AC176: 888700
A177: 145 | B177: =OFFSET(InputPriceData!B$15,CalculationsAndCharts!$A177+$A$11,0,1,1) -> 2016-06-17 | C177: =OFFSET(InputPriceData!G$15,CalculationsAndCharts!$A177+$A$11,IF($C$7,8,0),1,1) -> 1593500 | D177: =OFFSET(InputPriceData!C$15,CalculationsAndCharts!$A177+$A$11,IF($C$7,8,0),1,1) -> 44.13 | E177: =OFFSET(InputPriceData!D$15,CalculationsAndCharts!$A177+$A$11,IF($C$7,8,0),1,1) -> 44.75 | F177: =OFFSET(InputPriceData!E$15,CalculationsAndCharts!$A177+$A$11,IF($C$7,8,0),1,1) -> 43.9 | G177: =OFFSET(InputPriceData!F$15,CalculationsAndCharts!$A177+$A$11,IF($C$7,8,0),1,1) -> 44.35 | H177: 46.4358 | I177: 47.96685 | J177: FALSE | K177: FALSE | L177: FALSE | N177: FALSE | O177: FALSE | P177: FALSE | Q177: 0 | R177: 0 | T177: 46.4358 | U177: 47.96685 | AC177: 1593500
A178: 146 | B178: =OFFSET(InputPriceData!B$15,CalculationsAndCharts!$A178+$A$11,0,1,1) -> 2016-06-16 | C178: =OFFSET(InputPriceData!G$15,CalculationsAndCharts!$A178+$A$11,IF($C$7,8,0),1,1) -> 1022200 | D178: =OFFSET(InputPriceData!C$15,CalculationsAndCharts!$A178+$A$11,IF($C$7,8,0),1,1) -> 44.04 | E178: =OFFSET(InputPriceData!D$15,CalculationsAndCharts!$A178+$A$11,IF($C$7,8,0),1,1) -> 44.3 | F178: =OFFSET(InputPriceData!E$15,CalculationsAndCharts!$A178+$A$11,IF($C$7,8,0),1,1) -> 43.71 | G178: =OFFSET(InputPriceData!F$15,CalculationsAndCharts!$A178+$A$11,IF($C$7,8,0),1,1) -> 44.14 | H178: 46.4688 | I178: 47.9945 | J178: FALSE | K178: FALSE | L178: FALSE | N178: FALSE | O178: FALSE | P178: FALSE | Q178: 0 | R178: 0 | T178: 46.4688 | U178: 47.9945 | AC178: 1022200
A179: 147 | B179: =OFFSET(InputPriceData!B$15,CalculationsAndCharts!$A179+$A$11,0,1,1) -> 2016-06-15 | C179: =OFFSET(InputPriceData!G$15,CalculationsAndCharts!$A179+$A$11,IF($C$7,8,0),1,1) -> 858000 | D179: =OFFSET(InputPriceData!C$15,CalculationsAndCharts!$A179+$A$11,IF($C$7,8,0),1,1) -> 44.66 | E179: =OFFSET(InputPriceData!D$15,CalculationsAndCharts!$A179+$A$11,IF($C$7,8,0),1,1) -> 44.89 | F179: =OFFSET(InputPriceData!E$15,CalculationsAndCharts!$A179+$A$11,IF($C$7,8,0),1,1) -> 44.09 | G179: =OFFSET(InputPriceData!F$15,CalculationsAndCharts!$A179+$A$11,IF($C$7,8,0),1,1) -> 44.14 | H179: 46.5028 | I179: 48.0289 | J179: FALSE | K179: FALSE | L179: FALSE | N179: FALSE | O179: FALSE | P179: FALSE | Q179: 0 | R179: 0 | T179: 46.5028 | U179: 48.0289 | AD179: 858000
A180: 148 | B180: =OFFSET(InputPriceData!B$15,CalculationsAndCharts!$A180+$A$11,0,1,1) -> 2016-06-14 | C180: =OFFSET(InputPriceData!G$15,CalculationsAndCharts!$A180+$A$11,IF($C$7,8,0),1,1) -> 1563300 | D180: =OFFSET(InputPriceData!C$15,CalculationsAndCharts!$A180+$A$11,IF($C$7,8,0),1,1) -> 44.17 | E180: =OFFSET(InputPriceData!D$15,CalculationsAndCharts!$A180+$A$11,IF($C$7,8,0),1,1) -> 44.55 | F180: =OFFSET(InputPriceData!E$15,CalculationsAndCharts!$A180+$A$11,IF($C$7,8,0),1,1) -> 43.73 | G180: =OFFSET(InputPriceData!F$15,CalculationsAndCharts!$A180+$A$11,IF($C$7,8,0),1,1) -> 44.48 | H180: 46.525 | I180: 48.06645 | J180: FALSE | K180: FALSE | L180: FALSE | N180: FALSE | O180: FALSE | P180: FALSE | Q180: 0 | R180: 0 | T180: 46.525 | U180: 48.06645 | AC180: 1563300
A181: 149 | B181: =OFFSET(InputPriceData!B$15,CalculationsAndCharts!$A181+$A$11,0,1,1) -> 2016-06-13 | C181: =OFFSET(InputPriceData!G$15,CalculationsAndCharts!$A181+$A$11,IF($C$7,8,0),1,1) -> 1369300 | D181: =OFFSET(InputPriceData!C$15,CalculationsAndCharts!$A181+$A$11,IF($C$7,8,0),1,1) -> 45.23 | E181: =OFFSET(InputPriceData!D$15,CalculationsAndCharts!$A181+$A$11,IF($C$7,8,0),1,1) -> 45.77 | F181: =OFFSET(InputPriceData!E$15,CalculationsAndCharts!$A181+$A$11,IF($C$7,8,0),1,1) -> 44.34 | G181: =OFFSET(InputPriceData!F$15,CalculationsAndCharts!$A181+$A$11,IF($C$7,8,0),1,1) -> 44.35 | H181: 46.5362 | I181: 48.103 | J181: FALSE | K181: FALSE | L181: FALSE | N181: FALSE | O181: FALSE | P181: FALSE | Q181: 0 | R181: =IF(P181,D181,0) -> 0 | T181: 46.5362 | U181: 48.103 | AD181: 1369300
A182: 150 | B182: =OFFSET(InputPriceData!B$15,CalculationsAndCharts!$A182+$A$11,0,1,1) -> 2016-06-10 | C182: =OFFSET(InputPriceData!G$15,CalculationsAndCharts!$A182+$A$11,IF($C$7,8,0),1,1) -> 1529200 | D182: =OFFSET(InputPriceData!C$15,CalculationsAndCharts!$A182+$A$11,IF($C$7,8,0),1,1) -> 45.84 | E182: =OFFSET(InputPriceData!D$15,CalculationsAndCharts!$A182+$A$11,IF($C$7,8,0),1,1) -> 45.95 | F182: =OFFSET(InputPriceData!E$15,CalculationsAndCharts!$A182+$A$11,IF($C$7,8,0),1,1) -> 45.27 | G182: =OFFSET(InputPriceData!F$15,CalculationsAndCharts!$A182+$A$11,IF($C$7,8,0),1,1) -> 45.48 | H182: 46.555 | I182: 48.13385 | J182: FALSE | K182: FALSE | L182: FALSE | N182: FALSE | O182: FALSE | P182: FALSE | Q182: 0 | R182: 0 | T182: 46.555 | U182: 48.13385 | AD182: 1529200
A183: 151 | B183: =OFFSET(InputPriceData!B$15,CalculationsAndCharts!$A183+$A$11,0,1,1) -> 2016-06-09 | C183: =OFFSET(InputPriceData!G$15,CalculationsAndCharts!$A183+$A$11,IF($C$7,8,0),1,1) -> 1642000 | D183: =OFFSET(InputPriceData!C$15,CalculationsAndCharts!$A183+$A$11,IF($C$7,8,0),1,1) -> 46.16 | E183: =OFFSET(InputPriceData!D$15,CalculationsAndCharts!$A183+$A$11,IF($C$7,8,0),1,1) -> 46.53 | F183: =OFFSET(InputPriceData!E$15,CalculationsAndCharts!$A183+$A$11,IF($C$7,8,0),1,1) -> 45.69 | G183: =OFFSET(InputPriceData!F$15,CalculationsAndCharts!$A183+$A$11,IF($C$7,8,0),1,1) -> 46.15 | H183: 46.551 | I183: 48.15115 | J183: FALSE | K183: FALSE | L183: FALSE | N183: FALSE | O183: FALSE | P183: FALSE | Q183: 0 | R183: 0 | T183: 46.551 | U183: 48.15115 | AD183: 1642000
A184: 152 | B184: =OFFSET(InputPriceData!B$15,CalculationsAndCharts!$A184+$A$11,0,1,1) -> 2016-06-08 | C184: =OFFSET(InputPriceData!G$15,CalculationsAndCharts!$A184+$A$11,IF($C$7,8,0),1,1) -> 3680100 | D184: =OFFSET(InputPriceData!C$15,CalculationsAndCharts!$A184+$A$11,IF($C$7,8,0),1,1) -> 46.46 | E184: =OFFSET(InputPriceData!D$15,CalculationsAndCharts!$A184+$A$11,IF($C$7,8,0),1,1) -> 46.59 | F184: =OFFSET(InputPriceData!E$15,CalculationsAndCharts!$A184+$A$11,IF($C$7,8,0),1,1) -> 45.16 | G184: =OFFSET(InputPriceData!F$15,CalculationsAndCharts!$A184+$A$11,IF($C$7,8,0),1,1) -> 45.58 | H184: 46.5534 | I184: 48.17 | J184: FALSE | K184: FALSE | L184: FALSE | N184: FALSE | O184: FALSE | P184: FALSE | Q184: 0 | R184: 0 | T184: 46.5534 | U184: 48.17 | AD184: 3680100
A185: 153 | B185: =OFFSET(InputPriceData!B$15,CalculationsAndCharts!$A185+$A$11,0,1,1) -> 2016-06-07 | C185: =OFFSET(InputPriceData!G$15,CalculationsAndCharts!$A185+$A$11,IF($C$7,8,0),1,1) -> 617800 | D185: =OFFSET(InputPriceData!C$15,CalculationsAndCharts!$A185+$A$11,IF($C$7,8,0),1,1) -> 47.27 | E185: =OFFSET(InputPriceData!D$15,CalculationsAndCharts!$A185+$A$11,IF($C$7,8,0),1,1) -> 47.62 | F185: =OFFSET(InputPriceData!E$15,CalculationsAndCharts!$A185+$A$11,IF($C$7,8,0),1,1) -> 47.23 | G185: =OFFSET(InputPriceData!F$15,CalculationsAndCharts!$A185+$A$11,IF($C$7,8,0),1,1) -> 47.37 | H185: 46.5752 | I185: 48.1991 | J185: FALSE | K185: FALSE | L185: FALSE | N185: FALSE | O185: FALSE | P185: FALSE | Q185: 0 | R185: 0 | T185: 46.5752 | U185: 48.1991 | AC185: 617800
A186: 154 | B186: =OFFSET(InputPriceData!B$15,CalculationsAndCharts!$A186+$A$11,0,1,1) -> 2016-06-06 | C186: =OFFSET(InputPriceData!G$15,CalculationsAndCharts!$A186+$A$11,IF($C$7,8,0),1,1) -> 864000 | D186: =OFFSET(InputPriceData!C$15,CalculationsAndCharts!$A186+$A$11,IF($C$7,8,0),1,1) -> 46.69 | E186: =OFFSET(InputPriceData!D$15,CalculationsAndCharts!$A186+$A$11,IF($C$7,8,0),1,1) -> 47.25 | F186: =OFFSET(InputPriceData!E$15,CalculationsAndCharts!$A186+$A$11,IF($C$7,8,0),1,1) -> 46.39 | G186: =OFFSET(InputPriceData!F$15,CalculationsAndCharts!$A186+$A$11,IF($C$7,8,0),1,1) -> 47.23 | H186: 46.5602 | I186: 48.228 | J186: FALSE | K186: FALSE | L186: =IF($A186>$A$8-1,FALSE,IF(J187,TRUE,IF(AND(L187,P186),FALSE,L187))) -> FALSE | N186: FALSE | O186: FALSE | P186: FALSE | Q186: 0 | R186: 0 | T186: 46.5602 | U186: 48.228 | AC186: 864000
A187: 155 | B187: =OFFSET(InputPriceData!B$15,CalculationsAndCharts!$A187+$A$11,0,1,1) -> 2016-06-03 | C187: =OFFSET(InputPriceData!G$15,CalculationsAndCharts!$A187+$A$11,IF($C$7,8,0),1,1) -> 809400 | D187: =OFFSET(InputPriceData!C$15,CalculationsAndCharts!$A187+$A$11,IF($C$7,8,0),1,1) -> 46.79 | E187: =OFFSET(InputPriceData!D$15,CalculationsAndCharts!$A187+$A$11,IF($C$7,8,0),1,1) -> 46.79 | F187: =OFFSET(InputPriceData!E$15,CalculationsAndCharts!$A187+$A$11,IF($C$7,8,0),1,1) -> 46.05 | G187: =OFFSET(InputPriceData!F$15,CalculationsAndCharts!$A187+$A$11,IF($C$7,8,0),1,1) -> 46.42 | H187: 46.5606 | I187: 48.2696 | J187: FALSE | K187: FALSE | L187: FALSE | N187: FALSE | O187: FALSE | P187: FALSE | Q187: 0 | R187: 0 | T187: 46.5606 | U187: 48.2696 | AD187: 809400
A188: 156 | B188: =OFFSET(InputPriceData!B$15,CalculationsAndCharts!$A188+$A$11,0,1,1) -> 2016-06-02 | C188: =OFFSET(InputPriceData!G$15,CalculationsAndCharts!$A188+$A$11,IF($C$7,8,0),1,1) -> 723800 | D188: =OFFSET(InputPriceData!C$15,CalculationsAndCharts!$A188+$A$11,IF($C$7,8,0),1,1) -> 46.61 | E188: =OFFSET(InputPriceData!D$15,CalculationsAndCharts!$A188+$A$11,IF($C$7,8,0),1,1) -> 46.87 | F188: =OFFSET(InputPriceData!E$15,CalculationsAndCharts!$A188+$A$11,IF($C$7,8,0),1,1) -> 46.23 | G188: =OFFSET(InputPriceData!F$15,CalculationsAndCharts!$A188+$A$11,IF($C$7,8,0),1,1) -> 46.77 | H188: 46.5786 | I188: 48.31785 | J188: FALSE | K188: FALSE | L188: FALSE | N188: FALSE | O188: FALSE | P188: FALSE | Q188: 0 | R188: 0 | T188: 46.5786 | U188: 48.31785 | AC188: 723800
A189: 157 | B189: =OFFSET(InputPriceData!B$15,CalculationsAndCharts!$A189+$A$11,0,1,1) -> 2016-06-01 | C189: =OFFSET(InputPriceData!G$15,CalculationsAndCharts!$A189+$A$11,IF($C$7,8,0),1,1) -> 1008400 | D189: =OFFSET(InputPriceData!C$15,CalculationsAndCharts!$A189+$A$11,IF($C$7,8,0),1,1) -> 46.7 | E189: =OFFSET(InputPriceData!D$15,CalculationsAndCharts!$A189+$A$11,IF($C$7,8,0),1,1) -> 46.9 | F189: =OFFSET(InputPriceData!E$15,CalculationsAndCharts!$A189+$A$11,IF($C$7,8,0),1,1) -> 46.1 | G189: =OFFSET(InputPriceData!F$15,CalculationsAndCharts!$A189+$A$11,IF($C$7,8,0),1,1) -> 46.71 | H189: 46.5902 | I189: 48.36565 | J189: FALSE | K189: FALSE | L189: FALSE | N189: FALSE | O189: FALSE | P189: FALSE | Q189: 0 | R189: 0 | T189: 46.5902 | U189: 48.36565 | AC189: 1008400
A190: 158 | B190: =OFFSET(InputPriceData!B$15,CalculationsAndCharts!$A190+$A$11,0,1,1) -> 2016-05-31 | C190: =OFFSET(InputPriceData!G$15,CalculationsAndCharts!$A190+$A$11,IF($C$7,8,0),1,1) -> 1397800 | D190: =OFFSET(InputPriceData!C$15,CalculationsAndCharts!$A190+$A$11,IF($C$7,8,0),1,1) -> 47.05 | E190: =OFFSET(InputPriceData!D$15,CalculationsAndCharts!$A190+$A$11,IF($C$7,8,0),1,1) -> 47.12 | F190: =OFFSET(InputPriceData!E$15,CalculationsAndCharts!$A190+$A$11,IF($C$7,8,0),1,1) -> 46.23 | G190: =OFFSET(InputPriceData!F$15,CalculationsAndCharts!$A190+$A$11,IF($C$7,8,0),1,1) -> 46.7 | H190: 46.5994 | I190: 48.4116 | J190: FALSE | K190: FALSE | L190: FALSE | N190: FALSE | O190: FALSE | P190: FALSE | Q190: 0 | R190: 0 | T190: 46.5994 | U190: 48.4116 | AD190: 1397800
A191: 159 | B191: =OFFSET(InputPriceData!B$15,CalculationsAndCharts!$A191+$A$11,0,1,1) -> 2016-05-27 | C191: =OFFSET(InputPriceData!G$15,CalculationsAndCharts!$A191+$A$11,IF($C$7,8,0),1,1) -> 904300 | D191: =OFFSET(InputPriceData!C$15,CalculationsAndCharts!$A191+$A$11,IF($C$7,8,0),1,1) -> 46.82 | E191: =OFFSET(InputPriceData!D$15,CalculationsAndCharts!$A191+$A$11,IF($C$7,8,0),1,1) -> 47.06 | F191: =OFFSET(InputPriceData!E$15,CalculationsAndCharts!$A191+$A$11,IF($C$7,8,0),1,1) -> 46.53 | G191: =OFFSET(InputPriceData!F$15,CalculationsAndCharts!$A191+$A$11,IF($C$7,8,0),1,1) -> 47 | H191: 46.6054 | I191: 48.4555 | J191: FALSE | K191: FALSE | L191: FALSE | N191: FALSE | O191: FALSE | P191: FALSE | Q191: 0 | R191: 0 | T191: 46.6054 | U191: 48.4555 | AC191: 904300
A192: 160 | B192: =OFFSET(InputPriceData!B$15,CalculationsAndCharts!$A192+$A$11,0,1,1) -> 2016-05-26 | C192: =OFFSET(InputPriceData!G$15,CalculationsAndCharts!$A192+$A$11,IF($C$7,8,0),1,1) -> 1611300 | D192: =OFFSET(InputPriceData!C$15,CalculationsAndCharts!$A192+$A$11,IF($C$7,8,0),1,1) -> 46.3 | E192: =OFFSET(InputPriceData!D$15,CalculationsAndCharts!$A192+$A$11,IF($C$7,8,0),1,1) -> 47 | F192: =OFFSET(InputPriceData!E$15,CalculationsAndCharts!$A192+$A$11,IF($C$7,8,0),1,1) -> 46.15 | G192: =OFFSET(InputPriceData!F$15,CalculationsAndCharts!$A192+$A$11,IF($C$7,8,0),1,1) -> 46.9 | H192: 46.6032 | I192: 48.4944 | J192: FALSE | K192: FALSE | L192: FALSE | N192: FALSE | O192: FALSE | P192: FALSE | Q192: 0 | R192: 0 | T192: 46.6032 | U192: 48.4944 | AC192: 1611300
A193: 161 | B193: =OFFSET(InputPriceData!B$15,CalculationsAndCharts!$A193+$A$11,0,1,1) -> 2016-05-25 | C193: =OFFSET(InputPriceData!G$15,CalculationsAndCharts!$A193+$A$11,IF($C$7,8,0),1,1) -> 1187300 | D193: =OFFSET(InputPriceData!C$15,CalculationsAndCharts!$A193+$A$11,IF($C$7,8,0),1,1) -> 45.89 | E193: =OFFSET(InputPriceData!D$15,CalculationsAndCharts!$A193+$A$11,IF($C$7,8,0),1,1) -> 46.1 | F193: =OFFSET(InputPriceData!E$15,CalculationsAndCharts!$A193+$A$11,IF($C$7,8,0),1,1) -> 45.4 | G193: =OFFSET(InputPriceData!F$15,CalculationsAndCharts!$A193+$A$11,IF($C$7,8,0),1,1) -> 46.02 | H193: 46.5846 | I193: 48.536 | J193: FALSE | K193: FALSE | L193: FALSE | N193: FALSE | O193: FALSE | P193: FALSE | Q193: 0 | R193: 0 | T193: 46.5846 | U193: 48.536 | AC193: 1187300
A194: 162 | B194: =OFFSET(InputPriceData!B$15,CalculationsAndCharts!$A194+$A$11,0,1,1) -> 2016-05-24 | C194: =OFFSET(InputPriceData!G$15,CalculationsAndCharts!$A194+$A$11,IF($C$7,8,0),1,1) -> 1508100 | D194: =OFFSET(InputPriceData!C$15,CalculationsAndCharts!$A194+$A$11,IF($C$7,8,0),1,1) -> 46.44 | E194: =OFFSET(InputPriceData!D$15,CalculationsAndCharts!$A194+$A$11,IF($C$7,8,0),1,1) -> 46.99 | F194: =OFFSET(InputPriceData!E$15,CalculationsAndCharts!$A194+$A$11,IF($C$7,8,0),1,1) -> 45.78 | G194: =OFFSET(InputPriceData!F$15,CalculationsAndCharts!$A194+$A$11,IF($C$7,8,0),1,1) -> 45.82 | H194: 46.5824 | I194: 48.588 | J194: FALSE | K194: FALSE | L194: FALSE | N194: FALSE | O194: FALSE | P194: FALSE | Q194: 0 | R194: 0 | T194: 46.5824 | U194: 48.588 | AD194: 1508100
A195: 163 | B195: =OFFSET(InputPriceData!B$15,CalculationsAndCharts!$A195+$A$11,0,1,1) -> 2016-05-23 | C195: =OFFSET(InputPriceData!G$15,CalculationsAndCharts!$A195+$A$11,IF($C$7,8,0),1,1) -> 816100 | D195: =OFFSET(InputPriceData!C$15,CalculationsAndCharts!$A195+$A$11,IF($C$7,8,0),1,1) -> 46.47 | E195: =OFFSET(InputPriceData!D$15,CalculationsAndCharts!$A195+$A$11,IF($C$7,8,0),1,1) -> 46.56 | F195: =OFFSET(InputPriceData!E$15,CalculationsAndCharts!$A195+$A$11,IF($C$7,8,0),1,1) -> 45.8 | G195: =OFFSET(InputPriceData!F$15,CalculationsAndCharts!$A195+$A$11,IF($C$7,8,0),1,1) -> 46.24 | H195: 46.5992 | I195: 48.6332 | J195: FALSE | K195: FALSE | L195: FALSE | N195: FALSE | O195: FALSE | P195: FALSE | Q195: 0 | R195: 0 | T195: 46.5992 | U195: 48.6332 | AD195: 816100
A196: 164 | B196: =OFFSET(InputPriceData!B$15,CalculationsAndCharts!$A196+$A$11,0,1,1) -> 2016-05-20 | C196: =OFFSET(InputPriceData!G$15,CalculationsAndCharts!$A196+$A$11,IF($C$7,8,0),1,1) -> 707900 | D196: =OFFSET(InputPriceData!C$15,CalculationsAndCharts!$A196+$A$11,IF($C$7,8,0),1,1) -> 46.45 | E196: =OFFSET(InputPriceData!D$15,CalculationsAndCharts!$A196+$A$11,IF($C$7,8,0),1,1) -> 46.83 | F196: =OFFSET(InputPriceData!E$15,CalculationsAndCharts!$A196+$A$11,IF($C$7,8,0),1,1) -> 46.27 | G196: =OFFSET(InputPriceData!F$15,CalculationsAndCharts!$A196+$A$11,IF($C$7,8,0),1,1) -> 46.49 | H196: 46.6104 | I196: 48.68235 | J196: FALSE | K196: FALSE | L196: FALSE | N196: FALSE | O196: FALSE | P196: FALSE | Q196: 0 | R196: 0 | T196: 46.6104 | U196: 48.68235 | AC196: 707900
A197: 165 | B197: =OFFSET(InputPriceData!B$15,CalculationsAndCharts!$A197+$A$11,0,1,1) -> 2016-05-19 | C197: =OFFSET(InputPriceData!G$15,CalculationsAndCharts!$A197+$A$11,IF($C$7,8,0),1,1) -> 1447200 | D197: =OFFSET(InputPriceData!C$15,CalculationsAndCharts!$A197+$A$11,IF($C$7,8,0),1,1) -> 46.57 | E197: =OFFSET(InputPriceData!D$15,CalculationsAndCharts!$A197+$A$11,IF($C$7,8,0),1,1) -> 46.91 | F197: =OFFSET(InputPriceData!E$15,CalculationsAndCharts!$A197+$A$11,IF($C$7,8,0),1,1) -> 45.39 | G197: =OFFSET(InputPriceData!F$15,CalculationsAndCharts!$A197+$A$11,IF($C$7,8,0),1,1) -> 46.24 | H197: 46.5992 | I197: 48.7352 | J197: FALSE | K197: FALSE | L197: FALSE | N197: FALSE | O197: FALSE | P197: FALSE | Q197: 0 | R197: 0 | T197: 46.5992 | U197: 48.7352 | AD197: 1447200
A198: 166 | B198: =OFFSET(InputPriceData!B$15,CalculationsAndCharts!$A198+$A$11,0,1,1) -> 2016-05-18 | C198: =OFFSET(InputPriceData!G$15,CalculationsAndCharts!$A198+$A$11,IF($C$7,8,0),1,1) -> 919600 | D198: =OFFSET(InputPriceData!C$15,CalculationsAndCharts!$A198+$A$11,IF($C$7,8,0),1,1) -> 46.29 | E198: =OFFSET(InputPriceData!D$15,CalculationsAndCharts!$A198+$A$11,IF($C$7,8,0),1,1) -> 47.34 | F198: =OFFSET(InputPriceData!E$15,CalculationsAndCharts!$A198+$A$11,IF($C$7,8,0),1,1) -> 46.18 | G198: =OFFSET(InputPriceData!F$15,CalculationsAndCharts!$A198+$A$11,IF($C$7,8,0),1,1) -> 46.64 | H198: 46.5934 | I198: 48.78855 | J198: FALSE | K198: FALSE | L198: FALSE | N198: FALSE | O198: FALSE | P198: FALSE | Q198: 0 | R198: 0 | T198: 46.5934 | U198: 48.78855 | AC198: 919600
A199: 167 | B199: =OFFSET(InputPriceData!B$15,CalculationsAndCharts!$A199+$A$11,0,1,1) -> 2016-05-17 | C199: =OFFSET(InputPriceData!G$15,CalculationsAndCharts!$A199+$A$11,IF($C$7,8,0),1,1) -> 1527800 | D199: =OFFSET(InputPriceData!C$15,CalculationsAndCharts!$A199+$A$11,IF($C$7,8,0),1,1) -> 46.3 | E199: =OFFSET(InputPriceData!D$15,CalculationsAndCharts!$A199+$A$11,IF($C$7,8,0),1,1) -> 47.05 | F199: =OFFSET(InputPriceData!E$15,CalculationsAndCharts!$A199+$A$11,IF($C$7,8,0),1,1) -> 46.16 | G199: =OFFSET(InputPriceData!F$15,CalculationsAndCharts!$A199+$A$11,IF($C$7,8,0),1,1) -> 46.53 | H199: 46.5674 | I199: 48.8367 | J199: FALSE | K199: FALSE | L199: FALSE | N199: FALSE | O199: FALSE | P199: FALSE | Q199: 0 | R199: 0 | T199: 46.5674 | U199: 48.8367 | AC199: 1527800
A200: 168 | B200: =OFFSET(InputPriceData!B$15,CalculationsAndCharts!$A200+$A$11,0,1,1) -> 2016-05-16 | C200: =OFFSET(InputPriceData!G$15,CalculationsAndCharts!$A200+$A$11,IF($C$7,8,0),1,1) -> 1470000 | D200: =OFFSET(InputPriceData!C$15,CalculationsAndCharts!$A200+$A$11,IF($C$7,8,0),1,1) -> 46.94 | E200: =OFFSET(InputPriceData!D$15,CalculationsAndCharts!$A200+$A$11,IF($C$7,8,0),1,1) -> 47.12 | F200: =OFFSET(InputPriceData!E$15,CalculationsAndCharts!$A200+$A$11,IF($C$7,8,0),1,1) -> 46.21 | G200: =OFFSET(InputPriceData!F$15,CalculationsAndCharts!$A200+$A$11,IF($C$7,8,0),1,1) -> 46.68 | H200: 46.5478 | I200: 48.88505 | J200: FALSE | K200: FALSE | L200: FALSE | N200: FALSE | O200: FALSE | P200: FALSE | Q200: 0 | R200: 0 | T200: 46.5478 | U200: 48.88505 | AD200: 1470000
A201: 169 | B201: =OFFSET(InputPriceData!B$15,CalculationsAndCharts!$A201+$A$11,0,1,1) -> 2016-05-13 | C201: =OFFSET(InputPriceData!G$15,CalculationsAndCharts!$A201+$A$11,IF($C$7,8,0),1,1) -> 1731000 | D201: =OFFSET(InputPriceData!C$15,CalculationsAndCharts!$A201+$A$11,IF($C$7,8,0),1,1) -> 46.97 | E201: =OFFSET(InputPriceData!D$15,CalculationsAndCharts!$A201+$A$11,IF($C$7,8,0),1,1) -> 47.78 | F201: =OFFSET(InputPriceData!E$15,CalculationsAndCharts!$A201+$A$11,IF($C$7,8,0),1,1) -> 46.3 | G201: =OFFSET(InputPriceData!F$15,CalculationsAndCharts!$A201+$A$11,IF($C$7,8,0),1,1) -> 46.58 | H201: 46.5506 | I201: 48.92995 | J201: FALSE | K201: FALSE | L201: FALSE | N201: FALSE | O201: FALSE | P201: FALSE | Q201: 0 | R201: 0 | T201: 46.5506 | U201: 48.92995 | AD201: 1731000
A202: 170 | B202: =OFFSET(InputPriceData!B$15,CalculationsAndCharts!$A202+$A$11,0,1,1) -> 2016-05-12 | C202: =OFFSET(InputPriceData!G$15,CalculationsAndCharts!$A202+$A$11,IF($C$7,8,0),1,1) -> 1532300 | D202: =OFFSET(InputPriceData!C$15,CalculationsAndCharts!$A202+$A$11,IF($C$7,8,0),1,1) -> 46.87 | E202: =OFFSET(InputPriceData!D$15,CalculationsAndCharts!$A202+$A$11,IF($C$7,8,0),1,1) -> 47.5 | F202: =OFFSET(InputPriceData!E$15,CalculationsAndCharts!$A202+$A$11,IF($C$7,8,0),1,1) -> 46.84 | G202: =OFFSET(InputPriceData!F$15,CalculationsAndCharts!$A202+$A$11,IF($C$7,8,0),1,1) -> 47.18 | H202: 46.541 | I202: 48.9758 | J202: FALSE | K202: FALSE | L202: FALSE | N202: FALSE | O202: FALSE | P202: FALSE | Q202: 0 | R202: 0 | T202: 46.541 | U202: 48.9758 | AC202: 1532300
A203: 171 | B203: =OFFSET(InputPriceData!B$15,CalculationsAndCharts!$A203+$A$11,0,1,1) -> 2016-05-11 | C203: =OFFSET(InputPriceData!G$15,CalculationsAndCharts!$A203+$A$11,IF($C$7,8,0),1,1) -> 1479500 | D203: =OFFSET(InputPriceData!C$15,CalculationsAndCharts!$A203+$A$11,IF($C$7,8,0),1,1) -> 47.22 | E203: =OFFSET(InputPriceData!D$15,CalculationsAndCharts!$A203+$A$11,IF($C$7,8,0),1,1) -> 47.59 | F203: =OFFSET(InputPriceData!E$15,CalculationsAndCharts!$A203+$A$11,IF($C$7,8,0),1,1) -> 46.7 | G203: =OFFSET(InputPriceData!F$15,CalculationsAndCharts!$A203+$A$11,IF($C$7,8,0),1,1) -> 46.8 | H203: 46.5174 | I203: 49.0038 | J203: FALSE | K203: FALSE | L203: FALSE | N203: FALSE | O203: FALSE | P203: FALSE | Q203: 0 | R203: 0 | T203: 46.5174 | U203: 49.0038 | AD203: 1479500
A204: 172 | B204: =OFFSET(InputPriceData!B$15,CalculationsAndCharts!$A204+$A$11,0,1,1) -> 2016-05-10 | C204: =OFFSET(InputPriceData!G$15,CalculationsAndCharts!$A204+$A$11,IF($C$7,8,0),1,1) -> 2348400 | D204: =OFFSET(InputPriceData!C$15,CalculationsAndCharts!$A204+$A$11,IF($C$7,8,0),1,1) -> 46.38 | E204: =OFFSET(InputPriceData!D$15,CalculationsAndCharts!$A204+$A$11,IF($C$7,8,0),1,1) -> 47.29 | F204: =OFFSET(InputPriceData!E$15,CalculationsAndCharts!$A204+$A$11,IF($C$7,8,0),1,1) -> 46.18 | G204: =OFFSET(InputPriceData!F$15,CalculationsAndCharts!$A204+$A$11,IF($C$7,8,0),1,1) -> 47.24 | H204: 46.5008 | I204: 49.0282 | J204: FALSE | K204: FALSE | L204: FALSE | N204: FALSE | O204: FALSE | P204: FALSE | Q204: 0 | R204: 0 | T204: 46.5008 | U204: 49.0282 | AC204: 2348400
A205: 173 | B205: =OFFSET(InputPriceData!B$15,CalculationsAndCharts!$A205+$A$11,0,1,1) -> 2016-05-09 | C205: =OFFSET(InputPriceData!G$15,CalculationsAndCharts!$A205+$A$11,IF($C$7,8,0),1,1) -> 1456500 | D205: =OFFSET(InputPriceData!C$15,CalculationsAndCharts!$A205+$A$11,IF($C$7,8,0),1,1) -> 45.96 | E205: =OFFSET(InputPriceData!D$15,CalculationsAndCharts!$A205+$A$11,IF($C$7,8,0),1,1) -> 46.54 | F205: =OFFSET(InputPriceData!E$15,CalculationsAndCharts!$A205+$A$11,IF($C$7,8,0),1,1) -> 45.96 | G205: =OFFSET(InputPriceData!F$15,CalculationsAndCharts!$A205+$A$11,IF($C$7,8,0),1,1) -> 46.11 | H205: 46.4744 | I205: 49.0576 | J205: FALSE | K205: FALSE | L205: FALSE | N205: FALSE | O205: FALSE | P205: FALSE | Q205: 0 | R205: 0 | T205: 46.4744 | U205: 49.0576 | AC205: 1456500
A206: 174 | B206: =OFFSET(InputPriceData!B$15,CalculationsAndCharts!$A206+$A$11,0,1,1) -> 2016-05-06 | C206: =OFFSET(InputPriceData!G$15,CalculationsAndCharts!$A206+$A$11,IF($C$7,8,0),1,1) -> 1219300 | D206: =OFFSET(InputPriceData!C$15,CalculationsAndCharts!$A206+$A$11,IF($C$7,8,0),1,1) -> 45.32 | E206: =OFFSET(InputPriceData!D$15,CalculationsAndCharts!$A206+$A$11,IF($C$7,8,0),1,1) -> 46.26 | F206: =OFFSET(InputPriceData!E$15,CalculationsAndCharts!$A206+$A$11,IF($C$7,8,0),1,1) -> 45.24 | G206: =OFFSET(InputPriceData!F$15,CalculationsAndCharts!$A206+$A$11,IF($C$7,8,0),1,1) -> 46.14 | H206: 46.4722 | I206: 49.0974 | J206: FALSE | K206: FALSE | L206: FALSE | N206: FALSE | O206: FALSE | P206: FALSE | Q206: 0 | R206: 0 | T206: 46.4722 | U206: 49.0974 | AC206: 1219300
A207: 175 | B207: =OFFSET(InputPriceData!B$15,CalculationsAndCharts!$A207+$A$11,0,1,1) -> 2016-05-05 | C207: =OFFSET(InputPriceData!G$15,CalculationsAndCharts!$A207+$A$11,IF($C$7,8,0),1,1) -> 1315600 | D207: =OFFSET(InputPriceData!C$15,CalculationsAndCharts!$A207+$A$11,IF($C$7,8,0),1,1) -> 45.67 | E207: =OFFSET(InputPriceData!D$15,CalculationsAndCharts!$A207+$A$11,IF($C$7,8,0),1,1) -> 46.05 | F207: =OFFSET(InputPriceData!E$15,CalculationsAndCharts!$A207+$A$11,IF($C$7,8,0),1,1) -> 45.22 | G207: =OFFSET(InputPriceData!F$15,CalculationsAndCharts!$A207+$A$11,IF($C$7,8,0),1,1) -> 45.33 | H207: 46.4538 | I207: 49.1388 | J207: FALSE | K207: FALSE | L207: FALSE | N207: FALSE | O207: FALSE | P207: FALSE | Q207: 0 | R207: 0 | T207: 46.4538 | U207: 49.1388 | AD207: 1315600
... 2325 more rows

Sheet Transaction Summary
B1: Transaction Summary (using trade size of 1 share)
C2: =LogicallyAvailableRows -> 2500 | D2: Logically Available Data Bars on the "CalculationsAndCharts" tab constitute a
D3: ="Back Test Transaction reporting period extending from " & TEXT(OFFSET(CalculationsAndCharts!B32,C2,0,1,1),"mm/dd/yyyy") & " to "& TEXT(CalculationsAndCharts!B33,"mm/dd/yyyy") -> Back Test Transaction reporting period extending from 02/09/2007 to 01/12/2017
B4: Summary for LONG trades
B5: =COUNT(OFFSET(B15,0,0,C2,1)) -> 6 | C5: LONG trades opened in this time period
B6: =COUNTIF(OFFSET(H15,0,0,B5,1),">0") -> 4 | C6: Winners | D6: Biggest Win | E6: =MAX(OFFSET(H15,0,0,B5,1)) -> 10.92 | H6: Sum of Gains | I6: =SUMIF(OFFSET(H15,0,0,B5,1),">0") -> 19.7
B7: =COUNTIF(OFFSET(H15,0,0,B5,1),"<0") -> 2 | C7: Losers | D7: Biggest Loss | E7: =MIN(OFFSET(H15,0,0,B5,1)) -> -1.89 | H7: Sum of Losses | I7: =SUMIF(OFFSET(H15,0,0,B5,1),"<0") -> -1.97
H8: NET change for Period | I8: =SUM(OFFSET(H15,0,0,B5,1)) -> 17.73
H10: Smallest Long Account Balance | I10: =MIN(OFFSET(I15,0,0,B5,1)) -> 2.66
E12: =MATCH(TRUE,OFFSET(CalculationsAndCharts!P31,2,0,C2,1),0) -> 20 | F12: =IF($E$12>$B$15,"Open Trade; Marked to Current Bar Open $","") -> 
C13: Enter Long | F13: Exit Long | H13: Trade Result | I13: Running Balance | J13: Duration in Bars
B14: Rel Row | C14: Date | D14: $ | E14: Rel Row | F14: Date | G14: $
B15: =MATCH(TRUE,OFFSET(CalculationsAndCharts!$O$33,0,0, $C$2,1),0) -> 57 | C15: =OFFSET(CalculationsAndCharts!$B$32, B15,0,1,1) -> 2016-10-21 | D15: =OFFSET(OpenColHeader, B15,0,1,1) -> 47.86 | E15: =IF($E$12>$B$15,"OPEN",$E$12) -> 20 | F15: =IF($E$12>$B$15,CalculationsAndCharts!$B$33,OFFSET(CalculationsAndCharts!$B$32, E15,0,1,1)) -> 2016-12-14 | G15: =IF($E$12>$B$15,CalculationsAndCharts!D33,OFFSET(OpenColHeader, E15,0,1,1)) -> 58.78 | H15: =G15-D15 -> 10.92 | I15: =H15+IF(ISNA(I16),0,I16) -> 17.73 | J15: =IFERROR(B15-E15+1,"") -> 38
B16: =IFERROR(MATCH(TRUE,OFFSET(CalculationsAndCharts!$O$33,B15,0, $C$2-B15,1),0)+B15,"") -> 923 | C16: =IFERROR(OFFSET(CalculationsAndCharts!$B$32, B16,0,1,1),"") -> 2013-05-16 | D16: =IFERROR(OFFSET(OpenColHeader, B16,0,1,1),"") -> 21.86 | E16: =IFERROR(IF($E$12>$B$15,$E$12,(MATCH(TRUE,OFFSET(CalculationsAndCharts!$P$33,E15,0, $C$2-E15,1),0)+E15)),"") -> 866 | F16: =IFERROR(OFFSET(CalculationsAndCharts!$B$32, E16,0,1,1),"") -> 2013-08-07 | G16: =IFERROR(OFFSET(OpenColHeader, E16,0,1,1),"") -> 24.82 | H16: =IFERROR(G16-D16,"") -> 2.96 | I16: =IFERROR(H16+IF(""=I17,0,I17),"") -> 6.81 | J16: =IFERROR(B16-E16+1,"") -> 58
B17: =IFERROR(MATCH(TRUE,OFFSET(CalculationsAndCharts!$O$33,B16,0, $C$2-B16,1),0)+B16,"") -> 1258 | C17: =IFERROR(OFFSET(CalculationsAndCharts!$B$32, B17,0,1,1),"") -> 2012-01-13 | D17: 22.94 | E17: =IF(B17="","",IFERROR((MATCH(TRUE,OFFSET(CalculationsAndCharts!$P$33,E16,0, $C$2-E16,1),0)+E16),"")) -> 1239 | F17: =IFERROR(OFFSET(CalculationsAndCharts!$B$32, E17,0,1,1),"") -> 2012-02-10 | G17: 22.86 | H17: =IFERROR(G17-D17,"") -> -0.08 | I17: =IFERROR(H17+IF(""=I18,0,I18),"") -> 3.85 | J17: 20
B18: =IFERROR(MATCH(TRUE,OFFSET(CalculationsAndCharts!$O$33,B17,0, $C$2-B17,1),0)+B17,"") -> 1503 | C18: =IFERROR(OFFSET(CalculationsAndCharts!$B$32, B18,0,1,1),"") -> 2011-01-25 | D18: 23.59 | E18: =IF(B18="","",IFERROR((MATCH(TRUE,OFFSET(CalculationsAndCharts!$P$33,E17,0, $C$2-E17,1),0)+E17),"")) -> 1468 | F18: =IFERROR(OFFSET(CalculationsAndCharts!$B$32, E18,0,1,1),"") -> 2011-03-16 | G18: 24.86 | H18: 1.27 | I18: 3.93 | J18: 36
B19: =IFERROR(MATCH(TRUE,OFFSET(CalculationsAndCharts!$O$33,B18,0, $C$2-B18,1),0)+B18,"") -> 1912 | C19: =IFERROR(OFFSET(CalculationsAndCharts!$B$32, B19,0,1,1),"") -> 2009-06-11 | D19: 16.15 | E19: =IF(B19="","",IFERROR((MATCH(TRUE,OFFSET(CalculationsAndCharts!$P$33,E18,0, $C$2-E18,1),0)+E18),"")) -> 1903 | F19: =IFERROR(OFFSET(CalculationsAndCharts!$B$32, E19,0,1,1),"") -> 2009-06-24 | G19: 14.26 | H19: -1.89 | I19: 2.66 | J19: 10
B20: =IFERROR(MATCH(TRUE,OFFSET(CalculationsAndCharts!$O$33,B19,0, $C$2-B19,1),0)+B19,"") -> 2446 | C20: =IFERROR(OFFSET(CalculationsAndCharts!$B$32, B20,0,1,1),"") -> 2007-04-30 | D20: 31.96 | E20: =IF(B20="","",IFERROR((MATCH(TRUE,OFFSET(CalculationsAndCharts!$P$33,E19,0, $C$2-E19,1),0)+E19),"")) -> 2408 | F20: =IFERROR(OFFSET(CalculationsAndCharts!$B$32, E20,0,1,1),"") -> 2007-06-22 | G20: 36.51 | H20: 4.55 | I20: 4.55 | J20: 39
B21: =IFERROR(MATCH(TRUE,OFFSET(CalculationsAndCharts!$O$33,B20,0, $C$2-B20,1),0)+B20,"") ->  | C21: =IFERROR(OFFSET(CalculationsAndCharts!$B$32, B21,0,1,1),"") ->  | E21: =IF(B21="","",IFERROR((MATCH(TRUE,OFFSET(CalculationsAndCharts!$P$33,E20,0, $C$2-E20,1),0)+E20),"")) ->  | F21: =IFERROR(OFFSET(CalculationsAndCharts!$B$32, E21,0,1,1),"") -> 
B22: =IFERROR(MATCH(TRUE,OFFSET(CalculationsAndCharts!$O$33,B21,0, $C$2-B21,1),0)+B21,"") ->  | C22: =IFERROR(OFFSET(CalculationsAndCharts!$B$32, B22,0,1,1),"") ->  | E22: =IF(B22="","",IFERROR((MATCH(TRUE,OFFSET(CalculationsAndCharts!$P$33,E21,0, $C$2-E21,1),0)+E21),"")) ->  | F22: =IFERROR(OFFSET(CalculationsAndCharts!$B$32, E22,0,1,1),"") -> 
B23: =IFERROR(MATCH(TRUE,OFFSET(CalculationsAndCharts!$O$33,B22,0, $C$2-B22,1),0)+B22,"") ->  | C23: =IFERROR(OFFSET(CalculationsAndCharts!$B$32, B23,0,1,1),"") ->  | E23: =IF(B23="","",IFERROR((MATCH(TRUE,OFFSET(CalculationsAndCharts!$P$33,E22,0, $C$2-E22,1),0)+E22),"")) ->  | F23: =IFERROR(OFFSET(CalculationsAndCharts!$B$32, E23,0,1,1),"") -> 
B24: =IFERROR(MATCH(TRUE,OFFSET(CalculationsAndCharts!$O$33,B23,0, $C$2-B23,1),0)+B23,"") ->  | C24: =IFERROR(OFFSET(CalculationsAndCharts!$B$32, B24,0,1,1),"") ->  | E24: =IF(B24="","",IFERROR((MATCH(TRUE,OFFSET(CalculationsAndCharts!$P$33,E23,0, $C$2-E23,1),0)+E23),"")) ->  | F24: =IFERROR(OFFSET(CalculationsAndCharts!$B$32, E24,0,1,1),"") -> 
B25: =IFERROR(MATCH(TRUE,OFFSET(CalculationsAndCharts!$O$33,B24,0, $C$2-B24,1),0)+B24,"") ->  | C25: =IFERROR(OFFSET(CalculationsAndCharts!$B$32, B25,0,1,1),"") ->  | E25: =IF(B25="","",IFERROR((MATCH(TRUE,OFFSET(CalculationsAndCharts!$P$33,E24,0, $C$2-E24,1),0)+E24),"")) ->  | F25: =IFERROR(OFFSET(CalculationsAndCharts!$B$32, E25,0,1,1),"") -> 
B26: =IFERROR(MATCH(TRUE,OFFSET(CalculationsAndCharts!$O$33,B25,0, $C$2-B25,1),0)+B25,"") ->  | C26: =IFERROR(OFFSET(CalculationsAndCharts!$B$32, B26,0,1,1),"") ->  | E26: =IF(B26="","",IFERROR((MATCH(TRUE,OFFSET(CalculationsAndCharts!$P$33,E25,0, $C$2-E25,1),0)+E25),"")) ->  | F26: =IFERROR(OFFSET(CalculationsAndCharts!$B$32, E26,0,1,1),"") -> 
B27: =IFERROR(MATCH(TRUE,OFFSET(CalculationsAndCharts!$O$33,B26,0, $C$2-B26,1),0)+B26,"") ->  | C27: =IFERROR(OFFSET(CalculationsAndCharts!$B$32, B27,0,1,1),"") ->  | E27: =IF(B27="","",IFERROR((MATCH(TRUE,OFFSET(CalculationsAndCharts!$P$33,E26,0, $C$2-E26,1),0)+E26),"")) ->  | F27: =IFERROR(OFFSET(CalculationsAndCharts!$B$32, E27,0,1,1),"") -> 
B28: =IFERROR(MATCH(TRUE,OFFSET(CalculationsAndCharts!$O$33,B27,0, $C$2-B27,1),0)+B27,"") ->  | C28: =IFERROR(OFFSET(CalculationsAndCharts!$B$32, B28,0,1,1),"") ->  | E28: =IF(B28="","",IFERROR((MATCH(TRUE,OFFSET(CalculationsAndCharts!$P$33,E27,0, $C$2-E27,1),0)+E27),"")) ->  | F28: =IFERROR(OFFSET(CalculationsAndCharts!$B$32, E28,0,1,1),"") -> 
B29: =IFERROR(MATCH(TRUE,OFFSET(CalculationsAndCharts!$O$33,B28,0, $C$2-B28,1),0)+B28,"") ->  | C29: =IFERROR(OFFSET(CalculationsAndCharts!$B$32, B29,0,1,1),"") ->  | E29: =IF(B29="","",IFERROR((MATCH(TRUE,OFFSET(CalculationsAndCharts!$P$33,E28,0, $C$2-E28,1),0)+E28),"")) ->  | F29: =IFERROR(OFFSET(CalculationsAndCharts!$B$32, E29,0,1,1),"") -> 
B30: =IFERROR(MATCH(TRUE,OFFSET(CalculationsAndCharts!$O$33,B29,0, $C$2-B29,1),0)+B29,"") ->  | C30: =IFERROR(OFFSET(CalculationsAndCharts!$B$32, B30,0,1,1),"") ->  | E30: =IF(B30="","",IFERROR((MATCH(TRUE,OFFSET(CalculationsAndCharts!$P$33,E29,0, $C$2-E29,1),0)+E29),"")) ->  | F30: =IFERROR(OFFSET(CalculationsAndCharts!$B$32, E30,0,1,1),"") -> 
B31: =IFERROR(MATCH(TRUE,OFFSET(CalculationsAndCharts!$O$33,B30,0, $C$2-B30,1),0)+B30,"") ->  | C31: =IFERROR(OFFSET(CalculationsAndCharts!$B$32, B31,0,1,1),"") ->  | E31: =IF(B31="","",IFERROR((MATCH(TRUE,OFFSET(CalculationsAndCharts!$P$33,E30,0, $C$2-E30,1),0)+E30),"")) ->  | F31: =IFERROR(OFFSET(CalculationsAndCharts!$B$32, E31,0,1,1),"") -> 
B32: =IFERROR(MATCH(TRUE,OFFSET(CalculationsAndCharts!$O$33,B31,0, $C$2-B31,1),0)+B31,"") ->  | C32: =IFERROR(OFFSET(CalculationsAndCharts!$B$32, B32,0,1,1),"") ->  | E32: =IF(B32="","",IFERROR((MATCH(TRUE,OFFSET(CalculationsAndCharts!$P$33,E31,0, $C$2-E31,1),0)+E31),"")) ->  | F32: =IFERROR(OFFSET(CalculationsAndCharts!$B$32, E32,0,1,1),"") -> 
B33: =IFERROR(MATCH(TRUE,OFFSET(CalculationsAndCharts!$O$33,B32,0, $C$2-B32,1),0)+B32,"") ->  | C33: =IFERROR(OFFSET(CalculationsAndCharts!$B$32, B33,0,1,1),"") ->  | E33: =IF(B33="","",IFERROR((MATCH(TRUE,OFFSET(CalculationsAndCharts!$P$33,E32,0, $C$2-E32,1),0)+E32),"")) ->  | F33: =IFERROR(OFFSET(CalculationsAndCharts!$B$32, E33,0,1,1),"") -> 
B34: =IFERROR(MATCH(TRUE,OFFSET(CalculationsAndCharts!$O$33,B33,0, $C$2-B33,1),0)+B33,"") ->  | C34: =IFERROR(OFFSET(CalculationsAndCharts!$B$32, B34,0,1,1),"") ->  | E34: =IF(B34="","",IFERROR((MATCH(TRUE,OFFSET(CalculationsAndCharts!$P$33,E33,0, $C$2-E33,1),0)+E33),"")) ->  | F34: =IFERROR(OFFSET(CalculationsAndCharts!$B$32, E34,0,1,1),"") -> 
B35: =IFERROR(MATCH(TRUE,OFFSET(CalculationsAndCharts!$O$33,B34,0, $C$2-B34,1),0)+B34,"") ->  | C35: =IFERROR(OFFSET(CalculationsAndCharts!$B$32, B35,0,1,1),"") ->  | E35: =IF(B35="","",IFERROR((MATCH(TRUE,OFFSET(CalculationsAndCharts!$P$33,E34,0, $C$2-E34,1),0)+E34),"")) ->  | F35: =IFERROR(OFFSET(CalculationsAndCharts!$B$32, E35,0,1,1),"") -> 
B36: =IFERROR(MATCH(TRUE,OFFSET(CalculationsAndCharts!$O$33,B35,0, $C$2-B35,1),0)+B35,"") ->  | C36: =IFERROR(OFFSET(CalculationsAndCharts!$B$32, B36,0,1,1),"") ->  | E36: =IF(B36="","",IFERROR((MATCH(TRUE,OFFSET(CalculationsAndCharts!$P$33,E35,0, $C$2-E35,1),0)+E35),"")) ->  | F36: =IFERROR(OFFSET(CalculationsAndCharts!$B$32, E36,0,1,1),"") -> 
B37: =IFERROR(MATCH(TRUE,OFFSET(CalculationsAndCharts!$O$33,B36,0, $C$2-B36,1),0)+B36,"") ->  | C37: =IFERROR(OFFSET(CalculationsAndCharts!$B$32, B37,0,1,1),"") ->  | E37: =IF(B37="","",IFERROR((MATCH(TRUE,OFFSET(CalculationsAndCharts!$P$33,E36,0, $C$2-E36,1),0)+E36),"")) ->  | F37: =IFERROR(OFFSET(CalculationsAndCharts!$B$32, E37,0,1,1),"") -> 
B38: =IFERROR(MATCH(TRUE,OFFSET(CalculationsAndCharts!$O$33,B37,0, $C$2-B37,1),0)+B37,"") ->  | C38: =IFERROR(OFFSET(CalculationsAndCharts!$B$32, B38,0,1,1),"") ->  | E38: =IF(B38="","",IFERROR((MATCH(TRUE,OFFSET(CalculationsAndCharts!$P$33,E37,0, $C$2-E37,1),0)+E37),"")) ->  | F38: =IFERROR(OFFSET(CalculationsAndCharts!$B$32, E38,0,1,1),"") -> 
B39: =IFERROR(MATCH(TRUE,OFFSET(CalculationsAndCharts!$O$33,B38,0, $C$2-B38,1),0)+B38,"") ->  | C39: =IFERROR(OFFSET(CalculationsAndCharts!$B$32, B39,0,1,1),"") ->  | E39: =IF(B39="","",IFERROR((MATCH(TRUE,OFFSET(CalculationsAndCharts!$P$33,E38,0, $C$2-E38,1),0)+E38),"")) ->  | F39: =IFERROR(OFFSET(CalculationsAndCharts!$B$32, E39,0,1,1),"") -> 
B40: =IFERROR(MATCH(TRUE,OFFSET(CalculationsAndCharts!$O$33,B39,0, $C$2-B39,1),0)+B39,"") ->  | C40: =IFERROR(OFFSET(CalculationsAndCharts!$B$32, B40,0,1,1),"") ->  | E40: =IF(B40="","",IFERROR((MATCH(TRUE,OFFSET(CalculationsAndCharts!$P$33,E39,0, $C$2-E39,1),0)+E39),"")) ->  | F40: =IFERROR(OFFSET(CalculationsAndCharts!$B$32, E40,0,1,1),"") -> 
B41: =IFERROR(MATCH(TRUE,OFFSET(CalculationsAndCharts!$O$33,B40,0, $C$2-B40,1),0)+B40,"") ->  | C41: =IFERROR(OFFSET(CalculationsAndCharts!$B$32, B41,0,1,1),"") ->  | E41: =IF(B41="","",IFERROR((MATCH(TRUE,OFFSET(CalculationsAndCharts!$P$33,E40,0, $C$2-E40,1),0)+E40),"")) ->  | F41: =IFERROR(OFFSET(CalculationsAndCharts!$B$32, E41,0,1,1),"") -> 
B42: =IFERROR(MATCH(TRUE,OFFSET(CalculationsAndCharts!$O$33,B41,0, $C$2-B41,1),0)+B41,"") ->  | C42: =IFERROR(OFFSET(CalculationsAndCharts!$B$32, B42,0,1,1),"") ->  | E42: =IF(B42="","",IFERROR((MATCH(TRUE,OFFSET(CalculationsAndCharts!$P$33,E41,0, $C$2-E41,1),0)+E41),"")) ->  | F42: =IFERROR(OFFSET(CalculationsAndCharts!$B$32, E42,0,1,1),"") -> 
B43: =IFERROR(MATCH(TRUE,OFFSET(CalculationsAndCharts!$O$33,B42,0, $C$2-B42,1),0)+B42,"") ->  | C43: =IFERROR(OFFSET(CalculationsAndCharts!$B$32, B43,0,1,1),"") ->  | E43: =IF(B43="","",IFERROR((MATCH(TRUE,OFFSET(CalculationsAndCharts!$P$33,E42,0, $C$2-E42,1),0)+E42),"")) ->  | F43: =IFERROR(OFFSET(CalculationsAndCharts!$B$32, E43,0,1,1),"") -> 
B44: =IFERROR(MATCH(TRUE,OFFSET(CalculationsAndCharts!$O$33,B43,0, $C$2-B43,1),0)+B43,"") ->  | C44: =IFERROR(OFFSET(CalculationsAndCharts!$B$32, B44,0,1,1),"") ->  | E44: =IF(B44="","",IFERROR((MATCH(TRUE,OFFSET(CalculationsAndCharts!$P$33,E43,0, $C$2-E43,1),0)+E43),"")) ->  | F44: =IFERROR(OFFSET(CalculationsAndCharts!$B$32, E44,0,1,1),"") -> 
B45: =IFERROR(MATCH(TRUE,OFFSET(CalculationsAndCharts!$O$33,B44,0, $C$2-B44,1),0)+B44,"") ->  | C45: =IFERROR(OFFSET(CalculationsAndCharts!$B$32, B45,0,1,1),"") ->  | E45: =IF(B45="","",IFERROR((MATCH(TRUE,OFFSET(CalculationsAndCharts!$P$33,E44,0, $C$2-E44,1),0)+E44),"")) ->  | F45: =IFERROR(OFFSET(CalculationsAndCharts!$B$32, E45,0,1,1),"") -> 
B46: =IFERROR(MATCH(TRUE,OFFSET(CalculationsAndCharts!$O$33,B45,0, $C$2-B45,1),0)+B45,"") ->  | C46: =IFERROR(OFFSET(CalculationsAndCharts!$B$32, B46,0,1,1),"") ->  | E46: =IF(B46="","",IFERROR((MATCH(TRUE,OFFSET(CalculationsAndCharts!$P$33,E45,0, $C$2-E45,1),0)+E45),"")) ->  | F46: =IFERROR(OFFSET(CalculationsAndCharts!$B$32, E46,0,1,1),"") -> 
B47: =IFERROR(MATCH(TRUE,OFFSET(CalculationsAndCharts!$O$33,B46,0, $C$2-B46,1),0)+B46,"") ->  | C47: =IFERROR(OFFSET(CalculationsAndCharts!$B$32, B47,0,1,1),"") ->  | E47: =IF(B47="","",IFERROR((MATCH(TRUE,OFFSET(CalculationsAndCharts!$P$33,E46,0, $C$2-E46,1),0)+E46),"")) ->  | F47: =IFERROR(OFFSET(CalculationsAndCharts!$B$32, E47,0,1,1),"") -> 
B48: =IFERROR(MATCH(TRUE,OFFSET(CalculationsAndCharts!$O$33,B47,0, $C$2-B47,1),0)+B47,"") ->  | C48: =IFERROR(OFFSET(CalculationsAndCharts!$B$32, B48,0,1,1),"") ->  | E48: =IF(B48="","",IFERROR((MATCH(TRUE,OFFSET(CalculationsAndCharts!$P$33,E47,0, $C$2-E47,1),0)+E47),"")) ->  | F48: =IFERROR(OFFSET(CalculationsAndCharts!$B$32, E48,0,1,1),"") -> 
B49: =IFERROR(MATCH(TRUE,OFFSET(CalculationsAndCharts!$O$33,B48,0, $C$2-B48,1),0)+B48,"") ->  | C49: =IFERROR(OFFSET(CalculationsAndCharts!$B$32, B49,0,1,1),"") ->  | E49: =IF(B49="","",IFERROR((MATCH(TRUE,OFFSET(CalculationsAndCharts!$P$33,E48,0, $C$2-E48,1),0)+E48),"")) ->  | F49: =IFERROR(OFFSET(CalculationsAndCharts!$B$32, E49,0,1,1),"") -> 
B50: =IFERROR(MATCH(TRUE,OFFSET(CalculationsAndCharts!$O$33,B49,0, $C$2-B49,1),0)+B49,"") ->  | C50: =IFERROR(OFFSET(CalculationsAndCharts!$B$32, B50,0,1,1),"") ->  | E50: =IF(B50="","",IFERROR((MATCH(TRUE,OFFSET(CalculationsAndCharts!$P$33,E49,0, $C$2-E49,1),0)+E49),"")) ->  | F50: =IFERROR(OFFSET(CalculationsAndCharts!$B$32, E50,0,1,1),"") -> 
B51: =IFERROR(MATCH(TRUE,OFFSET(CalculationsAndCharts!$O$33,B50,0, $C$2-B50,1),0)+B50,"") ->  | C51: =IFERROR(OFFSET(CalculationsAndCharts!$B$32, B51,0,1,1),"") ->  | E51: =IF(B51="","",IFERROR((MATCH(TRUE,OFFSET(CalculationsAndCharts!$P$33,E50,0, $C$2-E50,1),0)+E50),"")) ->  | F51: =IFERROR(OFFSET(CalculationsAndCharts!$B$32, E51,0,1,1),"") -> 
B52: =IFERROR(MATCH(TRUE,OFFSET(CalculationsAndCharts!$O$33,B51,0, $C$2-B51,1),0)+B51,"") ->  | C52: =IFERROR(OFFSET(CalculationsAndCharts!$B$32, B52,0,1,1),"") ->  | E52: =IF(B52="","",IFERROR((MATCH(TRUE,OFFSET(CalculationsAndCharts!$P$33,E51,0, $C$2-E51,1),0)+E51),"")) ->  | F52: =IFERROR(OFFSET(CalculationsAndCharts!$B$32, E52,0,1,1),"") -> 
B53: =IFERROR(MATCH(TRUE,OFFSET(CalculationsAndCharts!$O$33,B52,0, $C$2-B52,1),0)+B52,"") ->  | C53: =IFERROR(OFFSET(CalculationsAndCharts!$B$32, B53,0,1,1),"") ->  | E53: =IF(B53="","",IFERROR((MATCH(TRUE,OFFSET(CalculationsAndCharts!$P$33,E52,0, $C$2-E52,1),0)+E52),"")) ->  | F53: =IFERROR(OFFSET(CalculationsAndCharts!$B$32, E53,0,1,1),"") -> 
B54: =IFERROR(MATCH(TRUE,OFFSET(CalculationsAndCharts!$O$33,B53,0, $C$2-B53,1),0)+B53,"") ->  | C54: =IFERROR(OFFSET(CalculationsAndCharts!$B$32, B54,0,1,1),"") ->  | E54: =IF(B54="","",IFERROR((MATCH(TRUE,OFFSET(CalculationsAndCharts!$P$33,E53,0, $C$2-E53,1),0)+E53),"")) ->  | F54: =IFERROR(OFFSET(CalculationsAndCharts!$B$32, E54,0,1,1),"") -> 
B55: =IFERROR(MATCH(TRUE,OFFSET(CalculationsAndCharts!$O$33,B54,0, $C$2-B54,1),0)+B54,"") ->  | C55: =IFERROR(OFFSET(CalculationsAndCharts!$B$32, B55,0,1,1),"") ->  | E55: =IF(B55="","",IFERROR((MATCH(TRUE,OFFSET(CalculationsAndCharts!$P$33,E54,0, $C$2-E54,1),0)+E54),"")) ->  | F55: =IFERROR(OFFSET(CalculationsAndCharts!$B$32, E55,0,1,1),"") -> 
B56: =IFERROR(MATCH(TRUE,OFFSET(CalculationsAndCharts!$O$33,B55,0, $C$2-B55,1),0)+B55,"") ->  | C56: =IFERROR(OFFSET(CalculationsAndCharts!$B$32, B56,0,1,1),"") ->  | E56: =IF(B56="","",IFERROR((MATCH(TRUE,OFFSET(CalculationsAndCharts!$P$33,E55,0, $C$2-E55,1),0)+E55),"")) ->  | F56: =IFERROR(OFFSET(CalculationsAndCharts!$B$32, E56,0,1,1),"") -> 
B57: =IFERROR(MATCH(TRUE,OFFSET(CalculationsAndCharts!$O$33,B56,0, $C$2-B56,1),0)+B56,"") ->  | C57: =IFERROR(OFFSET(CalculationsAndCharts!$B$32, B57,0,1,1),"") ->  | E57: =IF(B57="","",IFERROR((MATCH(TRUE,OFFSET(CalculationsAndCharts!$P$33,E56,0, $C$2-E56,1),0)+E56),"")) ->  | F57: =IFERROR(OFFSET(CalculationsAndCharts!$B$32, E57,0,1,1),"") -> 
B58: =IFERROR(MATCH(TRUE,OFFSET(CalculationsAndCharts!$O$33,B57,0, $C$2-B57,1),0)+B57,"") ->  | C58: =IFERROR(OFFSET(CalculationsAndCharts!$B$32, B58,0,1,1),"") ->  | E58: =IF(B58="","",IFERROR((MATCH(TRUE,OFFSET(CalculationsAndCharts!$P$33,E57,0, $C$2-E57,1),0)+E57),"")) ->  | F58: =IFERROR(OFFSET(CalculationsAndCharts!$B$32, E58,0,1,1),"") -> 
B59: =IFERROR(MATCH(TRUE,OFFSET(CalculationsAndCharts!$O$33,B58,0, $C$2-B58,1),0)+B58,"") ->  | C59: =IFERROR(OFFSET(CalculationsAndCharts!$B$32, B59,0,1,1),"") ->  | E59: =IF(B59="","",IFERROR((MATCH(TRUE,OFFSET(CalculationsAndCharts!$P$33,E58,0, $C$2-E58,1),0)+E58),"")) ->  | F59: =IFERROR(OFFSET(CalculationsAndCharts!$B$32, E59,0,1,1),"") -> 
B60: =IFERROR(MATCH(TRUE,OFFSET(CalculationsAndCharts!$O$33,B59,0, $C$2-B59,1),0)+B59,"") ->  | C60: =IFERROR(OFFSET(CalculationsAndCharts!$B$32, B60,0,1,1),"") ->  | E60: =IF(B60="","",IFERROR((MATCH(TRUE,OFFSET(CalculationsAndCharts!$P$33,E59,0, $C$2-E59,1),0)+E59),"")) ->  | F60: =IFERROR(OFFSET(CalculationsAndCharts!$B$32, E60,0,1,1),"") -> 
B61: =IFERROR(MATCH(TRUE,OFFSET(CalculationsAndCharts!$O$33,B60,0, $C$2-B60,1),0)+B60,"") ->  | C61: =IFERROR(OFFSET(CalculationsAndCharts!$B$32, B61,0,1,1),"") ->  | E61: =IF(B61="","",IFERROR((MATCH(TRUE,OFFSET(CalculationsAndCharts!$P$33,E60,0, $C$2-E60,1),0)+E60),"")) ->  | F61: =IFERROR(OFFSET(CalculationsAndCharts!$B$32, E61,0,1,1),"") -> 
B62: =IFERROR(MATCH(TRUE,OFFSET(CalculationsAndCharts!$O$33,B61,0, $C$2-B61,1),0)+B61,"") ->  | C62: =IFERROR(OFFSET(CalculationsAndCharts!$B$32, B62,0,1,1),"") ->  | E62: =IF(B62="","",IFERROR((MATCH(TRUE,OFFSET(CalculationsAndCharts!$P$33,E61,0, $C$2-E61,1),0)+E61),"")) ->  | F62: =IFERROR(OFFSET(CalculationsAndCharts!$B$32, E62,0,1,1),"") -> 
B63: =IFERROR(MATCH(TRUE,OFFSET(CalculationsAndCharts!$O$33,B62,0, $C$2-B62,1),0)+B62,"") ->  | C63: =IFERROR(OFFSET(CalculationsAndCharts!$B$32, B63,0,1,1),"") ->  | E63: =IF(B63="","",IFERROR((MATCH(TRUE,OFFSET(CalculationsAndCharts!$P$33,E62,0, $C$2-E62,1),0)+E62),"")) ->  | F63: =IFERROR(OFFSET(CalculationsAndCharts!$B$32, E63,0,1,1),"") -> 
B64: =IFERROR(MATCH(TRUE,OFFSET(CalculationsAndCharts!$O$33,B63,0, $C$2-B63,1),0)+B63,"") ->  | C64: =IFERROR(OFFSET(CalculationsAndCharts!$B$32, B64,0,1,1),"") ->  | E64: =IF(B64="","",IFERROR((MATCH(TRUE,OFFSET(CalculationsAndCharts!$P$33,E63,0, $C$2-E63,1),0)+E63),"")) ->  | F64: =IFERROR(OFFSET(CalculationsAndCharts!$B$32, E64,0,1,1),"") -> 
B65: =IFERROR(MATCH(TRUE,OFFSET(CalculationsAndCharts!$O$33,B64,0, $C$2-B64,1),0)+B64,"") ->  | C65: =IFERROR(OFFSET(CalculationsAndCharts!$B$32, B65,0,1,1),"") ->  | E65: =IF(B65="","",IFERROR((MATCH(TRUE,OFFSET(CalculationsAndCharts!$P$33,E64,0, $C$2-E64,1),0)+E64),"")) ->  | F65: =IFERROR(OFFSET(CalculationsAndCharts!$B$32, E65,0,1,1),"") -> 
B66: =IFERROR(MATCH(TRUE,OFFSET(CalculationsAndCharts!$O$33,B65,0, $C$2-B65,1),0)+B65,"") ->  | C66: =IFERROR(OFFSET(CalculationsAndCharts!$B$32, B66,0,1,1),"") ->  | E66: =IF(B66="","",IFERROR((MATCH(TRUE,OFFSET(CalculationsAndCharts!$P$33,E65,0, $C$2-E65,1),0)+E65),"")) ->  | F66: =IFERROR(OFFSET(CalculationsAndCharts!$B$32, E66,0,1,1),"") -> 
B67: =IFERROR(MATCH(TRUE,OFFSET(CalculationsAndCharts!$O$33,B66,0, $C$2-B66,1),0)+B66,"") ->  | C67: =IFERROR(OFFSET(CalculationsAndCharts!$B$32, B67,0,1,1),"") ->  | E67: =IF(B67="","",IFERROR((MATCH(TRUE,OFFSET(CalculationsAndCharts!$P$33,E66,0, $C$2-E66,1),0)+E66),"")) ->  | F67: =IFERROR(OFFSET(CalculationsAndCharts!$B$32, E67,0,1,1),"") -> 
B68: =IFERROR(MATCH(TRUE,OFFSET(CalculationsAndCharts!$O$33,B67,0, $C$2-B67,1),0)+B67,"") ->  | C68: =IFERROR(OFFSET(CalculationsAndCharts!$B$32, B68,0,1,1),"") ->  | E68: =IF(B68="","",IFERROR((MATCH(TRUE,OFFSET(CalculationsAndCharts!$P$33,E67,0, $C$2-E67,1),0)+E67),"")) ->  | F68: =IFERROR(OFFSET(CalculationsAndCharts!$B$32, E68,0,1,1),"") -> 
B69: =IFERROR(MATCH(TRUE,OFFSET(CalculationsAndCharts!$O$33,B68,0, $C$2-B68,1),0)+B68,"") ->  | C69: =IFERROR(OFFSET(CalculationsAndCharts!$B$32, B69,0,1,1),"") ->  | E69: =IF(B69="","",IFERROR((MATCH(TRUE,OFFSET(CalculationsAndCharts!$P$33,E68,0, $C$2-E68,1),0)+E68),"")) ->  | F69: =IFERROR(OFFSET(CalculationsAndCharts!$B$32, E69,0,1,1),"") -> 
B70: =IFERROR(MATCH(TRUE,OFFSET(CalculationsAndCharts!$O$33,B69,0, $C$2-B69,1),0)+B69,"") ->  | C70: =IFERROR(OFFSET(CalculationsAndCharts!$B$32, B70,0,1,1),"") ->  | E70: =IF(B70="","",IFERROR((MATCH(TRUE,OFFSET(CalculationsAndCharts!$P$33,E69,0, $C$2-E69,1),0)+E69),"")) ->  | F70: =IFERROR(OFFSET(CalculationsAndCharts!$B$32, E70,0,1,1),"") -> 
B71: =IFERROR(MATCH(TRUE,OFFSET(CalculationsAndCharts!$O$33,B70,0, $C$2-B70,1),0)+B70,"") ->  | C71: =IFERROR(OFFSET(CalculationsAndCharts!$B$32, B71,0,1,1),"") ->  | E71: =IF(B71="","",IFERROR((MATCH(TRUE,OFFSET(CalculationsAndCharts!$P$33,E70,0, $C$2-E70,1),0)+E70),"")) ->  | F71: =IFERROR(OFFSET(CalculationsAndCharts!$B$32, E71,0,1,1),"") -> 
B72: =IFERROR(MATCH(TRUE,OFFSET(CalculationsAndCharts!$O$33,B71,0, $C$2-B71,1),0)+B71,"") ->  | C72: =IFERROR(OFFSET(CalculationsAndCharts!$B$32, B72,0,1,1),"") ->  | E72: =IF(B72="","",IFERROR((MATCH(TRUE,OFFSET(CalculationsAndCharts!$P$33,E71,0, $C$2-E71,1),0)+E71),"")) ->  | F72: =IFERROR(OFFSET(CalculationsAndCharts!$B$32, E72,0,1,1),"") -> 
B73: =IFERROR(MATCH(TRUE,OFFSET(CalculationsAndCharts!$O$33,B72,0, $C$2-B72,1),0)+B72,"") ->  | C73: =IFERROR(OFFSET(CalculationsAndCharts!$B$32, B73,0,1,1),"") ->  | E73: =IF(B73="","",IFERROR((MATCH(TRUE,OFFSET(CalculationsAndCharts!$P$33,E72,0, $C$2-E72,1),0)+E72),"")) ->  | F73: =IFERROR(OFFSET(CalculationsAndCharts!$B$32, E73,0,1,1),"") -> 
B74: =IFERROR(MATCH(TRUE,OFFSET(CalculationsAndCharts!$O$33,B73,0, $C$2-B73,1),0)+B73,"") ->  | C74: =IFERROR(OFFSET(CalculationsAndCharts!$B$32, B74,0,1,1),"") ->  | E74: =IF(B74="","",IFERROR((MATCH(TRUE,OFFSET(CalculationsAndCharts!$P$33,E73,0, $C$2-E73,1),0)+E73),"")) ->  | F74: =IFERROR(OFFSET(CalculationsAndCharts!$B$32, E74,0,1,1),"") -> 
B75: =IFERROR(MATCH(TRUE,OFFSET(CalculationsAndCharts!$O$33,B74,0, $C$2-B74,1),0)+B74,"") ->  | C75: =IFERROR(OFFSET(CalculationsAndCharts!$B$32, B75,0,1,1),"") ->  | E75: =IF(B75="","",IFERROR((MATCH(TRUE,OFFSET(CalculationsAndCharts!$P$33,E74,0, $C$2-E74,1),0)+E74),"")) ->  | F75: =IFERROR(OFFSET(CalculationsAndCharts!$B$32, E75,0,1,1),"") -> 
B76: =IFERROR(MATCH(TRUE,OFFSET(CalculationsAndCharts!$O$33,B75,0, $C$2-B75,1),0)+B75,"") ->  | C76: =IFERROR(OFFSET(CalculationsAndCharts!$B$32, B76,0,1,1),"") ->  | E76: =IF(B76="","",IFERROR((MATCH(TRUE,OFFSET(CalculationsAndCharts!$P$33,E75,0, $C$2-E75,1),0)+E75),"")) ->  | F76: =IFERROR(OFFSET(CalculationsAndCharts!$B$32, E76,0,1,1),"") -> 
B77: =IFERROR(MATCH(TRUE,OFFSET(CalculationsAndCharts!$O$33,B76,0, $C$2-B76,1),0)+B76,"") ->  | C77: =IFERROR(OFFSET(CalculationsAndCharts!$B$32, B77,0,1,1),"") ->  | E77: =IF(B77="","",IFERROR((MATCH(TRUE,OFFSET(CalculationsAndCharts!$P$33,E76,0, $C$2-E76,1),0)+E76),"")) ->  | F77: =IFERROR(OFFSET(CalculationsAndCharts!$B$32, E77,0,1,1),"") -> 
B78: =IFERROR(MATCH(TRUE,OFFSET(CalculationsAndCharts!$O$33,B77,0, $C$2-B77,1),0)+B77,"") ->  | C78: =IFERROR(OFFSET(CalculationsAndCharts!$B$32, B78,0,1,1),"") ->  | E78: =IF(B78="","",IFERROR((MATCH(TRUE,OFFSET(CalculationsAndCharts!$P$33,E77,0, $C$2-E77,1),0)+E77),"")) ->  | F78: =IFERROR(OFFSET(CalculationsAndCharts!$B$32, E78,0,1,1),"") -> 
B79: =IFERROR(MATCH(TRUE,OFFSET(CalculationsAndCharts!$O$33,B78,0, $C$2-B78,1),0)+B78,"") ->  | C79: =IFERROR(OFFSET(CalculationsAndCharts!$B$32, B79,0,1,1),"") ->  | E79: =IF(B79="","",IFERROR((MATCH(TRUE,OFFSET(CalculationsAndCharts!$P$33,E78,0, $C$2-E78,1),0)+E78),"")) ->  | F79: =IFERROR(OFFSET(CalculationsAndCharts!$B$32, E79,0,1,1),"") -> 
B80: =IFERROR(MATCH(TRUE,OFFSET(CalculationsAndCharts!$O$33,B79,0, $C$2-B79,1),0)+B79,"") ->  | C80: =IFERROR(OFFSET(CalculationsAndCharts!$B$32, B80,0,1,1),"") ->  | D80: =IFERROR(OFFSET(OpenColHeader, B80,0,1,1),"") ->  | E80: =IF(B80="","",IFERROR((MATCH(TRUE,OFFSET(CalculationsAndCharts!$P$33,E79,0, $C$2-E79,1),0)+E79),"")) ->  | F80: =IFERROR(OFFSET(CalculationsAndCharts!$B$32, E80,0,1,1),"") ->  | G80: =IFERROR(OFFSET(OpenColHeader, E80,0,1,1),"") ->  | J80: =IFERROR(B80-E80+1,"") -> 
B81: =IFERROR(MATCH(TRUE,OFFSET(CalculationsAndCharts!$O$33,B80,0, $C$2-B80,1),0)+B80,"") ->  | C81: =IFERROR(OFFSET(CalculationsAndCharts!$B$32, B81,0,1,1),"") ->  | E81: =IF(B81="","",IFERROR((MATCH(TRUE,OFFSET(CalculationsAndCharts!$P$33,E80,0, $C$2-E80,1),0)+E80),"")) ->  | F81: =IFERROR(OFFSET(CalculationsAndCharts!$B$32, E81,0,1,1),"") ->  | H81: =IFERROR(G81-D81,"") ->  | I81: =IFERROR(H81+IF(""=I82,0,I82),"") -> 
B82: =IFERROR(MATCH(TRUE,OFFSET(CalculationsAndCharts!$O$33,B81,0, $C$2-B81,1),0)+B81,"") ->  | C82: =IFERROR(OFFSET(CalculationsAndCharts!$B$32, B82,0,1,1),"") ->  | E82: =IF(B82="","",IFERROR((MATCH(TRUE,OFFSET(CalculationsAndCharts!$P$33,E81,0, $C$2-E81,1),0)+E81),"")) ->  | F82: =IFERROR(OFFSET(CalculationsAndCharts!$B$32, E82,0,1,1),"") -> 
B83: =IFERROR(MATCH(TRUE,OFFSET(CalculationsAndCharts!$O$33,B82,0, $C$2-B82,1),0)+B82,"") ->  | C83: =IFERROR(OFFSET(CalculationsAndCharts!$B$32, B83,0,1,1),"") ->  | E83: =IF(B83="","",IFERROR((MATCH(TRUE,OFFSET(CalculationsAndCharts!$P$33,E82,0, $C$2-E82,1),0)+E82),"")) ->  | F83: =IFERROR(OFFSET(CalculationsAndCharts!$B$32, E83,0,1,1),"") -> 
B84: =IFERROR(MATCH(TRUE,OFFSET(CalculationsAndCharts!$O$33,B83,0, $C$2-B83,1),0)+B83,"") ->  | C84: =IFERROR(OFFSET(CalculationsAndCharts!$B$32, B84,0,1,1),"") ->  | E84: =IF(B84="","",IFERROR((MATCH(TRUE,OFFSET(CalculationsAndCharts!$P$33,E83,0, $C$2-E83,1),0)+E83),"")) ->  | F84: =IFERROR(OFFSET(CalculationsAndCharts!$B$32, E84,0,1,1),"") -> 
B85: =IFERROR(MATCH(TRUE,OFFSET(CalculationsAndCharts!$O$33,B84,0, $C$2-B84,1),0)+B84,"") ->  | C85: =IFERROR(OFFSET(CalculationsAndCharts!$B$32, B85,0,1,1),"") ->  | E85: =IF(B85="","",IFERROR((MATCH(TRUE,OFFSET(CalculationsAndCharts!$P$33,E84,0, $C$2-E84,1),0)+E84),"")) ->  | F85: =IFERROR(OFFSET(CalculationsAndCharts!$B$32, E85,0,1,1),"") -> 
B86: =IFERROR(MATCH(TRUE,OFFSET(CalculationsAndCharts!$O$33,B85,0, $C$2-B85,1),0)+B85,"") ->  | C86: =IFERROR(OFFSET(CalculationsAndCharts!$B$32, B86,0,1,1),"") ->  | E86: =IF(B86="","",IFERROR((MATCH(TRUE,OFFSET(CalculationsAndCharts!$P$33,E85,0, $C$2-E85,1),0)+E85),"")) ->  | F86: =IFERROR(OFFSET(CalculationsAndCharts!$B$32, E86,0,1,1),"") -> 
B87: =IFERROR(MATCH(TRUE,OFFSET(CalculationsAndCharts!$O$33,B86,0, $C$2-B86,1),0)+B86,"") ->  | C87: =IFERROR(OFFSET(CalculationsAndCharts!$B$32, B87,0,1,1),"") ->  | E87: =IF(B87="","",IFERROR((MATCH(TRUE,OFFSET(CalculationsAndCharts!$P$33,E86,0, $C$2-E86,1),0)+E86),"")) ->  | F87: =IFERROR(OFFSET(CalculationsAndCharts!$B$32, E87,0,1,1),"") -> 
B88: =IFERROR(MATCH(TRUE,OFFSET(CalculationsAndCharts!$O$33,B87,0, $C$2-B87,1),0)+B87,"") ->  | C88: =IFERROR(OFFSET(CalculationsAndCharts!$B$32, B88,0,1,1),"") ->  | E88: =IF(B88="","",IFERROR((MATCH(TRUE,OFFSET(CalculationsAndCharts!$P$33,E87,0, $C$2-E87,1),0)+E87),"")) ->  | F88: =IFERROR(OFFSET(CalculationsAndCharts!$B$32, E88,0,1,1),"") -> 
B89: =IFERROR(MATCH(TRUE,OFFSET(CalculationsAndCharts!$O$33,B88,0, $C$2-B88,1),0)+B88,"") ->  | C89: =IFERROR(OFFSET(CalculationsAndCharts!$B$32, B89,0,1,1),"") ->  | E89: =IF(B89="","",IFERROR((MATCH(TRUE,OFFSET(CalculationsAndCharts!$P$33,E88,0, $C$2-E88,1),0)+E88),"")) ->  | F89: =IFERROR(OFFSET(CalculationsAndCharts!$B$32, E89,0,1,1),"") -> 
B90: =IFERROR(MATCH(TRUE,OFFSET(CalculationsAndCharts!$O$33,B89,0, $C$2-B89,1),0)+B89,"") ->  | C90: =IFERROR(OFFSET(CalculationsAndCharts!$B$32, B90,0,1,1),"") ->  | E90: =IF(B90="","",IFERROR((MATCH(TRUE,OFFSET(CalculationsAndCharts!$P$33,E89,0, $C$2-E89,1),0)+E89),"")) ->  | F90: =IFERROR(OFFSET(CalculationsAndCharts!$B$32, E90,0,1,1),"") -> 
B91: =IFERROR(MATCH(TRUE,OFFSET(CalculationsAndCharts!$O$33,B90,0, $C$2-B90,1),0)+B90,"") ->  | C91: =IFERROR(OFFSET(CalculationsAndCharts!$B$32, B91,0,1,1),"") ->  | E91: =IF(B91="","",IFERROR((MATCH(TRUE,OFFSET(CalculationsAndCharts!$P$33,E90,0, $C$2-E90,1),0)+E90),"")) ->  | F91: =IFERROR(OFFSET(CalculationsAndCharts!$B$32, E91,0,1,1),"") -> 
B92: =IFERROR(MATCH(TRUE,OFFSET(CalculationsAndCharts!$O$33,B91,0, $C$2-B91,1),0)+B91,"") ->  | C92: =IFERROR(OFFSET(CalculationsAndCharts!$B$32, B92,0,1,1),"") ->  | E92: =IF(B92="","",IFERROR((MATCH(TRUE,OFFSET(CalculationsAndCharts!$P$33,E91,0, $C$2-E91,1),0)+E91),"")) ->  | F92: =IFERROR(OFFSET(CalculationsAndCharts!$B$32, E92,0,1,1),"") -> 
B93: =IFERROR(MATCH(TRUE,OFFSET(CalculationsAndCharts!$O$33,B92,0, $C$2-B92,1),0)+B92,"") ->  | C93: =IFERROR(OFFSET(CalculationsAndCharts!$B$32, B93,0,1,1),"") ->  | E93: =IF(B93="","",IFERROR((MATCH(TRUE,OFFSET(CalculationsAndCharts!$P$33,E92,0, $C$2-E92,1),0)+E92),"")) ->  | F93: =IFERROR(OFFSET(CalculationsAndCharts!$B$32, E93,0,1,1),"") -> 
B94: =IFERROR(MATCH(TRUE,OFFSET(CalculationsAndCharts!$O$33,B93,0, $C$2-B93,1),0)+B93,"") ->  | C94: =IFERROR(OFFSET(CalculationsAndCharts!$B$32, B94,0,1,1),"") ->  | E94: =IF(B94="","",IFERROR((MATCH(TRUE,OFFSET(CalculationsAndCharts!$P$33,E93,0, $C$2-E93,1),0)+E93),"")) ->  | F94: =IFERROR(OFFSET(CalculationsAndCharts!$B$32, E94,0,1,1),"") -> 
B95: =IFERROR(MATCH(TRUE,OFFSET(CalculationsAndCharts!$O$33,B94,0, $C$2-B94,1),0)+B94,"") ->  | C95: =IFERROR(OFFSET(CalculationsAndCharts!$B$32, B95,0,1,1),"") ->  | E95: =IF(B95="","",IFERROR((MATCH(TRUE,OFFSET(CalculationsAndCharts!$P$33,E94,0, $C$2-E94,1),0)+E94),"")) ->  | F95: =IFERROR(OFFSET(CalculationsAndCharts!$B$32, E95,0,1,1),"") -> 
B96: =IFERROR(MATCH(TRUE,OFFSET(CalculationsAndCharts!$O$33,B95,0, $C$2-B95,1),0)+B95,"") ->  | C96: =IFERROR(OFFSET(CalculationsAndCharts!$B$32, B96,0,1,1),"") ->  | E96: =IF(B96="","",IFERROR((MATCH(TRUE,OFFSET(CalculationsAndCharts!$P$33,E95,0, $C$2-E95,1),0)+E95),"")) ->  | F96: =IFERROR(OFFSET(CalculationsAndCharts!$B$32, E96,0,1,1),"") -> 
B97: =IFERROR(MATCH(TRUE,OFFSET(CalculationsAndCharts!$O$33,B96,0, $C$2-B96,1),0)+B96,"") ->  | C97: =IFERROR(OFFSET(CalculationsAndCharts!$B$32, B97,0,1,1),"") ->  | E97: =IF(B97="","",IFERROR((MATCH(TRUE,OFFSET(CalculationsAndCharts!$P$33,E96,0, $C$2-E96,1),0)+E96),"")) ->  | F97: =IFERROR(OFFSET(CalculationsAndCharts!$B$32, E97,0,1,1),"") -> 
B98: =IFERROR(MATCH(TRUE,OFFSET(CalculationsAndCharts!$O$33,B97,0, $C$2-B97,1),0)+B97,"") ->  | C98: =IFERROR(OFFSET(CalculationsAndCharts!$B$32, B98,0,1,1),"") ->  | E98: =IF(B98="","",IFERROR((MATCH(TRUE,OFFSET(CalculationsAndCharts!$P$33,E97,0, $C$2-E97,1),0)+E97),"")) ->  | F98: =IFERROR(OFFSET(CalculationsAndCharts!$B$32, E98,0,1,1),"") -> 
B99: =IFERROR(MATCH(TRUE,OFFSET(CalculationsAndCharts!$O$33,B98,0, $C$2-B98,1),0)+B98,"") ->  | C99: =IFERROR(OFFSET(CalculationsAndCharts!$B$32, B99,0,1,1),"") ->  | E99: =IF(B99="","",IFERROR((MATCH(TRUE,OFFSET(CalculationsAndCharts!$P$33,E98,0, $C$2-E98,1),0)+E98),"")) ->  | F99: =IFERROR(OFFSET(CalculationsAndCharts!$B$32, E99,0,1,1),"") -> 
B100: =IFERROR(MATCH(TRUE,OFFSET(CalculationsAndCharts!$O$33,B99,0, $C$2-B99,1),0)+B99,"") ->  | C100: =IFERROR(OFFSET(CalculationsAndCharts!$B$32, B100,0,1,1),"") ->  | E100: =IF(B100="","",IFERROR((MATCH(TRUE,OFFSET(CalculationsAndCharts!$P$33,E99,0, $C$2-E99,1),0)+E99),"")) ->  | F100: =IFERROR(OFFSET(CalculationsAndCharts!$B$32, E100,0,1,1),"") -> 
B101: =IFERROR(MATCH(TRUE,OFFSET(CalculationsAndCharts!$O$33,B100,0, $C$2-B100,1),0)+B100,"") ->  | C101: =IFERROR(OFFSET(CalculationsAndCharts!$B$32, B101,0,1,1),"") ->  | E101: =IF(B101="","",IFERROR((MATCH(TRUE,OFFSET(CalculationsAndCharts!$P$33,E100,0, $C$2-E100,1),0)+E100),"")) ->  | F101: =IFERROR(OFFSET(CalculationsAndCharts!$B$32, E101,0,1,1),"") -> 
B102: =IFERROR(MATCH(TRUE,OFFSET(CalculationsAndCharts!$O$33,B101,0, $C$2-B101,1),0)+B101,"") ->  | C102: =IFERROR(OFFSET(CalculationsAndCharts!$B$32, B102,0,1,1),"") ->  | E102: =IF(B102="","",IFERROR((MATCH(TRUE,OFFSET(CalculationsAndCharts!$P$33,E101,0, $C$2-E101,1),0)+E101),"")) ->  | F102: =IFERROR(OFFSET(CalculationsAndCharts!$B$32, E102,0,1,1),"") -> 
B103: =IFERROR(MATCH(TRUE,OFFSET(CalculationsAndCharts!$O$33,B102,0, $C$2-B102,1),0)+B102,"") ->  | C103: =IFERROR(OFFSET(CalculationsAndCharts!$B$32, B103,0,1,1),"") ->  | E103: =IF(B103="","",IFERROR((MATCH(TRUE,OFFSET(CalculationsAndCharts!$P$33,E102,0, $C$2-E102,1),0)+E102),"")) ->  | F103: =IFERROR(OFFSET(CalculationsAndCharts!$B$32, E103,0,1,1),"") -> 
B104: =IFERROR(MATCH(TRUE,OFFSET(CalculationsAndCharts!$O$33,B103,0, $C$2-B103,1),0)+B103,"") ->  | C104: =IFERROR(OFFSET(CalculationsAndCharts!$B$32, B104,0,1,1),"") ->  | E104: =IF(B104="","",IFERROR((MATCH(TRUE,OFFSET(CalculationsAndCharts!$P$33,E103,0, $C$2-E103,1),0)+E103),"")) ->  | F104: =IFERROR(OFFSET(CalculationsAndCharts!$B$32, E104,0,1,1),"") -> 
B105: =IFERROR(MATCH(TRUE,OFFSET(CalculationsAndCharts!$O$33,B104,0, $C$2-B104,1),0)+B104,"") ->  | C105: =IFERROR(OFFSET(CalculationsAndCharts!$B$32, B105,0,1,1),"") ->  | E105: =IF(B105="","",IFERROR((MATCH(TRUE,OFFSET(CalculationsAndCharts!$P$33,E104,0, $C$2-E104,1),0)+E104),"")) ->  | F105: =IFERROR(OFFSET(CalculationsAndCharts!$B$32, E105,0,1,1),"") -> 
B106: =IFERROR(MATCH(TRUE,OFFSET(CalculationsAndCharts!$O$33,B105,0, $C$2-B105,1),0)+B105,"") ->  | C106: =IFERROR(OFFSET(CalculationsAndCharts!$B$32, B106,0,1,1),"") ->  | E106: =IF(B106="","",IFERROR((MATCH(TRUE,OFFSET(CalculationsAndCharts!$P$33,E105,0, $C$2-E105,1),0)+E105),"")) ->  | F106: =IFERROR(OFFSET(CalculationsAndCharts!$B$32, E106,0,1,1),"") -> 
B107: =IFERROR(MATCH(TRUE,OFFSET(CalculationsAndCharts!$O$33,B106,0, $C$2-B106,1),0)+B106,"") ->  | C107: =IFERROR(OFFSET(CalculationsAndCharts!$B$32, B107,0,1,1),"") ->  | E107: =IF(B107="","",IFERROR((MATCH(TRUE,OFFSET(CalculationsAndCharts!$P$33,E106,0, $C$2-E106,1),0)+E106),"")) ->  | F107: =IFERROR(OFFSET(CalculationsAndCharts!$B$32, E107,0,1,1),"") -> 
B108: =IFERROR(MATCH(TRUE,OFFSET(CalculationsAndCharts!$O$33,B107,0, $C$2-B107,1),0)+B107,"") ->  | C108: =IFERROR(OFFSET(CalculationsAndCharts!$B$32, B108,0,1,1),"") ->  | E108: =IF(B108="","",IFERROR((MATCH(TRUE,OFFSET(CalculationsAndCharts!$P$33,E107,0, $C$2-E107,1),0)+E107),"")) ->  | F108: =IFERROR(OFFSET(CalculationsAndCharts!$B$32, E108,0,1,1),"") -> 
B109: =IFERROR(MATCH(TRUE,OFFSET(CalculationsAndCharts!$O$33,B108,0, $C$2-B108,1),0)+B108,"") ->  | C109: =IFERROR(OFFSET(CalculationsAndCharts!$B$32, B109,0,1,1),"") ->  | E109: =IF(B109="","",IFERROR((MATCH(TRUE,OFFSET(CalculationsAndCharts!$P$33,E108,0, $C$2-E108,1),0)+E108),"")) ->  | F109: =IFERROR(OFFSET(CalculationsAndCharts!$B$32, E109,0,1,1),"") -> 
B110: =IFERROR(MATCH(TRUE,OFFSET(CalculationsAndCharts!$O$33,B109,0, $C$2-B109,1),0)+B109,"") ->  | C110: =IFERROR(OFFSET(CalculationsAndCharts!$B$32, B110,0,1,1),"") ->  | E110: =IF(B110="","",IFERROR((MATCH(TRUE,OFFSET(CalculationsAndCharts!$P$33,E109,0, $C$2-E109,1),0)+E109),"")) ->  | F110: =IFERROR(OFFSET(CalculationsAndCharts!$B$32, E110,0,1,1),"") -> 
B111: =IFERROR(MATCH(TRUE,OFFSET(CalculationsAndCharts!$O$33,B110,0, $C$2-B110,1),0)+B110,"") ->  | C111: =IFERROR(OFFSET(CalculationsAndCharts!$B$32, B111,0,1,1),"") ->  | E111: =IF(B111="","",IFERROR((MATCH(TRUE,OFFSET(CalculationsAndCharts!$P$33,E110,0, $C$2-E110,1),0)+E110),"")) ->  | F111: =IFERROR(OFFSET(CalculationsAndCharts!$B$32, E111,0,1,1),"") -> 
B112: =IFERROR(MATCH(TRUE,OFFSET(CalculationsAndCharts!$O$33,B111,0, $C$2-B111,1),0)+B111,"") ->  | C112: =IFERROR(OFFSET(CalculationsAndCharts!$B$32, B112,0,1,1),"") ->  | E112: =IF(B112="","",IFERROR((MATCH(TRUE,OFFSET(CalculationsAndCharts!$P$33,E111,0, $C$2-E111,1),0)+E111),"")) ->  | F112: =IFERROR(OFFSET(CalculationsAndCharts!$B$32, E112,0,1,1),"") -> 
B113: =IFERROR(MATCH(TRUE,OFFSET(CalculationsAndCharts!$O$33,B112,0, $C$2-B112,1),0)+B112,"") ->  | C113: =IFERROR(OFFSET(CalculationsAndCharts!$B$32, B113,0,1,1),"") ->  | E113: =IF(B113="","",IFERROR((MATCH(TRUE,OFFSET(CalculationsAndCharts!$P$33,E112,0, $C$2-E112,1),0)+E112),"")) ->  | F113: =IFERROR(OFFSET(CalculationsAndCharts!$B$32, E113,0,1,1),"") -> 
B114: =IFERROR(MATCH(TRUE,OFFSET(CalculationsAndCharts!$O$33,B113,0, $C$2-B113,1),0)+B113,"") ->  | C114: =IFERROR(OFFSET(CalculationsAndCharts!$B$32, B114,0,1,1),"") ->  | E114: =IF(B114="","",IFERROR((MATCH(TRUE,OFFSET(CalculationsAndCharts!$P$33,E113,0, $C$2-E113,1),0)+E113),"")) ->  | F114: =IFERROR(OFFSET(CalculationsAndCharts!$B$32, E114,0,1,1),"") -> 
B115: =IFERROR(MATCH(TRUE,OFFSET(CalculationsAndCharts!$O$33,B114,0, $C$2-B114,1),0)+B114,"") ->  | C115: =IFERROR(OFFSET(CalculationsAndCharts!$B$32, B115,0,1,1),"") ->  | E115: =IF(B115="","",IFERROR((MATCH(TRUE,OFFSET(CalculationsAndCharts!$P$33,E114,0, $C$2-E114,1),0)+E114),"")) ->  | F115: =IFERROR(OFFSET(CalculationsAndCharts!$B$32, E115,0,1,1),"") -> 
B116: =IFERROR(MATCH(TRUE,OFFSET(CalculationsAndCharts!$O$33,B115,0, $C$2-B115,1),0)+B115,"") ->  | C116: =IFERROR(OFFSET(CalculationsAndCharts!$B$32, B116,0,1,1),"") ->  | E116: =IF(B116="","",IFERROR((MATCH(TRUE,OFFSET(CalculationsAndCharts!$P$33,E115,0, $C$2-E115,1),0)+E115),"")) ->  | F116: =IFERROR(OFFSET(CalculationsAndCharts!$B$32, E116,0,1,1),"") -> 
B117: =IFERROR(MATCH(TRUE,OFFSET(CalculationsAndCharts!$O$33,B116,0, $C$2-B116,1),0)+B116,"") ->  | C117: =IFERROR(OFFSET(CalculationsAndCharts!$B$32, B117,0,1,1),"") ->  | E117: =IF(B117="","",IFERROR((MATCH(TRUE,OFFSET(CalculationsAndCharts!$P$33,E116,0, $C$2-E116,1),0)+E116),"")) ->  | F117: =IFERROR(OFFSET(CalculationsAndCharts!$B$32, E117,0,1,1),"") -> 
B118: =IFERROR(MATCH(TRUE,OFFSET(CalculationsAndCharts!$O$33,B117,0, $C$2-B117,1),0)+B117,"") ->  | C118: =IFERROR(OFFSET(CalculationsAndCharts!$B$32, B118,0,1,1),"") ->  | E118: =IF(B118="","",IFERROR((MATCH(TRUE,OFFSET(CalculationsAndCharts!$P$33,E117,0, $C$2-E117,1),0)+E117),"")) ->  | F118: =IFERROR(OFFSET(CalculationsAndCharts!$B$32, E118,0,1,1),"") -> 
B119: =IFERROR(MATCH(TRUE,OFFSET(CalculationsAndCharts!$O$33,B118,0, $C$2-B118,1),0)+B118,"") ->  | C119: =IFERROR(OFFSET(CalculationsAndCharts!$B$32, B119,0,1,1),"") ->  | E119: =IF(B119="","",IFERROR((MATCH(TRUE,OFFSET(CalculationsAndCharts!$P$33,E118,0, $C$2-E118,1),0)+E118),"")) ->  | F119: =IFERROR(OFFSET(CalculationsAndCharts!$B$32, E119,0,1,1),"") -> 
B120: =IFERROR(MATCH(TRUE,OFFSET(CalculationsAndCharts!$O$33,B119,0, $C$2-B119,1),0)+B119,"") ->  | C120: =IFERROR(OFFSET(CalculationsAndCharts!$B$32, B120,0,1,1),"") ->  | E120: =IF(B120="","",IFERROR((MATCH(TRUE,OFFSET(CalculationsAndCharts!$P$33,E119,0, $C$2-E119,1),0)+E119),"")) ->  | F120: =IFERROR(OFFSET(CalculationsAndCharts!$B$32, E120,0,1,1),"") -> 
B121: =IFERROR(MATCH(TRUE,OFFSET(CalculationsAndCharts!$O$33,B120,0, $C$2-B120,1),0)+B120,"") ->  | C121: =IFERROR(OFFSET(CalculationsAndCharts!$B$32, B121,0,1,1),"") ->  | E121: =IF(B121="","",IFERROR((MATCH(TRUE,OFFSET(CalculationsAndCharts!$P$33,E120,0, $C$2-E120,1),0)+E120),"")) ->  | F121: =IFERROR(OFFSET(CalculationsAndCharts!$B$32, E121,0,1,1),"") -> 
B122: =IFERROR(MATCH(TRUE,OFFSET(CalculationsAndCharts!$O$33,B121,0, $C$2-B121,1),0)+B121,"") ->  | C122: =IFERROR(OFFSET(CalculationsAndCharts!$B$32, B122,0,1,1),"") ->  | E122: =IF(B122="","",IFERROR((MATCH(TRUE,OFFSET(CalculationsAndCharts!$P$33,E121,0, $C$2-E121,1),0)+E121),"")) ->  | F122: =IFERROR(OFFSET(CalculationsAndCharts!$B$32, E122,0,1,1),"") -> 
B123: =IFERROR(MATCH(TRUE,OFFSET(CalculationsAndCharts!$O$33,B122,0, $C$2-B122,1),0)+B122,"") ->  | C123: =IFERROR(OFFSET(CalculationsAndCharts!$B$32, B123,0,1,1),"") ->  | E123: =IF(B123="","",IFERROR((MATCH(TRUE,OFFSET(CalculationsAndCharts!$P$33,E122,0, $C$2-E122,1),0)+E122),"")) ->  | F123: =IFERROR(OFFSET(CalculationsAndCharts!$B$32, E123,0,1,1),"") -> 
B124: =IFERROR(MATCH(TRUE,OFFSET(CalculationsAndCharts!$O$33,B123,0, $C$2-B123,1),0)+B123,"") ->  | C124: =IFERROR(OFFSET(CalculationsAndCharts!$B$32, B124,0,1,1),"") ->  | E124: =IF(B124="","",IFERROR((MATCH(TRUE,OFFSET(CalculationsAndCharts!$P$33,E123,0, $C$2-E123,1),0)+E123),"")) ->  | F124: =IFERROR(OFFSET(CalculationsAndCharts!$B$32, E124,0,1,1),"") -> 
B125: =IFERROR(MATCH(TRUE,OFFSET(CalculationsAndCharts!$O$33,B124,0, $C$2-B124,1),0)+B124,"") ->  | C125: =IFERROR(OFFSET(CalculationsAndCharts!$B$32, B125,0,1,1),"") ->  | E125: =IF(B125="","",IFERROR((MATCH(TRUE,OFFSET(CalculationsAndCharts!$P$33,E124,0, $C$2-E124,1),0)+E124),"")) ->  | F125: =IFERROR(OFFSET(CalculationsAndCharts!$B$32, E125,0,1,1),"") -> 
B126: =IFERROR(MATCH(TRUE,OFFSET(CalculationsAndCharts!$O$33,B125,0, $C$2-B125,1),0)+B125,"") ->  | C126: =IFERROR(OFFSET(CalculationsAndCharts!$B$32, B126,0,1,1),"") ->  | E126: =IF(B126="","",IFERROR((MATCH(TRUE,OFFSET(CalculationsAndCharts!$P$33,E125,0, $C$2-E125,1),0)+E125),"")) ->  | F126: =IFERROR(OFFSET(CalculationsAndCharts!$B$32, E126,0,1,1),"") -> 
B127: =IFERROR(MATCH(TRUE,OFFSET(CalculationsAndCharts!$O$33,B126,0, $C$2-B126,1),0)+B126,"") ->  | C127: =IFERROR(OFFSET(CalculationsAndCharts!$B$32, B127,0,1,1),"") ->  | E127: =IF(B127="","",IFERROR((MATCH(TRUE,OFFSET(CalculationsAndCharts!$P$33,E126,0, $C$2-E126,1),0)+E126),"")) ->  | F127: =IFERROR(OFFSET(CalculationsAndCharts!$B$32, E127,0,1,1),"") -> 
B128: =IFERROR(MATCH(TRUE,OFFSET(CalculationsAndCharts!$O$33,B127,0, $C$2-B127,1),0)+B127,"") ->  | C128: =IFERROR(OFFSET(CalculationsAndCharts!$B$32, B128,0,1,1),"") ->  | E128: =IF(B128="","",IFERROR((MATCH(TRUE,OFFSET(CalculationsAndCharts!$P$33,E127,0, $C$2-E127,1),0)+E127),"")) ->  | F128: =IFERROR(OFFSET(CalculationsAndCharts!$B$32, E128,0,1,1),"") -> 
B129: =IFERROR(MATCH(TRUE,OFFSET(CalculationsAndCharts!$O$33,B128,0, $C$2-B128,1),0)+B128,"") ->  | C129: =IFERROR(OFFSET(CalculationsAndCharts!$B$32, B129,0,1,1),"") ->  | E129: =IF(B129="","",IFERROR((MATCH(TRUE,OFFSET(CalculationsAndCharts!$P$33,E128,0, $C$2-E128,1),0)+E128),"")) ->  | F129: =IFERROR(OFFSET(CalculationsAndCharts!$B$32, E129,0,1,1),"") -> 
B130: =IFERROR(MATCH(TRUE,OFFSET(CalculationsAndCharts!$O$33,B129,0, $C$2-B129,1),0)+B129,"") ->  | C130: =IFERROR(OFFSET(CalculationsAndCharts!$B$32, B130,0,1,1),"") ->  | E130: =IF(B130="","",IFERROR((MATCH(TRUE,OFFSET(CalculationsAndCharts!$P$33,E129,0, $C$2-E129,1),0)+E129),"")) ->  | F130: =IFERROR(OFFSET(CalculationsAndCharts!$B$32, E130,0,1,1),"") -> 
B131: =IFERROR(MATCH(TRUE,OFFSET(CalculationsAndCharts!$O$33,B130,0, $C$2-B130,1),0)+B130,"") ->  | C131: =IFERROR(OFFSET(CalculationsAndCharts!$B$32, B131,0,1,1),"") ->  | E131: =IF(B131="","",IFERROR((MATCH(TRUE,OFFSET(CalculationsAndCharts!$P$33,E130,0, $C$2-E130,1),0)+E130),"")) ->  | F131: =IFERROR(OFFSET(CalculationsAndCharts!$B$32, E131,0,1,1),"") -> 
B132: =IFERROR(MATCH(TRUE,OFFSET(CalculationsAndCharts!$O$33,B131,0, $C$2-B131,1),0)+B131,"") ->  | C132: =IFERROR(OFFSET(CalculationsAndCharts!$B$32, B132,0,1,1),"") ->  | E132: =IF(B132="","",IFERROR((MATCH(TRUE,OFFSET(CalculationsAndCharts!$P$33,E131,0, $C$2-E131,1),0)+E131),"")) ->  | F132: =IFERROR(OFFSET(CalculationsAndCharts!$B$32, E132,0,1,1),"") -> 
B133: =IFERROR(MATCH(TRUE,OFFSET(CalculationsAndCharts!$O$33,B132,0, $C$2-B132,1),0)+B132,"") ->  | C133: =IFERROR(OFFSET(CalculationsAndCharts!$B$32, B133,0,1,1),"") ->  | E133: =IF(B133="","",IFERROR((MATCH(TRUE,OFFSET(CalculationsAndCharts!$P$33,E132,0, $C$2-E132,1),0)+E132),"")) ->  | F133: =IFERROR(OFFSET(CalculationsAndCharts!$B$32, E133,0,1,1),"") -> 
B134: =IFERROR(MATCH(TRUE,OFFSET(CalculationsAndCharts!$O$33,B133,0, $C$2-B133,1),0)+B133,"") ->  | C134: =IFERROR(OFFSET(CalculationsAndCharts!$B$32, B134,0,1,1),"") ->  | E134: =IF(B134="","",IFERROR((MATCH(TRUE,OFFSET(CalculationsAndCharts!$P$33,E133,0, $C$2-E133,1),0)+E133),"")) ->  | F134: =IFERROR(OFFSET(CalculationsAndCharts!$B$32, E134,0,1,1),"") -> 
B135: =IFERROR(MATCH(TRUE,OFFSET(CalculationsAndCharts!$O$33,B134,0, $C$2-B134,1),0)+B134,"") ->  | C135: =IFERROR(OFFSET(CalculationsAndCharts!$B$32, B135,0,1,1),"") ->  | E135: =IF(B135="","",IFERROR((MATCH(TRUE,OFFSET(CalculationsAndCharts!$P$33,E134,0, $C$2-E134,1),0)+E134),"")) ->  | F135: =IFERROR(OFFSET(CalculationsAndCharts!$B$32, E135,0,1,1),"") -> 
B136: =IFERROR(MATCH(TRUE,OFFSET(CalculationsAndCharts!$O$33,B135,0, $C$2-B135,1),0)+B135,"") ->  | C136: =IFERROR(OFFSET(CalculationsAndCharts!$B$32, B136,0,1,1),"") ->  | E136: =IF(B136="","",IFERROR((MATCH(TRUE,OFFSET(CalculationsAndCharts!$P$33,E135,0, $C$2-E135,1),0)+E135),"")) ->  | F136: =IFERROR(OFFSET(CalculationsAndCharts!$B$32, E136,0,1,1),"") -> 
B137: =IFERROR(MATCH(TRUE,OFFSET(CalculationsAndCharts!$O$33,B136,0, $C$2-B136,1),0)+B136,"") ->  | C137: =IFERROR(OFFSET(CalculationsAndCharts!$B$32, B137,0,1,1),"") ->  | E137: =IF(B137="","",IFERROR((MATCH(TRUE,OFFSET(CalculationsAndCharts!$P$33,E136,0, $C$2-E136,1),0)+E136),"")) ->  | F137: =IFERROR(OFFSET(CalculationsAndCharts!$B$32, E137,0,1,1),"") -> 
B138: =IFERROR(MATCH(TRUE,OFFSET(CalculationsAndCharts!$O$33,B137,0, $C$2-B137,1),0)+B137,"") ->  | C138: =IFERROR(OFFSET(CalculationsAndCharts!$B$32, B138,0,1,1),"") ->  | E138: =IF(B138="","",IFERROR((MATCH(TRUE,OFFSET(CalculationsAndCharts!$P$33,E137,0, $C$2-E137,1),0)+E137),"")) ->  | F138: =IFERROR(OFFSET(CalculationsAndCharts!$B$32, E138,0,1,1),"") -> 
B139: =IFERROR(MATCH(TRUE,OFFSET(CalculationsAndCharts!$O$33,B138,0, $C$2-B138,1),0)+B138,"") ->  | C139: =IFERROR(OFFSET(CalculationsAndCharts!$B$32, B139,0,1,1),"") ->  | E139: =IF(B139="","",IFERROR((MATCH(TRUE,OFFSET(CalculationsAndCharts!$P$33,E138,0, $C$2-E138,1),0)+E138),"")) ->  | F139: =IFERROR(OFFSET(CalculationsAndCharts!$B$32, E139,0,1,1),"") -> 
B140: =IFERROR(MATCH(TRUE,OFFSET(CalculationsAndCharts!$O$33,B139,0, $C$2-B139,1),0)+B139,"") ->  | C140: =IFERROR(OFFSET(CalculationsAndCharts!$B$32, B140,0,1,1),"") ->  | E140: =IF(B140="","",IFERROR((MATCH(TRUE,OFFSET(CalculationsAndCharts!$P$33,E139,0, $C$2-E139,1),0)+E139),"")) ->  | F140: =IFERROR(OFFSET(CalculationsAndCharts!$B$32, E140,0,1,1),"") -> 
B141: =IFERROR(MATCH(TRUE,OFFSET(CalculationsAndCharts!$O$33,B140,0, $C$2-B140,1),0)+B140,"") ->  | C141: =IFERROR(OFFSET(CalculationsAndCharts!$B$32, B141,0,1,1),"") ->  | E141: =IF(B141="","",IFERROR((MATCH(TRUE,OFFSET(CalculationsAndCharts!$P$33,E140,0, $C$2-E140,1),0)+E140),"")) ->  | F141: =IFERROR(OFFSET(CalculationsAndCharts!$B$32, E141,0,1,1),"") -> 
B142: =IFERROR(MATCH(TRUE,OFFSET(CalculationsAndCharts!$O$33,B141,0, $C$2-B141,1),0)+B141,"") ->  | C142: =IFERROR(OFFSET(CalculationsAndCharts!$B$32, B142,0,1,1),"") ->  | E142: =IF(B142="","",IFERROR((MATCH(TRUE,OFFSET(CalculationsAndCharts!$P$33,E141,0, $C$2-E141,1),0)+E141),"")) ->  | F142: =IFERROR(OFFSET(CalculationsAndCharts!$B$32, E142,0,1,1),"") -> 
B143: =IFERROR(MATCH(TRUE,OFFSET(CalculationsAndCharts!$O$33,B142,0, $C$2-B142,1),0)+B142,"") ->  | C143: =IFERROR(OFFSET(CalculationsAndCharts!$B$32, B143,0,1,1),"") ->  | E143: =IF(B143="","",IFERROR((MATCH(TRUE,OFFSET(CalculationsAndCharts!$P$33,E142,0, $C$2-E142,1),0)+E142),"")) ->  | F143: =IFERROR(OFFSET(CalculationsAndCharts!$B$32, E143,0,1,1),"") -> 
B144: =IFERROR(MATCH(TRUE,OFFSET(CalculationsAndCharts!$O$33,B143,0, $C$2-B143,1),0)+B143,"") ->  | C144: =IFERROR(OFFSET(CalculationsAndCharts!$B$32, B144,0,1,1),"") ->  | D144: =IFERROR(OFFSET(OpenColHeader, B144,0,1,1),"") ->  | E144: =IF(B144="","",IFERROR((MATCH(TRUE,OFFSET(CalculationsAndCharts!$P$33,E143,0, $C$2-E143,1),0)+E143),"")) ->  | F144: =IFERROR(OFFSET(CalculationsAndCharts!$B$32, E144,0,1,1),"") ->  | G144: =IFERROR(OFFSET(OpenColHeader, E144,0,1,1),"") ->  | J144: =IFERROR(B144-E144+1,"") -> 
B145: =IFERROR(MATCH(TRUE,OFFSET(CalculationsAndCharts!$O$33,B144,0, $C$2-B144,1),0)+B144,"") ->  | C145: =IFERROR(OFFSET(CalculationsAndCharts!$B$32, B145,0,1,1),"") ->  | E145: =IF(B145="","",IFERROR((MATCH(TRUE,OFFSET(CalculationsAndCharts!$P$33,E144,0, $C$2-E144,1),0)+E144),"")) ->  | F145: =IFERROR(OFFSET(CalculationsAndCharts!$B$32, E145,0,1,1),"") ->  | H145: =IFERROR(G145-D145,"") ->  | I145: =IFERROR(H145+IF(""=I146,0,I146),"") -> 
B146: =IFERROR(MATCH(TRUE,OFFSET(CalculationsAndCharts!$O$33,B145,0, $C$2-B145,1),0)+B145,"") ->  | C146: =IFERROR(OFFSET(CalculationsAndCharts!$B$32, B146,0,1,1),"") ->  | E146: =IF(B146="","",IFERROR((MATCH(TRUE,OFFSET(CalculationsAndCharts!$P$33,E145,0, $C$2-E145,1),0)+E145),"")) ->  | F146: =IFERROR(OFFSET(CalculationsAndCharts!$B$32, E146,0,1,1),"") -> 
B147: =IFERROR(MATCH(TRUE,OFFSET(CalculationsAndCharts!$O$33,B146,0, $C$2-B146,1),0)+B146,"") ->  | C147: =IFERROR(OFFSET(CalculationsAndCharts!$B$32, B147,0,1,1),"") ->  | E147: =IF(B147="","",IFERROR((MATCH(TRUE,OFFSET(CalculationsAndCharts!$P$33,E146,0, $C$2-E146,1),0)+E146),"")) ->  | F147: =IFERROR(OFFSET(CalculationsAndCharts!$B$32, E147,0,1,1),"") -> 
B148: =IFERROR(MATCH(TRUE,OFFSET(CalculationsAndCharts!$O$33,B147,0, $C$2-B147,1),0)+B147,"") ->  | C148: =IFERROR(OFFSET(CalculationsAndCharts!$B$32, B148,0,1,1),"") ->  | E148: =IF(B148="","",IFERROR((MATCH(TRUE,OFFSET(CalculationsAndCharts!$P$33,E147,0, $C$2-E147,1),0)+E147),"")) ->  | F148: =IFERROR(OFFSET(CalculationsAndCharts!$B$32, E148,0,1,1),"") -> 
B149: =IFERROR(MATCH(TRUE,OFFSET(CalculationsAndCharts!$O$33,B148,0, $C$2-B148,1),0)+B148,"") ->  | C149: =IFERROR(OFFSET(CalculationsAndCharts!$B$32, B149,0,1,1),"") ->  | E149: =IF(B149="","",IFERROR((MATCH(TRUE,OFFSET(CalculationsAndCharts!$P$33,E148,0, $C$2-E148,1),0)+E148),"")) ->  | F149: =IFERROR(OFFSET(CalculationsAndCharts!$B$32, E149,0,1,1),"") -> 
B150: =IFERROR(MATCH(TRUE,OFFSET(CalculationsAndCharts!$O$33,B149,0, $C$2-B149,1),0)+B149,"") ->  | C150: =IFERROR(OFFSET(CalculationsAndCharts!$B$32, B150,0,1,1),"") ->  | E150: =IF(B150="","",IFERROR((MATCH(TRUE,OFFSET(CalculationsAndCharts!$P$33,E149,0, $C$2-E149,1),0)+E149),"")) ->  | F150: =IFERROR(OFFSET(CalculationsAndCharts!$B$32, E150,0,1,1),"") -> 
B151: =IFERROR(MATCH(TRUE,OFFSET(CalculationsAndCharts!$O$33,B150,0, $C$2-B150,1),0)+B150,"") ->  | C151: =IFERROR(OFFSET(CalculationsAndCharts!$B$32, B151,0,1,1),"") ->  | E151: =IF(B151="","",IFERROR((MATCH(TRUE,OFFSET(CalculationsAndCharts!$P$33,E150,0, $C$2-E150,1),0)+E150),"")) ->  | F151: =IFERROR(OFFSET(CalculationsAndCharts!$B$32, E151,0,1,1),"") -> 
B152: =IFERROR(MATCH(TRUE,OFFSET(CalculationsAndCharts!$O$33,B151,0, $C$2-B151,1),0)+B151,"") ->  | C152: =IFERROR(OFFSET(CalculationsAndCharts!$B$32, B152,0,1,1),"") ->  | E152: =IF(B152="","",IFERROR((MATCH(TRUE,OFFSET(CalculationsAndCharts!$P$33,E151,0, $C$2-E151,1),0)+E151),"")) ->  | F152: =IFERROR(OFFSET(CalculationsAndCharts!$B$32, E152,0,1,1),"") -> 
B153: =IFERROR(MATCH(TRUE,OFFSET(CalculationsAndCharts!$O$33,B152,0, $C$2-B152,1),0)+B152,"") ->  | C153: =IFERROR(OFFSET(CalculationsAndCharts!$B$32, B153,0,1,1),"") ->  | E153: =IF(B153="","",IFERROR((MATCH(TRUE,OFFSET(CalculationsAndCharts!$P$33,E152,0, $C$2-E152,1),0)+E152),"")) ->  | F153: =IFERROR(OFFSET(CalculationsAndCharts!$B$32, E153,0,1,1),"") -> 
B154: =IFERROR(MATCH(TRUE,OFFSET(CalculationsAndCharts!$O$33,B153,0, $C$2-B153,1),0)+B153,"") ->  | C154: =IFERROR(OFFSET(CalculationsAndCharts!$B$32, B154,0,1,1),"") ->  | E154: =IF(B154="","",IFERROR((MATCH(TRUE,OFFSET(CalculationsAndCharts!$P$33,E153,0, $C$2-E153,1),0)+E153),"")) ->  | F154: =IFERROR(OFFSET(CalculationsAndCharts!$B$32, E154,0,1,1),"") -> 
B155: =IFERROR(MATCH(TRUE,OFFSET(CalculationsAndCharts!$O$33,B154,0, $C$2-B154,1),0)+B154,"") ->  | C155: =IFERROR(OFFSET(CalculationsAndCharts!$B$32, B155,0,1,1),"") ->  | E155: =IF(B155="","",IFERROR((MATCH(TRUE,OFFSET(CalculationsAndCharts!$P$33,E154,0, $C$2-E154,1),0)+E154),"")) ->  | F155: =IFERROR(OFFSET(CalculationsAndCharts!$B$32, E155,0,1,1),"") -> 
B156: =IFERROR(MATCH(TRUE,OFFSET(CalculationsAndCharts!$O$33,B155,0, $C$2-B155,1),0)+B155,"") ->  | C156: =IFERROR(OFFSET(CalculationsAndCharts!$B$32, B156,0,1,1),"") ->  | E156: =IF(B156="","",IFERROR((MATCH(TRUE,OFFSET(CalculationsAndCharts!$P$33,E155,0, $C$2-E155,1),0)+E155),"")) ->  | F156: =IFERROR(OFFSET(CalculationsAndCharts!$B$32, E156,0,1,1),"") -> 
B157: =IFERROR(MATCH(TRUE,OFFSET(CalculationsAndCharts!$O$33,B156,0, $C$2-B156,1),0)+B156,"") ->  | C157: =IFERROR(OFFSET(CalculationsAndCharts!$B$32, B157,0,1,1),"") ->  | E157: =IF(B157="","",IFERROR((MATCH(TRUE,OFFSET(CalculationsAndCharts!$P$33,E156,0, $C$2-E156,1),0)+E156),"")) ->  | F157: =IFERROR(OFFSET(CalculationsAndCharts!$B$32, E157,0,1,1),"") -> 
B158: =IFERROR(MATCH(TRUE,OFFSET(CalculationsAndCharts!$O$33,B157,0, $C$2-B157,1),0)+B157,"") ->  | C158: =IFERROR(OFFSET(CalculationsAndCharts!$B$32, B158,0,1,1),"") ->  | E158: =IF(B158="","",IFERROR((MATCH(TRUE,OFFSET(CalculationsAndCharts!$P$33,E157,0, $C$2-E157,1),0)+E157),"")) ->  | F158: =IFERROR(OFFSET(CalculationsAndCharts!$B$32, E158,0,1,1),"") -> 
B159: =IFERROR(MATCH(TRUE,OFFSET(CalculationsAndCharts!$O$33,B158,0, $C$2-B158,1),0)+B158,"") ->  | C159: =IFERROR(OFFSET(CalculationsAndCharts!$B$32, B159,0,1,1),"") ->  | E159: =IF(B159="","",IFERROR((MATCH(TRUE,OFFSET(CalculationsAndCharts!$P$33,E158,0, $C$2-E158,1),0)+E158),"")) ->  | F159: =IFERROR(OFFSET(CalculationsAndCharts!$B$32, E159,0,1,1),"") -> 
B160: =IFERROR(MATCH(TRUE,OFFSET(CalculationsAndCharts!$O$33,B159,0, $C$2-B159,1),0)+B159,"") ->  | C160: =IFERROR(OFFSET(CalculationsAndCharts!$B$32, B160,0,1,1),"") ->  | E160: =IF(B160="","",IFERROR((MATCH(TRUE,OFFSET(CalculationsAndCharts!$P$33,E159,0, $C$2-E159,1),0)+E159),"")) ->  | F160: =IFERROR(OFFSET(CalculationsAndCharts!$B$32, E160,0,1,1),"") -> 
B161: =IFERROR(MATCH(TRUE,OFFSET(CalculationsAndCharts!$O$33,B160,0, $C$2-B160,1),0)+B160,"") ->  | C161: =IFERROR(OFFSET(CalculationsAndCharts!$B$32, B161,0,1,1),"") ->  | E161: =IF(B161="","",IFERROR((MATCH(TRUE,OFFSET(CalculationsAndCharts!$P$33,E160,0, $C$2-E160,1),0)+E160),"")) ->  | F161: =IFERROR(OFFSET(CalculationsAndCharts!$B$32, E161,0,1,1),"") -> 
B162: =IFERROR(MATCH(TRUE,OFFSET(CalculationsAndCharts!$O$33,B161,0, $C$2-B161,1),0)+B161,"") ->  | C162: =IFERROR(OFFSET(CalculationsAndCharts!$B$32, B162,0,1,1),"") ->  | E162: =IF(B162="","",IFERROR((MATCH(TRUE,OFFSET(CalculationsAndCharts!$P$33,E161,0, $C$2-E161,1),0)+E161),"")) ->  | F162: =IFERROR(OFFSET(CalculationsAndCharts!$B$32, E162,0,1,1),"") -> 
B163: =IFERROR(MATCH(TRUE,OFFSET(CalculationsAndCharts!$O$33,B162,0, $C$2-B162,1),0)+B162,"") ->  | C163: =IFERROR(OFFSET(CalculationsAndCharts!$B$32, B163,0,1,1),"") ->  | E163: =IF(B163="","",IFERROR((MATCH(TRUE,OFFSET(CalculationsAndCharts!$P$33,E162,0, $C$2-E162,1),0)+E162),"")) ->  | F163: =IFERROR(OFFSET(CalculationsAndCharts!$B$32, E163,0,1,1),"") -> 
B164: =IFERROR(MATCH(TRUE,OFFSET(CalculationsAndCharts!$O$33,B163,0, $C$2-B163,1),0)+B163,"") ->  | C164: =IFERROR(OFFSET(CalculationsAndCharts!$B$32, B164,0,1,1),"") ->  | E164: =IF(B164="","",IFERROR((MATCH(TRUE,OFFSET(CalculationsAndCharts!$P$33,E163,0, $C$2-E163,1),0)+E163),"")) ->  | F164: =IFERROR(OFFSET(CalculationsAndCharts!$B$32, E164,0,1,1),"") -> 
B165: =IFERROR(MATCH(TRUE,OFFSET(CalculationsAndCharts!$O$33,B164,0, $C$2-B164,1),0)+B164,"") ->  | C165: =IFERROR(OFFSET(CalculationsAndCharts!$B$32, B165,0,1,1),"") ->  | E165: =IF(B165="","",IFERROR((MATCH(TRUE,OFFSET(CalculationsAndCharts!$P$33,E164,0, $C$2-E164,1),0)+E164),"")) ->  | F165: =IFERROR(OFFSET(CalculationsAndCharts!$B$32, E165,0,1,1),"") -> 
B166: =IFERROR(MATCH(TRUE,OFFSET(CalculationsAndCharts!$O$33,B165,0, $C$2-B165,1),0)+B165,"") ->  | C166: =IFERROR(OFFSET(CalculationsAndCharts!$B$32, B166,0,1,1),"") ->  | E166: =IF(B166="","",IFERROR((MATCH(TRUE,OFFSET(CalculationsAndCharts!$P$33,E165,0, $C$2-E165,1),0)+E165),"")) ->  | F166: =IFERROR(OFFSET(CalculationsAndCharts!$B$32, E166,0,1,1),"") -> 
B167: =IFERROR(MATCH(TRUE,OFFSET(CalculationsAndCharts!$O$33,B166,0, $C$2-B166,1),0)+B166,"") ->  | C167: =IFERROR(OFFSET(CalculationsAndCharts!$B$32, B167,0,1,1),"") ->  | E167: =IF(B167="","",IFERROR((MATCH(TRUE,OFFSET(CalculationsAndCharts!$P$33,E166,0, $C$2-E166,1),0)+E166),"")) ->  | F167: =IFERROR(OFFSET(CalculationsAndCharts!$B$32, E167,0,1,1),"") -> 
B168: =IFERROR(MATCH(TRUE,OFFSET(CalculationsAndCharts!$O$33,B167,0, $C$2-B167,1),0)+B167,"") ->  | C168: =IFERROR(OFFSET(CalculationsAndCharts!$B$32, B168,0,1,1),"") ->  | E168: =IF(B168="","",IFERROR((MATCH(TRUE,OFFSET(CalculationsAndCharts!$P$33,E167,0, $C$2-E167,1),0)+E167),"")) ->  | F168: =IFERROR(OFFSET(CalculationsAndCharts!$B$32, E168,0,1,1),"") -> 
B169: =IFERROR(MATCH(TRUE,OFFSET(CalculationsAndCharts!$O$33,B168,0, $C$2-B168,1),0)+B168,"") ->  | C169: =IFERROR(OFFSET(CalculationsAndCharts!$B$32, B169,0,1,1),"") ->  | E169: =IF(B169="","",IFERROR((MATCH(TRUE,OFFSET(CalculationsAndCharts!$P$33,E168,0, $C$2-E168,1),0)+E168),"")) ->  | F169: =IFERROR(OFFSET(CalculationsAndCharts!$B$32, E169,0,1,1),"") -> 
B170: =IFERROR(MATCH(TRUE,OFFSET(CalculationsAndCharts!$O$33,B169,0, $C$2-B169,1),0)+B169,"") ->  | C170: =IFERROR(OFFSET(CalculationsAndCharts!$B$32, B170,0,1,1),"") ->  | E170: =IF(B170="","",IFERROR((MATCH(TRUE,OFFSET(CalculationsAndCharts!$P$33,E169,0, $C$2-E169,1),0)+E169),"")) ->  | F170: =IFERROR(OFFSET(CalculationsAndCharts!$B$32, E170,0,1,1),"") -> 
B171: =IFERROR(MATCH(TRUE,OFFSET(CalculationsAndCharts!$O$33,B170,0, $C$2-B170,1),0)+B170,"") ->  | C171: =IFERROR(OFFSET(CalculationsAndCharts!$B$32, B171,0,1,1),"") ->  | E171: =IF(B171="","",IFERROR((MATCH(TRUE,OFFSET(CalculationsAndCharts!$P$33,E170,0, $C$2-E170,1),0)+E170),"")) ->  | F171: =IFERROR(OFFSET(CalculationsAndCharts!$B$32, E171,0,1,1),"") -> 
B172: =IFERROR(MATCH(TRUE,OFFSET(CalculationsAndCharts!$O$33,B171,0, $C$2-B171,1),0)+B171,"") ->  | C172: =IFERROR(OFFSET(CalculationsAndCharts!$B$32, B172,0,1,1),"") ->  | E172: =IF(B172="","",IFERROR((MATCH(TRUE,OFFSET(CalculationsAndCharts!$P$33,E171,0, $C$2-E171,1),0)+E171),"")) ->  | F172: =IFERROR(OFFSET(CalculationsAndCharts!$B$32, E172,0,1,1),"") -> 
B173: =IFERROR(MATCH(TRUE,OFFSET(CalculationsAndCharts!$O$33,B172,0, $C$2-B172,1),0)+B172,"") ->  | C173: =IFERROR(OFFSET(CalculationsAndCharts!$B$32, B173,0,1,1),"") ->  | E173: =IF(B173="","",IFERROR((MATCH(TRUE,OFFSET(CalculationsAndCharts!$P$33,E172,0, $C$2-E172,1),0)+E172),"")) ->  | F173: =IFERROR(OFFSET(CalculationsAndCharts!$B$32, E173,0,1,1),"") -> 
B174: =IFERROR(MATCH(TRUE,OFFSET(CalculationsAndCharts!$O$33,B173,0, $C$2-B173,1),0)+B173,"") ->  | C174: =IFERROR(OFFSET(CalculationsAndCharts!$B$32, B174,0,1,1),"") ->  | E174: =IF(B174="","",IFERROR((MATCH(TRUE,OFFSET(CalculationsAndCharts!$P$33,E173,0, $C$2-E173,1),0)+E173),"")) ->  | F174: =IFERROR(OFFSET(CalculationsAndCharts!$B$32, E174,0,1,1),"") -> 
B175: =IFERROR(MATCH(TRUE,OFFSET(CalculationsAndCharts!$O$33,B174,0, $C$2-B174,1),0)+B174,"") ->  | C175: =IFERROR(OFFSET(CalculationsAndCharts!$B$32, B175,0,1,1),"") ->  | E175: =IF(B175="","",IFERROR((MATCH(TRUE,OFFSET(CalculationsAndCharts!$P$33,E174,0, $C$2-E174,1),0)+E174),"")) ->  | F175: =IFERROR(OFFSET(CalculationsAndCharts!$B$32, E175,0,1,1),"") -> 
B176: =IFERROR(MATCH(TRUE,OFFSET(CalculationsAndCharts!$O$33,B175,0, $C$2-B175,1),0)+B175,"") ->  | C176: =IFERROR(OFFSET(CalculationsAndCharts!$B$32, B176,0,1,1),"") ->  | E176: =IF(B176="","",IFERROR((MATCH(TRUE,OFFSET(CalculationsAndCharts!$P$33,E175,0, $C$2-E175,1),0)+E175),"")) ->  | F176: =IFERROR(OFFSET(CalculationsAndCharts!$B$32, E176,0,1,1),"") -> 
B177: =IFERROR(MATCH(TRUE,OFFSET(CalculationsAndCharts!$O$33,B176,0, $C$2-B176,1),0)+B176,"") ->  | C177: =IFERROR(OFFSET(CalculationsAndCharts!$B$32, B177,0,1,1),"") ->  | E177: =IF(B177="","",IFERROR((MATCH(TRUE,OFFSET(CalculationsAndCharts!$P$33,E176,0, $C$2-E176,1),0)+E176),"")) ->  | F177: =IFERROR(OFFSET(CalculationsAndCharts!$B$32, E177,0,1,1),"") -> 
B178: =IFERROR(MATCH(TRUE,OFFSET(CalculationsAndCharts!$O$33,B177,0, $C$2-B177,1),0)+B177,"") ->  | C178: =IFERROR(OFFSET(CalculationsAndCharts!$B$32, B178,0,1,1),"") ->  | E178: =IF(B178="","",IFERROR((MATCH(TRUE,OFFSET(CalculationsAndCharts!$P$33,E177,0, $C$2-E177,1),0)+E177),"")) ->  | F178: =IFERROR(OFFSET(CalculationsAndCharts!$B$32, E178,0,1,1),"") -> 
B179: =IFERROR(MATCH(TRUE,OFFSET(CalculationsAndCharts!$O$33,B178,0, $C$2-B178,1),0)+B178,"") ->  | C179: =IFERROR(OFFSET(CalculationsAndCharts!$B$32, B179,0,1,1),"") ->  | E179: =IF(B179="","",IFERROR((MATCH(TRUE,OFFSET(CalculationsAndCharts!$P$33,E178,0, $C$2-E178,1),0)+E178),"")) ->  | F179: =IFERROR(OFFSET(CalculationsAndCharts!$B$32, E179,0,1,1),"") -> 
B180: =IFERROR(MATCH(TRUE,OFFSET(CalculationsAndCharts!$O$33,B179,0, $C$2-B179,1),0)+B179,"") ->  | C180: =IFERROR(OFFSET(CalculationsAndCharts!$B$32, B180,0,1,1),"") ->  | E180: =IF(B180="","",IFERROR((MATCH(TRUE,OFFSET(CalculationsAndCharts!$P$33,E179,0, $C$2-E179,1),0)+E179),"")) ->  | F180: =IFERROR(OFFSET(CalculationsAndCharts!$B$32, E180,0,1,1),"") -> 
B181: =IFERROR(MATCH(TRUE,OFFSET(CalculationsAndCharts!$O$33,B180,0, $C$2-B180,1),0)+B180,"") ->  | C181: =IFERROR(OFFSET(CalculationsAndCharts!$B$32, B181,0,1,1),"") ->  | E181: =IF(B181="","",IFERROR((MATCH(TRUE,OFFSET(CalculationsAndCharts!$P$33,E180,0, $C$2-E180,1),0)+E180),"")) ->  | F181: =IFERROR(OFFSET(CalculationsAndCharts!$B$32, E181,0,1,1),"") -> 
B182: =IFERROR(MATCH(TRUE,OFFSET(CalculationsAndCharts!$O$33,B181,0, $C$2-B181,1),0)+B181,"") ->  | C182: =IFERROR(OFFSET(CalculationsAndCharts!$B$32, B182,0,1,1),"") ->  | E182: =IF(B182="","",IFERROR((MATCH(TRUE,OFFSET(CalculationsAndCharts!$P$33,E181,0, $C$2-E181,1),0)+E181),"")) ->  | F182: =IFERROR(OFFSET(CalculationsAndCharts!$B$32, E182,0,1,1),"") -> 
B183: =IFERROR(MATCH(TRUE,OFFSET(CalculationsAndCharts!$O$33,B182,0, $C$2-B182,1),0)+B182,"") ->  | C183: =IFERROR(OFFSET(CalculationsAndCharts!$B$32, B183,0,1,1),"") ->  | E183: =IF(B183="","",IFERROR((MATCH(TRUE,OFFSET(CalculationsAndCharts!$P$33,E182,0, $C$2-E182,1),0)+E182),"")) ->  | F183: =IFERROR(OFFSET(CalculationsAndCharts!$B$32, E183,0,1,1),"") -> 
B184: =IFERROR(MATCH(TRUE,OFFSET(CalculationsAndCharts!$O$33,B183,0, $C$2-B183,1),0)+B183,"") ->  | C184: =IFERROR(OFFSET(CalculationsAndCharts!$B$32, B184,0,1,1),"") ->  | E184: =IF(B184="","",IFERROR((MATCH(TRUE,OFFSET(CalculationsAndCharts!$P$33,E183,0, $C$2-E183,1),0)+E183),"")) ->  | F184: =IFERROR(OFFSET(CalculationsAndCharts!$B$32, E184,0,1,1),"") -> 
B185: =IFERROR(MATCH(TRUE,OFFSET(CalculationsAndCharts!$O$33,B184,0, $C$2-B184,1),0)+B184,"") ->  | C185: =IFERROR(OFFSET(CalculationsAndCharts!$B$32, B185,0,1,1),"") ->  | E185: =IF(B185="","",IFERROR((MATCH(TRUE,OFFSET(CalculationsAndCharts!$P$33,E184,0, $C$2-E184,1),0)+E184),"")) ->  | F185: =IFERROR(OFFSET(CalculationsAndCharts!$B$32, E185,0,1,1),"") -> 
B186: =IFERROR(MATCH(TRUE,OFFSET(CalculationsAndCharts!$O$33,B185,0, $C$2-B185,1),0)+B185,"") ->  | C186: =IFERROR(OFFSET(CalculationsAndCharts!$B$32, B186,0,1,1),"") ->  | E186: =IF(B186="","",IFERROR((MATCH(TRUE,OFFSET(CalculationsAndCharts!$P$33,E185,0, $C$2-E185,1),0)+E185),"")) ->  | F186: =IFERROR(OFFSET(CalculationsAndCharts!$B$32, E186,0,1,1),"") -> 
B187: =IFERROR(MATCH(TRUE,OFFSET(CalculationsAndCharts!$O$33,B186,0, $C$2-B186,1),0)+B186,"") ->  | C187: =IFERROR(OFFSET(CalculationsAndCharts!$B$32, B187,0,1,1),"") ->  | E187: =IF(B187="","",IFERROR((MATCH(TRUE,OFFSET(CalculationsAndCharts!$P$33,E186,0, $C$2-E186,1),0)+E186),"")) ->  | F187: =IFERROR(OFFSET(CalculationsAndCharts!$B$32, E187,0,1,1),"") -> 
B188: =IFERROR(MATCH(TRUE,OFFSET(CalculationsAndCharts!$O$33,B187,0, $C$2-B187,1),0)+B187,"") ->  | C188: =IFERROR(OFFSET(CalculationsAndCharts!$B$32, B188,0,1,1),"") ->  | E188: =IF(B188="","",IFERROR((MATCH(TRUE,OFFSET(CalculationsAndCharts!$P$33,E187,0, $C$2-E187,1),0)+E187),"")) ->  | F188: =IFERROR(OFFSET(CalculationsAndCharts!$B$32, E188,0,1,1),"") -> 
B189: =IFERROR(MATCH(TRUE,OFFSET(CalculationsAndCharts!$O$33,B188,0, $C$2-B188,1),0)+B188,"") ->  | C189: =IFERROR(OFFSET(CalculationsAndCharts!$B$32, B189,0,1,1),"") ->  | E189: =IF(B189="","",IFERROR((MATCH(TRUE,OFFSET(CalculationsAndCharts!$P$33,E188,0, $C$2-E188,1),0)+E188),"")) ->  | F189: =IFERROR(OFFSET(CalculationsAndCharts!$B$32, E189,0,1,1),"") -> 
B190: =IFERROR(MATCH(TRUE,OFFSET(CalculationsAndCharts!$O$33,B189,0, $C$2-B189,1),0)+B189,"") ->  | C190: =IFERROR(OFFSET(CalculationsAndCharts!$B$32, B190,0,1,1),"") ->  | E190: =IF(B190="","",IFERROR((MATCH(TRUE,OFFSET(CalculationsAndCharts!$P$33,E189,0, $C$2-E189,1),0)+E189),"")) ->  | F190: =IFERROR(OFFSET(CalculationsAndCharts!$B$32, E190,0,1,1),"") -> 
B191: =IFERROR(MATCH(TRUE,OFFSET(CalculationsAndCharts!$O$33,B190,0, $C$2-B190,1),0)+B190,"") ->  | C191: =IFERROR(OFFSET(CalculationsAndCharts!$B$32, B191,0,1,1),"") ->  | E191: =IF(B191="","",IFERROR((MATCH(TRUE,OFFSET(CalculationsAndCharts!$P$33,E190,0, $C$2-E190,1),0)+E190),"")) ->  | F191: =IFERROR(OFFSET(CalculationsAndCharts!$B$32, E191,0,1,1),"") -> 
B192: =IFERROR(MATCH(TRUE,OFFSET(CalculationsAndCharts!$O$33,B191,0, $C$2-B191,1),0)+B191,"") ->  | C192: =IFERROR(OFFSET(CalculationsAndCharts!$B$32, B192,0,1,1),"") ->  | E192: =IF(B192="","",IFERROR((MATCH(TRUE,OFFSET(CalculationsAndCharts!$P$33,E191,0, $C$2-E191,1),0)+E191),"")) ->  | F192: =IFERROR(OFFSET(CalculationsAndCharts!$B$32, E192,0,1,1),"") -> 
B193: =IFERROR(MATCH(TRUE,OFFSET(CalculationsAndCharts!$O$33,B192,0, $C$2-B192,1),0)+B192,"") ->  | C193: =IFERROR(OFFSET(CalculationsAndCharts!$B$32, B193,0,1,1),"") ->  | E193: =IF(B193="","",IFERROR((MATCH(TRUE,OFFSET(CalculationsAndCharts!$P$33,E192,0, $C$2-E192,1),0)+E192),"")) ->  | F193: =IFERROR(OFFSET(CalculationsAndCharts!$B$32, E193,0,1,1),"") -> 
B194: =IFERROR(MATCH(TRUE,OFFSET(CalculationsAndCharts!$O$33,B193,0, $C$2-B193,1),0)+B193,"") ->  | C194: =IFERROR(OFFSET(CalculationsAndCharts!$B$32, B194,0,1,1),"") ->  | E194: =IF(B194="","",IFERROR((MATCH(TRUE,OFFSET(CalculationsAndCharts!$P$33,E193,0, $C$2-E193,1),0)+E193),"")) ->  | F194: =IFERROR(OFFSET(CalculationsAndCharts!$B$32, E194,0,1,1),"") -> 
B195: =IFERROR(MATCH(TRUE,OFFSET(CalculationsAndCharts!$O$33,B194,0, $C$2-B194,1),0)+B194,"") ->  | C195: =IFERROR(OFFSET(CalculationsAndCharts!$B$32, B195,0,1,1),"") ->  | E195: =IF(B195="","",IFERROR((MATCH(TRUE,OFFSET(CalculationsAndCharts!$P$33,E194,0, $C$2-E194,1),0)+E194),"")) ->  | F195: =IFERROR(OFFSET(CalculationsAndCharts!$B$32, E195,0,1,1),"") -> 
B196: =IFERROR(MATCH(TRUE,OFFSET(CalculationsAndCharts!$O$33,B195,0, $C$2-B195,1),0)+B195,"") ->  | C196: =IFERROR(OFFSET(CalculationsAndCharts!$B$32, B196,0,1,1),"") ->  | E196: =IF(B196="","",IFERROR((MATCH(TRUE,OFFSET(CalculationsAndCharts!$P$33,E195,0, $C$2-E195,1),0)+E195),"")) ->  | F196: =IFERROR(OFFSET(CalculationsAndCharts!$B$32, E196,0,1,1),"") -> 
B197: =IFERROR(MATCH(TRUE,OFFSET(CalculationsAndCharts!$O$33,B196,0, $C$2-B196,1),0)+B196,"") ->  | C197: =IFERROR(OFFSET(CalculationsAndCharts!$B$32, B197,0,1,1),"") ->  | E197: =IF(B197="","",IFERROR((MATCH(TRUE,OFFSET(CalculationsAndCharts!$P$33,E196,0, $C$2-E196,1),0)+E196),"")) ->  | F197: =IFERROR(OFFSET(CalculationsAndCharts!$B$32, E197,0,1,1),"") -> 
B198: =IFERROR(MATCH(TRUE,OFFSET(CalculationsAndCharts!$O$33,B197,0, $C$2-B197,1),0)+B197,"") ->  | C198: =IFERROR(OFFSET(CalculationsAndCharts!$B$32, B198,0,1,1),"") ->  | E198: =IF(B198="","",IFERROR((MATCH(TRUE,OFFSET(CalculationsAndCharts!$P$33,E197,0, $C$2-E197,1),0)+E197),"")) ->  | F198: =IFERROR(OFFSET(CalculationsAndCharts!$B$32, E198,0,1,1),"") -> 
B199: =IFERROR(MATCH(TRUE,OFFSET(CalculationsAndCharts!$O$33,B198,0, $C$2-B198,1),0)+B198,"") ->  | C199: =IFERROR(OFFSET(CalculationsAndCharts!$B$32, B199,0,1,1),"") ->  | E199: =IF(B199="","",IFERROR((MATCH(TRUE,OFFSET(CalculationsAndCharts!$P$33,E198,0, $C$2-E198,1),0)+E198),"")) ->  | F199: =IFERROR(OFFSET(CalculationsAndCharts!$B$32, E199,0,1,1),"") -> 
B200: =IFERROR(MATCH(TRUE,OFFSET(CalculationsAndCharts!$O$33,B199,0, $C$2-B199,1),0)+B199,"") ->  | C200: =IFERROR(OFFSET(CalculationsAndCharts!$B$32, B200,0,1,1),"") ->  | E200: =IF(B200="","",IFERROR((MATCH(TRUE,OFFSET(CalculationsAndCharts!$P$33,E199,0, $C$2-E199,1),0)+E199),"")) ->  | F200: =IFERROR(OFFSET(CalculationsAndCharts!$B$32, E200,0,1,1),"") -> 
B201: =IFERROR(MATCH(TRUE,OFFSET(CalculationsAndCharts!$O$33,B200,0, $C$2-B200,1),0)+B200,"") ->  | C201: =IFERROR(OFFSET(CalculationsAndCharts!$B$32, B201,0,1,1),"") ->  | E201: =IF(B201="","",IFERROR((MATCH(TRUE,OFFSET(CalculationsAndCharts!$P$33,E200,0, $C$2-E200,1),0)+E200),"")) ->  | F201: =IFERROR(OFFSET(CalculationsAndCharts!$B$32, E201,0,1,1),"") -> 
B202: =IFERROR(MATCH(TRUE,OFFSET(CalculationsAndCharts!$O$33,B201,0, $C$2-B201,1),0)+B201,"") ->  | C202: =IFERROR(OFFSET(CalculationsAndCharts!$B$32, B202,0,1,1),"") ->  | E202: =IF(B202="","",IFERROR((MATCH(TRUE,OFFSET(CalculationsAndCharts!$P$33,E201,0, $C$2-E201,1),0)+E201),"")) ->  | F202: =IFERROR(OFFSET(CalculationsAndCharts!$B$32, E202,0,1,1),"") -> 
... 84 more rows

Sheet Follow
A1: Stocks and Indexes I wish to follow
A3: To ease following a stock, enter a Yahoo Finance acceptable symbol in column "A" anywhere below cell "A9".
A4: Thereafter you may doubleclick the cell containing a symbol of interest to initiate data retrieval and charting for that symbol.
A7: Symbol
A8: To | B8: Description | C8: Last Trade as of most recent check
A9: Follow | C9: Date | D9: Time | E9: Open | F9: High | G9: Low | H9: Close | I9: Volume | J9: Change
A10: A | B10: Agilent Technolog (A) -NYSE (Daily) | C10: 2015-02-02 | D10: 16:03:00 | E10: 37.9 | F10: 38.76 | G10: 37.71 | H10: 38.69 | I10: 2508493 | J10: 0.92
A11: AAL | B11: American Airlines (AAL) -NasdaqNM (Daily) | C11: 2015-02-19 | D11: 16:00:00 | E11: 50.73 | F11: 50.8 | G11: 49.59 | H11: 49.78 | I11: 11462722 | J11: 0.47
A12: ADM | B12: Archer-Daniels-Midland Company (ADM) -NYQ (Daily) | C12: 2016-03-07 | D12: 13:18:00 | E12: 37.17 | F12: 37.29 | G12: 36.85 | H12: 37.09 | I12: 2069198 | J12: -0.56
A13: AMC | B13: AMC Entertainment Holdings, Inc (AMC) -NYQ (Daily) | C13: 2015-09-04 | D13: 16:00:00 | E13: 27.14 | F13: 27.95 | G13: 26.99 | H13: 27.71 | I13: 167990 | J13: 0.28
A14: BSX | B14: Boston Scientific Corporation C (BSX) -NYQ (Daily) | C14: 2015-03-13 | D14: 16:01:00 | E14: 16.84 | F14: 16.91 | G14: 16.44 | H14: 16.61 | I14: 7262460 | J14: -0.28
A15: CASY | B15: Caseys General Stores, Inc. (CASY) -NMS (Daily) | C15: 2016-01-08 | D15: 11:34:00 | E15: 117.67 | F15: 117.97 | G15: 116.79 | H15: 117.01 | I15: 106398 | J15: 0.05
A16: CSCO | B16: Cisco Systems, In (CSCO) -NasdaqNM (Daily) | C16: 2015-02-19 | D16: 16:00:00 | E16: 29.32 | F16: 29.39 | G16: 29.13 | H16: 29.31 | I16: 21469012 | J16: -0.18
A17: CVS | B17: CVS Health Corpor (CVS) -NYSE (Daily) | C17: 2015-02-02 | D17: 16:01:00 | E17: 98.34 | F17: 99.22 | G17: 97.06 | H17: 99.11 | I17: 4416094 | J17: 0.95
A18: DIS | B18: Walt Disney Compa (DIS) -NYSE (Daily) | C18: 2015-02-26 | D18: 16:00:00 | E18: 105.5 | F18: 105.71 | G18: 104.14 | H18: 104.56 | I18: 5044969 | J18: -1.01
A19: EMC | B19: EMC Corporation C (EMC) -NYSE (Daily) | C19: 2015-02-19 | D19: 16:00:00 | E19: 28.26 | F19: 28.83 | G19: 28.19 | H19: 28.72 | I19: 11049079 | J19: 0.52
A20: F | B20: Ford Motor Company Common Stock (F) -NYQ (Daily) | C20: 2016-01-08 | D20: 11:42:00 | E20: 13.05 | F20: 13.1 | G20: 12.68 | H20: 12.7353 | I20: 19823416 | J20: 0.0353
A21: GSK | B21: GlaxoSmithKline P (GSK) -NYSE (Daily) | C21: 2015-02-02 | D21: 16:01:00 | E21: 44.11 | F21: 44.12 | G21: 43.71 | H21: 43.96 | I21: 3654466 | J21: -0.04
A22: HSY | B22: The Hershey Compa (HSY) -NYSE (Daily) | C22: 2015-02-19 | D22: 16:02:00 | E22: 106.97 | F22: 107.31 | G22: 105.42 | H22: 105.95 | I22: 1448321 | J22: -1
A23: HTLD | B23: Heartland Express (HTLD) -NasdaqNM (Daily) | C23: 2015-02-02 | D23: 16:00:00 | E23: 25.68 | F23: 25.81 | G23: 25.36 | H23: 25.62 | I23: 542510 | J23: -0.07
A24: IBM | B24: International Bus (IBM) -NYSE (Daily) | C24: 2015-02-02 | D24: 16:01:00 | E24: 154 | F24: 154.66 | G24: 151.51 | H24: 154.66 | I24: 4712247 | J24: 1.35
A25: INTC | B25: Intel Corporation (INTC) -NasdaqNM (Daily) | C25: 2015-02-19 | D25: 16:00:00 | E25: 34.25 | F25: 34.42 | G25: 34.05 | H25: 34.21 | I25: 11017541 | J25: -0.055
A26: JAH | B26: Jarden Corporation Common Stock (JAH) -NYQ (Daily) | C26: 2016-01-08 | D26: 16:02:00 | E26: 53.82 | F26: 53.88 | G26: 52.65 | H26: 52.73 | I26: 4519480 | J26: -0.81
A27: JNJ | B27: Johnson & Johnson Common Stock (JNJ) -NYQ (Daily) | C27: 2016-01-08 | D27: 11:37:00 | E27: 99.88 | F27: 99.94 | G27: 98.87 | H27: 98.88 | I27: 2448879 | J27: -0.34
A28: KO | B28: Coca-Cola Company (The) Common (KO) -NYQ (Daily) | C28: 2015-08-10 | D28: 16:00:00 | E28: 41.89 | F28: 41.99 | G28: 41.58 | H28: 41.68 | I28: 9501875 | J28: -0.09
A29: LHO | B29: LaSalle Hotel Pro (LHO) -NYSE (Daily) | C29: 2015-02-02 | D29: 16:06:00 | E29: 40.51 | F29: 40.74 | G29: 39.46 | H29: 40.26 | I29: 1034675 | J29: -0.2
A30: LINE | B30: Linn Energy, LLC (LINE) -NasdaqNM (Daily) | C30: 2015-02-02 | D30: 16:00:00 | E30: 10.4 | F30: 10.78 | G30: 10.25 | H30: 10.77 | I30: 3766537 | J30: 0.51
A31: LO | B31: Lorillard, Inc Co (LO) -NYSE (Daily) | C31: 2015-02-02 | D31: 16:03:00 | E31: 65.71 | F31: 66.29 | G31: 65.43 | H31: 66.29 | I31: 1563618 | J31: 0.68
A32: MCD | B32: McDonald's Corporation Common S (MCD) -NYQ (Daily) | C32: 2016-04-07 | D32: 16:10:00 | E32: 127.37 | F32: 128.52 | G32: 127.02 | H32: 128.14 | I32: 4720711 | J32: 0.62
A33: MDT | B33: Medtronic plc. Or (MDT) -NYSE (Daily) | C33: 2015-02-19 | D33: 16:01:00 | E33: 78.59 | F33: 78.59 | G33: 77.85 | H33: 78.13 | I33: 6900528 | J33: -0.37
A34: MGM | B34: MGM Resorts Inter (MGM) -NYSE (Daily) | C34: 2015-02-02 | D34: 16:00:00 | E34: 19.44 | F34: 19.75 | G34: 19.12 | H34: 19.74 | I34: 7570281 | J34: 0.26
A35: MO | B35: Altria Group, Inc (MO) -NYSE (Daily) | C35: 2015-02-02 | D35: 16:01:00 | E35: 53.25 | F35: 53.84 | G35: 52.98 | H35: 53.8 | I35: 9183582 | J35: 0.7
A36: MSFT | B36: Microsoft Corpora (MSFT) -NasdaqNM (Daily) | C36: 2015-02-20 | D36: 16:00:00 | E36: 43.51 | F36: 43.88 | G36: 43.29 | H36: 43.855 | I36: 29721132 | J36: 0.355
A37: NUGT | B37: Direxion Daily Gold Miners Inde (NUGT) -PCX (Daily) | C37: 2016-04-13 | D37: 14:18:00 | E37: 81.48 | F37: 84.97 | G37: 79.59 | H37: 80.5352 | I37: 4380827 | J37: -5.6148
A38: NVS | B38: Novartis AG Common Stock (NVS) -NYQ (Daily) | C38: 2016-01-08 | D38: 11:38:00 | E38: 83.38 | F38: 83.5 | G38: 82.37 | H38: 82.42 | I38: 979446 | J38: -1.52
A39: PRU | B39: Prudential Financ (PRU) -NYSE (Daily) | C39: 2015-02-23 | D39: 12:22:00 | E39: 80.25 | F39: 80.4499 | G39: 79.8 | H39: 80.12 | I39: 1604052 | J39: -0.69
A40: PSEC | B40: Prospect Capital Corporation (PSEC) -NMS (Daily) | C40: 2016-04-07 | D40: 16:00:00 | E40: 7.18 | F40: 7.25 | G40: 7.15 | H40: 7.21 | I40: 1116195 | J40: 0.02
A41: RAI | B41: Reynolds American (RAI) -NYSE (Daily) | C41: 2015-02-02 | D41: 16:03:00 | E41: 68.12 | F41: 69.06 | G41: 67.4346 | H41: 69.05 | I41: 1822013 | J41: 1.1
A42: RPM | B42: RPM International Inc. Common S (RPM) -NYQ (Daily) | C42: 2016-04-13 | D42: 12:43:00 | E42: 49.9 | F42: 50.21 | G42: 49.71 | H42: 49.97 | I42: 408337 | J42: 0.19 | K42: Owns the Rust-Oleum brand
A43: RSP | B43: Guggenheim S&P 500 Equal Weight (RSP) -PCX (Daily) | C43: 2016-01-08 | D43: 11:33:00 | E43: 73.24 | F43: 73.47 | G43: 72.41 | H43: 72.41 | I43: 754279 | J43: -0.48
A44: SONC | B44: Sonic Corp. (SONC) -NMS (Daily) | C44: 2016-01-08 | D44: 11:42:00 | E44: 30.24 | F44: 30.67 | G44: 29.89 | H44: 29.95 | I44: 327291 | J44: -0.05
A45: SPR | B45: Spirit Aerosystems Holdings, In (SPR) -NYQ (Daily) | C45: 2017-01-12 | D45: 16:02:00 | E45: 58.97 | F45: 58.97 | G45: 57.48 | H45: 57.91 | I45: 786765 | J45: -0.98
A46: SWKS | B46: Skyworks Solution (SWKS) -NasdaqNM (Daily) | C46: 2015-02-02 | D46: 16:00:00 | E46: 83.07 | F46: 83.73 | G46: 80.15 | H46: 82.02 | I46: 4119001 | J46: -1.03
A47: TOL | B47: Toll Brothers Inc (TOL) -NYSE (Daily) | C47: 2015-02-23 | D47: 12:23:00 | E47: 37.56 | F47: 37.77 | G47: 37.1 | H47: 37.36 | I47: 1521944 | J47: -0.29
A48: UNP | B48: Union Pacific Cor (UNP) -NYSE (Daily) | C48: 2015-02-02 | D48: 16:10:00 | E48: 118.13 | F48: 119.06 | G48: 116.7 | H48: 119.01 | I48: 3259594 | J48: 1.8
A49: VZ | B49: Verizon Communica (VZ) -NYSE (Daily) | C49: 2015-02-23 | D49: 12:22:00 | E49: 48.94 | F49: 49 | G49: 48.54 | H49: 48.825 | I49: 4204644 | J49: -0.145
A50: WBA | B50: (WBA) -NasdaqNM (Daily) | C50: 2015-02-02 | D50: 16:00:00 | E50: 73.06 | F50: 74.98 | G50: 73 | H50: 74.89 | I50: 4247395 | J50: 1.14
A51: WMT | B51: Wal-Mart Stores, Inc. Common St (WMT) -NYQ (Daily) | C51: 2016-01-08 | D51: 11:39:00 | E51: 65.08 | F51: 65.41 | G51: 64.29 | H51: 64.55 | I51: 6674609 | J51: -0.48
A53: ^NDX | B53: NASDAQ-100 (^NDX) -NIM (Daily) | C53: 2015-08-10 | D53: 17:15:00 | E53: 4558.68 | F53: 4583.63 | G53: 4554.63 | H53: 4573.11 | I53: 0 | J53: 53.03
A54: ^DJI | B54: Dow Jones Industrial Average (^DJI) -DJI | C54: 2016-06-11 | D54: J un | E54: 17938.82 | F54: 17938.82 | G54: 17812.34 | H54: 17865.34 | I54: 0 | J54: -119.85
A55: SPY | B55: SPDR S&P 500 (SPY) -PCX (Daily) | C55: 2016-05-05 | D55: 16:00:00 | E55: 205.56 | F55: 205.98 | G55: 204.47 | H55: 204.97 | I55: 67619222 | J55: -0.04
A56: ^GSPC | B56: S&P 500 (^GSPC) -SNP (Daily) | C56: 2017-01-09 | D56: 16:18:00 | E56: 2273.59 | F56: 2275.49 | G56: 2268.9 | H56: 2268.9 | I56: 1911608609 | J56: -8.08
A57: ^RUT | B57: RUSSELL 2000 INDEX (^RUT) -WCB (Daily) | C57: 2017-01-12 | D57: 16:30:00 | E57: 1372.840088 | F57: 1372.840088 | G57: 1346.814575 | H57: 1361.06604 | I57: 0 | J57: -12.233521
A58: ^VIX | B58: VOLATILITY S&P 500 (^VIX) -WCB (Daily) | C58: 2015-12-04 | D58: 16:14:00 | E58: 17.43 | F58: 17.65 | G58: 14.69 | H58: 14.81 | I58: 0 | J58: -3.3
A61: ACAD | B61: ACADIA Pharmaceut (ACAD) -NasdaqNM (Daily) | C61: 2014-07-21 | D61: 16:00:00 | E61: 20.13 | F61: 20.55 | G61: 19.8101 | H61: 20.31 | I61: 691016
A62: CLDX | B62: Celldex Therapeut (CLDX) -NasdaqNM (Daily) | C62: 2015-02-02 | D62: 16:00:00 | E62: 21.47 | F62: 21.69 | G62: 20.11 | H62: 21.02 | I62: 1570418 | J62: -0.4
A63: ICPT | B63: Intercept Pharmac (ICPT) -NasdaqNM (Daily) | C63: 2014-07-21 | D63: 16:00:00 | E63: 215.97 | F63: 218.43 | G63: 213.05 | H63: 218.14 | I63: 191276
A64: INO | B64: Inovio Pharmaceut (INO) -AMEX (Daily) | C64: 2014-07-21 | D64: 16:00:00 | E64: 10.3 | F64: 11.08 | G64: 10.1 | H64: 11.01 | I64: 1800796
A65: JCP | B65: J.C. Penney Compa (JCP) -NYSE (Daily) | C65: 2015-02-02 | D65: 16:01:00 | E65: 7.16 | F65: 7.44 | G65: 7.01 | H65: 7.43 | I65: 12772679 | J65: 0.16
A66: LCI | B66: Lannett Co Inc Co (LCI) -NYSE (Daily) | C66: 2014-07-21 | D66: 16:02:00 | E66: 38.09 | F66: 38.803 | G66: 36.5101 | H66: 37.76 | I66: 611367
A67: NPSP | B67: NPS Pharmaceutica (NPSP) -NasdaqNM (Daily) | C67: 2014-07-21 | D67: 15:59:00 | E67: 28.75 | F67: 29.43 | G67: 28.31 | H67: 29.29 | I67: 1126758
A68: PBYI | B68: Puma Biotechnolog (PBYI) -NYSE (Daily) | C68: 2014-07-21 | D68: 16:02:00 | E68: 58.27 | F68: 59.46 | G68: 57.39 | H68: 58.98 | I68: 348030
